Workbook

Sheet iGRC_Annex F (hidden)
B44: Scenario B formula Ac
B45: Ac = 2 rD (dglide +dslide) +pi rD^2

Sheet Impact angle inputs (hidden)
J2: Time | K2: Forward Speed | L2: Vertical Speed | M2: Speed Vector | N2: Kinetic Energy [kJ] | O2: Angle against hor [deg] | P2: Horizontal Dist [m] | Q2: VertDistance/ Height [m] | R2: Check Free Fall Height [m] | S2: Gravitational Force [N] | T2: Drag force [N] | U2: Drag force hor [N] | V2: Drag Force Vert [N] | W2: Support | X2: Support
J3: 0 | K3: =$D$7 -> 61 | L3: 0 | M3: =SQRT(K3^2+L3^2) -> 61 | N3: =0.5*$D$8*M3^2/1000 -> 372.1 | O3: =DEGREES(ATAN(L3/K3)) -> 0 | P3: 0 | Q3: 0 | R3: 0 | S3: =$D$8*$D$9 -> 1962 | T3: =-0.5*$D$4*M3^2*$D$5*$D$6 -> -991.86976 | U3: =COS(O3/180*PI())*T3 -> -991.86976 | V3: =T3*SIN(O3/180*PI()) -> 0 | W3: =ABS(Q3+'Impact angle & other outputs'!$C$5) -> 300 | X3: 1
C4: Density | D4: 1.225 | E4: kg/m³ | J4: 0.1 | K4: =IF(K3+U3/$D$8*(J4-J3)<=0,0.01,K3+U3/$D$8*(J4-J3)) -> 60.50406512 | L4: =L3-(S3-V3)/$D$8*(J4-J3) -> -0.981 | M4: =SQRT(K4^2+L4^2) -> 60.51201746 | N4: =0.5*$D$8*M4^2/1000 -> 366.1704257 | O4: =DEGREES(ATAN(L4/K4)) -> -0.928900149 | P4: =(J4-J3)*0.5*(K3+K4)+P3 -> 6.075203256 | Q4: =Q3+0.5*(L3+L4)*(J4-J3) -> -0.04905 | R4: =J4^2*$D$9*0.5*-1 -> -0.04905 | S4: =$D$8*$D$9 -> 1962 | T4: =-0.5*$D$4*M4^2*$D$5*$D$6 -> -976.0638868 | U4: =COS(O4/180*PI())*T4 -> -975.9356149 | V4: =T4*SIN(O4/180*PI()) -> 15.82361179 | W4: =ABS(Q4+'Impact angle & other outputs'!$C$5) -> 299.95095 | X4: 2
C5: ref Area | D5: ='Frontal Area Interpolation'!C7 -> 0.544 | E5: m² | J5: 0.2 | K5: =IF(K4+U4/$D$8*(J5-J4)<=0,0.01,K4+U4/$D$8*(J5-J4)) -> 60.01609731 | L5: =L4-(S4-V4)/$D$8*(J5-J4) -> -1.954088194 | M5: =SQRT(K5^2+L5^2) -> 60.04790086 | N5: 360.5750397 | O5: -1.864857474 | P5: =(J5-J4)*0.5*(K4+K5)+P4 -> 12.10121138 | Q5: =Q4+0.5*(L4+L5)*(J5-J4) -> -0.1958044097 | R5: =J5^2*$D$9*0.5*-1 -> -0.1962 | S5: =$D$8*$D$9 -> 1962 | T5: =-0.5*$D$4*M5^2*$D$5*$D$6 -> -961.1488259 | U5: =COS(O5/180*PI())*T5 -> -960.6397667 | V5: =T5*SIN(O5/180*PI()) -> 31.27785562 | W5: =ABS(Q5+'Impact angle & other outputs'!$C$5) -> 299.8041956 | X5: 3
C6: Cd | D6: ='Summary calculation'!E13 -> 0.8 | E6: - | F6: Drag coefficient | J6: 0.3 | K6: 59.53577743 | L6: -2.919449266 | M6: 59.6073148 | N6: 355.3031978 | O6: -2.807357973 | P6: 18.07880511 | Q6: -0.4394812827 | R6: -0.44145 | S6: 1962 | T6: -947.0962041 | U6: -945.959552 | V6: 46.38691287 | W6: =ABS(Q6+'Impact angle & other outputs'!$C$5) -> 299.5605187 | X6: 4
C7: Cruise Speed | D7: ='Summary calculation'!E7 -> 61 | E7: m/s | F7: At time of termination or loss of power | J7: 0.4 | K7: 59.06279765 | L7: -3.87725581 | M7: 59.18992464 | N7: 350.3447179 | O7: -3.755868512 | P7: 24.00873387 | Q7: -0.7793165365 | R7: -0.7848 | S7: 1962 | T7: -933.8788801 | U7: -931.8731129 | V7: 61.17404838 | W7: =ABS(Q7+'Impact angle & other outputs'!$C$5) -> 299.2206835 | X7: 5
C8: Aircraft Mass | D8: =IF(AND(D10>=20,'Summary calculation'!E8<5),5,'Summary calculation'!E8) -> 200 | E8: kg | J8: 0.5 | K8: 58.5968611 | L8: -4.827668786 | M8: 58.79539537 | N8: 345.6898516 | O8: -4.709838294 | P8: 29.89171681 | Q8: -1.214562766 | R8: -1.22625 | S8: 1962 | T8: -921.4708685 | U8: -918.35934 | V8: 75.66164189 | W8: =ABS(Q8+'Impact angle & other outputs'!$C$5) -> 298.7854372 | X8: 6
C9: Gravity | D9: 9.81 | E9: m/s² | J9: 0.6 | K9: 58.13768143 | L9: -5.770837965 | M9: 58.42339063 | N9: 341.3292572 | O9: -5.66870048 | P9: 35.72844393 | Q9: -1.744488104 | R9: -1.7658 | S9: 1962 | T9: -909.8472681 | U9: -905.3978219 | V9: 89.87121597 | W9: =ABS(Q9+'Impact angle & other outputs'!$C$5) -> 298.2555119 | X9: 7
C10: Characteristic dimension | D10: ='Summary calculation'!E5 -> 3.11 | E10: m | J10: 0.7 | K10: 57.68498252 | L10: -6.706902357 | M10: 58.07357185 | N10: 337.2539747 | O10: -6.631873938 | P10: 41.51957713 | Q10: -2.36837512 | R10: -2.40345 | S10: 1962 | T10: -898.984195 | U10: -892.9687966 | V10: 103.8234609 | W10: =ABS(Q10+'Impact angle & other outputs'!$C$5) -> 297.6316249 | X10: 8
C11: Flight Height | D11: ='Summary calculation'!E9 -> 300 | E11: m | J11: 0.8 | K11: 57.23849812 | L11: =L10-(S10-V10)/$D$8*(J11-J10) -> -7.635990626 | M11: 57.7455974 | N11: 333.455402 | O11: -7.598765124 | P11: 47.26575116 | Q11: -3.085519769 | R11: -3.1392 | S11: 1962 | T11: -888.8587195 | U11: -881.0531093 | V11: 117.5382567 | W11: =ABS(Q11+'Impact angle & other outputs'!$C$5) -> 296.9144802 | X11: 9
C12: Friction Coeff. | D12: 0.5 | J12: 0.9 | K12: 56.79797156 | L12: -8.558221498 | M12: 57.43912194 | N12: 329.9252729 | O12: -8.568770061 | P12: 52.96757465 | Q12: -3.895230375 | R12: -3.97305 | S12: 1962 | T12: -879.4488074 | U12: -869.6321718 | V12: 131.0346927 | W12: =ABS(Q12+'Impact angle & other outputs'!$C$5) -> 296.1047696 | X12: 10
C13: Height person | D13: 1.8 | E13: m | J13: 1 | K13: 56.36315548 | L13: -9.473704152 | M13: 57.15379572 | N13: 326.6556366 | O13: -9.541276418 | P13: 58.625631 | Q13: -4.796826658 | R13: -4.905 | S13: 1962 | T13: -870.7332648 | U13: -858.6879273 | V13: 144.331085 | W13: =ABS(Q13+'Impact angle & other outputs'!$C$5) -> 295.2031733 | X13: 11
C14: Radius person | D14: 0.3 | E14: m | J14: 1.1 | K14: 55.93381151 | L14: -10.38253861 | M14: 56.88926418 | N14: 323.6388378 | O14: -10.51566566 | P14: 64.24047935 | Q14: -5.789638796 | R14: -5.93505 | S14: 1962 | T14: -862.6916861 | U14: -848.2028176 | V14: 157.4449919 | W14: =ABS(Q14+'Impact angle & other outputs'!$C$5) -> 294.2103612 | X14: 12
J15: 1.2 | K15: 55.5097101 | L15: -11.28481611 | M15: 56.64516741 | N15: 320.8674991 | O15: -11.49131523 | P15: 69.81265543 | Q15: -6.873006532 | R15: -7.0632 | S15: 1962 | T15: -855.3044055 | U15: -838.1597544 | V15: 170.3932282 | W15: =ABS(Q15+'Impact angle & other outputs'!$C$5) -> 293.1269935 | X15: 13
J16: 1.3 | K16: 55.09063023 | L16: -12.1806195 | M16: 56.42113992 | N16: 318.334503 | O16: -12.46760086 | P16: 75.34267244 | Q16: -8.046278313 | R16: -8.28945 | S16: 1962 | T16: -848.5524513 | U16: -828.5420923 | V16: 183.1918772 | W16: =ABS(Q16+'Impact angle & other outputs'!$C$5) -> 291.9537217 | X16: 14
J17: 1.4 | K17: 54.67635918 | L17: -13.07002356 | M17: 56.21681038 | N17: 316.0329769 | O17: -13.44389872 | P17: 80.83102191 | Q17: -9.308810465 | R17: -9.6138 | S17: 1962 | T17: -842.4175033 | U17: -819.3336064 | V17: 195.8563024 | W17: =ABS(Q17+'Impact angle & other outputs'!$C$5) -> 290.6911895 | X17: 15
J18: 1.5 | K18: 54.26669238 | L18: -13.95309541 | M18: 56.03180144 | N18: 313.9562773 | O18: -14.41958777 | P18: 86.27817449 | Q18: -10.65996641 | R18: -11.03625 | S18: 1962 | T18: -836.8818528 | U18: -810.5184715 | V18: 208.4011586 | W18: =ABS(Q18+'Impact angle & other outputs'!$C$5) -> 289.3400336 | X18: 16
J19: 1.6 | K19: 53.86143314 | L19: -14.82989483 | M19: 55.86572975 | N19: 312.0979761 | O19: -15.39405192 | P19: 91.68458077 | Q19: -12.09911593 | R19: -12.5568 | S19: 1962 | T19: -831.928365 | U19: -802.0812439 | V19: 220.840401 | W19: =ABS(Q19+'Impact angle & other outputs'!$C$5) -> 287.9008841 | X19: 17
J20: 1.7 | K20: 53.46039252 | L20: -15.70047463 | M20: 55.71820593 | N20: 310.4518472 | O20: -16.36668224 | P20: 97.05067205 | Q20: -13.6256344 | R20: -14.17545 | S20: 1962 | T20: -827.5404439 | U20: -794.006846 | V20: 233.1872954 | W20: =ABS(Q20+'Impact angle & other outputs'!$C$5) -> 286.3743656 | X20: 18
J21: 1.8 | K21: 53.0633891 | L21: -16.56488098 | M21: 55.58883471 | N21: 309.0118544 | O21: -17.33687906 | P21: 102.3768611 | Q21: -15.23890218 | R21: -15.8922 | S21: 1962 | T21: -823.7019992 | U21: -786.2805528 | V21: 245.4544272 | W21: =ABS(Q21+'Impact angle & other outputs'!$C$5) -> 284.7610978 | X21: 19
J22: 1.9 | K22: 52.67024882 | L22: -17.42315377 | M22: 55.47721513 | N22: 307.7721398 | O22: -18.30405398 | P22: 107.663543 | Q22: -16.93830392 | R22: -17.70705 | S22: 1962 | T22: -820.3974159 | U22: -778.88798 | V22: 257.6537105 | W22: =ABS(Q22+'Impact angle & other outputs'!$C$5) -> 283.0616961 | X22: 20
J23: 2 | K23: 52.28080483 | L23: -18.27532691 | M23: 55.38294076 | N23: 306.7270128 | O23: -19.26763185 | P23: 112.9110957 | Q23: -18.72322795 | R23: -19.62 | S23: 1962 | T23: -817.6115252 | U23: -771.815075 | V23: 269.7963977 | W23: =ABS(Q23+'Impact angle & other outputs'!$C$5) -> 281.276772 | X23: 21
J24: 2.1 | K24: 51.89489729 | L24: -19.12142871 | M24: 55.30560009 | N24: 305.8709401 | O24: -20.22705254 | P24: 118.1198808 | Q24: -20.59306573 | R24: -21.63105 | S24: 1962 | T24: -815.329578 | U24: -765.048108 | V24: 281.8930882 | W24: =ABS(Q24+'Impact angle & other outputs'!$C$5) -> 279.4069343 | X24: 22
J25: 2.2 | K25: 51.51237324 | L25: -19.96148217 | M25: 55.24477683 | N25: 305.1985367 | O25: -21.18177263 | P25: 123.2902443 | Q25: -22.54721128 | R25: -23.7402 | S25: 1962 | T25: -813.5372195 | U25: -758.5736661 | V25: 293.9537388 | W25: =ABS(Q25+'Impact angle & other outputs'!$C$5) -> 277.4527887 | X25: 23
J26: 2.3 | K26: 51.13308641 | L26: -20.7955053 | M26: 55.20005042 | N26: 304.7045566 | O26: -22.13126696 | P26: 128.4225173 | Q26: -24.58506065 | R26: -25.94745 | S26: 1962 | T26: -812.2204661 | U26: -752.3786475 | V26: 305.9876736 | W26: =ABS(Q26+'Impact angle & other outputs'!$C$5) -> 275.4149393 | X26: 24
J27: 2.4 | K27: 50.75689708 | L27: -21.62351146 | M27: 55.17099645 | N27: 304.3838849 | O27: -23.07503004 | P27: 133.5170165 | Q27: -26.70601149 | R27: -28.2528 | S27: 1962 | T27: -811.3656837 | U27: -746.4502574 | V27: 318.0035941 | W27: =ABS(Q27+'Impact angle & other outputs'!$C$5) -> 273.2939885 | X27: 25
J28: 2.5 | K28: 50.38367195 | L28: -22.44550967 | M28: 55.15718724 | N28: 304.2315304 | O28: -24.01257726 | P28: 138.574045 | Q28: -28.90946254 | R28: -30.65625 | S28: 1962 | T28: -810.9595674 | U28: -740.776005 | V28: 330.0095912 | W28: =ABS(Q28+'Impact angle & other outputs'!$C$5) -> 271.0905375 | X28: 26
J29: 2.6 | K29: 50.01328395 | L29: -23.26150487 | M29: 55.15819232 | N29: 304.242618 | O29: -24.94344595 | P29: 143.5938927 | Q29: -31.19481327 | R29: -33.1578 | S29: 1962 | T29: -810.9891227 | U29: -735.3437008 | V29: 342.0131558 | W29: =ABS(Q29+'Impact angle & other outputs'!$C$5) -> 268.8051867 | X29: 27
J30: 2.7 | K30: 49.6456121 | L30: -24.07149829 | M30: 55.1735791 | N30: 304.4123831 | O30: -25.86719636 | P30: 148.5768376 | Q30: -33.56146343 | R30: -35.75745 | S30: 1962 | T30: -811.4416484 | U30: -730.1414549 | V30: 354.0211922 | W30: =ABS(Q30+'Impact angle & other outputs'!$C$5) -> 266.4385366 | X30: 28
J31: 2.8 | K31: 49.28054137 | L31: -24.8754877 | M31: 55.20291339 | N31: 304.7361646 | O31: -26.78341234 | P31: 153.5231452 | Q31: -36.00881273 | R31: -38.4552 | S31: 1962 | T31: -812.3047204 | U31: -725.1576761 | V31: 366.0400301 | W31: =ABS(Q31+'Impact angle & other outputs'!$C$5) -> 263.9911873 | X31: 29
J32: 2.9 | K32: 48.91796254 | L32: -25.67346768 | M32: 55.24576003 | N32: 305.2094001 | O32: -27.69170196 | P32: 158.4330704 | Q32: -38.5362605 | R32: -41.25105 | S32: 1962 | T32: -813.566177 | U32: -720.3810708 | V32: 378.0754386 | W32: =ABS(Q32+'Impact angle & other outputs'!$C$5) -> 261.4637395 | X32: 30
J33: 3 | K33: 48.557772 | L33: -26.46542996 | M33: 55.30168356 | N33: 305.8276205 | O33: -28.59169791 | P33: 163.3068571 | Q33: -41.14320538 | R33: -44.145 | S33: 1962 | T33: -815.2141051 | U33: -715.8006429 | V33: 390.13264 | W33: =ABS(Q33+'Impact angle & other outputs'!$C$5) -> 258.8567946 | X33: 31
J34: 3.1 | K34: 48.19987168 | L34: -27.25136364 | M34: 55.37024878 | N34: 306.586445 | O34: -29.48305779 | P34: 168.1447393 | Q34: -43.82904506 | R34: -47.13705 | S34: 1962 | T34: -817.2368279 | U34: -711.4056935 | V34: 402.216325 | W34: =ABS(Q34+'Impact angle & other outputs'!$C$5) -> 256.1709549 | X34: 32
J35: 3.2 | K35: 47.84416883 | L35: -28.03125548 | M35: 55.45102141 | N35: 307.4815775 | O35: -30.36546422 | P35: 172.9469414 | Q35: -46.59317602 | R35: -50.2272 | S35: 1962 | T35: -819.622893 | U35: -707.1858205 | V35: 414.3306675 | W35: =ABS(Q35+'Impact angle & other outputs'!$C$5) -> 253.406824 | X35: 33
J36: 3.3 | K36: 47.49057592 | L36: -28.80509015 | M36: 55.54356866 | N36: 308.508802 | O36: -31.23862483 | P36: 177.7136786 | Q36: -49.4349933 | R36: -53.41545 | S36: 1962 | T36: -822.3610625 | U36: -703.130919 | V36: 426.4793406 | W36: =ABS(Q36+'Impact angle & other outputs'!$C$5) -> 250.5650067 | X36: 34
J37: 3.4 | K37: 47.13901046 | L37: -29.57285048 | M37: 55.64745989 | N37: 309.6639793 | O37: -32.10227208 | P37: 182.4451579 | Q37: -52.35389033 | R37: -56.7018 | S37: 1962 | T37: -825.4403031 | U37: -699.2311807 | V37: 438.6655331 | W37: =ABS(Q37+'Impact angle & other outputs'!$C$5) -> 247.6461097 | X37: 35
J38: 3.5 | K38: 46.78939487 | L38: -30.33451771 | M38: 55.76226714 | N38: 310.9430437 | O38: -32.95616303 | P38: 187.1415782 | Q38: -55.34925874 | R38: -60.08625 | S38: 1962 | T38: -828.8497773 | U38: -695.4770942 | V38: 450.8919658 | W38: =ABS(Q38+'Impact angle & other outputs'!$C$5) -> 244.6507413 | X38: 36
J39: 3.6 | K39: 46.44165632 | L39: -31.09007173 | M39: 55.88756572 | N39: 312.3420002 | O39: -33.8000789 | P39: 191.8031307 | Q39: -58.42048821 | R39: -63.5688 | S39: 1962 | T39: -832.5788358 | U39: -691.8594442 | V39: 463.1609087 | W39: =ABS(Q39+'Impact angle & other outputs'!$C$5) -> 241.5795118 | X39: 37
J40: 3.7 | K40: 46.0957266 | L40: -31.83949127 | M40: 56.02293473 | N40: 313.8569216 | O40: -34.63382462 | P40: 196.4299999 | Q40: -61.56696636 | R40: -67.14945 | S40: 1962 | T40: -836.6170101 | U40: -688.3693108 | V40: 475.4741986 | W40: =ABS(Q40+'Impact angle & other outputs'!$C$5) -> 238.4330336 | X40: 38
J41: 3.8 | K41: 45.75154195 | L41: -32.58275417 | M41: 56.16795759 | N41: 315.483946 | O41: -35.45722823 | P41: 201.0223633 | Q41: -64.78807863 | R41: -70.8282 | S41: 1962 | T41: -840.9540065 | U41: -684.9980692 | V41: 487.8332565 | W41: =ABS(Q41+'Impact angle & other outputs'!$C$5) -> 235.2119214 | X41: 39
J42: 3.9 | K42: 45.40904291 | L42: -33.31983754 | M42: 56.32222254 | N42: 317.2192752 | O42: -36.27014022 | P42: 205.5803926 | Q42: -68.08320822 | R42: -74.60505 | S42: 1962 | T42: -845.5797 | U42: -681.737388 | V42: 500.2391057 | W42: =ABS(Q42+'Impact angle & other outputs'!$C$5) -> 231.9167918 | X42: 40
J43: 4 | K43: 45.06817422 | L43: -34.05071799 | M43: 56.48532308 | N43: 319.0591723 | O43: -37.07243281 | P43: 210.1042534 | Q43: -71.451736 | R43: -78.48 | S43: 1962 | T43: -850.4841297 | U43: -678.579228 | V43: 512.6923895 | W43: =ABS(Q43+'Impact angle & other outputs'!$C$5) -> 228.548264 | X43: 41
J44: 4.1 | K44: 44.7288846 | L44: -34.7753718 | M44: 56.65685838 | N44: 320.9999602 | O44: -37.86399914 | P44: 214.5941064 | Q44: -74.89304049 | R44: -82.45305 | S44: 1962 | T44: -855.6574938 | U44: -675.5158404 | V44: 525.1933893 | W44: =ABS(Q44+'Impact angle & other outputs'!$C$5) -> 225.1069595 | X44: 42
J45: 4.2 | K45: 44.39112668 | L45: -35.4937751 | M45: 56.83643373 | N45: 323.0380199 | O45: -38.64475246 | P45: 219.0501069 | Q45: -78.40649783 | R45: -86.5242 | S45: 1962 | T45: -861.0901459 | U45: -672.5397645 | V45: 537.7420428 | W45: =ABS(Q45+'Impact angle & other outputs'!$C$5) -> 221.5935022 | X45: 43
J46: 4.3 | K46: 44.0548568 | L46: -36.20590408 | M46: 57.02366086 | N46: 325.1697898 | O46: -39.41462524 | P46: 223.4724061 | Q46: -81.99148179 | R46: -90.69345 | S46: 1962 | T46: -866.7725917 | U46: -669.6438256 | V46: 550.3379622 | W46: =ABS(Q46+'Impact angle & other outputs'!$C$5) -> 218.0085182 | X46: 44
J47: 4.4 | K47: 43.72003489 | L47: -36.9117351 | M47: 57.2181583 | N47: 327.3917639 | O47: -40.17356824 | P47: 227.8611507 | Q47: -85.64736375 | R47: -94.9608 | S47: 1962 | T47: -872.6954858 | U47: -666.821132 | V47: 562.9804516 | W47: =ABS(Q47+'Impact angle & other outputs'!$C$5) -> 214.3526363 | X47: 45
J48: 4.5 | K48: 43.38662432 | L48: -37.61124487 | M48: 57.41955165 | N48: 329.7004911 | O48: -40.92154965 | P48: 232.2164836 | Q48: -89.37351275 | R48: -99.32625 | S48: 1962 | T48: -878.8496291 | U48: -664.065072 | V48: 575.6685251 | W48: =ABS(Q48+'Impact angle & other outputs'!$C$5) -> 210.6264873 | X48: 46
J49: 4.6 | K49: 43.05459179 | L49: -38.30441061 | M49: 57.62747388 | N49: 332.0925746 | O49: -41.65855408 | P49: 236.5385444 | Q49: -93.16929552 | R49: -103.7898 | S49: 1962 | T49: -885.2259669 | U49: -661.3693101 | V49: 588.4009247 | W49: =ABS(Q49+'Impact angle & other outputs'!$C$5) -> 206.8307045 | X49: 47
J50: 4.7 | K50: 42.72390713 | L50: -38.99121015 | M50: 57.84156559 | N50: 334.564671 | O50: -42.38458166 | P50: 240.8274694 | Q50: -97.03407656 | R50: -108.35145 | S50: 1962 | T50: -891.8155869 | U50: -658.7277839 | V50: 601.1761371 | W50: =ABS(Q50+'Impact angle & other outputs'!$C$5) -> 202.9659234 | X50: 48
J51: 4.8 | K51: 42.39454324 | L51: -39.67162208 | M51: 58.06147514 | N51: 337.1134895 | O51: -43.09964707 | P51: 245.0833919 | Q51: -100.9672182 | R51: -113.0112 | S51: 1962 | T51: -898.6097176 | U51: -656.1346993 | V51: 613.9924112 | W51: =ABS(Q51+'Impact angle & other outputs'!$C$5) -> 199.0327818 | X51: 49
J52: 4.9 | K52: 42.06647589 | L52: -40.34562588 | M52: 58.28685891 | N52: 339.7357921 | O52: -43.80377864 | P52: 249.3064429 | Q52: -104.9680806 | R52: -117.76905 | S52: 1962 | T52: -905.5997275 | U52: -653.5845269 | V52: 626.8477747 | W52: =ABS(Q52+'Impact angle & other outputs'!$C$5) -> 195.0319194 | X52: 50
J53: 5 | K53: 41.73968363 | L53: -41.01320199 | M53: 58.51738141 | N53: 342.4283927 | O53: -44.49701739 | P53: 253.4967508 | Q53: -109.036022 | R53: -122.625 | S53: 1962 | T53: -912.7771235 | U53: -651.0719967 | V53: 639.7400505 | W53: =ABS(Q53+'Impact angle & other outputs'!$C$5) -> 190.963978 | X53: 51
J54: 5.1 | K54: 41.41414763 | L54: -41.67433196 | M54: 58.75271541 | N54: =0.5*$D$8*M54^2/1000 -> 345.1881568 | O54: -45.17941615 | P54: =(J54-J53)*0.5*(K53+K54)+P53 -> 257.6544424 | Q54: -113.1703987 | R54: -127.57905 | S54: 1962 | T54: -920.1335509 | U54: -648.5920939 | V54: 652.666873 | W54: =ABS(Q54+'Impact angle & other outputs'!$C$5) -> 186.8296013 | X54: 52
J55: 5.2 | K55: 41.08985158 | L55: -42.32899853 | M55: 58.99254206 | N55: 348.0120019 | O55: -45.85103869 | P55: 261.7796424 | Q55: -117.3705652 | R55: -132.6312 | S55: 1962 | T55: -927.6607923 | U55: -646.1400533 | V55: 665.6257035 | W55: =ABS(Q55+'Impact angle & other outputs'!$C$5) -> 182.6294348 | X55: 53
J56: 5.3 | K56: 40.76678156 | L56: -42.97718567 | M56: 59.23655094 | N56: 350.8968967 | O56: -46.5119588 | P56: 265.872474 | Q56: -121.6358744 | R56: -137.78145 | S56: 1962 | T56: -935.3507678 | U56: -643.7113543 | V56: 678.6138454 | W56: =ABS(Q56+'Impact angle & other outputs'!$C$5) -> 178.3641256 | X56: 54
J57: 5.4 | K57: 40.44492588 | L57: -43.61887875 | M57: 59.48444009 | N57: 353.8398613 | O57: -47.16225954 | P57: 269.9330594 | Q57: -125.9656776 | R57: -143.0298 | S57: 1962 | T57: -943.1955342 | U57: -641.3017154 | V57: 691.6284592 | W57: =ABS(Q57+'Impact angle & other outputs'!$C$5) -> 174.0343224 | X57: 55
J58: 5.5 | K58: 40.12427502 | L58: -44.25406452 | M58: 59.7359161 | N58: 356.8379673 | O58: -47.80203239 | P58: 273.9615194 | Q58: -130.3593248 | R58: -148.37625 | S58: 1962 | T58: -951.1872855 | U58: -638.9070886 | V58: 704.6665767 | W58: =ABS(Q58+'Impact angle & other outputs'!$C$5) -> 169.6406752 | X58: 56
J59: 5.6 | K59: 39.80482148 | L59: -44.88273123 | M59: 59.99069408 | N59: 359.8883376 | O59: -48.43137647 | P59: 277.9579743 | Q59: -134.8161646 | R59: -153.8208 | S59: 1962 | T59: -959.3183526 | U59: -636.5236534 | V59: 717.7251147 | W59: =ABS(Q59+'Impact angle & other outputs'!$C$5) -> 165.1838354 | X59: 57
J60: 5.7 | K60: 39.48655965 | L60: -45.50486868 | M60: 60.24849763 | N60: 362.9881466 | O60: -49.05039787 | P60: 281.9225433 | Q60: -139.3355446 | R60: -159.36345 | S60: 1962 | T60: -967.5812036 | U60: -634.1478115 | V60: 730.8008887 | W60: =ABS(Q60+'Impact angle & other outputs'!$C$5) -> 160.6644554 | X60: 58
J61: 5.8 | K61: 39.16948574 | L61: -46.12046823 | M61: 60.50905885 | N61: 366.1346203 | O61: -49.65920887 | P61: 285.8553456 | Q61: -143.9168114 | R61: -165.0042 | S61: 1962 | T61: -975.968444 | U61: -631.7761799 | V61: 743.8906251 | W61: =ABS(Q61+'Impact angle & other outputs'!$C$5) -> 156.0831886 | X61: 59
J62: 5.9 | K62: 38.85359765 | L62: -46.72952292 | M62: 60.7721183 | N62: 369.3250363 | O62: -50.25792732 | P62: 289.7564998 | Q62: -148.559311 | R62: -170.74305 | S62: 1962 | T62: -984.4728167 | U62: -629.4055858 | V62: 756.9909745 | W62: =ABS(Q62+'Impact angle & other outputs'!$C$5) -> 151.440689 | X62: 60
J63: 6 | K63: 38.53889486 | L63: -47.33202743 | M63: 61.0374249 | N63: 372.5567238 | O63: -50.84667599 | P63: 293.6261244 | Q63: -153.2623885 | R63: -176.58 | S63: 1962 | T63: -993.0872029 | U63: -627.0330599 | V63: 770.0985225 | W63: =ABS(Q63+'Impact angle & other outputs'!$C$5) -> 146.7376115 | X63: 61
J64: 6.1 | K64: 38.22537833 | L64: -47.92797817 | M64: 61.30473587 | N64: 375.827064 | O64: -51.425582 | P64: 297.464338 | Q64: -158.0253888 | R64: -182.51505 | S64: 1962 | T64: -1001.804622 | U64: -624.6558302 | V64: 783.2098021 | W64: =ABS(Q64+'Impact angle & other outputs'!$C$5) -> 141.9746112 | X64: 62
J65: 6.2 | K65: 37.91305042 | L65: -48.51737327 | M65: 61.57381668 | N65: 379.1334901 | O65: -51.99477622 | P65: 301.2712595 | Q65: -162.8476563 | R65: -188.5482 | S65: 1962 | T65: -1010.618231 | U65: -622.2713162 | V65: 796.3213034 | W65: =ABS(Q65+'Impact angle & other outputs'!$C$5) -> 137.1523437 | X65: 63
J66: 6.3 | K66: 37.60191476 | L66: -49.10021262 | M66: 61.84444092 | N66: 382.4734873 | O66: -52.55439274 | P66: 305.0470077 | Q66: -167.7285356 | R66: -194.67945 | S66: 1962 | T66: -1019.521328 | U66: -619.8771221 | V66: 809.4294849 | W66: =ABS(Q66+'Impact angle & other outputs'!$C$5) -> 132.2714644 | X66: 64
J67: 6.4 | K67: 37.2919762 | L67: -49.67649788 | M67: 62.11639019 | N67: 385.844593 | O67: -53.10456843 | P67: 308.7917023 | Q67: -172.6673712 | R67: -200.9088 | S67: 1962 | T67: -1028.507347 | U67: -617.4710312 | V67: 822.5307827 | W67: =ABS(Q67+'Impact angle & other outputs'!$C$5) -> 127.3326288 | X67: 65
J68: 6.5 | K68: 36.98324068 | L68: -50.24623248 | M68: 62.389454 | N68: =0.5*$D$8*M68^2/1000 -> 389.244397 | O68: =DEGREES(ATAN(L68/K68)) -> -53.64544242 | P68: 312.5054631 | Q68: -177.6635077 | R68: -207.23625 | S68: 1962 | T68: -1037.569865 | U68: -615.0509993 | V68: 835.6216203 | W68: =ABS(Q68+'Impact angle & other outputs'!$C$5) -> 122.3364923 | X68: 66
J69: 6.6 | K69: =IF(K68+U68/$D$8*(J69-J68)<=0,0.01,K68+U68/$D$8*(J69-J68)) -> 36.67571518 | L69: =L68-(S68-V68)/$D$8*(J69-J68) -> -50.80942167 | M69: =SQRT(K69^2+L69^2) -> 62.66342965 | N69: 392.6705415 | O69: -54.17715568 | P69: =(J69-J68)*0.5*(K68+K69)+P68 -> 316.1884109 | Q69: =Q68+0.5*(L68+L69)*(J69-J68) -> -182.7162904 | R69: =J69^2*$D$9*0.5*-1 -> -213.6618 | S69: =$D$8*$D$9 -> 1962 | T69: =-0.5*$D$4*M69^2*$D$5*$D$6 -> -1046.702595 | U69: =COS(O69/180*PI())*T69 -> -612.6151487 | V69: =T69*SIN(O69/180*PI()) -> 848.6984169 | W69: =ABS(Q69+'Impact angle & other outputs'!$C$5) -> 117.2837096 | X69: 67
J70: 6.7 | K70: 36.36940761 | L70: -51.36607247 | M70: 62.93812207 | N70: 396.120721 | O70: -54.69985064 | P70: 319.8406671 | Q70: -187.8250651 | R70: -220.18545 | S70: 1962 | T70: -1055.899394 | U70: -610.1617618 | V70: 861.7575962 | W70: =ABS(Q70+'Impact angle & other outputs'!$C$5) -> 112.1749349 | X70: 68
J71: 6.8 | K71: 36.06432673 | L71: -51.91619367 | M71: 63.21334374 | N71: 399.5926827 | O71: -55.21367081 | P71: 323.4623538 | Q71: -192.9891784 | R71: -226.8072 | S71: 1962 | T71: -1065.154255 | U71: -607.6892756 | V71: 874.795594 | W71: =ABS(Q71+'Impact angle & other outputs'!$C$5) -> 107.0108216 | X71: 69
J72: 6.9 | K72: 35.76048209 | L72: -52.45979587 | M72: 63.48891448 | N72: 403.0842262 | O72: -55.71876041 | P72: 327.0535942 | Q72: -198.2079779 | R72: -233.52705 | S72: 1962 | T72: -1074.461313 | U72: -605.196275 | V72: 887.808866 | W72: =ABS(Q72+'Impact angle & other outputs'!$C$5) -> 101.7920221 | X72: 70
J73: 7 | K73: 35.45788395 | L73: -52.99689144 | M73: 63.76466134 | N73: 406.5932036 | O73: -56.2152641 | P73: 330.6145125 | Q73: -203.4808122 | R73: -240.345 | S73: 1962 | T73: -1083.814844 | U73: -602.6814875 | V73: 900.7938942 | W73: =ABS(Q73+'Impact angle & other outputs'!$C$5) -> 96.51918776 | X73: 71
J74: 7.1 | K74: 35.15654321 | L74: -53.52749449 | M74: 64.04041846 | N74: 410.1175197 | O74: -56.70332665 | P74: 334.1452339 | Q74: -208.8070315 | R74: -247.26105 | S74: 1962 | T74: -1093.20926 | U74: -600.1437767 | V74: 913.7471939 | W74: =ABS(Q74+'Impact angle & other outputs'!$C$5) -> 91.19296847 | X74: 72
J75: 7.2 | K75: 34.85647132 | L75: -54.05162089 | M75: 64.31602688 | N75: 413.6551314 | O75: -57.1830927 | P75: 337.6458846 | Q75: -214.1859873 | R75: -254.2752 | S75: 1962 | T75: -1102.639118 | U75: -597.5821372 | V75: 926.6653195 | W75: =ABS(Q75+'Impact angle & other outputs'!$C$5) -> 85.8140127 | X75: 73
J76: 7.3 | K76: 34.55768025 | L76: -54.56928823 | M76: 64.59133442 | N76: 417.2040483 | O76: -57.65470649 | P76: 341.1165922 | Q76: -219.6170328 | R76: -261.38745 | S76: 1962 | T76: -1112.099111 | U76: -594.9956883 | V76: 939.5448705 | W76: =ABS(Q76+'Impact angle & other outputs'!$C$5) -> 80.38296724 | X76: 74
J77: 7.4 | K77: 34.26018241 | L77: -55.0805158 | M77: 64.8661955 | N77: 420.7623319 | O77: -58.11831167 | P77: 344.5574853 | Q77: -225.099523 | R77: -268.5978 | S77: 1962 | T77: -1121.584072 | U77: -592.383669 | V77: 952.3824962 | W77: =ABS(Q77+'Impact angle & other outputs'!$C$5) -> 74.90047704 | X77: 75
J78: 7.5 | K78: 33.96399057 | L78: -55.58532455 | M78: 65.14047099 | N78: 424.3280961 | O78: -58.57405106 | P78: 347.968694 | Q78: -230.632815 | R78: -275.90625 | S78: 1962 | T78: -1131.088973 | U78: -589.7454321 | V78: 965.1749013 | W78: =ABS(Q78+'Impact angle & other outputs'!$C$5) -> 69.36718502 | X78: 76
J79: 7.6 | K79: 33.66911786 | L79: -56.0837371 | M79: 65.41402804 | N79: 427.8995064 | O79: -59.02206651 | P79: 351.3503494 | Q79: -236.2162681 | R79: -283.3128 | S79: 1962 | T79: -1140.608924 | U79: -587.080439 | V79: 977.9188496 | W79: =ABS(Q79+'Impact angle & other outputs'!$C$5) -> 63.78373194 | X79: 77
J80: 7.7 | K80: 33.37557764 | L80: -56.57577768 | M80: 65.68673993 | N80: 431.4747802 | O80: -59.4624987 | P80: 354.7025842 | Q80: -241.8492438 | R80: -290.81745 | S80: 1962 | T80: -1150.139174 | U80: -584.3882546 | V80: 990.6111688 | W80: =ABS(Q80+'Impact angle & other outputs'!$C$5) -> 58.1507562 | X80: 78
J81: 7.8 | K81: 33.08338351 | L81: -57.06147209 | M81: 65.95848589 | N81: 435.0521862 | O81: -59.89548702 | P81: 358.0255322 | Q81: -247.5311063 | R81: -298.4202 | S81: 1962 | T81: -1159.675107 | U81: -581.668542 | V81: 1003.248754 | W81: =ABS(Q81+'Impact angle & other outputs'!$C$5) -> 52.46889371 | X81: 79
J82: 7.9 | K82: 32.79254924 | L82: -57.54084771 | M82: 66.22915099 | N82: 438.6300441 | O82: -60.32116942 | P82: 361.3193289 | Q82: -253.2612223 | R82: -306.12105 | S82: 1962 | T82: -1169.212246 | U82: -578.9210575 | V82: 1015.82857 | W82: =ABS(Q82+'Impact angle & other outputs'!$C$5) -> 46.73877772 | X82: 80
J83: 8 | K83: 32.50308871 | L83: -58.01393343 | M83: 66.49862591 | N83: 442.2067247 | O83: -60.73968229 | P83: 364.5841108 | Q83: -259.0389613 | R83: -313.92 | S83: 1962 | T83: -1178.746245 | U83: -576.145646 | V83: 1028.347658 | W83: =ABS(Q83+'Impact angle & other outputs'!$C$5) -> 40.96103867 | X83: 81
J84: 8.1 | K84: 32.21501589 | L84: -58.4807596 | M84: 66.76680681 | N84: 445.7806492 | O84: -61.15116039 | P84: 367.820016 | Q84: -264.863696 | R84: -321.81705 | S84: 1962 | T84: -1188.272898 | U84: -573.3422359 | V84: 1040.803133 | W84: =ABS(Q84+'Impact angle & other outputs'!$C$5) -> 35.13630401 | X84: 82
J85: 8.2 | K85: 31.92834477 | L85: -58.94135803 | M85: 67.03359521 | N85: 449.3502886 | O85: -61.55573673 | P85: 371.027184 | Q85: -270.7348019 | R85: -329.8122 | S85: 1962 | T85: -1197.788129 | U85: -570.5108347 | V85: 1053.192191 | W85: =ABS(Q85+'Impact angle & other outputs'!$C$5) -> 29.26519813 | X85: 83
J86: 8.3 | K86: 31.64308935 | L86: -59.39576194 | M86: 67.29889776 | N86: 452.914164 | O86: -61.95354249 | P86: 374.2057557 | Q86: -276.6516579 | R86: -337.90545 | S86: 1962 | T86: -1207.287996 | U86: -567.6515245 | V86: 1065.512107 | W86: =ABS(Q86+'Impact angle & other outputs'!$C$5) -> 23.34834213 | X86: 84
J87: 8.4 | K87: 31.35926359 | L87: -59.84400588 | M87: 67.56262616 | N87: 456.4708453 | O87: -62.34470698 | P87: 377.3558734 | Q87: -282.6136463 | R87: -346.0968 | S87: 1962 | T87: -1216.768685 | U87: -564.7644578 | V87: 1077.760243 | W87: =ABS(Q87+'Impact angle & other outputs'!$C$5) -> 17.38635374 | X87: 85
J88: 8.5 | K88: 31.07688136 | L88: -60.28612576 | M88: 67.82469694 | N88: 460.0189515 | O88: -62.72935754 | P88: 380.4776806 | Q88: -288.6201528 | R88: -354.38625 | S88: 1962 | T88: -1226.226517 | U88: -561.8498528 | V88: 1089.934041 | W88: =ABS(Q88+'Impact angle & other outputs'!$C$5) -> 11.37984716 | X88: 86
J89: 8.6 | K89: 30.79595643 | L89: -60.72215874 | M89: 68.08503136 | N89: 463.5571495 | O89: -63.10761955 | P89: 383.5713225 | Q89: -294.6705671 | R89: -362.7738 | S89: 1962 | T89: -1235.657938 | U89: -558.9079899 | V89: 1102.031033 | W89: =ABS(Q89+'Impact angle & other outputs'!$C$5) -> 5.329432935 | X89: 87
J90: 8.7 | K90: 30.51650244 | L90: -61.15214323 | M90: 68.34355523 | N90: 467.0841542 | O90: -63.47961633 | P90: 386.6369455 | Q90: -300.7642822 | R90: -371.25945 | S90: 1962 | T90: -1245.059521 | U90: -555.9392073 | V90: 1114.048836 | W90: =ABS(Q90+'Impact angle & other outputs'!$C$5) -> 0.7642821634 | X90: 88
J91: 8.8 | K91: 30.23853283 | L91: -61.57611881 | M91: 68.6001988 | N91: 470.5987275 | O91: -63.84546915 | P91: 389.6746972 | Q91: -306.9006953 | R91: -379.8432 | S91: 1962 | T91: -1254.427968 | U91: -552.9438976 | V91: 1125.985157 | W91: =ABS(Q91+'Impact angle & other outputs'!$C$5) -> 6.900695265 | X91: 89
J92: 8.9 | K92: 29.96206089 | L92: -61.99412623 | M92: 68.85489655 | N92: 474.0996779 | O92: -64.20529719 | P92: 392.6847269 | Q92: -313.0792075 | R92: -388.52505 | S92: 1962 | T92: -1263.760102 | U92: -549.9225037 | V92: 1137.837789 | W92: =ABS(Q92+'Impact angle & other outputs'!$C$5) -> 13.07920752 | X92: 90
J93: 9 | K93: 29.68709963 | L93: -62.40620733 | M93: 69.10758713 | N93: 477.5858599 | O93: -64.55921753 | P93: 395.6671849 | Q93: -319.2992242 | R93: -397.305 | S93: 1962 | T93: -1273.052868 | U93: -546.8755155 | V93: 1149.604617 | W93: =ABS(Q93+'Impact angle & other outputs'!$C$5) -> 19.2992242 | X93: 91
J94: 9.1 | K94: 29.41366188 | L94: -62.81240503 | M94: 69.35821314 | N94: 481.056173 | O94: -64.90734513 | P94: 398.622223 | Q94: -325.5601548 | R94: -406.18305 | S94: 1962 | T94: -1282.303335 | U94: -543.8034661 | V94: 1161.283614 | W94: =ABS(Q94+'Impact angle & other outputs'!$C$5) -> 25.56015481 | X94: 92
J95: 9.2 | K95: 29.14176014 | L95: -63.21276322 | M95: 69.60672107 | N95: 484.5095618 | O95: -65.24979283 | P95: 401.5499941 | Q95: -331.8614132 | R95: -415.1592 | S95: 1962 | T95: -1291.508688 | U95: -540.7069293 | V95: 1172.872844 | W95: =ABS(Q95+'Impact angle & other outputs'!$C$5) -> 31.86141323 | X95: 93
J96: 9.3 | K96: 28.87140668 | L96: -63.6073268 | M96: 69.85306111 | N96: 487.9450146 | O96: -65.58667133 | P96: 404.4506524 | Q96: -338.2024177 | R96: -424.23345 | S96: 1962 | T96: -1300.666231 | U96: -537.5865153 | V96: 1184.370458 | W96: =ABS(Q96+'Impact angle & other outputs'!$C$5) -> 38.20241773 | X96: 94
J97: 9.4 | K97: 28.60261342 | L97: -63.99614157 | M97: 70.09718703 | N97: 491.361563 | O97: -65.91808924 | P97: 407.3243534 | Q97: -344.5825911 | R97: -433.4058 | S97: 1962 | T97: -1309.773382 | U97: -534.4428687 | V97: 1195.7747 | W97: =ABS(Q97+'Impact angle & other outputs'!$C$5) -> 44.58259114 | X97: 95
J98: 9.5 | K98: 28.33539199 | L98: -64.37925422 | M98: 70.3390561 | N98: 494.7582813 | O98: -66.24415303 | P98: 410.1712537 | Q98: -351.0013609 | R98: -442.67625 | S98: 1962 | T98: -1318.827675 | U98: -531.2766647 | V98: 1207.0839 | W98: =ABS(Q98+'Impact angle & other outputs'!$C$5) -> 51.00136093 | X98: 96
J99: 9.6 | K99: 28.06975365 | L99: -64.75671227 | M99: 70.57862888 | N99: 498.1342854 | O99: -66.56496708 | P99: 412.991511 | Q99: -357.4581593 | R99: -452.0448 | S99: 1962 | T99: -1327.826751 | U99: -528.0886069 | V99: 1218.296476 | W99: =ABS(Q99+'Impact angle & other outputs'!$C$5) -> 57.45815926 | X99: 97
J100: 9.7 | K100: 27.80570935 | L100: -65.12856403 | M100: 70.81586916 | N100: 501.4887325 | O100: -66.88063368 | P100: 415.7852842 | Q100: -363.9524231 | R100: -461.51145 | S100: 1962 | T100: -1336.768365 | U100: -524.8794243 | V100: 1229.410937 | W100: =ABS(Q100+'Impact angle & other outputs'!$C$5) -> 63.95242307 | X100: 98
J101: 9.8 | K101: 27.54326964 | L101: -65.49485856 | M101: 71.05074384 | N101: 504.82082 | O101: -67.19125305 | P101: 418.5527331 | Q101: -370.4835942 | R101: -471.0762 | S101: 1962 | T101: -1345.650378 | U101: -521.6498687 | V101: 1240.425876 | W101: =ABS(Q101+'Impact angle & other outputs'!$C$5) -> 70.4835942 | X101: 99
J102: 9.9 | K102: 27.2824447 | L102: -65.85564562 | M102: 71.28322278 | N102: 508.1297849 | O102: -67.49692334 | P102: 421.2940188 | Q102: -377.0511194 | R102: -480.73905 | S102: 1962 | T102: -1354.470755 | U102: -518.4007124 | V102: 1251.339973 | W102: =ABS(Q102+'Impact angle & other outputs'!$C$5) -> 77.05111941 | X102: 100
J103: 10 | K103: 27.02324435 | L103: -66.21097564 | M103: 71.5132787 | N103: 511.414903 | O103: -67.79774071 | P103: 424.0093033 | Q103: -383.6544505 | R103: -490.5 | S103: 1962 | T103: -1363.227565 | U103: -515.1327456 | V103: 1262.151991 | W103: =ABS(Q103+'Impact angle & other outputs'!$C$5) -> 83.65445047 | X103: 101
J104: 10.1 | K104: 26.76567797 | L104: -66.56089964 | M104: 71.74088708 | N104: 514.6754879 | O104: -68.09379927 | P104: 426.6987494 | Q104: -390.2930442 | R104: -500.35905 | S104: 1962 | T104: -1371.91898 | U104: -511.8467743 | V104: 1272.860781 | W104: =ABS(Q104+'Impact angle & other outputs'!$C$5) -> 90.29304424 | X104: 102
J105: 10.2 | K105: 26.50975459 | L105: -66.90546925 | M105: 71.96602604 | N105: 517.9108904 | O105: -68.38519119 | P105: 429.362521 | Q105: -396.9663627 | R105: -510.3162 | S105: 1962 | T105: -1380.543269 | U105: -508.5436182 | V105: 1283.465273 | W105: =ABS(Q105+'Impact angle & other outputs'!$C$5) -> 96.96636268 | X105: 103
J106: 10.3 | K106: 26.25548278 | L106: -67.24473661 | M106: 72.18867625 | N106: 521.1204978 | O106: -68.67200665 | P106: 432.0007829 | Q106: -403.673873 | R106: -520.37145 | S106: 1962 | T106: -1389.098799 | U106: -505.2241084 | V106: 1293.964479 | W106: =ABS(Q106+'Impact angle & other outputs'!$C$5) -> 103.673873 | X106: 104
J107: 10.4 | K107: 26.00287072 | L107: -67.57875437 | M107: 72.40882079 | N107: 524.3037329 | O107: -68.95433394 | P107: 434.6137006 | Q107: -410.4150475 | R107: -530.5248 | S107: 1962 | T107: -1397.58403 | U107: -501.8890857 | V107: 1304.357492 | W107: =ABS(Q107+'Impact angle & other outputs'!$C$5) -> 110.4150475 | X107: 105
J108: 10.5 | K108: 25.75192618 | L108: -67.90757563 | M108: 72.62644511 | N108: 527.460053 | O108: -69.23225942 | P108: 437.2014404 | Q108: -417.189364 | R108: -540.77625 | S108: 1962 | T108: -1405.997517 | U108: -498.5393987 | V108: 1314.643483 | W108: =ABS(Q108+'Impact angle & other outputs'!$C$5) -> 117.189364 | X108: 106
J109: 10.6 | K109: 25.50265648 | L109: -68.23125389 | M109: 72.84153688 | N109: 530.5889495 | O109: -69.50586763 | P109: 439.7641695 | Q109: -423.9963055 | R109: -551.1258 | S109: 1962 | T109: -1414.337904 | U109: -495.1759017 | V109: 1324.821698 | W109: =ABS(Q109+'Impact angle & other outputs'!$C$5) -> 123.9963055 | X109: 107
J110: 10.7 | K110: 25.25506853 | L110: -68.54984304 | M110: 73.0540859 | N110: 533.6899467 | O110: -69.77524124 | P110: 442.3020558 | Q110: -430.8353603 | R110: -561.57345 | S110: 1962 | T110: -1422.603922 | U110: -491.7994538 | V110: 1334.891462 | W110: =ABS(Q110+'Impact angle & other outputs'!$C$5) -> 130.8353603 | X110: 108
J111: 10.8 | K111: 25.0091688 | L111: -68.86339731 | M111: 73.26408406 | N111: 536.7626013 | O111: -70.04046114 | P111: 444.8152677 | Q111: -437.7060224 | R111: -572.1192 | S111: 1962 | T111: -1430.79439 | U111: -488.4109163 | V111: 1344.852172 | W111: =ABS(Q111+'Impact angle & other outputs'!$C$5) -> 137.7060224 | X111: 109
J112: 10.9 | K112: 24.76496335 | L112: -69.17197122 | M112: 73.47152518 | N112: 539.8065012 | O112: -70.30160645 | P112: 447.3039743 | Q112: -444.6077908 | R112: -582.76305 | S112: 1962 | T112: -1438.90821 | U112: -485.0111521 | V112: 1354.703295 | W112: =ABS(Q112+'Impact angle & other outputs'!$C$5) -> 144.6077908 | X112: 110
J113: 11 | K113: 24.52245777 | L113: -69.47561957 | M113: 73.67640498 | N113: 542.821265 | O113: -70.55875454 | P113: 449.7683453 | Q113: -451.5401703 | R113: -593.505 | S113: 1962 | T113: -1446.944364 | U113: -481.6010238 | V113: 1364.444373 | W113: =ABS(Q113+'Impact angle & other outputs'!$C$5) -> 151.5401703 | X113: 111
J114: 11.1 | K114: 24.28165726 | L114: -69.77439739 | M114: 73.87872096 | N114: 545.806541 | O114: -70.8119811 | P114: 452.2085511 | Q114: -458.5026712 | R114: -604.34505 | S114: 1962 | T114: -1454.901916 | U114: -478.1813925 | V114: 1374.075013 | W114: =ABS(Q114+'Impact angle & other outputs'!$C$5) -> 158.5026712 | X114: 112
J115: 11.2 | K115: 24.04256656 | L115: -70.06835988 | M115: 74.07847233 | N115: 548.7620063 | O115: -71.06136014 | P115: 454.6247623 | Q115: -465.494809 | R115: -615.2832 | S115: 1962 | T115: -1462.780004 | U115: -474.7531166 | V115: 1383.59489 | W115: =ABS(Q115+'Impact angle & other outputs'!$C$5) -> 165.494809 | X115: 113
J116: 11.3 | K116: 23.80519 | L116: -70.35756244 | M116: 74.27565996 | N116: 551.6873663 | O116: -71.30696404 | P116: 457.0171501 | Q116: -472.5161052 | R116: -626.31945 | S116: 1962 | T116: -1470.577844 | U116: -471.3170506 | V116: 1393.003744 | W116: =ABS(Q116+'Impact angle & other outputs'!$C$5) -> 172.5161052 | X116: 114
J117: 11.4 | K117: 23.56953148 | L117: -70.64206056 | M117: 74.47028625 | N117: 554.5823535 | O117: -71.54886358 | P117: 459.3858862 | Q117: -479.5660863 | R117: -637.4538 | S117: 1962 | T117: -1478.294721 | U117: -467.8740438 | V117: 1402.301381 | W117: =ABS(Q117+'Impact angle & other outputs'!$C$5) -> 179.5660863 | X117: 115
J118: 11.5 | K118: 23.33559446 | L118: -70.92190987 | M118: 74.6623551 | N118: 557.4467269 | O118: -71.78712797 | P118: 461.7311425 | Q118: -486.6442848 | R118: -648.68625 | S118: 1962 | T118: -1485.929995 | U118: -464.4249396 | V118: 1411.487664 | W118: =ABS(Q118+'Impact angle & other outputs'!$C$5) -> 186.6442848 | X118: 116
J119: 11.6 | K119: 23.10338199 | L119: -71.19716604 | M119: 74.8518718 | N119: 560.2802712 | O119: -72.02182488 | P119: 464.0530913 | Q119: -493.7502386 | R119: -660.0168 | S119: 1962 | T119: -1493.483091 | U119: -460.9705744 | V119: 1420.56252 | W119: =ABS(Q119+'Impact angle & other outputs'!$C$5) -> 193.7502386 | X119: 117
J120: 11.7 | K120: 22.8728967 | L120: -71.46788478 | M120: 75.038843 | N120: 563.0827959 | O120: -72.25302049 | P120: 466.3519052 | Q120: -500.8834912 | R120: -671.44545 | S120: 1962 | T120: -1500.953501 | U120: -457.5117766 | V120: 1429.52593 | W120: =ABS(Q120+'Impact angle & other outputs'!$C$5) -> 200.8834912 | X120: 118
J121: 11.8 | K121: 22.64414081 | L121: -71.73412182 | M121: 75.22327662 | N121: 565.8541346 | O121: -72.4807795 | P121: 468.6277571 | Q121: -508.0435915 | R121: -682.9722 | S121: 1962 | T121: -1508.340781 | U121: -454.0493657 | V121: 1438.377936 | W121: =ABS(Q121+'Impact angle & other outputs'!$C$5) -> 208.0435915 | X121: 119
J122: 11.9 | K122: 22.41711613 | L122: -71.99593285 | M122: 75.4051818 | N122: 568.5941442 | O122: -72.70516519 | P122: 470.8808199 | Q122: -515.2300942 | R122: -694.59705 | S122: 1962 | T122: -1515.644551 | U122: -450.5841521 | V122: 1447.118629 | W122: =ABS(Q122+'Impact angle & other outputs'!$C$5) -> 215.2300942 | X122: 120
J123: 12 | K123: 22.19182405 | L123: -72.25337353 | M123: 75.58456881 | N123: 571.3027042 | O123: -72.92623943 | P123: 473.1112669 | Q123: -522.4425596 | R123: -706.32 | S123: 1962 | T123: -1522.864488 | U123: -447.1169355 | V123: 1455.748157 | W123: =ABS(Q123+'Impact angle & other outputs'!$C$5) -> 222.4425596 | X123: 121
J124: 12.1 | K124: 21.96826558 | L124: -72.50649946 | M124: 75.76144901 | N124: 573.9797156 | O124: -73.1440627 | P124: 475.3192714 | Q124: -529.6805532 | R124: -718.14105 | S124: 1962 | T124: -1530.00033 | U124: -443.648505 | V124: 1464.266715 | W124: =ABS(Q124+'Impact angle & other outputs'!$C$5) -> 229.6805532 | X124: 122
J125: 12.2 | K125: 21.74644133 | L125: -72.7553661 | M125: 75.9358348 | N125: 576.6251007 | O125: -73.35869416 | P125: 477.5050068 | Q125: -536.9436465 | R125: -730.0602 | S125: 1962 | T125: -1537.051868 | U125: -440.1796381 | V125: 1472.674551 | W125: =ABS(Q125+'Impact angle & other outputs'!$C$5) -> 236.9436465 | X125: 123
J126: 12.3 | K126: 21.52635151 | L126: -73.00002882 | M126: 76.10773954 | N126: 579.2388018 | O126: -73.57019165 | P126: 479.6686464 | Q126: -544.2314162 | R126: -742.07745 | S126: 1962 | T126: -1544.01895 | U126: -436.7111001 | V126: 1480.971955 | W126: =ABS(Q126+'Impact angle & other outputs'!$C$5) -> 244.2314162 | X126: 124
J127: 12.4 | K127: 21.30799596 | L127: -73.24054285 | M127: 76.27717751 | N127: 581.8207808 | O127: -73.77861175 | P127: 481.8103638 | Q127: -551.5434448 | R127: -754.1928 | S127: 1962 | T127: -1550.901473 | U127: -433.243644 | V127: 1489.159268 | W127: =ABS(Q127+'Impact angle & other outputs'!$C$5) -> 251.5434448 | X127: 125
J128: 12.5 | K128: 21.09137414 | L128: -73.47696321 | M128: 76.44416384 | N128: 584.3710186 | O128: -73.98400975 | P128: 483.9303323 | Q128: -558.8793201 | R128: -766.40625 | S128: 1962 | T128: -1557.699387 | U128: -429.7780095 | V128: 1497.236869 | W128: =ABS(Q128+'Impact angle & other outputs'!$C$5) -> 258.8793201 | X128: 126
J129: 12.6 | K129: 20.87648514 | L129: -73.70934478 | M129: 76.60871451 | N129: 586.8895139 | O129: -74.18643977 | P129: 486.0287253 | Q129: -566.2386355 | R129: -778.7178 | S129: 1962 | T129: -1564.412688 | U129: -426.3149231 | V129: 1505.205184 | W129: =ABS(Q129+'Impact angle & other outputs'!$C$5) -> 266.2386355 | X129: 127
J130: 12.7 | K130: 20.66332767 | L130: -73.93774218 | M130: 76.77084622 | N130: 589.376283 | O130: -74.3859547 | P130: 488.1057159 | Q130: -573.6209899 | R130: -791.12745 | S130: 1962 | T130: -1571.04142 | U130: -422.8550973 | V130: 1513.064675 | W130: =ABS(Q130+'Impact angle & other outputs'!$C$5) -> 273.6209899 | X130: 128
J131: 12.8 | K131: 20.45190013 | L131: -74.16220985 | M131: 76.93057642 | N131: 591.8313588 | O131: -74.58260628 | P131: 490.1614773 | Q131: -581.0259875 | R131: -803.6352 | S131: 1962 | T131: -1577.58567 | U131: -419.3992307 | V131: 1520.815844 | W131: =ABS(Q131+'Impact angle & other outputs'!$C$5) -> 281.0259875 | X131: 129
J132: 12.9 | K132: 20.24220051 | L132: -74.38280193 | M132: 77.0879232 | N132: =0.5*$D$8*M132^2/1000 -> 594.2547904 | O132: =DEGREES(ATAN(L132/K132)) -> -74.77644512 | P132: 492.1961823 | Q132: -588.453238 | R132: -816.24105 | S132: 1962 | T132: -1584.045569 | U132: -415.9480071 | V132: 1528.459231 | W132: =ABS(Q132+'Impact angle & other outputs'!$C$5) -> 288.453238 | X132: 130
J133: 13 | K133: =IF(K132+U132/$D$8*(J133-J132)<=0,0.01,K132+U132/$D$8*(J133-J132)) -> 20.03422651 | L133: =L132-(S132-V132)/$D$8*(J133-J132) -> -74.59957231 | M133: =SQRT(K133^2+L133^2) -> 77.24290531 | N133: =0.5*$D$8*M133^2/1000 -> 596.6466421 | O133: -74.96752071 | P133: =(J133-J132)*0.5*(K132+K133)+P132 -> 494.2100037 | Q133: =Q132+0.5*(L132+L133)*(J133-J132) -> -595.9023568 | R133: =J133^2*$D$9*0.5*-1 -> -828.945 | S133: =$D$8*$D$9 -> 1962 | T133: =-0.5*$D$4*M133^2*$D$5*$D$6 -> -1590.421289 | U133: =COS(O133/180*PI())*T133 -> -412.5020961 | V133: =T133*SIN(O133/180*PI()) -> 1535.995409 | W133: =ABS(Q133+'Impact angle & other outputs'!$C$5) -> 295.9023568 | X133: 131
J134: 13.1 | K134: 19.82797546 | L134: =L133-(S133-V133)/$D$8*(J134-J133) -> -74.8125746 | M134: =SQRT(K134^2+L134^2) -> 77.39554205 | N134: =0.5*$D$8*M134^2/1000 -> 599.006993 | O134: -75.15588148 | P134: =(J134-J133)*0.5*(K133+K134)+P133 -> 496.2031138 | Q134: =Q133+0.5*(L133+L134)*(J134-J133) -> -603.3729641 | R134: =J134^2*$D$9*0.5*-1 -> -841.74705 | S134: =$D$8*$D$9 -> 1962 | T134: =-0.5*$D$4*M134^2*$D$5*$D$6 -> -1596.71304 | U134: =COS(O134/180*PI())*T134 -> -409.0621519 | V134: =T134*SIN(O134/180*PI()) -> 1543.424987 | W134: =ABS(Q134+'Impact angle & other outputs'!$C$5) -> 303.3729641 | X134: 132
J135: 13.2 | K135: 19.62344438 | L135: =L134-(S134-V134)/$D$8*(J135-J134) -> -75.02186211 | M135: =SQRT(K135^2+L135^2) -> 77.5458533 | N135: =0.5*$D$8*M135^2/1000 -> 601.3359364 | O135: -75.34157479 | P135: =(J135-J134)*0.5*(K134+K135)+P134 -> 498.1756848 | Q135: =Q134+0.5*(L134+L135)*(J135-J134) -> -610.8646859 | R135: =J135^2*$D$9*0.5*-1 -> -854.6472 | S135: =$D$8*$D$9 -> 1962 | T135: =-0.5*$D$4*M135^2*$D$5*$D$6 -> -1602.921072 | U135: =COS(O135/180*PI())*T135 -> -405.6288141 | V135: =T135*SIN(O135/180*PI()) -> 1550.748603 | W135: =ABS(Q135+'Impact angle & other outputs'!$C$5) -> 310.8646859 | X135: 133
J136: 13.3 | K136: 19.42062998 | L136: =L135-(S135-V135)/$D$8*(J136-J135) -> -75.22748781 | M136: =SQRT(K136^2+L136^2) -> 77.69385942 | N136: =0.5*$D$8*M136^2/1000 -> 603.6335791 | O136: -75.52464696 | P136: =(J136-J135)*0.5*(K135+K136)+P135 -> 500.1278885 | Q136: =Q135+0.5*(L135+L136)*(J136-J135) -> -618.3771534 | R136: =J136^2*$D$9*0.5*-1 -> -867.64545 | S136: =$D$8*$D$9 -> 1962 | T136: =-0.5*$D$4*M136^2*$D$5*$D$6 -> -1609.045668 | U136: =COS(O136/180*PI())*T136 -> -402.2027066 | V136: =T136*SIN(O136/180*PI()) -> 1557.966927 | W136: =ABS(Q136+'Impact angle & other outputs'!$C$5) -> 318.3771534 | X136: 134
J137: 13.4 | K137: 19.21952862 | L137: =L136-(S136-V136)/$D$8*(J137-J136) -> -75.42950435 | M137: =SQRT(K137^2+L137^2) -> 77.83958123 | N137: =0.5*$D$8*M137^2/1000 -> 605.9000406 | O137: -75.70514334 | P137: =(J137-J136)*0.5*(K136+K137)+P136 -> 502.0598964 | Q137: =Q136+0.5*(L136+L137)*(J137-J136) -> -625.910003 | R137: =J137^2*$D$9*0.5*-1 -> -880.7418 | S137: =$D$8*$D$9 -> 1962 | T137: =-0.5*$D$4*M137^2*$D$5*$D$6 -> -1615.087148 | U137: =COS(O137/180*PI())*T137 -> -398.7844383 | V137: =T137*SIN(O137/180*PI()) -> 1565.080659 | W137: =ABS(Q137+'Impact angle & other outputs'!$C$5) -> 325.910003 | X137: 135
J138: 13.5 | K138: 19.0201364 | L138: -75.62796402 | M138: 77.98304002 | N138: 608.135453 | O138: -75.88310826 | P138: 503.9718797 | Q138: -633.4628765 | R138: -893.93625 | S138: 1962 | T138: -1621.045864 | U138: -395.3746024 | V138: 1572.090524 | W138: =ABS(Q138+'Impact angle & other outputs'!$C$5) -> 333.4628765 | X138: 136
J139: =J138+0.15 -> 13.65 | K139: 18.72360545 | L139: =L138-(S138-V138)/$D$8*(J139-J138) -> -75.92039612 | M139: =SQRT(K139^2+L139^2) -> 78.19514019 | N139: 611.4479949 | O139: -76.14608548 | P139: =(J139-J138)*0.5*(K138+K139)+P138 -> 506.8026603 | Q139: =Q138+0.5*(L138+L139)*(J139-J138) -> -644.8290035 | R139: =J139^2*$D$9*0.5*-1 -> -913.9118625 | S139: 1962 | T139: =-0.5*$D$4*M139^2*$D$5*$D$6 -> -1629.875775 | U139: =COS(O139/180*PI())*T139 -> -390.2691507 | V139: =T139*SIN(O139/180*PI()) -> 1582.4617 | W139: =ABS(Q139+'Impact angle & other outputs'!$C$5) -> 344.8290035 | X139: 137
J140: =J139+0.15 -> 13.8 | K140: 18.43090359 | L140: -76.20504985 | M140: 78.40221827 | N140: 614.690783 | O140: -76.40357866 | P140: 509.5892485 | Q140: -656.2384119 | R140: -934.1082 | S140: 1962 | T140: -1638.519751 | U140: -385.1855244 | V140: 1592.601358 | W140: =ABS(Q140+'Impact angle & other outputs'!$C$5) -> 356.2384119 | X140: 138
J141: 13.95 | K141: 18.14201445 | L141: -76.48209883 | M141: 78.60435185 | N141: 617.864413 | O141: -76.65572693 | P141: 512.3322173 | Q141: -667.6899481 | R141: -954.5252625 | S141: 1962 | T141: -1646.979379 | U141: -380.1255654 | V141: 1602.512287 | W141: =ABS(Q141+'Impact angle & other outputs'!$C$5) -> 367.6899481 | X141: 139
J142: 14.1 | K142: 17.85692027 | L142: -76.75171462 | M142: 78.80161989 | N142: 620.9695298 | O142: -76.90266498 | P142: 515.0321374 | Q142: -679.1824841 | R142: -975.16305 | S142: 1962 | T142: -1655.256379 | U142: -375.0910352 | V142: 1612.197381 | W142: =ABS(Q142+'Impact angle & other outputs'!$C$5) -> 379.1824841 | X142: 140
J143: 14.25 | K143: 17.575602 | L143: -77.01406658 | M143: 78.99410254 | N143: 624.0068237 | O143: -77.14452324 | P143: 517.6895766 | Q143: -690.7149177 | R143: -996.0215625 | S143: 1962 | T143: -1663.352589 | U143: -370.0836157 | V143: 1621.659629 | W143: =ABS(Q143+'Impact angle & other outputs'!$C$5) -> 390.7149177 | X143: 141
J144: 14.4 | K144: 17.29803928 | L144: -77.26932186 | M144: 79.1818809 | N144: 626.9770263 | O144: -77.38142804 | P144: 520.3050997 | Q144: -702.2861718 | R144: -1017.1008 | S144: 1962 | T144: -1671.269961 | U144: -365.1049093 | V144: 1630.902109 | W144: =ABS(Q144+'Impact angle & other outputs'!$C$5) -> 402.2861718 | X144: 142
J145: 14.55 | K145: 17.0242106 | L145: -77.51764528 | M145: 79.36503686 | N145: 629.8809076 | O145: -77.61350175 | P145: 522.8792684 | Q145: -713.8951943 | R145: -1038.400763 | S145: 1962 | T145: -1679.010547 | U145: -360.1564403 | V145: 1639.927973 | W145: =ABS(Q145+'Impact angle & other outputs'!$C$5) -> 413.8951943 | X145: 143
J146: 14.7 | K146: 16.75409327 | L146: -77.7591993 | M146: 79.5436529 | N146: 632.7192717 | O146: -77.8408629 | P146: 525.4126412 | Q146: -725.5409577 | R146: -1059.92145 | S146: 1962 | T146: -1686.576491 | U146: -355.2396552 | V146: 1648.740442 | W146: =ABS(Q146+'Impact angle & other outputs'!$C$5) -> 425.5409577 | X146: 144
J147: 14.85 | K147: 16.48766353 | L147: -77.99414396 | M147: 79.71781195 | N147: 635.4929541 | O147: -78.0636264 | P147: 527.905773 | Q147: -737.2224584 | R147: -1081.662863 | S147: 1962 | T147: -1693.970019 | U147: -350.3559244 | V147: 1657.342798 | W147: =ABS(Q147+'Impact angle & other outputs'!$C$5) -> 437.2224584 | X147: 145
J148: 15 | K148: 16.22489659 | L148: -78.22263687 | M148: 79.88759721 | N148: 638.2028188 | O148: -78.28190358 | P148: 530.359215 | Q148: -748.938717 | R148: -1103.625 | S148: 1962 | T148: -1701.193434 | U148: -345.5065429 | V148: 1665.738373 | W148: =ABS(Q148+'Impact angle & other outputs'!$C$5) -> 448.938717 | X148: 146
J149: 15.15 | K149: 15.96576668 | L149: -78.44483309 | M149: 80.05309203 | N149: 640.8497544 | O149: -78.49580239 | P149: 532.7735147 | Q149: -760.6887772 | R149: -1125.807863 | S149: 1962 | T149: -1708.249105 | U149: -340.6927322 | V149: 1673.930544 | W149: =ABS(Q149+'Impact angle & other outputs'!$C$5) -> 460.6887772 | X149: 147
J150: 15.3 | K150: 15.71024713 | L150: -78.66088518 | M150: 80.21437977 | N150: 643.4346722 | O150: -78.7054275 | P150: 535.1492158 | Q150: -772.4717061 | R150: -1148.21145 | S150: 1962 | T150: -1715.139462 | U150: -335.9156412 | V150: 1681.922726 | W150: =ABS(Q150+'Impact angle & other outputs'!$C$5) -> 472.4717061 | X150: 148
J151: =J150+0.2 -> 15.5 | K151: 15.37433149 | L151: -78.94096245 | M151: 80.42416068 | N151: 646.8045622 | O151: -78.97918595 | P151: 538.2576736 | Q151: -788.2318909 | R151: -1178.42625 | S151: 1962 | T151: -1724.122241 | U151: -329.5928317 | V151: 1692.325639 | W151: =ABS(Q151+'Impact angle & other outputs'!$C$5) -> 488.2318909 | X151: 149
J152: 15.7 | K152: 15.04473866 | L152: -79.21063681 | M152: 80.62672724 | N152: 650.0669146 | O152: -79.24572072 | P152: 541.2995807 | Q152: -804.0470508 | R152: -1209.03345 | S152: 1962 | T152: -1732.818367 | U152: -323.3394232 | V152: 1702.38395 | W152: =ABS(Q152+'Impact angle & other outputs'!$C$5) -> 504.0470508 | X152: 150
J153: 15.9 | K153: 14.72139923 | L153: -79.47025286 | M153: 80.8222784 | N153: 653.2240686 | O153: -79.50525675 | P153: 544.2761944 | Q153: -819.9151398 | R153: -1240.03305 | S153: 1962 | T153: -1741.234077 | U153: -317.1576268 | V153: 1712.106057 | W153: =ABS(Q153+'Impact angle & other outputs'!$C$5) -> 519.9151398 | X153: 151
J154: 16.1 | K154: 14.40424161 | L154: -79.72014681 | M154: 81.01101149 | N154: 656.2783983 | O154: -79.75801014 | P154: 547.1887585 | Q154: -835.8341797 | R154: -1271.42505 | S154: 1962 | T154: -1749.375699 | U154: -311.0494457 | V154: 1721.500385 | W154: =ABS(Q154+'Impact angle & other outputs'!$C$5) -> 535.8341797 | X154: 152
J155: 16.3 | K155: 14.09319216 | L155: -79.96064642 | M155: 81.19312188 | N155: 659.2323041 | O155: -80.00418861 | P155: 550.0385019 | Q155: -851.8022591 | R155: -1303.20945 | S155: 1962 | T155: -1757.24963 | U155: -305.0166829 | V155: 1730.575362 | W155: =ABS(Q155+'Impact angle & other outputs'!$C$5) -> 551.8022591 | X155: 153
J156: 16.5 | K156: 13.78817548 | L156: -80.19207106 | M156: 81.36880264 | N156: 662.0882044 | O156: -80.24399189 | P156: 552.8266387 | Q156: -867.8175308 | R156: -1335.38625 | S156: 1962 | T156: -1764.862318 | U156: -299.0609489 | V156: 1739.3394 | W156: =ABS(Q156+'Impact angle & other outputs'!$C$5) -> 567.8175308 | X156: 154
J157: 16.7 | K157: 13.48911453 | L157: -80.41473166 | M157: 81.53824427 | N157: 664.8485279 | O157: -80.47761207 | P157: 555.5543677 | Q157: -883.8782111 | R157: -1367.95545 | S157: 1962 | T157: -1772.220236 | U157: -293.1836704 | V157: 1747.800875 | W157: =ABS(Q157+'Impact angle & other outputs'!$C$5) -> 583.8782111 | X157: 155
J158: 16.9 | K158: 13.19593086 | L158: -80.62893078 | M158: 81.70163444 | N158: 667.515707 | O158: -80.70523401 | P158: 558.2228722 | Q158: -899.9825773 | R158: -1400.91705 | S158: 1962 | T158: -1779.329869 | U158: -287.386098 | V158: 1755.968113 | W158: =ABS(Q158+'Impact angle & other outputs'!$C$5) -> 599.9825773 | X158: 156
J159: 17.1 | K159: 12.90854476 | L159: -80.83496267 | M159: 81.85915781 | N159: 670.0921718 | O159: -80.92703564 | P159: 560.8333198 | Q159: -916.1289667 | R159: -1434.27105 | S159: 1962 | T159: -1786.197693 | U159: -281.6693146 | V159: 1763.849369 | W159: =ABS(Q159+'Impact angle & other outputs'!$C$5) -> 616.1289667 | X159: 157
J160: 17.3 | K160: 12.62687545 | L160: -81.0331133 | M160: 82.01099582 | N160: 672.5803435 | O160: -81.14318831 | P160: 563.3868618 | Q160: -932.3157743 | R160: -1468.01745 | S160: 1962 | T160: -1792.830164 | U160: -276.0342433 | V160: 1771.45282 | W160: =ABS(Q160+'Impact angle & other outputs'!$C$5) -> 632.3157743 | X160: 158
J161: 17.5 | K161: 12.3508412 | L161: -81.22366048 | M161: 82.15732652 | N161: 674.9826301 | O161: -81.35385706 | P161: 565.8846335 | Q161: -948.5414516 | R161: -1502.15625 | S161: 1962 | T161: -1799.233699 | U161: -270.4816556 | V161: 1778.786546 | W161: =ABS(Q161+'Impact angle & other outputs'!$C$5) -> 648.5414516 | X161: 159
J162: 17.7 | K162: 12.08035955 | L162: =L161-(S161-V161)/$D$8*(J162-J161) -> -81.40687394 | M162: =SQRT(K162^2+L162^2) -> 82.29832447 | N162: 677.3014211 | O162: -81.55920096 | P162: =(J162-J161)*0.5*(K161+K162)+P161 -> 568.3277535 | Q162: =Q161+0.5*(L161+L162)*(J162-J161) -> -964.8045051 | R162: =J162^2*$D$9*0.5*-1 -> -1536.68745 | S162: 1962 | T162: =-0.5*$D$4*M162^2*$D$5*$D$6 -> -1805.414668 | U162: =COS(O162/180*PI())*T162 -> -265.0121793 | V162: =T162*SIN(O162/180*PI()) -> 1785.858524 | W162: =ABS(Q162+'Impact angle & other outputs'!$C$5) -> 664.8045051 | X162: 160
J163: 17.9 | K163: 11.81534737 | L163: -81.58301541 | M163: 82.43416062 | N163: 679.5390837 | O163: -81.75937335 | P163: 570.7173242 | Q163: -981.103494 | R163: -1571.61105 | S163: 1962 | T163: -1811.379382 | U163: -259.626306 | V163: 1792.676615 | W163: =ABS(Q163+'Impact angle & other outputs'!$C$5) -> 681.103494 | X163: 161
J164: 18.1 | K164: 11.55572106 | L164: -81.7523388 | M164: 82.5650022 | N164: 681.6979588 | O164: -81.95452209 | P164: 573.0544311 | Q164: -997.4370294 | R164: -1606.92705 | S164: 1962 | T164: -1817.134079 | U164: -254.3243988 | V164: 1799.248555 | W164: =ABS(Q164+'Impact angle & other outputs'!$C$5) -> 697.4370294 | X164: 162
J165: 18.3 | K165: 11.30139666 | L165: -81.91509024 | M165: 82.69101267 | N165: 683.7803576 | O165: -82.14478984 | P165: 575.3401428 | Q165: -1013.803772 | R165: -1642.63545 | S165: 1962 | T165: -1822.684921 | U165: -249.1067 | V165: 1805.581949 | W165: =ABS(Q165+'Impact angle & other outputs'!$C$5) -> 713.8037723 | X165: 163
J166: 18.5 | K166: 11.05228996 | L166: -82.07150829 | M166: 82.81235166 | N166: 685.7885587 | O166: -82.33031426 | P166: 577.5755115 | Q166: -1030.202432 | R166: -1678.73625 | S166: 1962 | T166: -1828.037982 | U166: -243.9733378 | V166: 1811.684265 | W166: =ABS(Q166+'Impact angle & other outputs'!$C$5) -> 730.2024322 | X166: 164
J167: 18.7 | K167: 10.80831663 | L167: -82.22182403 | M167: 82.92917493 | N167: 687.7248055 | O167: -82.51122825 | P167: 579.7615722 | Q167: -1046.631765 | R167: -1715.22945 | S167: 1962 | T167: -1833.199242 | U167: -238.9243334 | V167: 1817.562825 | W167: =ABS(Q167+'Impact angle & other outputs'!$C$5) -> 746.6317654 | X167: 165
J168: 18.9 | K168: 10.56939229 | L168: -82.3662612 | M168: 83.04163437 | N168: 689.5913038 | O168: -82.68766017 | P168: 581.8993431 | Q168: -1063.090574 | R168: -1752.11505 | S168: 1962 | T168: -1838.174579 | U168: -233.9596081 | V168: 1823.224804 | W168: =ABS(Q168+'Impact angle & other outputs'!$C$5) -> 763.0905739 | X168: 166
J169: 19.1 | K169: 10.33543268 | L169: -82.5050364 | M169: 83.14987793 | N169: 691.39022 | O169: -82.85973399 | P169: 583.9898256 | Q169: -1079.577704 | R169: -1789.39305 | S169: 1962 | T169: -1842.96977 | U169: -229.0789894 | V169: 1828.677225 | W169: =ABS(Q169+'Impact angle & other outputs'!$C$5) -> 779.5777037 | X169: 167
J170: 19.3 | K170: 10.10635369 | L170: -82.63835918 | M170: 83.2540497 | N170: 693.1236792 | O170: -83.02756953 | P170: 586.0340042 | Q170: -1096.092043 | R170: -1827.06345 | S170: 1962 | T170: -1847.590479 | U170: -224.2822173 | V170: 1833.926952 | W170: =ABS(Q170+'Impact angle & other outputs'!$C$5) -> 796.0920433 | X170: 168
J171: 19.5 | K171: 9.882071478 | L171: -82.76643222 | M171: 83.35428987 | N171: 694.793764 | O171: -83.19128262 | P171: 588.0328467 | Q171: -1112.632522 | R171: -1865.12625 | S171: 1962 | T171: -1852.042257 | U171: -219.5689507 | V171: 1838.980696 | W171: =ABS(Q171+'Impact angle & other outputs'!$C$5) -> 812.6325224 | X171: 169
J172: 19.7 | K172: 9.662502527 | L172: -82.88945153 | M172: 83.45073475 | N172: 696.402513 | O172: -83.35098525 | P172: 589.9873041 | Q172: -1129.198111 | R172: -1903.58145 | S172: 1962 | T172: -1856.330539 | U172: -214.9387728 | V172: 1843.845002 | W172: =ABS(Q172+'Impact angle & other outputs'!$C$5) -> 829.1981108 | X172: 170
J173: 19.9 | K173: 9.447563754 | L173: -83.00760653 | M173: 83.54351682 | N173: 697.9519202 | O173: -83.50678576 | P173: 591.8983107 | Q173: -1145.787817 | R173: -1942.42905 | S173: 1962 | T173: -1860.460638 | U173: -210.3911969 | V173: 1848.526259 | W173: =ABS(Q173+'Impact angle & other outputs'!$C$5) -> 845.7878166 | X173: 171
J174: 20.1 | K174: 9.237172557 | L174: -83.12108027 | M174: 83.63276476 | N174: 699.4439341 | O174: -83.65878897 | P174: 593.7667844 | Q174: -1162.400685 | R174: -1981.66905 | S174: 1962 | T174: -1864.437751 | U174: -205.9256713 | V174: 1853.030692 | W174: =ABS(Q174+'Impact angle & other outputs'!$C$5) -> 862.4006853 | X174: 172
J175: 20.3 | K175: 9.031246886 | L175: -83.23004957 | M175: 83.7186035 | N175: 700.8804572 | O175: -83.80709634 | P175: 595.5936263 | Q175: -1179.035798 | R175: -2021.30145 | S175: 1962 | T175: -1868.266947 | U175: -201.541585 | V175: 1857.364362 | W175: =ABS(Q175+'Impact angle & other outputs'!$C$5) -> 879.0357982 | X175: 173
J176: 20.5 | K176: 8.829705301 | L176: -83.33468521 | M176: 83.80115426 | N176: 702.2633455 | O176: -83.95180611 | P176: 597.3797215 | Q176: -1195.692272 | R176: -2061.32625 | S176: 1962 | T176: -1871.953174 | U176: -197.238272 | V176: 1861.533172 | W176: =ABS(Q176+'Impact angle & other outputs'!$C$5) -> 895.6922717 | X176: 174
J177: 20.7 | K177: 8.632467029 | L177: -83.43515204 | M177: 83.88053459 | N177: 703.5944083 | O177: -84.09301339 | P177: 599.1259388 | Q177: -1212.369255 | R177: -2101.74345 | S177: 1962 | T177: -1875.501255 | U177: -193.0150162 | V177: 1865.542859 | W177: =ABS(Q177+'Impact angle & other outputs'!$C$5) -> 912.3692555 | X177: 175
J178: 20.9 | K178: 8.439452013 | L178: -83.53160918 | M178: 83.95685846 | N178: 704.8754083 | O178: -84.23081034 | P178: 600.8331307 | Q178: -1229.065932 | R178: -2142.55305 | S178: 1962 | T178: -1878.915888 | U178: -188.8710555 | V178: 1869.399005 | W178: =ABS(Q178+'Impact angle & other outputs'!$C$5) -> 929.0659316 | X178: 176
J179: 21.1 | K179: 8.250580957 | L179: -83.62421018 | M179: 84.03023631 | N179: 706.1080614 | O179: -84.36528626 | P179: 602.502134 | Q179: -1245.781514 | R179: -2183.75505 | S179: 1962 | T179: -1882.201648 | U179: -184.8055862 | V179: 1873.107029 | W179: =ABS(Q179+'Impact angle & other outputs'!$C$5) -> 945.7815135 | X179: 177
J180: 21.3 | K180: 8.065775371 | L180: -83.71310315 | M180: 84.10077509 | N180: 707.2940371 | O180: -84.49652769 | P180: 604.1337696 | Q180: -1262.515245 | R180: -2225.34945 | S180: 1962 | T180: -1885.362985 | U180: -180.8177667 | V180: 1876.672193 | W180: =ABS(Q180+'Impact angle & other outputs'!$C$5) -> 962.5152448 | X180: 178
J181: 21.5 | K181: 7.884957604 | L181: -83.79843095 | M181: 84.16857838 | N181: 708.4349587 | O181: -84.62461855 | P181: 605.7288429 | Q181: -1279.266398 | R181: -2267.33625 | S181: 1962 | T181: -1888.404226 | U181: -176.9067216 | V181: 1880.099607 | W181: =ABS(Q181+'Impact angle & other outputs'!$C$5) -> 979.2663983 | X181: 179

Sheet Impact angle & other outputs (hidden)
G2: Time | H2: Forward Speed | I2: Kinetic Energy [kJ] | J2: Horizontal Dist [m] | K2: Friction force [N]
G3: 0 | H3: =$C$7 -> 30.51650244 | I3: =0.5*$C$17*H3^2/1000 -> 93.1256921 | J3: 0 | K3: =$C$12*$C$17*$C$16 -> 981
G4: 0.5 | H4: =H3-K3/$C$17*(G4-G3) -> 28.06400244 | I4: 78.75882328 | J4: =J3+(H3+H4)*0.5*(G4-G3) -> 14.64512622 | K4: 981
B5: Flight Height | C5: ='Impact angle inputs'!D11 -> 300 | D5: m | G5: 1 | H5: 25.61150244 | I5: 65.59490571 | J5: =J4+(H4+H5)*0.5*(G5-G4) -> 28.06400244 | K5: 981
C6: =MIN('Impact angle inputs'!W3:W136) -> 0.7642821634 | D6: m | G6: 1.5 | H6: 23.15900244 | I6: 53.63393939 | J6: 40.25662866 | K6: 981
B7: Forward Speed at crash | C7: =INDEX('Impact angle inputs'!K3:K136,MATCH(C6,'Impact angle inputs'!W3:W136,0)) -> 30.51650244 | D7: m/s | G7: 2 | H7: 20.70650244 | I7: 42.87592432 | J7: 51.22300488 | K7: 981
B8: Impact angle | C8: =INDEX('Impact angle inputs'!O3:O136,MATCH(C6,'Impact angle inputs'!W3:W136,0)) -> -63.47961633 | D8: deg | G8: 2.5 | H8: 18.25400244 | I8: 33.3208605 | J8: 60.96313109 | K8: 981
B9: Impact energy | C9: =INDEX('Impact angle inputs'!N3:N136,MATCH(C6,'Impact angle inputs'!W3:W136,0)) -> 467.0841542 | D9: KJ | G9: 3 | H9: 15.80150244 | I9: 24.96874793 | J9: 69.47700731 | K9: 981
B10: Horizontal distance (Ballistic) | C10: =INDEX('Impact angle inputs'!P3:P136,MATCH(C6,'Impact angle inputs'!W3:W136,0)) -> 386.6369455 | D10: m | G10: 3.5 | H10: 13.34900244 | I10: 17.81958661 | J10: 76.76463353 | K10: 981
G11: 4 | H11: 10.89650244 | I11: 11.87337654 | J11: 82.82600975 | K11: 981
B12: Friction coefficient | C12: ='Impact angle inputs'!D12 -> 0.5 | D12: used to calculate friction force | G12: 4.5 | H12: 8.444002438 | I12: 7.130117717 | J12: 87.66113597 | K12: 981
G13: 5 | H13: 5.991502438 | I13: 3.589810146 | J13: 91.27001219 | K13: 981
G14: 5.5 | H14: 3.539002438 | I14: 1.252453826 | J14: 93.65263841 | K14: 981
G15: 6 | H15: 1.086502438 | I15: 0.1180487548 | J15: 94.80901463 | K15: 981
B16: g | C16: ='Impact angle inputs'!D9 -> 9.81 | D16: m/s² | G16: 6.5 | H16: -1.365997562 | I16: 0.186594934 | J16: 94.73914085 | K16: 981
B17: Aircraft Mass | C17: ='Impact angle inputs'!D8 -> 200 | D17: kg | G17: 7 | H17: -3.818497562 | I17: 1.458092363 | J17: 93.44301707 | K17: 981
G18: 7.5 | H18: -6.270997562 | I18: 3.932541042 | J18: 90.92064328 | K18: 981
G19: 8 | H19: -8.723497562 | I19: 7.609940972 | J19: 87.1720195 | K19: 981
B20: Sliding distance | C20: =MAX((IF(H3:H23<=0,J3:J23))) -> 94.73914085 | D20: m | G20: 8.5 | H20: -11.17599756 | I20: 12.49029215 | J20: 82.19714572 | K20: 981
G21: 9 | H21: -13.62849756 | I21: 18.57359458 | J21: 75.99602194 | K21: 981
G22: 9.5 | H22: -16.08099756 | I22: 25.85984826 | J22: 68.56864816 | K22: 981
G23: 10 | H23: -18.53349756 | I23: 34.34905319 | J23: 59.91502438 | K23: 981

Sheet Frontal Area Interpolation (hidden)
B1: ANNEX F reference values
B2: Characteristic dimension | C2: 1 | D2: 3 | E2: 8 | F2: 20 | G2: 40
B3: Frontal area | C3: 0.1 | D3: 0.5 | E3: 2.5 | F3: 12.5 | G3: 25
A5: INPUT | B5: UAS characteristic dimension | C5: ='Summary calculation'!E5 -> 3.11
A7: OUTPUT | B7: UAS corresponding frontal area | C7: =IF(C5<=C2, (C3/C2)*C5, IF(AND(C5>C2, C5<=D2), ((D3-C3)/(D2-C2))*C5-0.1, IF(AND(C5>D2, C5<=E2), ((E3-D3)/(E2-D2))*C5+(D3-((D3-E3)/(D2-E2))*D2), IF(AND(C5>E2,C5<=F2), ((F3-E3)/(F2-E2))*C5+(E3-((E3-F3)/(E2-F2))*E2), IF(AND(C5>F2,C5<=G2), ((G3-F3)/(G2-F2))*C5+(F3-((F3-G3)/(F2-G2))*F2),(25+0.625*(C5-40))))))) -> 0.544

Sheet Ac Calculator Scenario A (hidden)
A1: Fs
A2: Pi
A3: rD^2
A4: Ac
E13: Safety factor calculation
D20: INPUT
D21: Flight height | F21: ='Summary calculation'!E9 -> 300
D22: Cd | F22: ='Summary calculation'!E13 -> 0.8
D23: Aircraft Mass | F23: ='Summary calculation'!E8 -> 200
D24: Characteristic dimension
D26: OUTPUT | E26: Safety Factor | F26: =IF(E41<=6,2,IF(E41>4000,7,1.4*E41^0.2)) -> 5.242142716
I30: 1.1 | K30: 2 | M30: 1.4*(Etot)^0.2 | Q30: 7
I31: <=200 | K31: <=6000 | Q31: >4000000
E38: Critical area powered lift - Scenario A
D40: V_terminal (m/s) | E40: EK_terminal (kJ) | F40: Critical area helicopter (m^2)
D41: =SQRT((2*'Ac Calculator Scenario B'!A4*9.81)/('Impact angle inputs'!D4*'Frontal Area Interpolation'!C7*'Summary calculation'!E13)) -> 85.79303106 | E41: =(0.5*F23*D41*D41)/1000 -> 736.0444178 | F41: =(PI()*F26)*(('Summary calculation'!E15+('Summary calculation'!E5/2)))^2 -> 56.66912943

Sheet Ac Calculator Scenario B (hidden)
A2: JARUS Mod EASA | Z2: Glide graph | AE2: Slide graph
A3: MTOM (kg) | B3: Characteristic Dimension (m) | C3: Human radius r_h (m) | D3: Human height h (m) | E3: Impact angle (degree) | F3: Glide speed OR Cruise speed (m/s) | G3: V0 (m/s) Slide starting speed | H3: Dglide | I3: Glide critical area | J3: Dslide reduced | K3: Slide critical area | L3: Critical area total (obstacle reduction) | X3: y | Y3: x | AC3: y | AD3: x
A4: ='Summary calculation'!E8 -> 200 | B4: ='Summary calculation'!E5 -> 3.11 | C4: ='Summary calculation'!E15 -> 0.3 | D4: 1.8 | E4: ='Summary calculation'!E29 -> 60 | F4: =IF(B4<=1,'Summary calculation'!E7,'Summary calculation'!E7*0.65) -> 39.65 | G4: =COS((E4*PI())/180)*F4*'Summary calculation'!E16 -> 15.86 | H4: =D4/TAN((E4*PI())/180) -> 1.039230485 | I4: =(B4+2*C4)*(H4)+0.5*PI()*(((B4/2)+C4))^2 -> 9.260694528 | J4: =IF(B4<=1,0,SUM(E27:AQD27)) -> 19.95337744 | K4: =IF(J4=0,0,(B4+2*C4)*(J4)+0.5*PI()*(((B4/2)+C4))^2) -> 79.43217972 | L4: =IF(OR(B4<=1,B4>20),I4+K4,(I4+K4)*'Summary calculation'!E17) -> 53.21572455 | W4: a | X4: =D4 -> 1.8 | Y4: 0 | AB4: a | AC4: 3 | AD4: 0
F5: changed | K5: changed
Z6: b | AA6: 0 | AB6: =D4/TAN((E4*PI())/180) -> 1.039230485 | AE6: b | AF6: 3 | AG6: =D31 -> 19.95337744
B24: t Time (s) | D24: 0 | E24: =D24+0.015 -> 0.015 | F24: =E24+0.015 -> 0.03 | G24: 0.045 | H24: 0.06 | I24: 0.075 | J24: 0.09 | K24: 0.105 | L24: 0.12 | M24: 0.135 | N24: 0.15 | O24: 0.165 | P24: 0.18 | Q24: 0.195 | R24: 0.21 | S24: 0.225 | T24: 0.24 | U24: 0.255 | V24: 0.27 | W24: 0.285 | X24: 0.3 | Y24: 0.315 | Z24: 0.33 | AA24: 0.345 | AB24: 0.36 | AC24: 0.375 | AD24: 0.39 | AE24: 0.405 | AF24: 0.42 | AG24: 0.435 | AH24: 0.45 | AI24: 0.465 | AJ24: 0.48 | AK24: 0.495 | AL24: 0.51 | AM24: 0.525 | AN24: 0.54 | AO24: 0.555 | AP24: 0.57 | AQ24: 0.585 | AR24: 0.6 | AS24: 0.615 | AT24: 0.63 | AU24: 0.645 | AV24: 0.66 | AW24: 0.675 | AX24: 0.69 | AY24: 0.705 | AZ24: 0.72 | BA24: 0.735 | BB24: 0.75 | BC24: 0.765 | BD24: 0.78 | BE24: 0.795 | BF24: 0.81 | BG24: 0.825 | BH24: 0.84 | BI24: 0.855 | BJ24: 0.87 | BK24: 0.885 | BL24: 0.9 | BM24: 0.915 | BN24: 0.93 | BO24: 0.945 | BP24: 0.96 | BQ24: 0.975 | BR24: =BQ24+0.015 -> 0.99 | BS24: 1.005 | BT24: 1.02 | BU24: 1.035 | BV24: 1.05 | BW24: 1.065 | BX24: 1.08 | BY24: 1.095 | BZ24: 1.11 | CA24: 1.125 | CB24: 1.14 | CC24: 1.155 | CD24: 1.17 | CE24: 1.185 | CF24: 1.2 | CG24: 1.215 | CH24: 1.23 | CI24: 1.245 | CJ24: 1.26 | CK24: 1.275 | CL24: 1.29 | CM24: 1.305 | CN24: 1.32 | CO24: 1.335 | CP24: 1.35 | CQ24: 1.365 | CR24: 1.38 | CS24: 1.395 | CT24: 1.41 | CU24: 1.425 | CV24: 1.44 | CW24: 1.455 | CX24: 1.47 | CY24: 1.485 | CZ24: 1.5 | DA24: 1.515 | DB24: 1.53 | DC24: 1.545 | DD24: 1.56 | DE24: 1.575 | DF24: 1.59 | DG24: 1.605 | DH24: 1.62 | DI24: 1.635 | DJ24: 1.65 | DK24: 1.665 | DL24: 1.68 | DM24: 1.695 | DN24: 1.71 | DO24: 1.725 | DP24: 1.74 | DQ24: 1.755 | DR24: 1.77 | DS24: 1.785 | DT24: 1.8 | DU24: 1.815 | DV24: 1.83 | DW24: 1.845 | DX24: 1.86 | DY24: 1.875 | DZ24: 1.89 | EA24: 1.905 | EB24: 1.92 | EC24: 1.935 | ED24: =EC24+0.015 -> 1.95 | EE24: 1.965 | EF24: 1.98 | EG24: 1.995 | EH24: 2.01 | EI24: 2.025 | EJ24: 2.04 | EK24: 2.055 | EL24: 2.07 | EM24: 2.085 | EN24: 2.1 | EO24: 2.115 | EP24: 2.13 | EQ24: 2.145 | ER24: 2.16 | ES24: 2.175 | ET24: 2.19 | EU24: 2.205 | EV24: 2.22 | EW24: 2.235 | EX24: 2.25 | EY24: 2.265 | EZ24: 2.28 | FA24: 2.295 | FB24: 2.31 | FC24: 2.325 | FD24: 2.34 | FE24: 2.355 | FF24: 2.37 | FG24: 2.385 | FH24: 2.4 | FI24: 2.415 | FJ24: 2.43 | FK24: 2.445 | FL24: 2.46 | FM24: 2.475 | FN24: 2.49 | FO24: 2.505 | FP24: 2.52 | FQ24: 2.535 | FR24: 2.55 | FS24: 2.565 | FT24: 2.58 | FU24: 2.595 | FV24: 2.61 | FW24: 2.625 | FX24: 2.64 | FY24: 2.655 | FZ24: 2.67 | GA24: 2.685 | GB24: 2.7 | GC24: 2.715 | GD24: 2.73 | GE24: 2.745 | GF24: 2.76 | GG24: 2.775 | GH24: 2.79 | GI24: 2.805 | GJ24: 2.82 | GK24: 2.835 | GL24: 2.85 | GM24: 2.865 | GN24: 2.88 | GO24: 2.895 | GP24: =GO24+0.015 -> 2.91 | GQ24: 2.925 | GR24: 2.94 | GS24: 2.955 | GT24: 2.97 | GU24: 2.985 | GV24: 3 | GW24: 3.015 | GX24: 3.03 | GY24: 3.045 | GZ24: 3.06 | HA24: 3.075 | HB24: 3.09 | HC24: 3.105 | HD24: 3.12 | HE24: 3.135 | HF24: 3.15 | HG24: 3.165 | HH24: 3.18 | HI24: 3.195 | HJ24: 3.21 | HK24: 3.225 | HL24: 3.24 | HM24: 3.255 | HN24: 3.27 | HO24: 3.285 | HP24: 3.3 | HQ24: 3.315 | HR24: 3.33 | HS24: 3.345 | HT24: 3.36 | HU24: 3.375 | HV24: 3.39 | HW24: 3.405 | HX24: 3.42 | HY24: 3.435 | HZ24: 3.45 | IA24: 3.465 | IB24: 3.48 | IC24: 3.495 | ID24: 3.51 | IE24: 3.525 | IF24: 3.54 | IG24: 3.555 | IH24: 3.57 | II24: 3.585 | IJ24: 3.6 | IK24: 3.615 | IL24: 3.63 | IM24: 3.645 | IN24: 3.66 | IO24: 3.675 | IP24: 3.69 | IQ24: 3.705 | IR24: 3.72 | IS24: 3.735 | IT24: 3.75 | IU24: 3.765 | IV24: 3.78 | IW24: 3.795 | IX24: 3.81 | IY24: 3.825 | IZ24: 3.84 | JA24: 3.855 | JB24: =JA24+0.015 -> 3.87 | JC24: 3.885 | JD24: 3.9 | JE24: 3.915 | JF24: 3.93 | JG24: 3.945 | JH24: 3.96 | JI24: 3.975 | JJ24: 3.99 | JK24: 4.005 | JL24: 4.02 | JM24: 4.035 | JN24: 4.05 | JO24: 4.065 | JP24: 4.08 | JQ24: 4.095 | JR24: 4.11 | JS24: 4.125 | JT24: 4.14 | JU24: 4.155 | JV24: 4.17 | JW24: 4.185 | JX24: 4.2 | JY24: 4.215 | JZ24: 4.23 | KA24: 4.245 | KB24: 4.26 | KC24: 4.275 | KD24: 4.29 | KE24: 4.305 | KF24: 4.32 | KG24: 4.335 | KH24: 4.35 | KI24: 4.365 | KJ24: 4.38 | KK24: 4.395 | KL24: 4.41 | KM24: 4.425 | KN24: 4.44 | KO24: 4.455 | KP24: 4.47 | KQ24: 4.485 | KR24: 4.5 | KS24: 4.515 | KT24: 4.53 | KU24: 4.545 | KV24: 4.56 | KW24: 4.575 | KX24: 4.59 | KY24: 4.605 | KZ24: 4.62 | LA24: 4.635 | LB24: 4.65 | LC24: 4.665 | LD24: 4.68 | LE24: 4.695 | LF24: 4.71 | LG24: 4.725 | LH24: 4.74 | LI24: 4.755 | LJ24: 4.77 | LK24: 4.785 | LL24: 4.8 | LM24: 4.815 | LN24: =LM24+0.015 -> 4.83 | LO24: 4.845 | LP24: 4.86 | LQ24: 4.875 | LR24: 4.89 | LS24: 4.905 | LT24: 4.92 | LU24: 4.935 | LV24: 4.95 | LW24: 4.965 | LX24: 4.98 | LY24: 4.995 | LZ24: 5.01 | MA24: 5.025 | MB24: 5.04 | MC24: 5.055 | MD24: 5.07 | ME24: 5.085 | MF24: 5.1 | MG24: 5.115 | MH24: 5.13 | MI24: 5.145 | MJ24: 5.16 | MK24: 5.175 | ML24: 5.19 | MM24: 5.205 | MN24: 5.22 | MO24: 5.235 | MP24: 5.25 | MQ24: 5.265 | MR24: 5.28 | MS24: 5.295 | MT24: 5.31 | MU24: 5.325 | MV24: 5.34 | MW24: 5.355 | MX24: 5.37 | MY24: 5.385 | MZ24: 5.4 | NA24: 5.415 | NB24: 5.43 | NC24: 5.445 | ND24: 5.46 | NE24: 5.475 | NF24: 5.49 | NG24: 5.505 | NH24: 5.52 | NI24: 5.535 | NJ24: 5.55 | NK24: 5.565 | NL24: 5.58 | NM24: 5.595 | NN24: 5.61 | NO24: 5.625 | NP24: 5.64 | NQ24: 5.655 | NR24: 5.67 | NS24: 5.685 | NT24: 5.7 | NU24: 5.715 | NV24: 5.73 | NW24: 5.745 | NX24: 5.76 | NY24: 5.775 | NZ24: =NY24+0.015 -> 5.79 | OA24: 5.805 | OB24: 5.82 | OC24: 5.835 | OD24: 5.85 | OE24: 5.865 | OF24: 5.88 | OG24: 5.895 | OH24: 5.91 | OI24: 5.925 | OJ24: 5.94 | OK24: 5.955 | OL24: 5.97 | OM24: 5.985 | ON24: 6 | OO24: 6.015 | OP24: 6.03 | OQ24: 6.045 | OR24: 6.06 | OS24: 6.075 | OT24: 6.09 | OU24: 6.105 | OV24: 6.12 | OW24: 6.135 | OX24: 6.15 | OY24: 6.165 | OZ24: 6.18 | PA24: 6.195 | PB24: 6.21 | PC24: 6.225 | PD24: 6.24 | PE24: 6.255 | PF24: 6.27 | PG24: 6.285 | PH24: 6.3 | PI24: 6.315 | PJ24: 6.33 | PK24: 6.345 | PL24: 6.36 | PM24: 6.375 | PN24: 6.39 | PO24: 6.405 | PP24: 6.42 | PQ24: 6.435 | PR24: 6.45 | PS24: 6.465 | PT24: 6.48 | PU24: 6.495 | PV24: 6.51 | PW24: 6.525 | PX24: 6.54 | PY24: 6.555 | PZ24: 6.57 | QA24: 6.585 | QB24: 6.6 | QC24: 6.615 | QD24: 6.63 | QE24: 6.645 | QF24: 6.66 | QG24: 6.675 | QH24: 6.69 | QI24: 6.705 | QJ24: 6.72 | QK24: 6.735 | QL24: =QK24+0.015 -> 6.75 | QM24: 6.765 | QN24: 6.78 | QO24: 6.795 | QP24: 6.81 | QQ24: 6.825 | QR24: 6.84 | QS24: 6.855 | QT24: 6.87 | QU24: 6.885 | QV24: 6.9 | QW24: 6.915 | QX24: 6.93 | QY24: 6.945 | QZ24: 6.96 | RA24: 6.975 | RB24: 6.99 | RC24: 7.005 | RD24: 7.02 | RE24: 7.035 | RF24: 7.05 | RG24: 7.065 | RH24: 7.08 | RI24: 7.095 | RJ24: 7.11 | RK24: 7.125 | RL24: 7.14 | RM24: 7.155 | RN24: 7.17 | RO24: 7.185 | RP24: 7.2 | RQ24: 7.215 | RR24: 7.23 | RS24: 7.245 | RT24: 7.26 | RU24: 7.275 | RV24: 7.29 | RW24: 7.305 | RX24: 7.32 | RY24: 7.335 | RZ24: 7.35 | SA24: 7.365 | SB24: 7.38 | SC24: 7.395 | SD24: 7.41 | SE24: 7.425 | SF24: 7.44 | SG24: 7.455 | SH24: 7.47 | SI24: 7.485 | SJ24: 7.5 | SK24: 7.515 | SL24: 7.53 | SM24: 7.545 | SN24: 7.56 | SO24: 7.575 | SP24: 7.59 | SQ24: 7.605 | SR24: 7.62 | SS24: 7.635 | ST24: 7.65 | SU24: 7.665 | SV24: 7.68 | SW24: 7.695 | SX24: =SW24+0.015 -> 7.71 | SY24: 7.725 | SZ24: 7.74 | TA24: 7.755 | TB24: 7.77 | TC24: 7.785 | TD24: =TC24+0.015 -> 7.8 | TE24: 7.815 | TF24: 7.83 | TG24: 7.845 | TH24: 7.86 | TI24: 7.875 | TJ24: 7.89 | TK24: 7.905 | TL24: 7.92 | TM24: 7.935 | TN24: 7.95 | TO24: 7.965 | TP24: 7.98 | TQ24: 7.995 | TR24: 8.01 | TS24: 8.025 | TT24: 8.04 | TU24: 8.055 | TV24: 8.07 | TW24: 8.085 | TX24: 8.1 | TY24: 8.115 | TZ24: 8.13 | UA24: 8.145 | UB24: 8.16 | UC24: 8.175 | UD24: 8.19 | UE24: 8.205 | UF24: 8.22 | UG24: 8.235 | UH24: 8.25 | UI24: 8.265 | UJ24: 8.28 | UK24: 8.295 | UL24: 8.31 | UM24: 8.325 | UN24: 8.34 | UO24: 8.355 | UP24: 8.37 | UQ24: 8.385 | UR24: 8.4 | US24: 8.415 | UT24: 8.43 | UU24: 8.445 | UV24: 8.46 | UW24: 8.475 | UX24: 8.49 | UY24: 8.505 | UZ24: 8.52 | VA24: 8.535 | VB24: 8.55 | VC24: 8.565 | VD24: 8.58 | VE24: 8.595 | VF24: 8.61 | VG24: 8.625 | VH24: 8.64 | VI24: 8.655 | VJ24: 8.67 | VK24: 8.685 | VL24: 8.7 | VM24: 8.715 | VN24: 8.73 | VO24: 8.745 | VP24: =VO24+0.015 -> 8.76 | VQ24: 8.775 | VR24: 8.79 | VS24: 8.805 | VT24: 8.82 | VU24: 8.835 | VV24: 8.85 | VW24: 8.865 | VX24: 8.88 | VY24: 8.895 | VZ24: 8.91 | WA24: 8.925 | WB24: 8.94 | WC24: 8.955 | WD24: 8.97 | WE24: 8.985 | WF24: 9 | WG24: 9.015 | WH24: 9.03 | WI24: 9.045 | WJ24: 9.06 | WK24: 9.075 | WL24: 9.09 | WM24: 9.105 | WN24: 9.12 | WO24: 9.135 | WP24: 9.15 | WQ24: 9.165 | WR24: 9.18 | WS24: 9.195 | WT24: 9.21 | WU24: 9.225 | WV24: 9.24 | WW24: 9.255 | WX24: 9.27 | WY24: 9.285 | WZ24: 9.3 | XA24: 9.315 | XB24: 9.33 | XC24: 9.345 | XD24: 9.36 | XE24: 9.375 | XF24: 9.39 | XG24: 9.405 | XH24: 9.42 | XI24: 9.435 | XJ24: 9.45 | XK24: 9.465 | XL24: 9.48 | XM24: 9.495 | XN24: 9.51 | XO24: 9.525 | XP24: 9.54 | XQ24: 9.555 | XR24: 9.57 | XS24: 9.585 | XT24: 9.6 | XU24: 9.615 | XV24: 9.63 | XW24: 9.645 | XX24: 9.66 | XY24: 9.675 | XZ24: 9.69 | YA24: 9.705 | YB24: =YA24+0.015 -> 9.72 | YC24: 9.735 | YD24: 9.75 | YE24: 9.765 | YF24: 9.78 | YG24: 9.795 | YH24: 9.81 | YI24: 9.825 | YJ24: 9.84 | YK24: 9.855 | YL24: 9.87 | YM24: 9.885 | YN24: 9.9 | YO24: 9.915 | YP24: 9.93 | YQ24: 9.945 | YR24: 9.96 | YS24: 9.975 | YT24: 9.99 | YU24: 10.005 | YV24: 10.02 | YW24: 10.035 | YX24: 10.05 | YY24: 10.065 | YZ24: 10.08 | ZA24: 10.095 | ZB24: 10.11 | ZC24: 10.125 | ZD24: 10.14 | ZE24: 10.155 | ZF24: 10.17 | ZG24: 10.185 | ZH24: 10.2 | ZI24: 10.215 | ZJ24: 10.23 | ZK24: 10.245 | ZL24: 10.26 | ZM24: 10.275 | ZN24: 10.29 | ZO24: 10.305 | ZP24: 10.32 | ZQ24: 10.335 | ZR24: 10.35 | ZS24: 10.365 | ZT24: 10.38 | ZU24: 10.395 | ZV24: 10.41 | ZW24: 10.425 | ZX24: 10.44 | ZY24: 10.455 | ZZ24: 10.47 | AAA24: 10.485 | AAB24: 10.5 | AAC24: 10.515 | AAD24: 10.53 | AAE24: 10.545 | AAF24: 10.56 | AAG24: 10.575 | AAH24: 10.59 | AAI24: 10.605 | AAJ24: 10.62 | AAK24: 10.635 | AAL24: 10.65 | AAM24: 10.665 | AAN24: =AAM24+0.015 -> 10.68 | AAO24: 10.695 | AAP24: 10.71 | AAQ24: 10.725 | AAR24: 10.74 | AAS24: 10.755 | AAT24: 10.77 | AAU24: 10.785 | AAV24: 10.8 | AAW24: 10.815 | AAX24: 10.83 | AAY24: 10.845 | AAZ24: 10.86 | ABA24: 10.875 | ABB24: 10.89 | ABC24: 10.905 | ABD24: 10.92 | ABE24: 10.935 | ABF24: 10.95 | ABG24: 10.965 | ABH24: 10.98 | ABI24: 10.995 | ABJ24: 11.01 | ABK24: 11.025 | ABL24: 11.04 | ABM24: 11.055 | ABN24: 11.07 | ABO24: 11.085 | ABP24: 11.1 | ABQ24: 11.115 | ABR24: 11.13 | ABS24: 11.145 | ABT24: 11.16 | ABU24: 11.175 | ABV24: 11.19 | ABW24: 11.205 | ABX24: 11.22 | ABY24: 11.235 | ABZ24: 11.25 | ACA24: 11.265 | ACB24: 11.28 | ACC24: 11.295 | ACD24: 11.31 | ACE24: 11.325 | ACF24: 11.34 | ACG24: 11.355 | ACH24: 11.37 | ACI24: 11.385 | ACJ24: 11.4 | ACK24: 11.415 | ACL24: 11.43 | ACM24: 11.445 | ACN24: 11.46 | ACO24: 11.475 | ACP24: 11.49 | ACQ24: 11.505 | ACR24: 11.52 | ACS24: =ACR24+0.015 -> 11.535 | ACT24: 11.55 | ACU24: 11.565 | ACV24: 11.58 | ACW24: 11.595 | ACX24: 11.61 | ACY24: 11.625 | ACZ24: 11.64 | ADA24: 11.655 | ADB24: 11.67 | ADC24: 11.685 | ADD24: 11.7 | ADE24: 11.715 | ADF24: 11.73 | ADG24: 11.745 | ADH24: 11.76 | ADI24: 11.775 | ADJ24: 11.79 | ADK24: 11.805 | ADL24: 11.82 | ADM24: 11.835 | ADN24: 11.85 | ADO24: 11.865 | ADP24: 11.88 | ADQ24: 11.895 | ADR24: 11.91 | ADS24: 11.925 | ADT24: 11.94 | ADU24: 11.955 | ADV24: 11.97 | ADW24: 11.985 | ADX24: 12 | ADY24: 12.015 | ADZ24: 12.03 | AEA24: 12.045 | AEB24: 12.06 | AEC24: 12.075 | AED24: 12.09 | AEE24: 12.105 | AEF24: 12.12 | AEG24: 12.135 | AEH24: 12.15 | AEI24: 12.165 | AEJ24: 12.18 | AEK24: 12.195 | AEL24: 12.21 | AEM24: 12.225 | AEN24: 12.24 | AEO24: 12.255 | AEP24: 12.27 | AEQ24: 12.285 | AER24: 12.3 | AES24: 12.315 | AET24: 12.33 | AEU24: 12.345 | AEV24: 12.36 | AEW24: 12.375 | AEX24: 12.39 | AEY24: 12.405 | AEZ24: 12.42 | AFA24: 12.435 | AFB24: 12.45 | AFC24: 12.465 | AFD24: 12.48 | AFE24: =AFD24+0.015 -> 12.495 | AFF24: 12.51 | AFG24: 12.525 | AFH24: 12.54 | AFI24: 12.555 | AFJ24: 12.57 | AFK24: 12.585 | AFL24: 12.6 | AFM24: 12.615 | AFN24: 12.63 | AFO24: 12.645 | AFP24: 12.66 | AFQ24: 12.675 | AFR24: 12.69 | AFS24: 12.705 | AFT24: 12.72 | AFU24: 12.735 | AFV24: 12.75 | AFW24: 12.765 | AFX24: 12.78 | AFY24: 12.795 | AFZ24: 12.81 | AGA24: 12.825 | AGB24: 12.84 | AGC24: 12.855 | AGD24: 12.87 | AGE24: 12.885 | AGF24: 12.9 | AGG24: 12.915 | AGH24: 12.93 | AGI24: 12.945 | AGJ24: 12.96 | AGK24: 12.975 | AGL24: 12.99 | AGM24: 13.005 | AGN24: 13.02 | AGO24: 13.035 | AGP24: 13.05 | AGQ24: 13.065 | AGR24: 13.08 | AGS24: 13.095 | AGT24: 13.11 | AGU24: 13.125 | AGV24: 13.14 | AGW24: 13.155 | AGX24: 13.17 | AGY24: 13.185 | AGZ24: 13.2 | AHA24: 13.215 | AHB24: 13.23 | AHC24: 13.245 | AHD24: 13.26 | AHE24: 13.275 | AHF24: 13.29 | AHG24: 13.305 | AHH24: 13.32 | AHI24: 13.335 | AHJ24: 13.35 | AHK24: 13.365 | AHL24: 13.38 | AHM24: 13.395 | AHN24: 13.41 | AHO24: 13.425 | AHP24: 13.44 | AHQ24: =AHP24+0.015 -> 13.455 | AHR24: 13.47 | AHS24: 13.485 | AHT24: 13.5 | AHU24: 13.515 | AHV24: 13.53 | AHW24: 13.545 | AHX24: 13.56 | AHY24: 13.575 | AHZ24: 13.59 | AIA24: 13.605 | AIB24: 13.62 | AIC24: 13.635 | AID24: 13.65 | AIE24: 13.665 | AIF24: 13.68 | AIG24: 13.695 | AIH24: 13.71 | AII24: 13.725 | AIJ24: 13.74 | AIK24: 13.755 | AIL24: 13.77 | AIM24: 13.785 | AIN24: 13.8 | AIO24: 13.815 | AIP24: 13.83 | AIQ24: 13.845 | AIR24: 13.86 | AIS24: 13.875 | AIT24: 13.89 | AIU24: 13.905 | AIV24: 13.92 | AIW24: 13.935 | AIX24: 13.95 | AIY24: 13.965 | AIZ24: 13.98 | AJA24: 13.995 | AJB24: 14.01 | AJC24: 14.025 | AJD24: 14.04 | AJE24: 14.055 | AJF24: 14.07 | AJG24: 14.085 | AJH24: 14.1 | AJI24: 14.115 | AJJ24: 14.13 | AJK24: 14.145 | AJL24: 14.16 | AJM24: 14.175 | AJN24: 14.19 | AJO24: 14.205 | AJP24: 14.22 | AJQ24: 14.235 | AJR24: 14.25 | AJS24: 14.265 | AJT24: 14.28 | AJU24: 14.295 | AJV24: 14.31 | AJW24: =AJV24+0.05 -> 14.36 | AJX24: =AJW24+0.05 -> 14.41 | AJY24: 14.46 | AJZ24: 14.51 | AKA24: 14.56 | AKB24: 14.61 | AKC24: 14.66 | AKD24: 14.71 | AKE24: 14.76 | AKF24: 14.81 | AKG24: 14.86 | AKH24: 14.91 | AKI24: 14.96 | AKJ24: 15.01 | AKK24: 15.06 | AKL24: 15.11 | AKM24: 15.16 | AKN24: 15.21 | AKO24: 15.26 | AKP24: 15.31 | AKQ24: 15.36 | AKR24: 15.41 | AKS24: 15.46 | AKT24: 15.51 | AKU24: 15.56 | AKV24: 15.61 | AKW24: 15.66 | AKX24: 15.71 | AKY24: 15.76 | AKZ24: 15.81 | ALA24: 15.86 | ALB24: 15.91 | ALC24: 15.96 | ALD24: 16.01 | ALE24: 16.06 | ALF24: 16.11 | ALG24: 16.16 | ALH24: 16.21 | ALI24: 16.26 | ALJ24: 16.31 | ALK24: 16.36 | ALL24: 16.41 | ALM24: 16.46 | ALN24: 16.51 | ALO24: 16.56 | ALP24: 16.61 | ALQ24: 16.66 | ALR24: 16.71 | ALS24: 16.76 | ALT24: 16.81 | ALU24: 16.86 | ALV24: 16.91 | ALW24: 16.96 | ALX24: 17.01 | ALY24: 17.06 | ALZ24: 17.11 | AMA24: 17.16 | AMB24: 17.21 | AMC24: 17.26 | AMD24: 17.31 | AME24: 17.36 | AMF24: 17.41 | AMG24: 17.46 | AMH24: 17.51 | AMI24: 17.56 | AMJ24: =AMI24+0.05 -> 17.61 | AMK24: 17.66 | AML24: 17.71 | AMM24: 17.76 | AMN24: 17.81 | AMO24: 17.86 | AMP24: 17.91 | AMQ24: 17.96 | AMR24: 18.01 | AMS24: 18.06 | AMT24: 18.11 | AMU24: 18.16 | AMV24: 18.21 | AMW24: 18.26 | AMX24: 18.31 | AMY24: 18.36 | AMZ24: 18.41 | ANA24: 18.46 | ANB24: 18.51 | ANC24: 18.56 | AND24: 18.61 | ANE24: 18.66 | ANF24: 18.71 | ANG24: 18.76 | ANH24: 18.81 | ANI24: 18.86 | ANJ24: 18.91 | ANK24: 18.96 | ANL24: 19.01 | ANM24: 19.06 | ANN24: 19.11 | ANO24: 19.16 | ANP24: 19.21 | ANQ24: 19.26 | ANR24: 19.31 | ANS24: 19.36 | ANT24: 19.41 | ANU24: 19.46 | ANV24: 19.51 | ANW24: 19.56 | ANX24: 19.61 | ANY24: 19.66 | ANZ24: 19.71 | AOA24: 19.76 | AOB24: 19.81 | AOC24: 19.86 | AOD24: 19.91 | AOE24: 19.96 | AOF24: 20.01 | AOG24: 20.06 | AOH24: 20.11 | AOI24: 20.16 | AOJ24: 20.21 | AOK24: 20.26 | AOL24: 20.31 | AOM24: 20.36 | AON24: 20.41 | AOO24: 20.46 | AOP24: 20.51 | AOQ24: 20.56 | AOR24: 20.61 | AOS24: 20.66 | AOT24: 20.71 | AOU24: 20.76 | AOV24: =AOU24+0.05 -> 20.81 | AOW24: 20.86 | AOX24: 20.91 | AOY24: 20.96 | AOZ24: 21.01 | APA24: 21.06 | APB24: 21.11 | APC24: 21.16 | APD24: 21.21 | APE24: 21.26 | APF24: 21.31 | APG24: 21.36 | APH24: 21.41 | API24: 21.46 | APJ24: 21.51 | APK24: 21.56 | APL24: 21.61 | APM24: 21.66 | APN24: 21.71 | APO24: 21.76 | APP24: 21.81 | APQ24: 21.86 | APR24: 21.91 | APS24: 21.96 | APT24: 22.01 | APU24: 22.06 | APV24: 22.11 | APW24: 22.16 | APX24: 22.21 | APY24: 22.26 | APZ24: 22.31 | AQA24: 22.36 | AQB24: 22.41 | AQC24: 22.46 | AQD24: 22.51
B25: Vt (m/s) (momentary speed in slide at time t) | D25: =G4 -> 15.86 | E25: =IF(D25-9.81*'Summary calculation'!$E$14*(E24-D24)>=0,D25-9.81*'Summary calculation'!$E$14*(E24-D24),0) -> 15.7643525 | F25: =IF(E25-9.81*'Summary calculation'!$E$14*(F24-E24)>=0,E25-9.81*'Summary calculation'!$E$14*(F24-E24),0) -> 15.668705 | G25: =IF(F25-9.81*'Summary calculation'!$E$14*(G24-F24)>=0,F25-9.81*'Summary calculation'!$E$14*(G24-F24),0) -> 15.5730575 | H25: =IF(G25-9.81*'Summary calculation'!$E$14*(H24-G24)>=0,G25-9.81*'Summary calculation'!$E$14*(H24-G24),0) -> 15.47741 | I25: =IF(H25-9.81*'Summary calculation'!$E$14*(I24-H24)>=0,H25-9.81*'Summary calculation'!$E$14*(I24-H24),0) -> 15.3817625 | J25: =IF(I25-9.81*'Summary calculation'!$E$14*(J24-I24)>=0,I25-9.81*'Summary calculation'!$E$14*(J24-I24),0) -> 15.286115 | K25: =IF(J25-9.81*'Summary calculation'!$E$14*(K24-J24)>=0,J25-9.81*'Summary calculation'!$E$14*(K24-J24),0) -> 15.1904675 | L25: =IF(K25-9.81*'Summary calculation'!$E$14*(L24-K24)>=0,J25-9.81*'Summary calculation'!$E$14*(L24-K24),0) -> 15.1904675 | M25: =IF(L25-9.81*'Summary calculation'!$E$14*(M24-L24)>=0,L25-9.81*'Summary calculation'!$E$14*(M24-L24),0) -> 15.09482 | N25: =IF(M25-9.81*'Summary calculation'!$E$14*(N24-M24)>=0,M25-9.81*'Summary calculation'!$E$14*(N24-M24),0) -> 14.9991725 | O25: =IF(N25-9.81*'Summary calculation'!$E$14*(O24-N24)>=0,N25-9.81*'Summary calculation'!$E$14*(O24-N24),0) -> 14.903525 | P25: =IF(O25-9.81*'Summary calculation'!$E$14*(P24-O24)>=0,O25-9.81*'Summary calculation'!$E$14*(P24-O24),0) -> 14.8078775 | Q25: =IF(P25-9.81*'Summary calculation'!$E$14*(Q24-P24)>=0,P25-9.81*'Summary calculation'!$E$14*(Q24-P24),0) -> 14.71223 | R25: =IF(Q25-9.81*'Summary calculation'!$E$14*(R24-Q24)>=0,Q25-9.81*'Summary calculation'!$E$14*(R24-Q24),0) -> 14.6165825 | S25: =IF(R25-9.81*'Summary calculation'!$E$14*(S24-R24)>=0,R25-9.81*'Summary calculation'!$E$14*(S24-R24),0) -> 14.520935 | T25: =IF(S25-9.81*'Summary calculation'!$E$14*(T24-S24)>=0,S25-9.81*'Summary calculation'!$E$14*(T24-S24),0) -> 14.4252875 | U25: =IF(T25-9.81*'Summary calculation'!$E$14*(U24-T24)>=0,T25-9.81*'Summary calculation'!$E$14*(U24-T24),0) -> 14.32964 | V25: =IF(U25-9.81*'Summary calculation'!$E$14*(V24-U24)>=0,U25-9.81*'Summary calculation'!$E$14*(V24-U24),0) -> 14.2339925 | W25: =IF(V25-9.81*'Summary calculation'!$E$14*(W24-V24)>=0,V25-9.81*'Summary calculation'!$E$14*(W24-V24),0) -> 14.138345 | X25: =IF(W25-9.81*'Summary calculation'!$E$14*(X24-W24)>=0,W25-9.81*'Summary calculation'!$E$14*(X24-W24),0) -> 14.0426975 | Y25: =IF(X25-9.81*'Summary calculation'!$E$14*(Y24-X24)>=0,X25-9.81*'Summary calculation'!$E$14*(Y24-X24),0) -> 13.94705 | Z25: =IF(Y25-9.81*'Summary calculation'!$E$14*(Z24-Y24)>=0,Y25-9.81*'Summary calculation'!$E$14*(Z24-Y24),0) -> 13.8514025 | AA25: =IF(Z25-9.81*'Summary calculation'!$E$14*(AA24-Z24)>=0,Z25-9.81*'Summary calculation'!$E$14*(AA24-Z24),0) -> 13.755755 | AB25: =IF(AA25-9.81*'Summary calculation'!$E$14*(AB24-AA24)>=0,AA25-9.81*'Summary calculation'!$E$14*(AB24-AA24),0) -> 13.6601075 | AC25: =IF(AB25-9.81*'Summary calculation'!$E$14*(AC24-AB24)>=0,AB25-9.81*'Summary calculation'!$E$14*(AC24-AB24),0) -> 13.56446 | AD25: =IF(AC25-9.81*'Summary calculation'!$E$14*(AD24-AC24)>=0,AC25-9.81*'Summary calculation'!$E$14*(AD24-AC24),0) -> 13.4688125 | AE25: =IF(AD25-9.81*'Summary calculation'!$E$14*(AE24-AD24)>=0,AD25-9.81*'Summary calculation'!$E$14*(AE24-AD24),0) -> 13.373165 | AF25: =IF(AE25-9.81*'Summary calculation'!$E$14*(AF24-AE24)>=0,AE25-9.81*'Summary calculation'!$E$14*(AF24-AE24),0) -> 13.2775175 | AG25: =IF(AF25-9.81*'Summary calculation'!$E$14*(AG24-AF24)>=0,AF25-9.81*'Summary calculation'!$E$14*(AG24-AF24),0) -> 13.18187 | AH25: =IF(AG25-9.81*'Summary calculation'!$E$14*(AH24-AG24)>=0,AG25-9.81*'Summary calculation'!$E$14*(AH24-AG24),0) -> 13.0862225 | AI25: =IF(AH25-9.81*'Summary calculation'!$E$14*(AI24-AH24)>=0,AH25-9.81*'Summary calculation'!$E$14*(AI24-AH24),0) -> 12.990575 | AJ25: =IF(AI25-9.81*'Summary calculation'!$E$14*(AJ24-AI24)>=0,AI25-9.81*'Summary calculation'!$E$14*(AJ24-AI24),0) -> 12.8949275 | AK25: =IF(AJ25-9.81*'Summary calculation'!$E$14*(AK24-AJ24)>=0,AJ25-9.81*'Summary calculation'!$E$14*(AK24-AJ24),0) -> 12.79928 | AL25: =IF(AK25-9.81*'Summary calculation'!$E$14*(AL24-AK24)>=0,AK25-9.81*'Summary calculation'!$E$14*(AL24-AK24),0) -> 12.7036325 | AM25: =IF(AL25-9.81*'Summary calculation'!$E$14*(AM24-AL24)>=0,AL25-9.81*'Summary calculation'!$E$14*(AM24-AL24),0) -> 12.607985 | AN25: =IF(AM25-9.81*'Summary calculation'!$E$14*(AN24-AM24)>=0,AM25-9.81*'Summary calculation'!$E$14*(AN24-AM24),0) -> 12.5123375 | AO25: =IF(AN25-9.81*'Summary calculation'!$E$14*(AO24-AN24)>=0,AN25-9.81*'Summary calculation'!$E$14*(AO24-AN24),0) -> 12.41669 | AP25: =IF(AO25-9.81*'Summary calculation'!$E$14*(AP24-AO24)>=0,AO25-9.81*'Summary calculation'!$E$14*(AP24-AO24),0) -> 12.3210425 | AQ25: =IF(AP25-9.81*'Summary calculation'!$E$14*(AQ24-AP24)>=0,AP25-9.81*'Summary calculation'!$E$14*(AQ24-AP24),0) -> 12.225395 | AR25: =IF(AQ25-9.81*'Summary calculation'!$E$14*(AR24-AQ24)>=0,AQ25-9.81*'Summary calculation'!$E$14*(AR24-AQ24),0) -> 12.1297475 | AS25: =IF(AR25-9.81*'Summary calculation'!$E$14*(AS24-AR24)>=0,AR25-9.81*'Summary calculation'!$E$14*(AS24-AR24),0) -> 12.0341 | AT25: =IF(AS25-9.81*'Summary calculation'!$E$14*(AT24-AS24)>=0,AS25-9.81*'Summary calculation'!$E$14*(AT24-AS24),0) -> 11.9384525 | AU25: =IF(AT25-9.81*'Summary calculation'!$E$14*(AU24-AT24)>=0,AT25-9.81*'Summary calculation'!$E$14*(AU24-AT24),0) -> 11.842805 | AV25: =IF(AU25-9.81*'Summary calculation'!$E$14*(AV24-AU24)>=0,AU25-9.81*'Summary calculation'!$E$14*(AV24-AU24),0) -> 11.7471575 | AW25: =IF(AV25-9.81*'Summary calculation'!$E$14*(AW24-AV24)>=0,AV25-9.81*'Summary calculation'!$E$14*(AW24-AV24),0) -> 11.65151 | AX25: =IF(AW25-9.81*'Summary calculation'!$E$14*(AX24-AW24)>=0,AW25-9.81*'Summary calculation'!$E$14*(AX24-AW24),0) -> 11.5558625 | AY25: =IF(AX25-9.81*'Summary calculation'!$E$14*(AY24-AX24)>=0,AX25-9.81*'Summary calculation'!$E$14*(AY24-AX24),0) -> 11.460215 | AZ25: =IF(AY25-9.81*'Summary calculation'!$E$14*(AZ24-AY24)>=0,AY25-9.81*'Summary calculation'!$E$14*(AZ24-AY24),0) -> 11.3645675 | BA25: =IF(AZ25-9.81*'Summary calculation'!$E$14*(BA24-AZ24)>=0,AZ25-9.81*'Summary calculation'!$E$14*(BA24-AZ24),0) -> 11.26892 | BB25: =IF(BA25-9.81*'Summary calculation'!$E$14*(BB24-BA24)>=0,BA25-9.81*'Summary calculation'!$E$14*(BB24-BA24),0) -> 11.1732725 | BC25: =IF(BB25-9.81*'Summary calculation'!$E$14*(BC24-BB24)>=0,BB25-9.81*'Summary calculation'!$E$14*(BC24-BB24),0) -> 11.077625 | BD25: =IF(BC25-9.81*'Summary calculation'!$E$14*(BD24-BC24)>=0,BC25-9.81*'Summary calculation'!$E$14*(BD24-BC24),0) -> 10.9819775 | BE25: =IF(BD25-9.81*'Summary calculation'!$E$14*(BE24-BD24)>=0,BD25-9.81*'Summary calculation'!$E$14*(BE24-BD24),0) -> 10.88633 | BF25: =IF(BE25-9.81*'Summary calculation'!$E$14*(BF24-BE24)>=0,BE25-9.81*'Summary calculation'!$E$14*(BF24-BE24),0) -> 10.7906825 | BG25: =IF(BF25-9.81*'Summary calculation'!$E$14*(BG24-BF24)>=0,BF25-9.81*'Summary calculation'!$E$14*(BG24-BF24),0) -> 10.695035 | BH25: =IF(BG25-9.81*'Summary calculation'!$E$14*(BH24-BG24)>=0,BG25-9.81*'Summary calculation'!$E$14*(BH24-BG24),0) -> 10.5993875 | BI25: =IF(BH25-9.81*'Summary calculation'!$E$14*(BI24-BH24)>=0,BH25-9.81*'Summary calculation'!$E$14*(BI24-BH24),0) -> 10.50374 | BJ25: =IF(BI25-9.81*'Summary calculation'!$E$14*(BJ24-BI24)>=0,BI25-9.81*'Summary calculation'!$E$14*(BJ24-BI24),0) -> 10.4080925 | BK25: =IF(BJ25-9.81*'Summary calculation'!$E$14*(BK24-BJ24)>=0,BJ25-9.81*'Summary calculation'!$E$14*(BK24-BJ24),0) -> 10.312445 | BL25: =IF(BK25-9.81*'Summary calculation'!$E$14*(BL24-BK24)>=0,BK25-9.81*'Summary calculation'!$E$14*(BL24-BK24),0) -> 10.2167975 | BM25: =IF(BL25-9.81*'Summary calculation'!$E$14*(BM24-BL24)>=0,BL25-9.81*'Summary calculation'!$E$14*(BM24-BL24),0) -> 10.12115 | BN25: =IF(BM25-9.81*'Summary calculation'!$E$14*(BN24-BM24)>=0,BM25-9.81*'Summary calculation'!$E$14*(BN24-BM24),0) -> 10.0255025 | BO25: =IF(BN25-9.81*'Summary calculation'!$E$14*(BO24-BN24)>=0,BN25-9.81*'Summary calculation'!$E$14*(BO24-BN24),0) -> 9.929855 | BP25: =IF(BO25-9.81*'Summary calculation'!$E$14*(BP24-BO24)>=0,BO25-9.81*'Summary calculation'!$E$14*(BP24-BO24),0) -> 9.8342075 | BQ25: =IF(BP25-9.81*'Summary calculation'!$E$14*(BQ24-BP24)>=0,BP25-9.81*'Summary calculation'!$E$14*(BQ24-BP24),0) -> 9.73856 | BR25: =IF(BQ25-9.81*'Summary calculation'!$E$14*(BR24-BQ24)>=0,BQ25-9.81*'Summary calculation'!$E$14*(BR24-BQ24),0) -> 9.6429125 | BS25: =IF(BR25-9.81*'Summary calculation'!$E$14*(BS24-BR24)>=0,BR25-9.81*'Summary calculation'!$E$14*(BS24-BR24),0) -> 9.547265 | BT25: =IF(BS25-9.81*'Summary calculation'!$E$14*(BT24-BS24)>=0,BS25-9.81*'Summary calculation'!$E$14*(BT24-BS24),0) -> 9.4516175 | BU25: =IF(BT25-9.81*'Summary calculation'!$E$14*(BU24-BT24)>=0,BT25-9.81*'Summary calculation'!$E$14*(BU24-BT24),0) -> 9.35597 | BV25: =IF(BU25-9.81*'Summary calculation'!$E$14*(BV24-BU24)>=0,BU25-9.81*'Summary calculation'!$E$14*(BV24-BU24),0) -> 9.2603225 | BW25: =IF(BV25-9.81*'Summary calculation'!$E$14*(BW24-BV24)>=0,BV25-9.81*'Summary calculation'!$E$14*(BW24-BV24),0) -> 9.164675 | BX25: =IF(BW25-9.81*'Summary calculation'!$E$14*(BX24-BW24)>=0,BW25-9.81*'Summary calculation'!$E$14*(BX24-BW24),0) -> 9.0690275 | BY25: =IF(BX25-9.81*'Summary calculation'!$E$14*(BY24-BX24)>=0,BX25-9.81*'Summary calculation'!$E$14*(BY24-BX24),0) -> 8.97338 | BZ25: =IF(BY25-9.81*'Summary calculation'!$E$14*(BZ24-BY24)>=0,BY25-9.81*'Summary calculation'!$E$14*(BZ24-BY24),0) -> 8.8777325 | CA25: =IF(BZ25-9.81*'Summary calculation'!$E$14*(CA24-BZ24)>=0,BZ25-9.81*'Summary calculation'!$E$14*(CA24-BZ24),0) -> 8.782085 | CB25: =IF(CA25-9.81*'Summary calculation'!$E$14*(CB24-CA24)>=0,CA25-9.81*'Summary calculation'!$E$14*(CB24-CA24),0) -> 8.6864375 | CC25: =IF(CB25-9.81*'Summary calculation'!$E$14*(CC24-CB24)>=0,CB25-9.81*'Summary calculation'!$E$14*(CC24-CB24),0) -> 8.59079 | CD25: =IF(CC25-9.81*'Summary calculation'!$E$14*(CD24-CC24)>=0,CC25-9.81*'Summary calculation'!$E$14*(CD24-CC24),0) -> 8.4951425 | CE25: =IF(CD25-9.81*'Summary calculation'!$E$14*(CE24-CD24)>=0,CD25-9.81*'Summary calculation'!$E$14*(CE24-CD24),0) -> 8.399495 | CF25: =IF(CE25-9.81*'Summary calculation'!$E$14*(CF24-CE24)>=0,CE25-9.81*'Summary calculation'!$E$14*(CF24-CE24),0) -> 8.3038475 | CG25: =IF(CF25-9.81*'Summary calculation'!$E$14*(CG24-CF24)>=0,CF25-9.81*'Summary calculation'!$E$14*(CG24-CF24),0) -> 8.2082 | CH25: =IF(CG25-9.81*'Summary calculation'!$E$14*(CH24-CG24)>=0,CG25-9.81*'Summary calculation'!$E$14*(CH24-CG24),0) -> 8.1125525 | CI25: =IF(CH25-9.81*'Summary calculation'!$E$14*(CI24-CH24)>=0,CH25-9.81*'Summary calculation'!$E$14*(CI24-CH24),0) -> 8.016905 | CJ25: =IF(CI25-9.81*'Summary calculation'!$E$14*(CJ24-CI24)>=0,CI25-9.81*'Summary calculation'!$E$14*(CJ24-CI24),0) -> 7.9212575 | CK25: =IF(CJ25-9.81*'Summary calculation'!$E$14*(CK24-CJ24)>=0,CJ25-9.81*'Summary calculation'!$E$14*(CK24-CJ24),0) -> 7.82561 | CL25: =IF(CK25-9.81*'Summary calculation'!$E$14*(CL24-CK24)>=0,CK25-9.81*'Summary calculation'!$E$14*(CL24-CK24),0) -> 7.7299625 | CM25: =IF(CL25-9.81*'Summary calculation'!$E$14*(CM24-CL24)>=0,CL25-9.81*'Summary calculation'!$E$14*(CM24-CL24),0) -> 7.634315 | CN25: =IF(CM25-9.81*'Summary calculation'!$E$14*(CN24-CM24)>=0,CM25-9.81*'Summary calculation'!$E$14*(CN24-CM24),0) -> 7.5386675 | CO25: =IF(CN25-9.81*'Summary calculation'!$E$14*(CO24-CN24)>=0,CN25-9.81*'Summary calculation'!$E$14*(CO24-CN24),0) -> 7.44302 | CP25: =IF(CO25-9.81*'Summary calculation'!$E$14*(CP24-CO24)>=0,CO25-9.81*'Summary calculation'!$E$14*(CP24-CO24),0) -> 7.3473725 | CQ25: =IF(CP25-9.81*'Summary calculation'!$E$14*(CQ24-CP24)>=0,CP25-9.81*'Summary calculation'!$E$14*(CQ24-CP24),0) -> 7.251725 | CR25: =IF(CQ25-9.81*'Summary calculation'!$E$14*(CR24-CQ24)>=0,CQ25-9.81*'Summary calculation'!$E$14*(CR24-CQ24),0) -> 7.1560775 | CS25: =IF(CR25-9.81*'Summary calculation'!$E$14*(CS24-CR24)>=0,CR25-9.81*'Summary calculation'!$E$14*(CS24-CR24),0) -> 7.06043 | CT25: =IF(CS25-9.81*'Summary calculation'!$E$14*(CT24-CS24)>=0,CS25-9.81*'Summary calculation'!$E$14*(CT24-CS24),0) -> 6.9647825 | CU25: =IF(CT25-9.81*'Summary calculation'!$E$14*(CU24-CT24)>=0,CT25-9.81*'Summary calculation'!$E$14*(CU24-CT24),0) -> 6.869135 | CV25: =IF(CU25-9.81*'Summary calculation'!$E$14*(CV24-CU24)>=0,CU25-9.81*'Summary calculation'!$E$14*(CV24-CU24),0) -> 6.7734875 | CW25: =IF(CV25-9.81*'Summary calculation'!$E$14*(CW24-CV24)>=0,CV25-9.81*'Summary calculation'!$E$14*(CW24-CV24),0) -> 6.67784 | CX25: =IF(CW25-9.81*'Summary calculation'!$E$14*(CX24-CW24)>=0,CW25-9.81*'Summary calculation'!$E$14*(CX24-CW24),0) -> 6.5821925 | CY25: =IF(CX25-9.81*'Summary calculation'!$E$14*(CY24-CX24)>=0,CX25-9.81*'Summary calculation'!$E$14*(CY24-CX24),0) -> 6.486545 | CZ25: =IF(CY25-9.81*'Summary calculation'!$E$14*(CZ24-CY24)>=0,CY25-9.81*'Summary calculation'!$E$14*(CZ24-CY24),0) -> 6.3908975 | DA25: =IF(CZ25-9.81*'Summary calculation'!$E$14*(DA24-CZ24)>=0,CZ25-9.81*'Summary calculation'!$E$14*(DA24-CZ24),0) -> 6.29525 | DB25: =IF(DA25-9.81*'Summary calculation'!$E$14*(DB24-DA24)>=0,DA25-9.81*'Summary calculation'!$E$14*(DB24-DA24),0) -> 6.1996025 | DC25: =IF(DB25-9.81*'Summary calculation'!$E$14*(DC24-DB24)>=0,DB25-9.81*'Summary calculation'!$E$14*(DC24-DB24),0) -> 6.103955 | DD25: =IF(DC25-9.81*'Summary calculation'!$E$14*(DD24-DC24)>=0,DC25-9.81*'Summary calculation'!$E$14*(DD24-DC24),0) -> 6.0083075 | DE25: =IF(DD25-9.81*'Summary calculation'!$E$14*(DE24-DD24)>=0,DD25-9.81*'Summary calculation'!$E$14*(DE24-DD24),0) -> 5.91266 | DF25: =IF(DE25-9.81*'Summary calculation'!$E$14*(DF24-DE24)>=0,DE25-9.81*'Summary calculation'!$E$14*(DF24-DE24),0) -> 5.8170125 | DG25: =IF(DF25-9.81*'Summary calculation'!$E$14*(DG24-DF24)>=0,DF25-9.81*'Summary calculation'!$E$14*(DG24-DF24),0) -> 5.721365 | DH25: =IF(DG25-9.81*'Summary calculation'!$E$14*(DH24-DG24)>=0,DG25-9.81*'Summary calculation'!$E$14*(DH24-DG24),0) -> 5.6257175 | DI25: =IF(DH25-9.81*'Summary calculation'!$E$14*(DI24-DH24)>=0,DH25-9.81*'Summary calculation'!$E$14*(DI24-DH24),0) -> 5.53007 | DJ25: =IF(DI25-9.81*'Summary calculation'!$E$14*(DJ24-DI24)>=0,DI25-9.81*'Summary calculation'!$E$14*(DJ24-DI24),0) -> 5.4344225 | DK25: =IF(DJ25-9.81*'Summary calculation'!$E$14*(DK24-DJ24)>=0,DJ25-9.81*'Summary calculation'!$E$14*(DK24-DJ24),0) -> 5.338775 | DL25: =IF(DK25-9.81*'Summary calculation'!$E$14*(DL24-DK24)>=0,DK25-9.81*'Summary calculation'!$E$14*(DL24-DK24),0) -> 5.2431275 | DM25: =IF(DL25-9.81*'Summary calculation'!$E$14*(DM24-DL24)>=0,DL25-9.81*'Summary calculation'!$E$14*(DM24-DL24),0) -> 5.14748 | DN25: =IF(DM25-9.81*'Summary calculation'!$E$14*(DN24-DM24)>=0,DM25-9.81*'Summary calculation'!$E$14*(DN24-DM24),0) -> 5.0518325 | DO25: =IF(DN25-9.81*'Summary calculation'!$E$14*(DO24-DN24)>=0,DN25-9.81*'Summary calculation'!$E$14*(DO24-DN24),0) -> 4.956185 | DP25: =IF(DO25-9.81*'Summary calculation'!$E$14*(DP24-DO24)>=0,DO25-9.81*'Summary calculation'!$E$14*(DP24-DO24),0) -> 4.8605375 | DQ25: =IF(DP25-9.81*'Summary calculation'!$E$14*(DQ24-DP24)>=0,DP25-9.81*'Summary calculation'!$E$14*(DQ24-DP24),0) -> 4.76489 | DR25: =IF(DQ25-9.81*'Summary calculation'!$E$14*(DR24-DQ24)>=0,DQ25-9.81*'Summary calculation'!$E$14*(DR24-DQ24),0) -> 4.6692425 | DS25: =IF(DR25-9.81*'Summary calculation'!$E$14*(DS24-DR24)>=0,DR25-9.81*'Summary calculation'!$E$14*(DS24-DR24),0) -> 4.573595 | DT25: =IF(DS25-9.81*'Summary calculation'!$E$14*(DT24-DS24)>=0,DS25-9.81*'Summary calculation'!$E$14*(DT24-DS24),0) -> 4.4779475 | DU25: =IF(DT25-9.81*'Summary calculation'!$E$14*(DU24-DT24)>=0,DT25-9.81*'Summary calculation'!$E$14*(DU24-DT24),0) -> 4.3823 | DV25: =IF(DU25-9.81*'Summary calculation'!$E$14*(DV24-DU24)>=0,DU25-9.81*'Summary calculation'!$E$14*(DV24-DU24),0) -> 4.2866525 | DW25: =IF(DV25-9.81*'Summary calculation'!$E$14*(DW24-DV24)>=0,DV25-9.81*'Summary calculation'!$E$14*(DW24-DV24),0) -> 4.191005 | DX25: =IF(DW25-9.81*'Summary calculation'!$E$14*(DX24-DW24)>=0,DW25-9.81*'Summary calculation'!$E$14*(DX24-DW24),0) -> 4.0953575 | DY25: =IF(DX25-9.81*'Summary calculation'!$E$14*(DY24-DX24)>=0,DX25-9.81*'Summary calculation'!$E$14*(DY24-DX24),0) -> 3.99971 | DZ25: =IF(DY25-9.81*'Summary calculation'!$E$14*(DZ24-DY24)>=0,DY25-9.81*'Summary calculation'!$E$14*(DZ24-DY24),0) -> 3.9040625 | EA25: =IF(DZ25-9.81*'Summary calculation'!$E$14*(EA24-DZ24)>=0,DZ25-9.81*'Summary calculation'!$E$14*(EA24-DZ24),0) -> 3.808415 | EB25: =IF(EA25-9.81*'Summary calculation'!$E$14*(EB24-EA24)>=0,EA25-9.81*'Summary calculation'!$E$14*(EB24-EA24),0) -> 3.7127675 | EC25: =IF(EB25-9.81*'Summary calculation'!$E$14*(EC24-EB24)>=0,EB25-9.81*'Summary calculation'!$E$14*(EC24-EB24),0) -> 3.61712 | ED25: =IF(EC25-9.81*'Summary calculation'!$E$14*(ED24-EC24)>=0,EC25-9.81*'Summary calculation'!$E$14*(ED24-EC24),0) -> 3.5214725 | EE25: =IF(ED25-9.81*'Summary calculation'!$E$14*(EE24-ED24)>=0,ED25-9.81*'Summary calculation'!$E$14*(EE24-ED24),0) -> 3.425825 | EF25: =IF(EE25-9.81*'Summary calculation'!$E$14*(EF24-EE24)>=0,EE25-9.81*'Summary calculation'!$E$14*(EF24-EE24),0) -> 3.3301775 | EG25: =IF(EF25-9.81*'Summary calculation'!$E$14*(EG24-EF24)>=0,EF25-9.81*'Summary calculation'!$E$14*(EG24-EF24),0) -> 3.23453 | EH25: =IF(EG25-9.81*'Summary calculation'!$E$14*(EH24-EG24)>=0,EG25-9.81*'Summary calculation'!$E$14*(EH24-EG24),0) -> 3.1388825 | EI25: =IF(EH25-9.81*'Summary calculation'!$E$14*(EI24-EH24)>=0,EH25-9.81*'Summary calculation'!$E$14*(EI24-EH24),0) -> 3.043235 | EJ25: =IF(EI25-9.81*'Summary calculation'!$E$14*(EJ24-EI24)>=0,EI25-9.81*'Summary calculation'!$E$14*(EJ24-EI24),0) -> 2.9475875 | EK25: =IF(EJ25-9.81*'Summary calculation'!$E$14*(EK24-EJ24)>=0,EJ25-9.81*'Summary calculation'!$E$14*(EK24-EJ24),0) -> 2.85194 | EL25: =IF(EK25-9.81*'Summary calculation'!$E$14*(EL24-EK24)>=0,EK25-9.81*'Summary calculation'!$E$14*(EL24-EK24),0) -> 2.7562925 | EM25: =IF(EL25-9.81*'Summary calculation'!$E$14*(EM24-EL24)>=0,EL25-9.81*'Summary calculation'!$E$14*(EM24-EL24),0) -> 2.660645 | EN25: =IF(EM25-9.81*'Summary calculation'!$E$14*(EN24-EM24)>=0,EM25-9.81*'Summary calculation'!$E$14*(EN24-EM24),0) -> 2.5649975 | EO25: =IF(EN25-9.81*'Summary calculation'!$E$14*(EO24-EN24)>=0,EN25-9.81*'Summary calculation'!$E$14*(EO24-EN24),0) -> 2.46935 | EP25: =IF(EO25-9.81*'Summary calculation'!$E$14*(EP24-EO24)>=0,EO25-9.81*'Summary calculation'!$E$14*(EP24-EO24),0) -> 2.3737025 | EQ25: =IF(EP25-9.81*'Summary calculation'!$E$14*(EQ24-EP24)>=0,EP25-9.81*'Summary calculation'!$E$14*(EQ24-EP24),0) -> 2.278055 | ER25: =IF(EQ25-9.81*'Summary calculation'!$E$14*(ER24-EQ24)>=0,EQ25-9.81*'Summary calculation'!$E$14*(ER24-EQ24),0) -> 2.1824075 | ES25: =IF(ER25-9.81*'Summary calculation'!$E$14*(ES24-ER24)>=0,ER25-9.81*'Summary calculation'!$E$14*(ES24-ER24),0) -> 2.08676 | ET25: =IF(ES25-9.81*'Summary calculation'!$E$14*(ET24-ES24)>=0,ES25-9.81*'Summary calculation'!$E$14*(ET24-ES24),0) -> 1.9911125 | EU25: =IF(ET25-9.81*'Summary calculation'!$E$14*(EU24-ET24)>=0,ET25-9.81*'Summary calculation'!$E$14*(EU24-ET24),0) -> 1.895465 | EV25: =IF(EU25-9.81*'Summary calculation'!$E$14*(EV24-EU24)>=0,EU25-9.81*'Summary calculation'!$E$14*(EV24-EU24),0) -> 1.7998175 | EW25: =IF(EV25-9.81*'Summary calculation'!$E$14*(EW24-EV24)>=0,EV25-9.81*'Summary calculation'!$E$14*(EW24-EV24),0) -> 1.70417 | EX25: =IF(EW25-9.81*'Summary calculation'!$E$14*(EX24-EW24)>=0,EW25-9.81*'Summary calculation'!$E$14*(EX24-EW24),0) -> 1.6085225 | EY25: =IF(EX25-9.81*'Summary calculation'!$E$14*(EY24-EX24)>=0,EX25-9.81*'Summary calculation'!$E$14*(EY24-EX24),0) -> 1.512875 | EZ25: =IF(EY25-9.81*'Summary calculation'!$E$14*(EZ24-EY24)>=0,EY25-9.81*'Summary calculation'!$E$14*(EZ24-EY24),0) -> 1.4172275 | FA25: =IF(EZ25-9.81*'Summary calculation'!$E$14*(FA24-EZ24)>=0,EZ25-9.81*'Summary calculation'!$E$14*(FA24-EZ24),0) -> 1.32158 | FB25: =IF(FA25-9.81*'Summary calculation'!$E$14*(FB24-FA24)>=0,FA25-9.81*'Summary calculation'!$E$14*(FB24-FA24),0) -> 1.2259325 | FC25: =IF(FB25-9.81*'Summary calculation'!$E$14*(FC24-FB24)>=0,FB25-9.81*'Summary calculation'!$E$14*(FC24-FB24),0) -> 1.130285 | FD25: =IF(FC25-9.81*'Summary calculation'!$E$14*(FD24-FC24)>=0,FC25-9.81*'Summary calculation'!$E$14*(FD24-FC24),0) -> 1.0346375 | FE25: =IF(FD25-9.81*'Summary calculation'!$E$14*(FE24-FD24)>=0,FD25-9.81*'Summary calculation'!$E$14*(FE24-FD24),0) -> 0.93899 | FF25: =IF(FE25-9.81*'Summary calculation'!$E$14*(FF24-FE24)>=0,FE25-9.81*'Summary calculation'!$E$14*(FF24-FE24),0) -> 0.8433425 | FG25: =IF(FF25-9.81*'Summary calculation'!$E$14*(FG24-FF24)>=0,FF25-9.81*'Summary calculation'!$E$14*(FG24-FF24),0) -> 0.747695 | FH25: =IF(FG25-9.81*'Summary calculation'!$E$14*(FH24-FG24)>=0,FG25-9.81*'Summary calculation'!$E$14*(FH24-FG24),0) -> 0.6520475 | FI25: =IF(FH25-9.81*'Summary calculation'!$E$14*(FI24-FH24)>=0,FH25-9.81*'Summary calculation'!$E$14*(FI24-FH24),0) -> 0.5564 | FJ25: =IF(FI25-9.81*'Summary calculation'!$E$14*(FJ24-FI24)>=0,FI25-9.81*'Summary calculation'!$E$14*(FJ24-FI24),0) -> 0.4607525 | FK25: =IF(FJ25-9.81*'Summary calculation'!$E$14*(FK24-FJ24)>=0,FJ25-9.81*'Summary calculation'!$E$14*(FK24-FJ24),0) -> 0.365105 | FL25: =IF(FK25-9.81*'Summary calculation'!$E$14*(FL24-FK24)>=0,FK25-9.81*'Summary calculation'!$E$14*(FL24-FK24),0) -> 0.2694575 | FM25: =IF(FL25-9.81*'Summary calculation'!$E$14*(FM24-FL24)>=0,FL25-9.81*'Summary calculation'!$E$14*(FM24-FL24),0) -> 0.17381 | FN25: =IF(FM25-9.81*'Summary calculation'!$E$14*(FN24-FM24)>=0,FM25-9.81*'Summary calculation'!$E$14*(FN24-FM24),0) -> 0.0781625 | FO25: =IF(FN25-9.81*'Summary calculation'!$E$14*(FO24-FN24)>=0,FN25-9.81*'Summary calculation'!$E$14*(FO24-FN24),0) -> 0 | FP25: =IF(FO25-9.81*'Summary calculation'!$E$14*(FP24-FO24)>=0,FO25-9.81*'Summary calculation'!$E$14*(FP24-FO24),0) -> 0 | FQ25: =IF(FP25-9.81*'Summary calculation'!$E$14*(FQ24-FP24)>=0,FP25-9.81*'Summary calculation'!$E$14*(FQ24-FP24),0) -> 0 | FR25: =IF(FQ25-9.81*'Summary calculation'!$E$14*(FR24-FQ24)>=0,FQ25-9.81*'Summary calculation'!$E$14*(FR24-FQ24),0) -> 0 | FS25: =IF(FR25-9.81*'Summary calculation'!$E$14*(FS24-FR24)>=0,FR25-9.81*'Summary calculation'!$E$14*(FS24-FR24),0) -> 0 | FT25: =IF(FS25-9.81*'Summary calculation'!$E$14*(FT24-FS24)>=0,FS25-9.81*'Summary calculation'!$E$14*(FT24-FS24),0) -> 0 | FU25: =IF(FT25-9.81*'Summary calculation'!$E$14*(FU24-FT24)>=0,FT25-9.81*'Summary calculation'!$E$14*(FU24-FT24),0) -> 0 | FV25: =IF(FU25-9.81*'Summary calculation'!$E$14*(FV24-FU24)>=0,FU25-9.81*'Summary calculation'!$E$14*(FV24-FU24),0) -> 0 | FW25: =IF(FV25-9.81*'Summary calculation'!$E$14*(FW24-FV24)>=0,FV25-9.81*'Summary calculation'!$E$14*(FW24-FV24),0) -> 0 | FX25: =IF(FW25-9.81*'Summary calculation'!$E$14*(FX24-FW24)>=0,FW25-9.81*'Summary calculation'!$E$14*(FX24-FW24),0) -> 0 | FY25: =IF(FX25-9.81*'Summary calculation'!$E$14*(FY24-FX24)>=0,FX25-9.81*'Summary calculation'!$E$14*(FY24-FX24),0) -> 0 | FZ25: =IF(FY25-9.81*'Summary calculation'!$E$14*(FZ24-FY24)>=0,FY25-9.81*'Summary calculation'!$E$14*(FZ24-FY24),0) -> 0 | GA25: =IF(FZ25-9.81*'Summary calculation'!$E$14*(GA24-FZ24)>=0,FZ25-9.81*'Summary calculation'!$E$14*(GA24-FZ24),0) -> 0 | GB25: =IF(GA25-9.81*'Summary calculation'!$E$14*(GB24-GA24)>=0,GA25-9.81*'Summary calculation'!$E$14*(GB24-GA24),0) -> 0 | GC25: =IF(GB25-9.81*'Summary calculation'!$E$14*(GC24-GB24)>=0,GB25-9.81*'Summary calculation'!$E$14*(GC24-GB24),0) -> 0 | GD25: =IF(GC25-9.81*'Summary calculation'!$E$14*(GD24-GC24)>=0,GC25-9.81*'Summary calculation'!$E$14*(GD24-GC24),0) -> 0 | GE25: =IF(GD25-9.81*'Summary calculation'!$E$14*(GE24-GD24)>=0,GD25-9.81*'Summary calculation'!$E$14*(GE24-GD24),0) -> 0 | GF25: =IF(GE25-9.81*'Summary calculation'!$E$14*(GF24-GE24)>=0,GE25-9.81*'Summary calculation'!$E$14*(GF24-GE24),0) -> 0 | GG25: =IF(GF25-9.81*'Summary calculation'!$E$14*(GG24-GF24)>=0,GF25-9.81*'Summary calculation'!$E$14*(GG24-GF24),0) -> 0 | GH25: =IF(GG25-9.81*'Summary calculation'!$E$14*(GH24-GG24)>=0,GG25-9.81*'Summary calculation'!$E$14*(GH24-GG24),0) -> 0 | GI25: =IF(GH25-9.81*'Summary calculation'!$E$14*(GI24-GH24)>=0,GH25-9.81*'Summary calculation'!$E$14*(GI24-GH24),0) -> 0 | GJ25: =IF(GI25-9.81*'Summary calculation'!$E$14*(GJ24-GI24)>=0,GI25-9.81*'Summary calculation'!$E$14*(GJ24-GI24),0) -> 0 | GK25: =IF(GJ25-9.81*'Summary calculation'!$E$14*(GK24-GJ24)>=0,GJ25-9.81*'Summary calculation'!$E$14*(GK24-GJ24),0) -> 0 | GL25: =IF(GK25-9.81*'Summary calculation'!$E$14*(GL24-GK24)>=0,GK25-9.81*'Summary calculation'!$E$14*(GL24-GK24),0) -> 0 | GM25: =IF(GL25-9.81*'Summary calculation'!$E$14*(GM24-GL24)>=0,GL25-9.81*'Summary calculation'!$E$14*(GM24-GL24),0) -> 0 | GN25: =IF(GM25-9.81*'Summary calculation'!$E$14*(GN24-GM24)>=0,GM25-9.81*'Summary calculation'!$E$14*(GN24-GM24),0) -> 0 | GO25: =IF(GN25-9.81*'Summary calculation'!$E$14*(GO24-GN24)>=0,GN25-9.81*'Summary calculation'!$E$14*(GO24-GN24),0) -> 0 | GP25: =IF(GO25-9.81*'Summary calculation'!$E$14*(GP24-GO24)>=0,GO25-9.81*'Summary calculation'!$E$14*(GP24-GO24),0) -> 0 | GQ25: =IF(GP25-9.81*'Summary calculation'!$E$14*(GQ24-GP24)>=0,GP25-9.81*'Summary calculation'!$E$14*(GQ24-GP24),0) -> 0 | GR25: =IF(GQ25-9.81*'Summary calculation'!$E$14*(GR24-GQ24)>=0,GQ25-9.81*'Summary calculation'!$E$14*(GR24-GQ24),0) -> 0 | GS25: =IF(GR25-9.81*'Summary calculation'!$E$14*(GS24-GR24)>=0,GR25-9.81*'Summary calculation'!$E$14*(GS24-GR24),0) -> 0 | GT25: =IF(GS25-9.81*'Summary calculation'!$E$14*(GT24-GS24)>=0,GS25-9.81*'Summary calculation'!$E$14*(GT24-GS24),0) -> 0 | GU25: =IF(GT25-9.81*'Summary calculation'!$E$14*(GU24-GT24)>=0,GT25-9.81*'Summary calculation'!$E$14*(GU24-GT24),0) -> 0 | GV25: =IF(GU25-9.81*'Summary calculation'!$E$14*(GV24-GU24)>=0,GU25-9.81*'Summary calculation'!$E$14*(GV24-GU24),0) -> 0 | GW25: =IF(GV25-9.81*'Summary calculation'!$E$14*(GW24-GV24)>=0,GV25-9.81*'Summary calculation'!$E$14*(GW24-GV24),0) -> 0 | GX25: =IF(GW25-9.81*'Summary calculation'!$E$14*(GX24-GW24)>=0,GW25-9.81*'Summary calculation'!$E$14*(GX24-GW24),0) -> 0 | GY25: =IF(GX25-9.81*'Summary calculation'!$E$14*(GY24-GX24)>=0,GX25-9.81*'Summary calculation'!$E$14*(GY24-GX24),0) -> 0 | GZ25: =IF(GY25-9.81*'Summary calculation'!$E$14*(GZ24-GY24)>=0,GY25-9.81*'Summary calculation'!$E$14*(GZ24-GY24),0) -> 0 | HA25: =IF(GZ25-9.81*'Summary calculation'!$E$14*(HA24-GZ24)>=0,GZ25-9.81*'Summary calculation'!$E$14*(HA24-GZ24),0) -> 0 | HB25: =IF(HA25-9.81*'Summary calculation'!$E$14*(HB24-HA24)>=0,HA25-9.81*'Summary calculation'!$E$14*(HB24-HA24),0) -> 0 | HC25: =IF(HB25-9.81*'Summary calculation'!$E$14*(HC24-HB24)>=0,HB25-9.81*'Summary calculation'!$E$14*(HC24-HB24),0) -> 0 | HD25: =IF(HC25-9.81*'Summary calculation'!$E$14*(HD24-HC24)>=0,HC25-9.81*'Summary calculation'!$E$14*(HD24-HC24),0) -> 0 | HE25: =IF(HD25-9.81*'Summary calculation'!$E$14*(HE24-HD24)>=0,HD25-9.81*'Summary calculation'!$E$14*(HE24-HD24),0) -> 0 | HF25: =IF(HE25-9.81*'Summary calculation'!$E$14*(HF24-HE24)>=0,HE25-9.81*'Summary calculation'!$E$14*(HF24-HE24),0) -> 0 | HG25: =IF(HF25-9.81*'Summary calculation'!$E$14*(HG24-HF24)>=0,HF25-9.81*'Summary calculation'!$E$14*(HG24-HF24),0) -> 0 | HH25: =IF(HG25-9.81*'Summary calculation'!$E$14*(HH24-HG24)>=0,HG25-9.81*'Summary calculation'!$E$14*(HH24-HG24),0) -> 0 | HI25: =IF(HH25-9.81*'Summary calculation'!$E$14*(HI24-HH24)>=0,HH25-9.81*'Summary calculation'!$E$14*(HI24-HH24),0) -> 0 | HJ25: =IF(HI25-9.81*'Summary calculation'!$E$14*(HJ24-HI24)>=0,HI25-9.81*'Summary calculation'!$E$14*(HJ24-HI24),0) -> 0 | HK25: =IF(HJ25-9.81*'Summary calculation'!$E$14*(HK24-HJ24)>=0,HJ25-9.81*'Summary calculation'!$E$14*(HK24-HJ24),0) -> 0 | HL25: =IF(HK25-9.81*'Summary calculation'!$E$14*(HL24-HK24)>=0,HK25-9.81*'Summary calculation'!$E$14*(HL24-HK24),0) -> 0 | HM25: =IF(HL25-9.81*'Summary calculation'!$E$14*(HM24-HL24)>=0,HL25-9.81*'Summary calculation'!$E$14*(HM24-HL24),0) -> 0 | HN25: =IF(HM25-9.81*'Summary calculation'!$E$14*(HN24-HM24)>=0,HM25-9.81*'Summary calculation'!$E$14*(HN24-HM24),0) -> 0 | HO25: =IF(HN25-9.81*'Summary calculation'!$E$14*(HO24-HN24)>=0,HN25-9.81*'Summary calculation'!$E$14*(HO24-HN24),0) -> 0 | HP25: =IF(HO25-9.81*'Summary calculation'!$E$14*(HP24-HO24)>=0,HO25-9.81*'Summary calculation'!$E$14*(HP24-HO24),0) -> 0 | HQ25: =IF(HP25-9.81*'Summary calculation'!$E$14*(HQ24-HP24)>=0,HP25-9.81*'Summary calculation'!$E$14*(HQ24-HP24),0) -> 0 | HR25: =IF(HQ25-9.81*'Summary calculation'!$E$14*(HR24-HQ24)>=0,HQ25-9.81*'Summary calculation'!$E$14*(HR24-HQ24),0) -> 0 | HS25: =IF(HR25-9.81*'Summary calculation'!$E$14*(HS24-HR24)>=0,HR25-9.81*'Summary calculation'!$E$14*(HS24-HR24),0) -> 0 | HT25: =IF(HS25-9.81*'Summary calculation'!$E$14*(HT24-HS24)>=0,HS25-9.81*'Summary calculation'!$E$14*(HT24-HS24),0) -> 0 | HU25: =IF(HT25-9.81*'Summary calculation'!$E$14*(HU24-HT24)>=0,HT25-9.81*'Summary calculation'!$E$14*(HU24-HT24),0) -> 0 | HV25: =IF(HU25-9.81*'Summary calculation'!$E$14*(HV24-HU24)>=0,HU25-9.81*'Summary calculation'!$E$14*(HV24-HU24),0) -> 0 | HW25: =IF(HV25-9.81*'Summary calculation'!$E$14*(HW24-HV24)>=0,HV25-9.81*'Summary calculation'!$E$14*(HW24-HV24),0) -> 0 | HX25: =IF(HW25-9.81*'Summary calculation'!$E$14*(HX24-HW24)>=0,HW25-9.81*'Summary calculation'!$E$14*(HX24-HW24),0) -> 0 | HY25: =IF(HX25-9.81*'Summary calculation'!$E$14*(HY24-HX24)>=0,HX25-9.81*'Summary calculation'!$E$14*(HY24-HX24),0) -> 0 | HZ25: =IF(HY25-9.81*'Summary calculation'!$E$14*(HZ24-HY24)>=0,HY25-9.81*'Summary calculation'!$E$14*(HZ24-HY24),0) -> 0 | IA25: =IF(HZ25-9.81*'Summary calculation'!$E$14*(IA24-HZ24)>=0,HZ25-9.81*'Summary calculation'!$E$14*(IA24-HZ24),0) -> 0 | IB25: =IF(IA25-9.81*'Summary calculation'!$E$14*(IB24-IA24)>=0,IA25-9.81*'Summary calculation'!$E$14*(IB24-IA24),0) -> 0 | IC25: =IF(IB25-9.81*'Summary calculation'!$E$14*(IC24-IB24)>=0,IB25-9.81*'Summary calculation'!$E$14*(IC24-IB24),0) -> 0 | ID25: =IF(IC25-9.81*'Summary calculation'!$E$14*(ID24-IC24)>=0,IC25-9.81*'Summary calculation'!$E$14*(ID24-IC24),0) -> 0 | IE25: =IF(ID25-9.81*'Summary calculation'!$E$14*(IE24-ID24)>=0,ID25-9.81*'Summary calculation'!$E$14*(IE24-ID24),0) -> 0 | IF25: =IF(IE25-9.81*'Summary calculation'!$E$14*(IF24-IE24)>=0,IE25-9.81*'Summary calculation'!$E$14*(IF24-IE24),0) -> 0 | IG25: =IF(IF25-9.81*'Summary calculation'!$E$14*(IG24-IF24)>=0,IF25-9.81*'Summary calculation'!$E$14*(IG24-IF24),0) -> 0 | IH25: =IF(IG25-9.81*'Summary calculation'!$E$14*(IH24-IG24)>=0,IG25-9.81*'Summary calculation'!$E$14*(IH24-IG24),0) -> 0 | II25: =IF(IH25-9.81*'Summary calculation'!$E$14*(II24-IH24)>=0,IH25-9.81*'Summary calculation'!$E$14*(II24-IH24),0) -> 0 | IJ25: =IF(II25-9.81*'Summary calculation'!$E$14*(IJ24-II24)>=0,II25-9.81*'Summary calculation'!$E$14*(IJ24-II24),0) -> 0 | IK25: =IF(IJ25-9.81*'Summary calculation'!$E$14*(IK24-IJ24)>=0,IJ25-9.81*'Summary calculation'!$E$14*(IK24-IJ24),0) -> 0 | IL25: =IF(IK25-9.81*'Summary calculation'!$E$14*(IL24-IK24)>=0,IK25-9.81*'Summary calculation'!$E$14*(IL24-IK24),0) -> 0 | IM25: =IF(IL25-9.81*'Summary calculation'!$E$14*(IM24-IL24)>=0,IL25-9.81*'Summary calculation'!$E$14*(IM24-IL24),0) -> 0 | IN25: =IF(IM25-9.81*'Summary calculation'!$E$14*(IN24-IM24)>=0,IM25-9.81*'Summary calculation'!$E$14*(IN24-IM24),0) -> 0 | IO25: =IF(IN25-9.81*'Summary calculation'!$E$14*(IO24-IN24)>=0,IN25-9.81*'Summary calculation'!$E$14*(IO24-IN24),0) -> 0 | IP25: =IF(IO25-9.81*'Summary calculation'!$E$14*(IP24-IO24)>=0,IO25-9.81*'Summary calculation'!$E$14*(IP24-IO24),0) -> 0 | IQ25: =IF(IP25-9.81*'Summary calculation'!$E$14*(IQ24-IP24)>=0,IP25-9.81*'Summary calculation'!$E$14*(IQ24-IP24),0) -> 0 | IR25: =IF(IQ25-9.81*'Summary calculation'!$E$14*(IR24-IQ24)>=0,IQ25-9.81*'Summary calculation'!$E$14*(IR24-IQ24),0) -> 0 | IS25: =IF(IR25-9.81*'Summary calculation'!$E$14*(IS24-IR24)>=0,IR25-9.81*'Summary calculation'!$E$14*(IS24-IR24),0) -> 0 | IT25: =IF(IS25-9.81*'Summary calculation'!$E$14*(IT24-IS24)>=0,IS25-9.81*'Summary calculation'!$E$14*(IT24-IS24),0) -> 0 | IU25: =IF(IT25-9.81*'Summary calculation'!$E$14*(IU24-IT24)>=0,IT25-9.81*'Summary calculation'!$E$14*(IU24-IT24),0) -> 0 | IV25: =IF(IU25-9.81*'Summary calculation'!$E$14*(IV24-IU24)>=0,IU25-9.81*'Summary calculation'!$E$14*(IV24-IU24),0) -> 0 | IW25: =IF(IV25-9.81*'Summary calculation'!$E$14*(IW24-IV24)>=0,IV25-9.81*'Summary calculation'!$E$14*(IW24-IV24),0) -> 0 | IX25: =IF(IW25-9.81*'Summary calculation'!$E$14*(IX24-IW24)>=0,IW25-9.81*'Summary calculation'!$E$14*(IX24-IW24),0) -> 0 | IY25: =IF(IX25-9.81*'Summary calculation'!$E$14*(IY24-IX24)>=0,IX25-9.81*'Summary calculation'!$E$14*(IY24-IX24),0) -> 0 | IZ25: =IF(IY25-9.81*'Summary calculation'!$E$14*(IZ24-IY24)>=0,IY25-9.81*'Summary calculation'!$E$14*(IZ24-IY24),0) -> 0 | JA25: =IF(IZ25-9.81*'Summary calculation'!$E$14*(JA24-IZ24)>=0,IZ25-9.81*'Summary calculation'!$E$14*(JA24-IZ24),0) -> 0 | JB25: =IF(JA25-9.81*'Summary calculation'!$E$14*(JB24-JA24)>=0,JA25-9.81*'Summary calculation'!$E$14*(JB24-JA24),0) -> 0 | JC25: =IF(JB25-9.81*'Summary calculation'!$E$14*(JC24-JB24)>=0,JB25-9.81*'Summary calculation'!$E$14*(JC24-JB24),0) -> 0 | JD25: =IF(JC25-9.81*'Summary calculation'!$E$14*(JD24-JC24)>=0,JC25-9.81*'Summary calculation'!$E$14*(JD24-JC24),0) -> 0 | JE25: =IF(JD25-9.81*'Summary calculation'!$E$14*(JE24-JD24)>=0,JD25-9.81*'Summary calculation'!$E$14*(JE24-JD24),0) -> 0 | JF25: =IF(JE25-9.81*'Summary calculation'!$E$14*(JF24-JE24)>=0,JE25-9.81*'Summary calculation'!$E$14*(JF24-JE24),0) -> 0 | JG25: =IF(JF25-9.81*'Summary calculation'!$E$14*(JG24-JF24)>=0,JF25-9.81*'Summary calculation'!$E$14*(JG24-JF24),0) -> 0 | JH25: =IF(JG25-9.81*'Summary calculation'!$E$14*(JH24-JG24)>=0,JG25-9.81*'Summary calculation'!$E$14*(JH24-JG24),0) -> 0 | JI25: =IF(JH25-9.81*'Summary calculation'!$E$14*(JI24-JH24)>=0,JH25-9.81*'Summary calculation'!$E$14*(JI24-JH24),0) -> 0 | JJ25: =IF(JI25-9.81*'Summary calculation'!$E$14*(JJ24-JI24)>=0,JI25-9.81*'Summary calculation'!$E$14*(JJ24-JI24),0) -> 0 | JK25: =IF(JJ25-9.81*'Summary calculation'!$E$14*(JK24-JJ24)>=0,JJ25-9.81*'Summary calculation'!$E$14*(JK24-JJ24),0) -> 0 | JL25: =IF(JK25-9.81*'Summary calculation'!$E$14*(JL24-JK24)>=0,JK25-9.81*'Summary calculation'!$E$14*(JL24-JK24),0) -> 0 | JM25: =IF(JL25-9.81*'Summary calculation'!$E$14*(JM24-JL24)>=0,JL25-9.81*'Summary calculation'!$E$14*(JM24-JL24),0) -> 0 | JN25: =IF(JM25-9.81*'Summary calculation'!$E$14*(JN24-JM24)>=0,JM25-9.81*'Summary calculation'!$E$14*(JN24-JM24),0) -> 0 | JO25: =IF(JN25-9.81*'Summary calculation'!$E$14*(JO24-JN24)>=0,JN25-9.81*'Summary calculation'!$E$14*(JO24-JN24),0) -> 0 | JP25: =IF(JO25-9.81*'Summary calculation'!$E$14*(JP24-JO24)>=0,JO25-9.81*'Summary calculation'!$E$14*(JP24-JO24),0) -> 0 | JQ25: =IF(JP25-9.81*'Summary calculation'!$E$14*(JQ24-JP24)>=0,JP25-9.81*'Summary calculation'!$E$14*(JQ24-JP24),0) -> 0 | JR25: =IF(JQ25-9.81*'Summary calculation'!$E$14*(JR24-JQ24)>=0,JQ25-9.81*'Summary calculation'!$E$14*(JR24-JQ24),0) -> 0 | JS25: =IF(JR25-9.81*'Summary calculation'!$E$14*(JS24-JR24)>=0,JR25-9.81*'Summary calculation'!$E$14*(JS24-JR24),0) -> 0 | JT25: =IF(JS25-9.81*'Summary calculation'!$E$14*(JT24-JS24)>=0,JS25-9.81*'Summary calculation'!$E$14*(JT24-JS24),0) -> 0 | JU25: =IF(JT25-9.81*'Summary calculation'!$E$14*(JU24-JT24)>=0,JT25-9.81*'Summary calculation'!$E$14*(JU24-JT24),0) -> 0 | JV25: =IF(JU25-9.81*'Summary calculation'!$E$14*(JV24-JU24)>=0,JU25-9.81*'Summary calculation'!$E$14*(JV24-JU24),0) -> 0 | JW25: =IF(JV25-9.81*'Summary calculation'!$E$14*(JW24-JV24)>=0,JV25-9.81*'Summary calculation'!$E$14*(JW24-JV24),0) -> 0 | JX25: =IF(JW25-9.81*'Summary calculation'!$E$14*(JX24-JW24)>=0,JW25-9.81*'Summary calculation'!$E$14*(JX24-JW24),0) -> 0 | JY25: =IF(JX25-9.81*'Summary calculation'!$E$14*(JY24-JX24)>=0,JX25-9.81*'Summary calculation'!$E$14*(JY24-JX24),0) -> 0 | JZ25: =IF(JY25-9.81*'Summary calculation'!$E$14*(JZ24-JY24)>=0,JY25-9.81*'Summary calculation'!$E$14*(JZ24-JY24),0) -> 0 | KA25: =IF(JZ25-9.81*'Summary calculation'!$E$14*(KA24-JZ24)>=0,JZ25-9.81*'Summary calculation'!$E$14*(KA24-JZ24),0) -> 0 | KB25: =IF(KA25-9.81*'Summary calculation'!$E$14*(KB24-KA24)>=0,KA25-9.81*'Summary calculation'!$E$14*(KB24-KA24),0) -> 0 | KC25: =IF(KB25-9.81*'Summary calculation'!$E$14*(KC24-KB24)>=0,KB25-9.81*'Summary calculation'!$E$14*(KC24-KB24),0) -> 0 | KD25: =IF(KC25-9.81*'Summary calculation'!$E$14*(KD24-KC24)>=0,KC25-9.81*'Summary calculation'!$E$14*(KD24-KC24),0) -> 0 | KE25: =IF(KD25-9.81*'Summary calculation'!$E$14*(KE24-KD24)>=0,KD25-9.81*'Summary calculation'!$E$14*(KE24-KD24),0) -> 0 | KF25: =IF(KE25-9.81*'Summary calculation'!$E$14*(KF24-KE24)>=0,KE25-9.81*'Summary calculation'!$E$14*(KF24-KE24),0) -> 0 | KG25: =IF(KF25-9.81*'Summary calculation'!$E$14*(KG24-KF24)>=0,KF25-9.81*'Summary calculation'!$E$14*(KG24-KF24),0) -> 0 | KH25: =IF(KG25-9.81*'Summary calculation'!$E$14*(KH24-KG24)>=0,KG25-9.81*'Summary calculation'!$E$14*(KH24-KG24),0) -> 0 | KI25: =IF(KH25-9.81*'Summary calculation'!$E$14*(KI24-KH24)>=0,KH25-9.81*'Summary calculation'!$E$14*(KI24-KH24),0) -> 0 | KJ25: =IF(KI25-9.81*'Summary calculation'!$E$14*(KJ24-KI24)>=0,KI25-9.81*'Summary calculation'!$E$14*(KJ24-KI24),0) -> 0 | KK25: =IF(KJ25-9.81*'Summary calculation'!$E$14*(KK24-KJ24)>=0,KJ25-9.81*'Summary calculation'!$E$14*(KK24-KJ24),0) -> 0 | KL25: =IF(KK25-9.81*'Summary calculation'!$E$14*(KL24-KK24)>=0,KK25-9.81*'Summary calculation'!$E$14*(KL24-KK24),0) -> 0 | KM25: =IF(KL25-9.81*'Summary calculation'!$E$14*(KM24-KL24)>=0,KL25-9.81*'Summary calculation'!$E$14*(KM24-KL24),0) -> 0 | KN25: =IF(KM25-9.81*'Summary calculation'!$E$14*(KN24-KM24)>=0,KM25-9.81*'Summary calculation'!$E$14*(KN24-KM24),0) -> 0 | KO25: =IF(KN25-9.81*'Summary calculation'!$E$14*(KO24-KN24)>=0,KN25-9.81*'Summary calculation'!$E$14*(KO24-KN24),0) -> 0 | KP25: =IF(KO25-9.81*'Summary calculation'!$E$14*(KP24-KO24)>=0,KO25-9.81*'Summary calculation'!$E$14*(KP24-KO24),0) -> 0 | KQ25: =IF(KP25-9.81*'Summary calculation'!$E$14*(KQ24-KP24)>=0,KP25-9.81*'Summary calculation'!$E$14*(KQ24-KP24),0) -> 0 | KR25: =IF(KQ25-9.81*'Summary calculation'!$E$14*(KR24-KQ24)>=0,KQ25-9.81*'Summary calculation'!$E$14*(KR24-KQ24),0) -> 0 | KS25: =IF(KR25-9.81*'Summary calculation'!$E$14*(KS24-KR24)>=0,KR25-9.81*'Summary calculation'!$E$14*(KS24-KR24),0) -> 0 | KT25: =IF(KS25-9.81*'Summary calculation'!$E$14*(KT24-KS24)>=0,KS25-9.81*'Summary calculation'!$E$14*(KT24-KS24),0) -> 0 | KU25: =IF(KT25-9.81*'Summary calculation'!$E$14*(KU24-KT24)>=0,KT25-9.81*'Summary calculation'!$E$14*(KU24-KT24),0) -> 0 | KV25: =IF(KU25-9.81*'Summary calculation'!$E$14*(KV24-KU24)>=0,KU25-9.81*'Summary calculation'!$E$14*(KV24-KU24),0) -> 0 | KW25: =IF(KV25-9.81*'Summary calculation'!$E$14*(KW24-KV24)>=0,KV25-9.81*'Summary calculation'!$E$14*(KW24-KV24),0) -> 0 | KX25: =IF(KW25-9.81*'Summary calculation'!$E$14*(KX24-KW24)>=0,KW25-9.81*'Summary calculation'!$E$14*(KX24-KW24),0) -> 0 | KY25: =IF(KX25-9.81*'Summary calculation'!$E$14*(KY24-KX24)>=0,KX25-9.81*'Summary calculation'!$E$14*(KY24-KX24),0) -> 0 | KZ25: =IF(KY25-9.81*'Summary calculation'!$E$14*(KZ24-KY24)>=0,KY25-9.81*'Summary calculation'!$E$14*(KZ24-KY24),0) -> 0 | LA25: =IF(KZ25-9.81*'Summary calculation'!$E$14*(LA24-KZ24)>=0,KZ25-9.81*'Summary calculation'!$E$14*(LA24-KZ24),0) -> 0 | LB25: =IF(LA25-9.81*'Summary calculation'!$E$14*(LB24-LA24)>=0,LA25-9.81*'Summary calculation'!$E$14*(LB24-LA24),0) -> 0 | LC25: =IF(LB25-9.81*'Summary calculation'!$E$14*(LC24-LB24)>=0,LB25-9.81*'Summary calculation'!$E$14*(LC24-LB24),0) -> 0 | LD25: =IF(LC25-9.81*'Summary calculation'!$E$14*(LD24-LC24)>=0,LC25-9.81*'Summary calculation'!$E$14*(LD24-LC24),0) -> 0 | LE25: =IF(LD25-9.81*'Summary calculation'!$E$14*(LE24-LD24)>=0,LD25-9.81*'Summary calculation'!$E$14*(LE24-LD24),0) -> 0 | LF25: =IF(LE25-9.81*'Summary calculation'!$E$14*(LF24-LE24)>=0,LE25-9.81*'Summary calculation'!$E$14*(LF24-LE24),0) -> 0 | LG25: =IF(LF25-9.81*'Summary calculation'!$E$14*(LG24-LF24)>=0,LF25-9.81*'Summary calculation'!$E$14*(LG24-LF24),0) -> 0 | LH25: =IF(LG25-9.81*'Summary calculation'!$E$14*(LH24-LG24)>=0,LG25-9.81*'Summary calculation'!$E$14*(LH24-LG24),0) -> 0 | LI25: =IF(LH25-9.81*'Summary calculation'!$E$14*(LI24-LH24)>=0,LH25-9.81*'Summary calculation'!$E$14*(LI24-LH24),0) -> 0 | LJ25: =IF(LI25-9.81*'Summary calculation'!$E$14*(LJ24-LI24)>=0,LI25-9.81*'Summary calculation'!$E$14*(LJ24-LI24),0) -> 0 | LK25: =IF(LJ25-9.81*'Summary calculation'!$E$14*(LK24-LJ24)>=0,LJ25-9.81*'Summary calculation'!$E$14*(LK24-LJ24),0) -> 0 | LL25: =IF(LK25-9.81*'Summary calculation'!$E$14*(LL24-LK24)>=0,LK25-9.81*'Summary calculation'!$E$14*(LL24-LK24),0) -> 0 | LM25: =IF(LL25-9.81*'Summary calculation'!$E$14*(LM24-LL24)>=0,LL25-9.81*'Summary calculation'!$E$14*(LM24-LL24),0) -> 0 | LN25: =IF(LM25-9.81*'Summary calculation'!$E$14*(LN24-LM24)>=0,LM25-9.81*'Summary calculation'!$E$14*(LN24-LM24),0) -> 0 | LO25: =IF(LN25-9.81*'Summary calculation'!$E$14*(LO24-LN24)>=0,LN25-9.81*'Summary calculation'!$E$14*(LO24-LN24),0) -> 0 | LP25: =IF(LO25-9.81*'Summary calculation'!$E$14*(LP24-LO24)>=0,LO25-9.81*'Summary calculation'!$E$14*(LP24-LO24),0) -> 0 | LQ25: =IF(LP25-9.81*'Summary calculation'!$E$14*(LQ24-LP24)>=0,LP25-9.81*'Summary calculation'!$E$14*(LQ24-LP24),0) -> 0 | LR25: =IF(LQ25-9.81*'Summary calculation'!$E$14*(LR24-LQ24)>=0,LQ25-9.81*'Summary calculation'!$E$14*(LR24-LQ24),0) -> 0 | LS25: =IF(LR25-9.81*'Summary calculation'!$E$14*(LS24-LR24)>=0,LR25-9.81*'Summary calculation'!$E$14*(LS24-LR24),0) -> 0 | LT25: =IF(LS25-9.81*'Summary calculation'!$E$14*(LT24-LS24)>=0,LS25-9.81*'Summary calculation'!$E$14*(LT24-LS24),0) -> 0 | LU25: =IF(LT25-9.81*'Summary calculation'!$E$14*(LU24-LT24)>=0,LT25-9.81*'Summary calculation'!$E$14*(LU24-LT24),0) -> 0 | LV25: =IF(LU25-9.81*'Summary calculation'!$E$14*(LV24-LU24)>=0,LU25-9.81*'Summary calculation'!$E$14*(LV24-LU24),0) -> 0 | LW25: =IF(LV25-9.81*'Summary calculation'!$E$14*(LW24-LV24)>=0,LV25-9.81*'Summary calculation'!$E$14*(LW24-LV24),0) -> 0 | LX25: =IF(LW25-9.81*'Summary calculation'!$E$14*(LX24-LW24)>=0,LW25-9.81*'Summary calculation'!$E$14*(LX24-LW24),0) -> 0 | LY25: =IF(LX25-9.81*'Summary calculation'!$E$14*(LY24-LX24)>=0,LX25-9.81*'Summary calculation'!$E$14*(LY24-LX24),0) -> 0 | LZ25: =IF(LY25-9.81*'Summary calculation'!$E$14*(LZ24-LY24)>=0,LY25-9.81*'Summary calculation'!$E$14*(LZ24-LY24),0) -> 0 | MA25: =IF(LZ25-9.81*'Summary calculation'!$E$14*(MA24-LZ24)>=0,LZ25-9.81*'Summary calculation'!$E$14*(MA24-LZ24),0) -> 0 | MB25: =IF(MA25-9.81*'Summary calculation'!$E$14*(MB24-MA24)>=0,MA25-9.81*'Summary calculation'!$E$14*(MB24-MA24),0) -> 0 | MC25: =IF(MB25-9.81*'Summary calculation'!$E$14*(MC24-MB24)>=0,MB25-9.81*'Summary calculation'!$E$14*(MC24-MB24),0) -> 0 | MD25: =IF(MC25-9.81*'Summary calculation'!$E$14*(MD24-MC24)>=0,MC25-9.81*'Summary calculation'!$E$14*(MD24-MC24),0) -> 0 | ME25: =IF(MD25-9.81*'Summary calculation'!$E$14*(ME24-MD24)>=0,MD25-9.81*'Summary calculation'!$E$14*(ME24-MD24),0) -> 0 | MF25: =IF(ME25-9.81*'Summary calculation'!$E$14*(MF24-ME24)>=0,ME25-9.81*'Summary calculation'!$E$14*(MF24-ME24),0) -> 0 | MG25: =IF(MF25-9.81*'Summary calculation'!$E$14*(MG24-MF24)>=0,MF25-9.81*'Summary calculation'!$E$14*(MG24-MF24),0) -> 0 | MH25: =IF(MG25-9.81*'Summary calculation'!$E$14*(MH24-MG24)>=0,MG25-9.81*'Summary calculation'!$E$14*(MH24-MG24),0) -> 0 | MI25: =IF(MH25-9.81*'Summary calculation'!$E$14*(MI24-MH24)>=0,MH25-9.81*'Summary calculation'!$E$14*(MI24-MH24),0) -> 0 | MJ25: =IF(MI25-9.81*'Summary calculation'!$E$14*(MJ24-MI24)>=0,MI25-9.81*'Summary calculation'!$E$14*(MJ24-MI24),0) -> 0 | MK25: =IF(MJ25-9.81*'Summary calculation'!$E$14*(MK24-MJ24)>=0,MJ25-9.81*'Summary calculation'!$E$14*(MK24-MJ24),0) -> 0 | ML25: =IF(MK25-9.81*'Summary calculation'!$E$14*(ML24-MK24)>=0,MK25-9.81*'Summary calculation'!$E$14*(ML24-MK24),0) -> 0 | MM25: =IF(ML25-9.81*'Summary calculation'!$E$14*(MM24-ML24)>=0,ML25-9.81*'Summary calculation'!$E$14*(MM24-ML24),0) -> 0 | MN25: =IF(MM25-9.81*'Summary calculation'!$E$14*(MN24-MM24)>=0,MM25-9.81*'Summary calculation'!$E$14*(MN24-MM24),0) -> 0 | MO25: =IF(MN25-9.81*'Summary calculation'!$E$14*(MO24-MN24)>=0,MN25-9.81*'Summary calculation'!$E$14*(MO24-MN24),0) -> 0 | MP25: =IF(MO25-9.81*'Summary calculation'!$E$14*(MP24-MO24)>=0,MO25-9.81*'Summary calculation'!$E$14*(MP24-MO24),0) -> 0 | MQ25: =IF(MP25-9.81*'Summary calculation'!$E$14*(MQ24-MP24)>=0,MP25-9.81*'Summary calculation'!$E$14*(MQ24-MP24),0) -> 0 | MR25: =IF(MQ25-9.81*'Summary calculation'!$E$14*(MR24-MQ24)>=0,MQ25-9.81*'Summary calculation'!$E$14*(MR24-MQ24),0) -> 0 | MS25: =IF(MR25-9.81*'Summary calculation'!$E$14*(MS24-MR24)>=0,MR25-9.81*'Summary calculation'!$E$14*(MS24-MR24),0) -> 0 | MT25: =IF(MS25-9.81*'Summary calculation'!$E$14*(MT24-MS24)>=0,MS25-9.81*'Summary calculation'!$E$14*(MT24-MS24),0) -> 0 | MU25: =IF(MT25-9.81*'Summary calculation'!$E$14*(MU24-MT24)>=0,MT25-9.81*'Summary calculation'!$E$14*(MU24-MT24),0) -> 0 | MV25: =IF(MU25-9.81*'Summary calculation'!$E$14*(MV24-MU24)>=0,MU25-9.81*'Summary calculation'!$E$14*(MV24-MU24),0) -> 0 | MW25: =IF(MV25-9.81*'Summary calculation'!$E$14*(MW24-MV24)>=0,MV25-9.81*'Summary calculation'!$E$14*(MW24-MV24),0) -> 0 | MX25: =IF(MW25-9.81*'Summary calculation'!$E$14*(MX24-MW24)>=0,MW25-9.81*'Summary calculation'!$E$14*(MX24-MW24),0) -> 0 | MY25: =IF(MX25-9.81*'Summary calculation'!$E$14*(MY24-MX24)>=0,MX25-9.81*'Summary calculation'!$E$14*(MY24-MX24),0) -> 0 | MZ25: =IF(MY25-9.81*'Summary calculation'!$E$14*(MZ24-MY24)>=0,MY25-9.81*'Summary calculation'!$E$14*(MZ24-MY24),0) -> 0 | NA25: =IF(MZ25-9.81*'Summary calculation'!$E$14*(NA24-MZ24)>=0,MZ25-9.81*'Summary calculation'!$E$14*(NA24-MZ24),0) -> 0 | NB25: =IF(NA25-9.81*'Summary calculation'!$E$14*(NB24-NA24)>=0,NA25-9.81*'Summary calculation'!$E$14*(NB24-NA24),0) -> 0 | NC25: =IF(NB25-9.81*'Summary calculation'!$E$14*(NC24-NB24)>=0,NB25-9.81*'Summary calculation'!$E$14*(NC24-NB24),0) -> 0 | ND25: =IF(NC25-9.81*'Summary calculation'!$E$14*(ND24-NC24)>=0,NC25-9.81*'Summary calculation'!$E$14*(ND24-NC24),0) -> 0 | NE25: =IF(ND25-9.81*'Summary calculation'!$E$14*(NE24-ND24)>=0,ND25-9.81*'Summary calculation'!$E$14*(NE24-ND24),0) -> 0 | NF25: =IF(NE25-9.81*'Summary calculation'!$E$14*(NF24-NE24)>=0,NE25-9.81*'Summary calculation'!$E$14*(NF24-NE24),0) -> 0 | NG25: =IF(NF25-9.81*'Summary calculation'!$E$14*(NG24-NF24)>=0,NF25-9.81*'Summary calculation'!$E$14*(NG24-NF24),0) -> 0 | NH25: =IF(NG25-9.81*'Summary calculation'!$E$14*(NH24-NG24)>=0,NG25-9.81*'Summary calculation'!$E$14*(NH24-NG24),0) -> 0 | NI25: =IF(NH25-9.81*'Summary calculation'!$E$14*(NI24-NH24)>=0,NH25-9.81*'Summary calculation'!$E$14*(NI24-NH24),0) -> 0 | NJ25: =IF(NI25-9.81*'Summary calculation'!$E$14*(NJ24-NI24)>=0,NI25-9.81*'Summary calculation'!$E$14*(NJ24-NI24),0) -> 0 | NK25: =IF(NJ25-9.81*'Summary calculation'!$E$14*(NK24-NJ24)>=0,NJ25-9.81*'Summary calculation'!$E$14*(NK24-NJ24),0) -> 0 | NL25: =IF(NK25-9.81*'Summary calculation'!$E$14*(NL24-NK24)>=0,NK25-9.81*'Summary calculation'!$E$14*(NL24-NK24),0) -> 0 | NM25: =IF(NL25-9.81*'Summary calculation'!$E$14*(NM24-NL24)>=0,NL25-9.81*'Summary calculation'!$E$14*(NM24-NL24),0) -> 0 | NN25: =IF(NM25-9.81*'Summary calculation'!$E$14*(NN24-NM24)>=0,NM25-9.81*'Summary calculation'!$E$14*(NN24-NM24),0) -> 0 | NO25: =IF(NN25-9.81*'Summary calculation'!$E$14*(NO24-NN24)>=0,NN25-9.81*'Summary calculation'!$E$14*(NO24-NN24),0) -> 0 | NP25: =IF(NO25-9.81*'Summary calculation'!$E$14*(NP24-NO24)>=0,NO25-9.81*'Summary calculation'!$E$14*(NP24-NO24),0) -> 0 | NQ25: =IF(NP25-9.81*'Summary calculation'!$E$14*(NQ24-NP24)>=0,NP25-9.81*'Summary calculation'!$E$14*(NQ24-NP24),0) -> 0 | NR25: =IF(NQ25-9.81*'Summary calculation'!$E$14*(NR24-NQ24)>=0,NQ25-9.81*'Summary calculation'!$E$14*(NR24-NQ24),0) -> 0 | NS25: =IF(NR25-9.81*'Summary calculation'!$E$14*(NS24-NR24)>=0,NR25-9.81*'Summary calculation'!$E$14*(NS24-NR24),0) -> 0 | NT25: =IF(NS25-9.81*'Summary calculation'!$E$14*(NT24-NS24)>=0,NS25-9.81*'Summary calculation'!$E$14*(NT24-NS24),0) -> 0 | NU25: =IF(NT25-9.81*'Summary calculation'!$E$14*(NU24-NT24)>=0,NT25-9.81*'Summary calculation'!$E$14*(NU24-NT24),0) -> 0 | NV25: =IF(NU25-9.81*'Summary calculation'!$E$14*(NV24-NU24)>=0,NU25-9.81*'Summary calculation'!$E$14*(NV24-NU24),0) -> 0 | NW25: =IF(NV25-9.81*'Summary calculation'!$E$14*(NW24-NV24)>=0,NV25-9.81*'Summary calculation'!$E$14*(NW24-NV24),0) -> 0 | NX25: =IF(NW25-9.81*'Summary calculation'!$E$14*(NX24-NW24)>=0,NW25-9.81*'Summary calculation'!$E$14*(NX24-NW24),0) -> 0 | NY25: =IF(NX25-9.81*'Summary calculation'!$E$14*(NY24-NX24)>=0,NX25-9.81*'Summary calculation'!$E$14*(NY24-NX24),0) -> 0 | NZ25: =IF(NY25-9.81*'Summary calculation'!$E$14*(NZ24-NY24)>=0,NY25-9.81*'Summary calculation'!$E$14*(NZ24-NY24),0) -> 0 | OA25: =IF(NZ25-9.81*'Summary calculation'!$E$14*(OA24-NZ24)>=0,NZ25-9.81*'Summary calculation'!$E$14*(OA24-NZ24),0) -> 0 | OB25: =IF(OA25-9.81*'Summary calculation'!$E$14*(OB24-OA24)>=0,OA25-9.81*'Summary calculation'!$E$14*(OB24-OA24),0) -> 0 | OC25: =IF(OB25-9.81*'Summary calculation'!$E$14*(OC24-OB24)>=0,OB25-9.81*'Summary calculation'!$E$14*(OC24-OB24),0) -> 0 | OD25: =IF(OC25-9.81*'Summary calculation'!$E$14*(OD24-OC24)>=0,OC25-9.81*'Summary calculation'!$E$14*(OD24-OC24),0) -> 0 | OE25: =IF(OD25-9.81*'Summary calculation'!$E$14*(OE24-OD24)>=0,OD25-9.81*'Summary calculation'!$E$14*(OE24-OD24),0) -> 0 | OF25: =IF(OE25-9.81*'Summary calculation'!$E$14*(OF24-OE24)>=0,OE25-9.81*'Summary calculation'!$E$14*(OF24-OE24),0) -> 0 | OG25: =IF(OF25-9.81*'Summary calculation'!$E$14*(OG24-OF24)>=0,OF25-9.81*'Summary calculation'!$E$14*(OG24-OF24),0) -> 0 | OH25: =IF(OG25-9.81*'Summary calculation'!$E$14*(OH24-OG24)>=0,OG25-9.81*'Summary calculation'!$E$14*(OH24-OG24),0) -> 0 | OI25: =IF(OH25-9.81*'Summary calculation'!$E$14*(OI24-OH24)>=0,OH25-9.81*'Summary calculation'!$E$14*(OI24-OH24),0) -> 0 | OJ25: =IF(OI25-9.81*'Summary calculation'!$E$14*(OJ24-OI24)>=0,OI25-9.81*'Summary calculation'!$E$14*(OJ24-OI24),0) -> 0 | OK25: =IF(OJ25-9.81*'Summary calculation'!$E$14*(OK24-OJ24)>=0,OJ25-9.81*'Summary calculation'!$E$14*(OK24-OJ24),0) -> 0 | OL25: =IF(OK25-9.81*'Summary calculation'!$E$14*(OL24-OK24)>=0,OK25-9.81*'Summary calculation'!$E$14*(OL24-OK24),0) -> 0 | OM25: =IF(OL25-9.81*'Summary calculation'!$E$14*(OM24-OL24)>=0,OL25-9.81*'Summary calculation'!$E$14*(OM24-OL24),0) -> 0 | ON25: =IF(OM25-9.81*'Summary calculation'!$E$14*(ON24-OM24)>=0,OM25-9.81*'Summary calculation'!$E$14*(ON24-OM24),0) -> 0 | OO25: =IF(ON25-9.81*'Summary calculation'!$E$14*(OO24-ON24)>=0,ON25-9.81*'Summary calculation'!$E$14*(OO24-ON24),0) -> 0 | OP25: =IF(OO25-9.81*'Summary calculation'!$E$14*(OP24-OO24)>=0,OO25-9.81*'Summary calculation'!$E$14*(OP24-OO24),0) -> 0 | OQ25: =IF(OP25-9.81*'Summary calculation'!$E$14*(OQ24-OP24)>=0,OP25-9.81*'Summary calculation'!$E$14*(OQ24-OP24),0) -> 0 | OR25: =IF(OQ25-9.81*'Summary calculation'!$E$14*(OR24-OQ24)>=0,OQ25-9.81*'Summary calculation'!$E$14*(OR24-OQ24),0) -> 0 | OS25: =IF(OR25-9.81*'Summary calculation'!$E$14*(OS24-OR24)>=0,OR25-9.81*'Summary calculation'!$E$14*(OS24-OR24),0) -> 0 | OT25: =IF(OS25-9.81*'Summary calculation'!$E$14*(OT24-OS24)>=0,OS25-9.81*'Summary calculation'!$E$14*(OT24-OS24),0) -> 0 | OU25: =IF(OT25-9.81*'Summary calculation'!$E$14*(OU24-OT24)>=0,OT25-9.81*'Summary calculation'!$E$14*(OU24-OT24),0) -> 0 | OV25: =IF(OU25-9.81*'Summary calculation'!$E$14*(OV24-OU24)>=0,OU25-9.81*'Summary calculation'!$E$14*(OV24-OU24),0) -> 0 | OW25: =IF(OV25-9.81*'Summary calculation'!$E$14*(OW24-OV24)>=0,OV25-9.81*'Summary calculation'!$E$14*(OW24-OV24),0) -> 0 | OX25: =IF(OW25-9.81*'Summary calculation'!$E$14*(OX24-OW24)>=0,OW25-9.81*'Summary calculation'!$E$14*(OX24-OW24),0) -> 0 | OY25: =IF(OX25-9.81*'Summary calculation'!$E$14*(OY24-OX24)>=0,OX25-9.81*'Summary calculation'!$E$14*(OY24-OX24),0) -> 0 | OZ25: =IF(OY25-9.81*'Summary calculation'!$E$14*(OZ24-OY24)>=0,OY25-9.81*'Summary calculation'!$E$14*(OZ24-OY24),0) -> 0 | PA25: =IF(OZ25-9.81*'Summary calculation'!$E$14*(PA24-OZ24)>=0,OZ25-9.81*'Summary calculation'!$E$14*(PA24-OZ24),0) -> 0 | PB25: =IF(PA25-9.81*'Summary calculation'!$E$14*(PB24-PA24)>=0,PA25-9.81*'Summary calculation'!$E$14*(PB24-PA24),0) -> 0 | PC25: =IF(PB25-9.81*'Summary calculation'!$E$14*(PC24-PB24)>=0,PB25-9.81*'Summary calculation'!$E$14*(PC24-PB24),0) -> 0 | PD25: =IF(PC25-9.81*'Summary calculation'!$E$14*(PD24-PC24)>=0,PC25-9.81*'Summary calculation'!$E$14*(PD24-PC24),0) -> 0 | PE25: =IF(PD25-9.81*'Summary calculation'!$E$14*(PE24-PD24)>=0,PD25-9.81*'Summary calculation'!$E$14*(PE24-PD24),0) -> 0 | PF25: =IF(PE25-9.81*'Summary calculation'!$E$14*(PF24-PE24)>=0,PE25-9.81*'Summary calculation'!$E$14*(PF24-PE24),0) -> 0 | PG25: =IF(PF25-9.81*'Summary calculation'!$E$14*(PG24-PF24)>=0,PF25-9.81*'Summary calculation'!$E$14*(PG24-PF24),0) -> 0 | PH25: =IF(PG25-9.81*'Summary calculation'!$E$14*(PH24-PG24)>=0,PG25-9.81*'Summary calculation'!$E$14*(PH24-PG24),0) -> 0 | PI25: =IF(PH25-9.81*'Summary calculation'!$E$14*(PI24-PH24)>=0,PH25-9.81*'Summary calculation'!$E$14*(PI24-PH24),0) -> 0 | PJ25: =IF(PI25-9.81*'Summary calculation'!$E$14*(PJ24-PI24)>=0,PI25-9.81*'Summary calculation'!$E$14*(PJ24-PI24),0) -> 0 | PK25: =IF(PJ25-9.81*'Summary calculation'!$E$14*(PK24-PJ24)>=0,PJ25-9.81*'Summary calculation'!$E$14*(PK24-PJ24),0) -> 0 | PL25: =IF(PK25-9.81*'Summary calculation'!$E$14*(PL24-PK24)>=0,PK25-9.81*'Summary calculation'!$E$14*(PL24-PK24),0) -> 0 | PM25: =IF(PL25-9.81*'Summary calculation'!$E$14*(PM24-PL24)>=0,PL25-9.81*'Summary calculation'!$E$14*(PM24-PL24),0) -> 0 | PN25: =IF(PM25-9.81*'Summary calculation'!$E$14*(PN24-PM24)>=0,PM25-9.81*'Summary calculation'!$E$14*(PN24-PM24),0) -> 0 | PO25: =IF(PN25-9.81*'Summary calculation'!$E$14*(PO24-PN24)>=0,PN25-9.81*'Summary calculation'!$E$14*(PO24-PN24),0) -> 0 | PP25: =IF(PO25-9.81*'Summary calculation'!$E$14*(PP24-PO24)>=0,PO25-9.81*'Summary calculation'!$E$14*(PP24-PO24),0) -> 0 | PQ25: =IF(PP25-9.81*'Summary calculation'!$E$14*(PQ24-PP24)>=0,PP25-9.81*'Summary calculation'!$E$14*(PQ24-PP24),0) -> 0 | PR25: =IF(PQ25-9.81*'Summary calculation'!$E$14*(PR24-PQ24)>=0,PQ25-9.81*'Summary calculation'!$E$14*(PR24-PQ24),0) -> 0 | PS25: =IF(PR25-9.81*'Summary calculation'!$E$14*(PS24-PR24)>=0,PR25-9.81*'Summary calculation'!$E$14*(PS24-PR24),0) -> 0 | PT25: =IF(PS25-9.81*'Summary calculation'!$E$14*(PT24-PS24)>=0,PS25-9.81*'Summary calculation'!$E$14*(PT24-PS24),0) -> 0 | PU25: =IF(PT25-9.81*'Summary calculation'!$E$14*(PU24-PT24)>=0,PT25-9.81*'Summary calculation'!$E$14*(PU24-PT24),0) -> 0 | PV25: =IF(PU25-9.81*'Summary calculation'!$E$14*(PV24-PU24)>=0,PU25-9.81*'Summary calculation'!$E$14*(PV24-PU24),0) -> 0 | PW25: =IF(PV25-9.81*'Summary calculation'!$E$14*(PW24-PV24)>=0,PV25-9.81*'Summary calculation'!$E$14*(PW24-PV24),0) -> 0 | PX25: =IF(PW25-9.81*'Summary calculation'!$E$14*(PX24-PW24)>=0,PW25-9.81*'Summary calculation'!$E$14*(PX24-PW24),0) -> 0 | PY25: =IF(PX25-9.81*'Summary calculation'!$E$14*(PY24-PX24)>=0,PX25-9.81*'Summary calculation'!$E$14*(PY24-PX24),0) -> 0 | PZ25: =IF(PY25-9.81*'Summary calculation'!$E$14*(PZ24-PY24)>=0,PY25-9.81*'Summary calculation'!$E$14*(PZ24-PY24),0) -> 0 | QA25: =IF(PZ25-9.81*'Summary calculation'!$E$14*(QA24-PZ24)>=0,PZ25-9.81*'Summary calculation'!$E$14*(QA24-PZ24),0) -> 0 | QB25: =IF(QA25-9.81*'Summary calculation'!$E$14*(QB24-QA24)>=0,QA25-9.81*'Summary calculation'!$E$14*(QB24-QA24),0) -> 0 | QC25: =IF(QB25-9.81*'Summary calculation'!$E$14*(QC24-QB24)>=0,QB25-9.81*'Summary calculation'!$E$14*(QC24-QB24),0) -> 0 | QD25: =IF(QC25-9.81*'Summary calculation'!$E$14*(QD24-QC24)>=0,QC25-9.81*'Summary calculation'!$E$14*(QD24-QC24),0) -> 0 | QE25: =IF(QD25-9.81*'Summary calculation'!$E$14*(QE24-QD24)>=0,QD25-9.81*'Summary calculation'!$E$14*(QE24-QD24),0) -> 0 | QF25: =IF(QE25-9.81*'Summary calculation'!$E$14*(QF24-QE24)>=0,QE25-9.81*'Summary calculation'!$E$14*(QF24-QE24),0) -> 0 | QG25: =IF(QF25-9.81*'Summary calculation'!$E$14*(QG24-QF24)>=0,QF25-9.81*'Summary calculation'!$E$14*(QG24-QF24),0) -> 0 | QH25: =IF(QG25-9.81*'Summary calculation'!$E$14*(QH24-QG24)>=0,QG25-9.81*'Summary calculation'!$E$14*(QH24-QG24),0) -> 0 | QI25: =IF(QH25-9.81*'Summary calculation'!$E$14*(QI24-QH24)>=0,QH25-9.81*'Summary calculation'!$E$14*(QI24-QH24),0) -> 0 | QJ25: =IF(QI25-9.81*'Summary calculation'!$E$14*(QJ24-QI24)>=0,QI25-9.81*'Summary calculation'!$E$14*(QJ24-QI24),0) -> 0 | QK25: =IF(QJ25-9.81*'Summary calculation'!$E$14*(QK24-QJ24)>=0,QJ25-9.81*'Summary calculation'!$E$14*(QK24-QJ24),0) -> 0 | QL25: =IF(QK25-9.81*'Summary calculation'!$E$14*(QL24-QK24)>=0,QK25-9.81*'Summary calculation'!$E$14*(QL24-QK24),0) -> 0 | QM25: =IF(QL25-9.81*'Summary calculation'!$E$14*(QM24-QL24)>=0,QL25-9.81*'Summary calculation'!$E$14*(QM24-QL24),0) -> 0 | QN25: =IF(QM25-9.81*'Summary calculation'!$E$14*(QN24-QM24)>=0,QM25-9.81*'Summary calculation'!$E$14*(QN24-QM24),0) -> 0 | QO25: =IF(QN25-9.81*'Summary calculation'!$E$14*(QO24-QN24)>=0,QN25-9.81*'Summary calculation'!$E$14*(QO24-QN24),0) -> 0 | QP25: =IF(QO25-9.81*'Summary calculation'!$E$14*(QP24-QO24)>=0,QO25-9.81*'Summary calculation'!$E$14*(QP24-QO24),0) -> 0 | QQ25: =IF(QP25-9.81*'Summary calculation'!$E$14*(QQ24-QP24)>=0,QP25-9.81*'Summary calculation'!$E$14*(QQ24-QP24),0) -> 0 | QR25: =IF(QQ25-9.81*'Summary calculation'!$E$14*(QR24-QQ24)>=0,QQ25-9.81*'Summary calculation'!$E$14*(QR24-QQ24),0) -> 0 | QS25: =IF(QR25-9.81*'Summary calculation'!$E$14*(QS24-QR24)>=0,QR25-9.81*'Summary calculation'!$E$14*(QS24-QR24),0) -> 0 | QT25: =IF(QS25-9.81*'Summary calculation'!$E$14*(QT24-QS24)>=0,QS25-9.81*'Summary calculation'!$E$14*(QT24-QS24),0) -> 0 | QU25: =IF(QT25-9.81*'Summary calculation'!$E$14*(QU24-QT24)>=0,QT25-9.81*'Summary calculation'!$E$14*(QU24-QT24),0) -> 0 | QV25: =IF(QU25-9.81*'Summary calculation'!$E$14*(QV24-QU24)>=0,QU25-9.81*'Summary calculation'!$E$14*(QV24-QU24),0) -> 0 | QW25: =IF(QV25-9.81*'Summary calculation'!$E$14*(QW24-QV24)>=0,QV25-9.81*'Summary calculation'!$E$14*(QW24-QV24),0) -> 0 | QX25: =IF(QW25-9.81*'Summary calculation'!$E$14*(QX24-QW24)>=0,QW25-9.81*'Summary calculation'!$E$14*(QX24-QW24),0) -> 0 | QY25: =IF(QX25-9.81*'Summary calculation'!$E$14*(QY24-QX24)>=0,QX25-9.81*'Summary calculation'!$E$14*(QY24-QX24),0) -> 0 | QZ25: =IF(QY25-9.81*'Summary calculation'!$E$14*(QZ24-QY24)>=0,QY25-9.81*'Summary calculation'!$E$14*(QZ24-QY24),0) -> 0 | RA25: =IF(QZ25-9.81*'Summary calculation'!$E$14*(RA24-QZ24)>=0,QZ25-9.81*'Summary calculation'!$E$14*(RA24-QZ24),0) -> 0 | RB25: =IF(RA25-9.81*'Summary calculation'!$E$14*(RB24-RA24)>=0,RA25-9.81*'Summary calculation'!$E$14*(RB24-RA24),0) -> 0 | RC25: =IF(RB25-9.81*'Summary calculation'!$E$14*(RC24-RB24)>=0,RB25-9.81*'Summary calculation'!$E$14*(RC24-RB24),0) -> 0 | RD25: =IF(RC25-9.81*'Summary calculation'!$E$14*(RD24-RC24)>=0,RC25-9.81*'Summary calculation'!$E$14*(RD24-RC24),0) -> 0 | RE25: =IF(RD25-9.81*'Summary calculation'!$E$14*(RE24-RD24)>=0,RD25-9.81*'Summary calculation'!$E$14*(RE24-RD24),0) -> 0 | RF25: =IF(RE25-9.81*'Summary calculation'!$E$14*(RF24-RE24)>=0,RE25-9.81*'Summary calculation'!$E$14*(RF24-RE24),0) -> 0 | RG25: =IF(RF25-9.81*'Summary calculation'!$E$14*(RG24-RF24)>=0,RF25-9.81*'Summary calculation'!$E$14*(RG24-RF24),0) -> 0 | RH25: =IF(RG25-9.81*'Summary calculation'!$E$14*(RH24-RG24)>=0,RG25-9.81*'Summary calculation'!$E$14*(RH24-RG24),0) -> 0 | RI25: =IF(RH25-9.81*'Summary calculation'!$E$14*(RI24-RH24)>=0,RH25-9.81*'Summary calculation'!$E$14*(RI24-RH24),0) -> 0 | RJ25: =IF(RI25-9.81*'Summary calculation'!$E$14*(RJ24-RI24)>=0,RI25-9.81*'Summary calculation'!$E$14*(RJ24-RI24),0) -> 0 | RK25: =IF(RJ25-9.81*'Summary calculation'!$E$14*(RK24-RJ24)>=0,RJ25-9.81*'Summary calculation'!$E$14*(RK24-RJ24),0) -> 0 | RL25: =IF(RK25-9.81*'Summary calculation'!$E$14*(RL24-RK24)>=0,RK25-9.81*'Summary calculation'!$E$14*(RL24-RK24),0) -> 0 | RM25: =IF(RL25-9.81*'Summary calculation'!$E$14*(RM24-RL24)>=0,RL25-9.81*'Summary calculation'!$E$14*(RM24-RL24),0) -> 0 | RN25: =IF(RM25-9.81*'Summary calculation'!$E$14*(RN24-RM24)>=0,RM25-9.81*'Summary calculation'!$E$14*(RN24-RM24),0) -> 0 | RO25: =IF(RN25-9.81*'Summary calculation'!$E$14*(RO24-RN24)>=0,RN25-9.81*'Summary calculation'!$E$14*(RO24-RN24),0) -> 0 | RP25: =IF(RO25-9.81*'Summary calculation'!$E$14*(RP24-RO24)>=0,RO25-9.81*'Summary calculation'!$E$14*(RP24-RO24),0) -> 0 | RQ25: =IF(RP25-9.81*'Summary calculation'!$E$14*(RQ24-RP24)>=0,RP25-9.81*'Summary calculation'!$E$14*(RQ24-RP24),0) -> 0 | RR25: =IF(RQ25-9.81*'Summary calculation'!$E$14*(RR24-RQ24)>=0,RQ25-9.81*'Summary calculation'!$E$14*(RR24-RQ24),0) -> 0 | RS25: =IF(RR25-9.81*'Summary calculation'!$E$14*(RS24-RR24)>=0,RR25-9.81*'Summary calculation'!$E$14*(RS24-RR24),0) -> 0 | RT25: =IF(RS25-9.81*'Summary calculation'!$E$14*(RT24-RS24)>=0,RS25-9.81*'Summary calculation'!$E$14*(RT24-RS24),0) -> 0 | RU25: =IF(RT25-9.81*'Summary calculation'!$E$14*(RU24-RT24)>=0,RT25-9.81*'Summary calculation'!$E$14*(RU24-RT24),0) -> 0 | RV25: =IF(RU25-9.81*'Summary calculation'!$E$14*(RV24-RU24)>=0,RU25-9.81*'Summary calculation'!$E$14*(RV24-RU24),0) -> 0 | RW25: =IF(RV25-9.81*'Summary calculation'!$E$14*(RW24-RV24)>=0,RV25-9.81*'Summary calculation'!$E$14*(RW24-RV24),0) -> 0 | RX25: =IF(RW25-9.81*'Summary calculation'!$E$14*(RX24-RW24)>=0,RW25-9.81*'Summary calculation'!$E$14*(RX24-RW24),0) -> 0 | RY25: =IF(RX25-9.81*'Summary calculation'!$E$14*(RY24-RX24)>=0,RX25-9.81*'Summary calculation'!$E$14*(RY24-RX24),0) -> 0 | RZ25: =IF(RY25-9.81*'Summary calculation'!$E$14*(RZ24-RY24)>=0,RY25-9.81*'Summary calculation'!$E$14*(RZ24-RY24),0) -> 0 | SA25: =IF(RZ25-9.81*'Summary calculation'!$E$14*(SA24-RZ24)>=0,RZ25-9.81*'Summary calculation'!$E$14*(SA24-RZ24),0) -> 0 | SB25: =IF(SA25-9.81*'Summary calculation'!$E$14*(SB24-SA24)>=0,SA25-9.81*'Summary calculation'!$E$14*(SB24-SA24),0) -> 0 | SC25: =IF(SB25-9.81*'Summary calculation'!$E$14*(SC24-SB24)>=0,SB25-9.81*'Summary calculation'!$E$14*(SC24-SB24),0) -> 0 | SD25: =IF(SC25-9.81*'Summary calculation'!$E$14*(SD24-SC24)>=0,SC25-9.81*'Summary calculation'!$E$14*(SD24-SC24),0) -> 0 | SE25: =IF(SD25-9.81*'Summary calculation'!$E$14*(SE24-SD24)>=0,SD25-9.81*'Summary calculation'!$E$14*(SE24-SD24),0) -> 0 | SF25: =IF(SE25-9.81*'Summary calculation'!$E$14*(SF24-SE24)>=0,SE25-9.81*'Summary calculation'!$E$14*(SF24-SE24),0) -> 0 | SG25: =IF(SF25-9.81*'Summary calculation'!$E$14*(SG24-SF24)>=0,SF25-9.81*'Summary calculation'!$E$14*(SG24-SF24),0) -> 0 | SH25: =IF(SG25-9.81*'Summary calculation'!$E$14*(SH24-SG24)>=0,SG25-9.81*'Summary calculation'!$E$14*(SH24-SG24),0) -> 0 | SI25: =IF(SH25-9.81*'Summary calculation'!$E$14*(SI24-SH24)>=0,SH25-9.81*'Summary calculation'!$E$14*(SI24-SH24),0) -> 0 | SJ25: =IF(SI25-9.81*'Summary calculation'!$E$14*(SJ24-SI24)>=0,SI25-9.81*'Summary calculation'!$E$14*(SJ24-SI24),0) -> 0 | SK25: =IF(SJ25-9.81*'Summary calculation'!$E$14*(SK24-SJ24)>=0,SJ25-9.81*'Summary calculation'!$E$14*(SK24-SJ24),0) -> 0 | SL25: =IF(SK25-9.81*'Summary calculation'!$E$14*(SL24-SK24)>=0,SK25-9.81*'Summary calculation'!$E$14*(SL24-SK24),0) -> 0 | SM25: =IF(SL25-9.81*'Summary calculation'!$E$14*(SM24-SL24)>=0,SL25-9.81*'Summary calculation'!$E$14*(SM24-SL24),0) -> 0 | SN25: =IF(SM25-9.81*'Summary calculation'!$E$14*(SN24-SM24)>=0,SM25-9.81*'Summary calculation'!$E$14*(SN24-SM24),0) -> 0 | SO25: =IF(SN25-9.81*'Summary calculation'!$E$14*(SO24-SN24)>=0,SN25-9.81*'Summary calculation'!$E$14*(SO24-SN24),0) -> 0 | SP25: =IF(SO25-9.81*'Summary calculation'!$E$14*(SP24-SO24)>=0,SO25-9.81*'Summary calculation'!$E$14*(SP24-SO24),0) -> 0 | SQ25: =IF(SP25-9.81*'Summary calculation'!$E$14*(SQ24-SP24)>=0,SP25-9.81*'Summary calculation'!$E$14*(SQ24-SP24),0) -> 0 | SR25: =IF(SQ25-9.81*'Summary calculation'!$E$14*(SR24-SQ24)>=0,SQ25-9.81*'Summary calculation'!$E$14*(SR24-SQ24),0) -> 0 | SS25: =IF(SR25-9.81*'Summary calculation'!$E$14*(SS24-SR24)>=0,SR25-9.81*'Summary calculation'!$E$14*(SS24-SR24),0) -> 0 | ST25: =IF(SS25-9.81*'Summary calculation'!$E$14*(ST24-SS24)>=0,SS25-9.81*'Summary calculation'!$E$14*(ST24-SS24),0) -> 0 | SU25: =IF(ST25-9.81*'Summary calculation'!$E$14*(SU24-ST24)>=0,ST25-9.81*'Summary calculation'!$E$14*(SU24-ST24),0) -> 0 | SV25: =IF(SU25-9.81*'Summary calculation'!$E$14*(SV24-SU24)>=0,SU25-9.81*'Summary calculation'!$E$14*(SV24-SU24),0) -> 0 | SW25: =IF(SV25-9.81*'Summary calculation'!$E$14*(SW24-SV24)>=0,SV25-9.81*'Summary calculation'!$E$14*(SW24-SV24),0) -> 0 | SX25: =IF(SW25-9.81*'Summary calculation'!$E$14*(SX24-SW24)>=0,SW25-9.81*'Summary calculation'!$E$14*(SX24-SW24),0) -> 0 | SY25: =IF(SX25-9.81*'Summary calculation'!$E$14*(SY24-SX24)>=0,SX25-9.81*'Summary calculation'!$E$14*(SY24-SX24),0) -> 0 | SZ25: =IF(SY25-9.81*'Summary calculation'!$E$14*(SZ24-SY24)>=0,SY25-9.81*'Summary calculation'!$E$14*(SZ24-SY24),0) -> 0 | TA25: =IF(SZ25-9.81*'Summary calculation'!$E$14*(TA24-SZ24)>=0,SZ25-9.81*'Summary calculation'!$E$14*(TA24-SZ24),0) -> 0 | TB25: =IF(TA25-9.81*'Summary calculation'!$E$14*(TB24-TA24)>=0,TA25-9.81*'Summary calculation'!$E$14*(TB24-TA24),0) -> 0 | TC25: =IF(TB25-9.81*'Summary calculation'!$E$14*(TC24-TB24)>=0,TB25-9.81*'Summary calculation'!$E$14*(TC24-TB24),0) -> 0 | TD25: =IF(TC25-9.81*'Summary calculation'!$E$14*(TD24-TC24)>=0,TC25-9.81*'Summary calculation'!$E$14*(TD24-TC24),0) -> 0 | TE25: =IF(TD25-9.81*'Summary calculation'!$E$14*(TE24-TD24)>=0,TD25-9.81*'Summary calculation'!$E$14*(TE24-TD24),0) -> 0 | TF25: =IF(TE25-9.81*'Summary calculation'!$E$14*(TF24-TE24)>=0,TE25-9.81*'Summary calculation'!$E$14*(TF24-TE24),0) -> 0 | TG25: =IF(TF25-9.81*'Summary calculation'!$E$14*(TG24-TF24)>=0,TF25-9.81*'Summary calculation'!$E$14*(TG24-TF24),0) -> 0 | TH25: =IF(TG25-9.81*'Summary calculation'!$E$14*(TH24-TG24)>=0,TG25-9.81*'Summary calculation'!$E$14*(TH24-TG24),0) -> 0 | TI25: =IF(TH25-9.81*'Summary calculation'!$E$14*(TI24-TH24)>=0,TH25-9.81*'Summary calculation'!$E$14*(TI24-TH24),0) -> 0 | TJ25: =IF(TI25-9.81*'Summary calculation'!$E$14*(TJ24-TI24)>=0,TI25-9.81*'Summary calculation'!$E$14*(TJ24-TI24),0) -> 0 | TK25: =IF(TJ25-9.81*'Summary calculation'!$E$14*(TK24-TJ24)>=0,TJ25-9.81*'Summary calculation'!$E$14*(TK24-TJ24),0) -> 0 | TL25: =IF(TK25-9.81*'Summary calculation'!$E$14*(TL24-TK24)>=0,TK25-9.81*'Summary calculation'!$E$14*(TL24-TK24),0) -> 0 | TM25: =IF(TL25-9.81*'Summary calculation'!$E$14*(TM24-TL24)>=0,TL25-9.81*'Summary calculation'!$E$14*(TM24-TL24),0) -> 0 | TN25: =IF(TM25-9.81*'Summary calculation'!$E$14*(TN24-TM24)>=0,TM25-9.81*'Summary calculation'!$E$14*(TN24-TM24),0) -> 0 | TO25: =IF(TN25-9.81*'Summary calculation'!$E$14*(TO24-TN24)>=0,TN25-9.81*'Summary calculation'!$E$14*(TO24-TN24),0) -> 0 | TP25: =IF(TO25-9.81*'Summary calculation'!$E$14*(TP24-TO24)>=0,TO25-9.81*'Summary calculation'!$E$14*(TP24-TO24),0) -> 0 | TQ25: =IF(TP25-9.81*'Summary calculation'!$E$14*(TQ24-TP24)>=0,TP25-9.81*'Summary calculation'!$E$14*(TQ24-TP24),0) -> 0 | TR25: =IF(TQ25-9.81*'Summary calculation'!$E$14*(TR24-TQ24)>=0,TQ25-9.81*'Summary calculation'!$E$14*(TR24-TQ24),0) -> 0 | TS25: =IF(TR25-9.81*'Summary calculation'!$E$14*(TS24-TR24)>=0,TR25-9.81*'Summary calculation'!$E$14*(TS24-TR24),0) -> 0 | TT25: =IF(TS25-9.81*'Summary calculation'!$E$14*(TT24-TS24)>=0,TS25-9.81*'Summary calculation'!$E$14*(TT24-TS24),0) -> 0 | TU25: =IF(TT25-9.81*'Summary calculation'!$E$14*(TU24-TT24)>=0,TT25-9.81*'Summary calculation'!$E$14*(TU24-TT24),0) -> 0 | TV25: =IF(TU25-9.81*'Summary calculation'!$E$14*(TV24-TU24)>=0,TU25-9.81*'Summary calculation'!$E$14*(TV24-TU24),0) -> 0 | TW25: =IF(TV25-9.81*'Summary calculation'!$E$14*(TW24-TV24)>=0,TV25-9.81*'Summary calculation'!$E$14*(TW24-TV24),0) -> 0 | TX25: =IF(TW25-9.81*'Summary calculation'!$E$14*(TX24-TW24)>=0,TW25-9.81*'Summary calculation'!$E$14*(TX24-TW24),0) -> 0 | TY25: =IF(TX25-9.81*'Summary calculation'!$E$14*(TY24-TX24)>=0,TX25-9.81*'Summary calculation'!$E$14*(TY24-TX24),0) -> 0 | TZ25: =IF(TY25-9.81*'Summary calculation'!$E$14*(TZ24-TY24)>=0,TY25-9.81*'Summary calculation'!$E$14*(TZ24-TY24),0) -> 0 | UA25: =IF(TZ25-9.81*'Summary calculation'!$E$14*(UA24-TZ24)>=0,TZ25-9.81*'Summary calculation'!$E$14*(UA24-TZ24),0) -> 0 | UB25: =IF(UA25-9.81*'Summary calculation'!$E$14*(UB24-UA24)>=0,UA25-9.81*'Summary calculation'!$E$14*(UB24-UA24),0) -> 0 | UC25: =IF(UB25-9.81*'Summary calculation'!$E$14*(UC24-UB24)>=0,UB25-9.81*'Summary calculation'!$E$14*(UC24-UB24),0) -> 0 | UD25: =IF(UC25-9.81*'Summary calculation'!$E$14*(UD24-UC24)>=0,UC25-9.81*'Summary calculation'!$E$14*(UD24-UC24),0) -> 0 | UE25: =IF(UD25-9.81*'Summary calculation'!$E$14*(UE24-UD24)>=0,UD25-9.81*'Summary calculation'!$E$14*(UE24-UD24),0) -> 0 | UF25: =IF(UE25-9.81*'Summary calculation'!$E$14*(UF24-UE24)>=0,UE25-9.81*'Summary calculation'!$E$14*(UF24-UE24),0) -> 0 | UG25: =IF(UF25-9.81*'Summary calculation'!$E$14*(UG24-UF24)>=0,UF25-9.81*'Summary calculation'!$E$14*(UG24-UF24),0) -> 0 | UH25: =IF(UG25-9.81*'Summary calculation'!$E$14*(UH24-UG24)>=0,UG25-9.81*'Summary calculation'!$E$14*(UH24-UG24),0) -> 0 | UI25: =IF(UH25-9.81*'Summary calculation'!$E$14*(UI24-UH24)>=0,UH25-9.81*'Summary calculation'!$E$14*(UI24-UH24),0) -> 0 | UJ25: =IF(UI25-9.81*'Summary calculation'!$E$14*(UJ24-UI24)>=0,UI25-9.81*'Summary calculation'!$E$14*(UJ24-UI24),0) -> 0 | UK25: =IF(UJ25-9.81*'Summary calculation'!$E$14*(UK24-UJ24)>=0,UJ25-9.81*'Summary calculation'!$E$14*(UK24-UJ24),0) -> 0 | UL25: =IF(UK25-9.81*'Summary calculation'!$E$14*(UL24-UK24)>=0,UK25-9.81*'Summary calculation'!$E$14*(UL24-UK24),0) -> 0 | UM25: =IF(UL25-9.81*'Summary calculation'!$E$14*(UM24-UL24)>=0,UL25-9.81*'Summary calculation'!$E$14*(UM24-UL24),0) -> 0 | UN25: =IF(UM25-9.81*'Summary calculation'!$E$14*(UN24-UM24)>=0,UM25-9.81*'Summary calculation'!$E$14*(UN24-UM24),0) -> 0 | UO25: =IF(UN25-9.81*'Summary calculation'!$E$14*(UO24-UN24)>=0,UN25-9.81*'Summary calculation'!$E$14*(UO24-UN24),0) -> 0 | UP25: =IF(UO25-9.81*'Summary calculation'!$E$14*(UP24-UO24)>=0,UO25-9.81*'Summary calculation'!$E$14*(UP24-UO24),0) -> 0 | UQ25: =IF(UP25-9.81*'Summary calculation'!$E$14*(UQ24-UP24)>=0,UP25-9.81*'Summary calculation'!$E$14*(UQ24-UP24),0) -> 0 | UR25: =IF(UQ25-9.81*'Summary calculation'!$E$14*(UR24-UQ24)>=0,UQ25-9.81*'Summary calculation'!$E$14*(UR24-UQ24),0) -> 0 | US25: =IF(UR25-9.81*'Summary calculation'!$E$14*(US24-UR24)>=0,UR25-9.81*'Summary calculation'!$E$14*(US24-UR24),0) -> 0 | UT25: =IF(US25-9.81*'Summary calculation'!$E$14*(UT24-US24)>=0,US25-9.81*'Summary calculation'!$E$14*(UT24-US24),0) -> 0 | UU25: =IF(UT25-9.81*'Summary calculation'!$E$14*(UU24-UT24)>=0,UT25-9.81*'Summary calculation'!$E$14*(UU24-UT24),0) -> 0 | UV25: =IF(UU25-9.81*'Summary calculation'!$E$14*(UV24-UU24)>=0,UU25-9.81*'Summary calculation'!$E$14*(UV24-UU24),0) -> 0 | UW25: =IF(UV25-9.81*'Summary calculation'!$E$14*(UW24-UV24)>=0,UV25-9.81*'Summary calculation'!$E$14*(UW24-UV24),0) -> 0 | UX25: =IF(UW25-9.81*'Summary calculation'!$E$14*(UX24-UW24)>=0,UW25-9.81*'Summary calculation'!$E$14*(UX24-UW24),0) -> 0 | UY25: =IF(UX25-9.81*'Summary calculation'!$E$14*(UY24-UX24)>=0,UX25-9.81*'Summary calculation'!$E$14*(UY24-UX24),0) -> 0 | UZ25: =IF(UY25-9.81*'Summary calculation'!$E$14*(UZ24-UY24)>=0,UY25-9.81*'Summary calculation'!$E$14*(UZ24-UY24),0) -> 0 | VA25: =IF(UZ25-9.81*'Summary calculation'!$E$14*(VA24-UZ24)>=0,UZ25-9.81*'Summary calculation'!$E$14*(VA24-UZ24),0) -> 0 | VB25: =IF(VA25-9.81*'Summary calculation'!$E$14*(VB24-VA24)>=0,VA25-9.81*'Summary calculation'!$E$14*(VB24-VA24),0) -> 0 | VC25: =IF(VB25-9.81*'Summary calculation'!$E$14*(VC24-VB24)>=0,VB25-9.81*'Summary calculation'!$E$14*(VC24-VB24),0) -> 0 | VD25: =IF(VC25-9.81*'Summary calculation'!$E$14*(VD24-VC24)>=0,VC25-9.81*'Summary calculation'!$E$14*(VD24-VC24),0) -> 0 | VE25: =IF(VD25-9.81*'Summary calculation'!$E$14*(VE24-VD24)>=0,VD25-9.81*'Summary calculation'!$E$14*(VE24-VD24),0) -> 0 | VF25: =IF(VE25-9.81*'Summary calculation'!$E$14*(VF24-VE24)>=0,VE25-9.81*'Summary calculation'!$E$14*(VF24-VE24),0) -> 0 | VG25: =IF(VF25-9.81*'Summary calculation'!$E$14*(VG24-VF24)>=0,VF25-9.81*'Summary calculation'!$E$14*(VG24-VF24),0) -> 0 | VH25: =IF(VG25-9.81*'Summary calculation'!$E$14*(VH24-VG24)>=0,VG25-9.81*'Summary calculation'!$E$14*(VH24-VG24),0) -> 0 | VI25: =IF(VH25-9.81*'Summary calculation'!$E$14*(VI24-VH24)>=0,VH25-9.81*'Summary calculation'!$E$14*(VI24-VH24),0) -> 0 | VJ25: =IF(VI25-9.81*'Summary calculation'!$E$14*(VJ24-VI24)>=0,VI25-9.81*'Summary calculation'!$E$14*(VJ24-VI24),0) -> 0 | VK25: =IF(VJ25-9.81*'Summary calculation'!$E$14*(VK24-VJ24)>=0,VJ25-9.81*'Summary calculation'!$E$14*(VK24-VJ24),0) -> 0 | VL25: =IF(VK25-9.81*'Summary calculation'!$E$14*(VL24-VK24)>=0,VK25-9.81*'Summary calculation'!$E$14*(VL24-VK24),0) -> 0 | VM25: =IF(VL25-9.81*'Summary calculation'!$E$14*(VM24-VL24)>=0,VL25-9.81*'Summary calculation'!$E$14*(VM24-VL24),0) -> 0 | VN25: =IF(VM25-9.81*'Summary calculation'!$E$14*(VN24-VM24)>=0,VM25-9.81*'Summary calculation'!$E$14*(VN24-VM24),0) -> 0 | VO25: =IF(VN25-9.81*'Summary calculation'!$E$14*(VO24-VN24)>=0,VN25-9.81*'Summary calculation'!$E$14*(VO24-VN24),0) -> 0 | VP25: =IF(VO25-9.81*'Summary calculation'!$E$14*(VP24-VO24)>=0,VO25-9.81*'Summary calculation'!$E$14*(VP24-VO24),0) -> 0 | VQ25: =IF(VP25-9.81*'Summary calculation'!$E$14*(VQ24-VP24)>=0,VP25-9.81*'Summary calculation'!$E$14*(VQ24-VP24),0) -> 0 | VR25: =IF(VQ25-9.81*'Summary calculation'!$E$14*(VR24-VQ24)>=0,VQ25-9.81*'Summary calculation'!$E$14*(VR24-VQ24),0) -> 0 | VS25: =IF(VR25-9.81*'Summary calculation'!$E$14*(VS24-VR24)>=0,VR25-9.81*'Summary calculation'!$E$14*(VS24-VR24),0) -> 0 | VT25: =IF(VS25-9.81*'Summary calculation'!$E$14*(VT24-VS24)>=0,VS25-9.81*'Summary calculation'!$E$14*(VT24-VS24),0) -> 0 | VU25: =IF(VT25-9.81*'Summary calculation'!$E$14*(VU24-VT24)>=0,VT25-9.81*'Summary calculation'!$E$14*(VU24-VT24),0) -> 0 | VV25: =IF(VU25-9.81*'Summary calculation'!$E$14*(VV24-VU24)>=0,VU25-9.81*'Summary calculation'!$E$14*(VV24-VU24),0) -> 0 | VW25: =IF(VV25-9.81*'Summary calculation'!$E$14*(VW24-VV24)>=0,VV25-9.81*'Summary calculation'!$E$14*(VW24-VV24),0) -> 0 | VX25: =IF(VW25-9.81*'Summary calculation'!$E$14*(VX24-VW24)>=0,VW25-9.81*'Summary calculation'!$E$14*(VX24-VW24),0) -> 0 | VY25: =IF(VX25-9.81*'Summary calculation'!$E$14*(VY24-VX24)>=0,VX25-9.81*'Summary calculation'!$E$14*(VY24-VX24),0) -> 0 | VZ25: =IF(VY25-9.81*'Summary calculation'!$E$14*(VZ24-VY24)>=0,VY25-9.81*'Summary calculation'!$E$14*(VZ24-VY24),0) -> 0 | WA25: =IF(VZ25-9.81*'Summary calculation'!$E$14*(WA24-VZ24)>=0,VZ25-9.81*'Summary calculation'!$E$14*(WA24-VZ24),0) -> 0 | WB25: =IF(WA25-9.81*'Summary calculation'!$E$14*(WB24-WA24)>=0,WA25-9.81*'Summary calculation'!$E$14*(WB24-WA24),0) -> 0 | WC25: =IF(WB25-9.81*'Summary calculation'!$E$14*(WC24-WB24)>=0,WB25-9.81*'Summary calculation'!$E$14*(WC24-WB24),0) -> 0 | WD25: =IF(WC25-9.81*'Summary calculation'!$E$14*(WD24-WC24)>=0,WC25-9.81*'Summary calculation'!$E$14*(WD24-WC24),0) -> 0 | WE25: =IF(WD25-9.81*'Summary calculation'!$E$14*(WE24-WD24)>=0,WD25-9.81*'Summary calculation'!$E$14*(WE24-WD24),0) -> 0 | WF25: =IF(WE25-9.81*'Summary calculation'!$E$14*(WF24-WE24)>=0,WE25-9.81*'Summary calculation'!$E$14*(WF24-WE24),0) -> 0 | WG25: =IF(WF25-9.81*'Summary calculation'!$E$14*(WG24-WF24)>=0,WF25-9.81*'Summary calculation'!$E$14*(WG24-WF24),0) -> 0 | WH25: =IF(WG25-9.81*'Summary calculation'!$E$14*(WH24-WG24)>=0,WG25-9.81*'Summary calculation'!$E$14*(WH24-WG24),0) -> 0 | WI25: =IF(WH25-9.81*'Summary calculation'!$E$14*(WI24-WH24)>=0,WH25-9.81*'Summary calculation'!$E$14*(WI24-WH24),0) -> 0 | WJ25: =IF(WI25-9.81*'Summary calculation'!$E$14*(WJ24-WI24)>=0,WI25-9.81*'Summary calculation'!$E$14*(WJ24-WI24),0) -> 0 | WK25: =IF(WJ25-9.81*'Summary calculation'!$E$14*(WK24-WJ24)>=0,WJ25-9.81*'Summary calculation'!$E$14*(WK24-WJ24),0) -> 0 | WL25: =IF(WK25-9.81*'Summary calculation'!$E$14*(WL24-WK24)>=0,WK25-9.81*'Summary calculation'!$E$14*(WL24-WK24),0) -> 0 | WM25: =IF(WL25-9.81*'Summary calculation'!$E$14*(WM24-WL24)>=0,WL25-9.81*'Summary calculation'!$E$14*(WM24-WL24),0) -> 0 | WN25: =IF(WM25-9.81*'Summary calculation'!$E$14*(WN24-WM24)>=0,WM25-9.81*'Summary calculation'!$E$14*(WN24-WM24),0) -> 0 | WO25: =IF(WN25-9.81*'Summary calculation'!$E$14*(WO24-WN24)>=0,WN25-9.81*'Summary calculation'!$E$14*(WO24-WN24),0) -> 0 | WP25: =IF(WO25-9.81*'Summary calculation'!$E$14*(WP24-WO24)>=0,WO25-9.81*'Summary calculation'!$E$14*(WP24-WO24),0) -> 0 | WQ25: =IF(WP25-9.81*'Summary calculation'!$E$14*(WQ24-WP24)>=0,WP25-9.81*'Summary calculation'!$E$14*(WQ24-WP24),0) -> 0 | WR25: =IF(WQ25-9.81*'Summary calculation'!$E$14*(WR24-WQ24)>=0,WQ25-9.81*'Summary calculation'!$E$14*(WR24-WQ24),0) -> 0 | WS25: =IF(WR25-9.81*'Summary calculation'!$E$14*(WS24-WR24)>=0,WR25-9.81*'Summary calculation'!$E$14*(WS24-WR24),0) -> 0 | WT25: =IF(WS25-9.81*'Summary calculation'!$E$14*(WT24-WS24)>=0,WS25-9.81*'Summary calculation'!$E$14*(WT24-WS24),0) -> 0 | WU25: =IF(WT25-9.81*'Summary calculation'!$E$14*(WU24-WT24)>=0,WT25-9.81*'Summary calculation'!$E$14*(WU24-WT24),0) -> 0 | WV25: =IF(WU25-9.81*'Summary calculation'!$E$14*(WV24-WU24)>=0,WU25-9.81*'Summary calculation'!$E$14*(WV24-WU24),0) -> 0 | WW25: =IF(WV25-9.81*'Summary calculation'!$E$14*(WW24-WV24)>=0,WV25-9.81*'Summary calculation'!$E$14*(WW24-WV24),0) -> 0 | WX25: =IF(WW25-9.81*'Summary calculation'!$E$14*(WX24-WW24)>=0,WW25-9.81*'Summary calculation'!$E$14*(WX24-WW24),0) -> 0 | WY25: =IF(WX25-9.81*'Summary calculation'!$E$14*(WY24-WX24)>=0,WX25-9.81*'Summary calculation'!$E$14*(WY24-WX24),0) -> 0 | WZ25: =IF(WY25-9.81*'Summary calculation'!$E$14*(WZ24-WY24)>=0,WY25-9.81*'Summary calculation'!$E$14*(WZ24-WY24),0) -> 0 | XA25: =IF(WZ25-9.81*'Summary calculation'!$E$14*(XA24-WZ24)>=0,WZ25-9.81*'Summary calculation'!$E$14*(XA24-WZ24),0) -> 0 | XB25: =IF(XA25-9.81*'Summary calculation'!$E$14*(XB24-XA24)>=0,XA25-9.81*'Summary calculation'!$E$14*(XB24-XA24),0) -> 0 | XC25: =IF(XB25-9.81*'Summary calculation'!$E$14*(XC24-XB24)>=0,XB25-9.81*'Summary calculation'!$E$14*(XC24-XB24),0) -> 0 | XD25: =IF(XC25-9.81*'Summary calculation'!$E$14*(XD24-XC24)>=0,XC25-9.81*'Summary calculation'!$E$14*(XD24-XC24),0) -> 0 | XE25: =IF(XD25-9.81*'Summary calculation'!$E$14*(XE24-XD24)>=0,XD25-9.81*'Summary calculation'!$E$14*(XE24-XD24),0) -> 0 | XF25: =IF(XE25-9.81*'Summary calculation'!$E$14*(XF24-XE24)>=0,XE25-9.81*'Summary calculation'!$E$14*(XF24-XE24),0) -> 0 | XG25: =IF(XF25-9.81*'Summary calculation'!$E$14*(XG24-XF24)>=0,XF25-9.81*'Summary calculation'!$E$14*(XG24-XF24),0) -> 0 | XH25: =IF(XG25-9.81*'Summary calculation'!$E$14*(XH24-XG24)>=0,XG25-9.81*'Summary calculation'!$E$14*(XH24-XG24),0) -> 0 | XI25: =IF(XH25-9.81*'Summary calculation'!$E$14*(XI24-XH24)>=0,XH25-9.81*'Summary calculation'!$E$14*(XI24-XH24),0) -> 0 | XJ25: =IF(XI25-9.81*'Summary calculation'!$E$14*(XJ24-XI24)>=0,XI25-9.81*'Summary calculation'!$E$14*(XJ24-XI24),0) -> 0 | XK25: =IF(XJ25-9.81*'Summary calculation'!$E$14*(XK24-XJ24)>=0,XJ25-9.81*'Summary calculation'!$E$14*(XK24-XJ24),0) -> 0 | XL25: =IF(XK25-9.81*'Summary calculation'!$E$14*(XL24-XK24)>=0,XK25-9.81*'Summary calculation'!$E$14*(XL24-XK24),0) -> 0 | XM25: =IF(XL25-9.81*'Summary calculation'!$E$14*(XM24-XL24)>=0,XL25-9.81*'Summary calculation'!$E$14*(XM24-XL24),0) -> 0 | XN25: =IF(XM25-9.81*'Summary calculation'!$E$14*(XN24-XM24)>=0,XM25-9.81*'Summary calculation'!$E$14*(XN24-XM24),0) -> 0 | XO25: =IF(XN25-9.81*'Summary calculation'!$E$14*(XO24-XN24)>=0,XN25-9.81*'Summary calculation'!$E$14*(XO24-XN24),0) -> 0 | XP25: =IF(XO25-9.81*'Summary calculation'!$E$14*(XP24-XO24)>=0,XO25-9.81*'Summary calculation'!$E$14*(XP24-XO24),0) -> 0 | XQ25: =IF(XP25-9.81*'Summary calculation'!$E$14*(XQ24-XP24)>=0,XP25-9.81*'Summary calculation'!$E$14*(XQ24-XP24),0) -> 0 | XR25: =IF(XQ25-9.81*'Summary calculation'!$E$14*(XR24-XQ24)>=0,XQ25-9.81*'Summary calculation'!$E$14*(XR24-XQ24),0) -> 0 | XS25: =IF(XR25-9.81*'Summary calculation'!$E$14*(XS24-XR24)>=0,XR25-9.81*'Summary calculation'!$E$14*(XS24-XR24),0) -> 0 | XT25: =IF(XS25-9.81*'Summary calculation'!$E$14*(XT24-XS24)>=0,XS25-9.81*'Summary calculation'!$E$14*(XT24-XS24),0) -> 0 | XU25: =IF(XT25-9.81*'Summary calculation'!$E$14*(XU24-XT24)>=0,XT25-9.81*'Summary calculation'!$E$14*(XU24-XT24),0) -> 0 | XV25: =IF(XU25-9.81*'Summary calculation'!$E$14*(XV24-XU24)>=0,XU25-9.81*'Summary calculation'!$E$14*(XV24-XU24),0) -> 0 | XW25: =IF(XV25-9.81*'Summary calculation'!$E$14*(XW24-XV24)>=0,XV25-9.81*'Summary calculation'!$E$14*(XW24-XV24),0) -> 0 | XX25: =IF(XW25-9.81*'Summary calculation'!$E$14*(XX24-XW24)>=0,XW25-9.81*'Summary calculation'!$E$14*(XX24-XW24),0) -> 0 | XY25: =IF(XX25-9.81*'Summary calculation'!$E$14*(XY24-XX24)>=0,XX25-9.81*'Summary calculation'!$E$14*(XY24-XX24),0) -> 0 | XZ25: =IF(XY25-9.81*'Summary calculation'!$E$14*(XZ24-XY24)>=0,XY25-9.81*'Summary calculation'!$E$14*(XZ24-XY24),0) -> 0 | YA25: =IF(XZ25-9.81*'Summary calculation'!$E$14*(YA24-XZ24)>=0,XZ25-9.81*'Summary calculation'!$E$14*(YA24-XZ24),0) -> 0 | YB25: =IF(YA25-9.81*'Summary calculation'!$E$14*(YB24-YA24)>=0,YA25-9.81*'Summary calculation'!$E$14*(YB24-YA24),0) -> 0 | YC25: =IF(YB25-9.81*'Summary calculation'!$E$14*(YC24-YB24)>=0,YB25-9.81*'Summary calculation'!$E$14*(YC24-YB24),0) -> 0 | YD25: =IF(YC25-9.81*'Summary calculation'!$E$14*(YD24-YC24)>=0,YC25-9.81*'Summary calculation'!$E$14*(YD24-YC24),0) -> 0 | YE25: =IF(YD25-9.81*'Summary calculation'!$E$14*(YE24-YD24)>=0,YD25-9.81*'Summary calculation'!$E$14*(YE24-YD24),0) -> 0 | YF25: =IF(YE25-9.81*'Summary calculation'!$E$14*(YF24-YE24)>=0,YE25-9.81*'Summary calculation'!$E$14*(YF24-YE24),0) -> 0 | YG25: =IF(YF25-9.81*'Summary calculation'!$E$14*(YG24-YF24)>=0,YF25-9.81*'Summary calculation'!$E$14*(YG24-YF24),0) -> 0 | YH25: =IF(YG25-9.81*'Summary calculation'!$E$14*(YH24-YG24)>=0,YG25-9.81*'Summary calculation'!$E$14*(YH24-YG24),0) -> 0 | YI25: =IF(YH25-9.81*'Summary calculation'!$E$14*(YI24-YH24)>=0,YH25-9.81*'Summary calculation'!$E$14*(YI24-YH24),0) -> 0 | YJ25: =IF(YI25-9.81*'Summary calculation'!$E$14*(YJ24-YI24)>=0,YI25-9.81*'Summary calculation'!$E$14*(YJ24-YI24),0) -> 0 | YK25: =IF(YJ25-9.81*'Summary calculation'!$E$14*(YK24-YJ24)>=0,YJ25-9.81*'Summary calculation'!$E$14*(YK24-YJ24),0) -> 0 | YL25: =IF(YK25-9.81*'Summary calculation'!$E$14*(YL24-YK24)>=0,YK25-9.81*'Summary calculation'!$E$14*(YL24-YK24),0) -> 0 | YM25: =IF(YL25-9.81*'Summary calculation'!$E$14*(YM24-YL24)>=0,YL25-9.81*'Summary calculation'!$E$14*(YM24-YL24),0) -> 0 | YN25: =IF(YM25-9.81*'Summary calculation'!$E$14*(YN24-YM24)>=0,YM25-9.81*'Summary calculation'!$E$14*(YN24-YM24),0) -> 0 | YO25: =IF(YN25-9.81*'Summary calculation'!$E$14*(YO24-YN24)>=0,YN25-9.81*'Summary calculation'!$E$14*(YO24-YN24),0) -> 0 | YP25: =IF(YO25-9.81*'Summary calculation'!$E$14*(YP24-YO24)>=0,YO25-9.81*'Summary calculation'!$E$14*(YP24-YO24),0) -> 0 | YQ25: =IF(YP25-9.81*'Summary calculation'!$E$14*(YQ24-YP24)>=0,YP25-9.81*'Summary calculation'!$E$14*(YQ24-YP24),0) -> 0 | YR25: =IF(YQ25-9.81*'Summary calculation'!$E$14*(YR24-YQ24)>=0,YQ25-9.81*'Summary calculation'!$E$14*(YR24-YQ24),0) -> 0 | YS25: =IF(YR25-9.81*'Summary calculation'!$E$14*(YS24-YR24)>=0,YR25-9.81*'Summary calculation'!$E$14*(YS24-YR24),0) -> 0 | YT25: =IF(YS25-9.81*'Summary calculation'!$E$14*(YT24-YS24)>=0,YS25-9.81*'Summary calculation'!$E$14*(YT24-YS24),0) -> 0 | YU25: =IF(YT25-9.81*'Summary calculation'!$E$14*(YU24-YT24)>=0,YT25-9.81*'Summary calculation'!$E$14*(YU24-YT24),0) -> 0 | YV25: =IF(YU25-9.81*'Summary calculation'!$E$14*(YV24-YU24)>=0,YU25-9.81*'Summary calculation'!$E$14*(YV24-YU24),0) -> 0 | YW25: =IF(YV25-9.81*'Summary calculation'!$E$14*(YW24-YV24)>=0,YV25-9.81*'Summary calculation'!$E$14*(YW24-YV24),0) -> 0 | YX25: =IF(YW25-9.81*'Summary calculation'!$E$14*(YX24-YW24)>=0,YW25-9.81*'Summary calculation'!$E$14*(YX24-YW24),0) -> 0 | YY25: =IF(YX25-9.81*'Summary calculation'!$E$14*(YY24-YX24)>=0,YX25-9.81*'Summary calculation'!$E$14*(YY24-YX24),0) -> 0 | YZ25: =IF(YY25-9.81*'Summary calculation'!$E$14*(YZ24-YY24)>=0,YY25-9.81*'Summary calculation'!$E$14*(YZ24-YY24),0) -> 0 | ZA25: =IF(YZ25-9.81*'Summary calculation'!$E$14*(ZA24-YZ24)>=0,YZ25-9.81*'Summary calculation'!$E$14*(ZA24-YZ24),0) -> 0 | ZB25: =IF(ZA25-9.81*'Summary calculation'!$E$14*(ZB24-ZA24)>=0,ZA25-9.81*'Summary calculation'!$E$14*(ZB24-ZA24),0) -> 0 | ZC25: =IF(ZB25-9.81*'Summary calculation'!$E$14*(ZC24-ZB24)>=0,ZB25-9.81*'Summary calculation'!$E$14*(ZC24-ZB24),0) -> 0 | ZD25: =IF(ZC25-9.81*'Summary calculation'!$E$14*(ZD24-ZC24)>=0,ZC25-9.81*'Summary calculation'!$E$14*(ZD24-ZC24),0) -> 0 | ZE25: =IF(ZD25-9.81*'Summary calculation'!$E$14*(ZE24-ZD24)>=0,ZD25-9.81*'Summary calculation'!$E$14*(ZE24-ZD24),0) -> 0 | ZF25: =IF(ZE25-9.81*'Summary calculation'!$E$14*(ZF24-ZE24)>=0,ZE25-9.81*'Summary calculation'!$E$14*(ZF24-ZE24),0) -> 0 | ZG25: =IF(ZF25-9.81*'Summary calculation'!$E$14*(ZG24-ZF24)>=0,ZF25-9.81*'Summary calculation'!$E$14*(ZG24-ZF24),0) -> 0 | ZH25: =IF(ZG25-9.81*'Summary calculation'!$E$14*(ZH24-ZG24)>=0,ZG25-9.81*'Summary calculation'!$E$14*(ZH24-ZG24),0) -> 0 | ZI25: =IF(ZH25-9.81*'Summary calculation'!$E$14*(ZI24-ZH24)>=0,ZH25-9.81*'Summary calculation'!$E$14*(ZI24-ZH24),0) -> 0 | ZJ25: =IF(ZI25-9.81*'Summary calculation'!$E$14*(ZJ24-ZI24)>=0,ZI25-9.81*'Summary calculation'!$E$14*(ZJ24-ZI24),0) -> 0 | ZK25: =IF(ZJ25-9.81*'Summary calculation'!$E$14*(ZK24-ZJ24)>=0,ZJ25-9.81*'Summary calculation'!$E$14*(ZK24-ZJ24),0) -> 0 | ZL25: =IF(ZK25-9.81*'Summary calculation'!$E$14*(ZL24-ZK24)>=0,ZK25-9.81*'Summary calculation'!$E$14*(ZL24-ZK24),0) -> 0 | ZM25: =IF(ZL25-9.81*'Summary calculation'!$E$14*(ZM24-ZL24)>=0,ZL25-9.81*'Summary calculation'!$E$14*(ZM24-ZL24),0) -> 0 | ZN25: =IF(ZM25-9.81*'Summary calculation'!$E$14*(ZN24-ZM24)>=0,ZM25-9.81*'Summary calculation'!$E$14*(ZN24-ZM24),0) -> 0 | ZO25: =IF(ZN25-9.81*'Summary calculation'!$E$14*(ZO24-ZN24)>=0,ZN25-9.81*'Summary calculation'!$E$14*(ZO24-ZN24),0) -> 0 | ZP25: =IF(ZO25-9.81*'Summary calculation'!$E$14*(ZP24-ZO24)>=0,ZO25-9.81*'Summary calculation'!$E$14*(ZP24-ZO24),0) -> 0 | ZQ25: =IF(ZP25-9.81*'Summary calculation'!$E$14*(ZQ24-ZP24)>=0,ZP25-9.81*'Summary calculation'!$E$14*(ZQ24-ZP24),0) -> 0 | ZR25: =IF(ZQ25-9.81*'Summary calculation'!$E$14*(ZR24-ZQ24)>=0,ZQ25-9.81*'Summary calculation'!$E$14*(ZR24-ZQ24),0) -> 0 | ZS25: =IF(ZR25-9.81*'Summary calculation'!$E$14*(ZS24-ZR24)>=0,ZR25-9.81*'Summary calculation'!$E$14*(ZS24-ZR24),0) -> 0 | ZT25: =IF(ZS25-9.81*'Summary calculation'!$E$14*(ZT24-ZS24)>=0,ZS25-9.81*'Summary calculation'!$E$14*(ZT24-ZS24),0) -> 0 | ZU25: =IF(ZT25-9.81*'Summary calculation'!$E$14*(ZU24-ZT24)>=0,ZT25-9.81*'Summary calculation'!$E$14*(ZU24-ZT24),0) -> 0 | ZV25: =IF(ZU25-9.81*'Summary calculation'!$E$14*(ZV24-ZU24)>=0,ZU25-9.81*'Summary calculation'!$E$14*(ZV24-ZU24),0) -> 0 | ZW25: =IF(ZV25-9.81*'Summary calculation'!$E$14*(ZW24-ZV24)>=0,ZV25-9.81*'Summary calculation'!$E$14*(ZW24-ZV24),0) -> 0 | ZX25: =IF(ZW25-9.81*'Summary calculation'!$E$14*(ZX24-ZW24)>=0,ZW25-9.81*'Summary calculation'!$E$14*(ZX24-ZW24),0) -> 0 | ZY25: =IF(ZX25-9.81*'Summary calculation'!$E$14*(ZY24-ZX24)>=0,ZX25-9.81*'Summary calculation'!$E$14*(ZY24-ZX24),0) -> 0 | ZZ25: =IF(ZY25-9.81*'Summary calculation'!$E$14*(ZZ24-ZY24)>=0,ZY25-9.81*'Summary calculation'!$E$14*(ZZ24-ZY24),0) -> 0 | AAA25: =IF(ZZ25-9.81*'Summary calculation'!$E$14*(AAA24-ZZ24)>=0,ZZ25-9.81*'Summary calculation'!$E$14*(AAA24-ZZ24),0) -> 0 | AAB25: =IF(AAA25-9.81*'Summary calculation'!$E$14*(AAB24-AAA24)>=0,AAA25-9.81*'Summary calculation'!$E$14*(AAB24-AAA24),0) -> 0 | AAC25: =IF(AAB25-9.81*'Summary calculation'!$E$14*(AAC24-AAB24)>=0,AAB25-9.81*'Summary calculation'!$E$14*(AAC24-AAB24),0) -> 0 | AAD25: =IF(AAC25-9.81*'Summary calculation'!$E$14*(AAD24-AAC24)>=0,AAC25-9.81*'Summary calculation'!$E$14*(AAD24-AAC24),0) -> 0 | AAE25: =IF(AAD25-9.81*'Summary calculation'!$E$14*(AAE24-AAD24)>=0,AAD25-9.81*'Summary calculation'!$E$14*(AAE24-AAD24),0) -> 0 | AAF25: =IF(AAE25-9.81*'Summary calculation'!$E$14*(AAF24-AAE24)>=0,AAE25-9.81*'Summary calculation'!$E$14*(AAF24-AAE24),0) -> 0 | AAG25: =IF(AAF25-9.81*'Summary calculation'!$E$14*(AAG24-AAF24)>=0,AAF25-9.81*'Summary calculation'!$E$14*(AAG24-AAF24),0) -> 0 | AAH25: =IF(AAG25-9.81*'Summary calculation'!$E$14*(AAH24-AAG24)>=0,AAG25-9.81*'Summary calculation'!$E$14*(AAH24-AAG24),0) -> 0 | AAI25: =IF(AAH25-9.81*'Summary calculation'!$E$14*(AAI24-AAH24)>=0,AAH25-9.81*'Summary calculation'!$E$14*(AAI24-AAH24),0) -> 0 | AAJ25: =IF(AAI25-9.81*'Summary calculation'!$E$14*(AAJ24-AAI24)>=0,AAI25-9.81*'Summary calculation'!$E$14*(AAJ24-AAI24),0) -> 0 | AAK25: =IF(AAJ25-9.81*'Summary calculation'!$E$14*(AAK24-AAJ24)>=0,AAJ25-9.81*'Summary calculation'!$E$14*(AAK24-AAJ24),0) -> 0 | AAL25: =IF(AAK25-9.81*'Summary calculation'!$E$14*(AAL24-AAK24)>=0,AAK25-9.81*'Summary calculation'!$E$14*(AAL24-AAK24),0) -> 0 | AAM25: =IF(AAL25-9.81*'Summary calculation'!$E$14*(AAM24-AAL24)>=0,AAL25-9.81*'Summary calculation'!$E$14*(AAM24-AAL24),0) -> 0 | AAN25: =IF(AAM25-9.81*'Summary calculation'!$E$14*(AAN24-AAM24)>=0,AAM25-9.81*'Summary calculation'!$E$14*(AAN24-AAM24),0) -> 0 | AAO25: =IF(AAN25-9.81*'Summary calculation'!$E$14*(AAO24-AAN24)>=0,AAN25-9.81*'Summary calculation'!$E$14*(AAO24-AAN24),0) -> 0 | AAP25: =IF(AAO25-9.81*'Summary calculation'!$E$14*(AAP24-AAO24)>=0,AAO25-9.81*'Summary calculation'!$E$14*(AAP24-AAO24),0) -> 0 | AAQ25: =IF(AAP25-9.81*'Summary calculation'!$E$14*(AAQ24-AAP24)>=0,AAP25-9.81*'Summary calculation'!$E$14*(AAQ24-AAP24),0) -> 0 | AAR25: =IF(AAQ25-9.81*'Summary calculation'!$E$14*(AAR24-AAQ24)>=0,AAQ25-9.81*'Summary calculation'!$E$14*(AAR24-AAQ24),0) -> 0 | AAS25: =IF(AAR25-9.81*'Summary calculation'!$E$14*(AAS24-AAR24)>=0,AAR25-9.81*'Summary calculation'!$E$14*(AAS24-AAR24),0) -> 0 | AAT25: =IF(AAS25-9.81*'Summary calculation'!$E$14*(AAT24-AAS24)>=0,AAS25-9.81*'Summary calculation'!$E$14*(AAT24-AAS24),0) -> 0 | AAU25: =IF(AAT25-9.81*'Summary calculation'!$E$14*(AAU24-AAT24)>=0,AAT25-9.81*'Summary calculation'!$E$14*(AAU24-AAT24),0) -> 0 | AAV25: =IF(AAU25-9.81*'Summary calculation'!$E$14*(AAV24-AAU24)>=0,AAU25-9.81*'Summary calculation'!$E$14*(AAV24-AAU24),0) -> 0 | AAW25: =IF(AAV25-9.81*'Summary calculation'!$E$14*(AAW24-AAV24)>=0,AAV25-9.81*'Summary calculation'!$E$14*(AAW24-AAV24),0) -> 0 | AAX25: =IF(AAW25-9.81*'Summary calculation'!$E$14*(AAX24-AAW24)>=0,AAW25-9.81*'Summary calculation'!$E$14*(AAX24-AAW24),0) -> 0 | AAY25: =IF(AAX25-9.81*'Summary calculation'!$E$14*(AAY24-AAX24)>=0,AAX25-9.81*'Summary calculation'!$E$14*(AAY24-AAX24),0) -> 0 | AAZ25: =IF(AAY25-9.81*'Summary calculation'!$E$14*(AAZ24-AAY24)>=0,AAY25-9.81*'Summary calculation'!$E$14*(AAZ24-AAY24),0) -> 0 | ABA25: =IF(AAZ25-9.81*'Summary calculation'!$E$14*(ABA24-AAZ24)>=0,AAZ25-9.81*'Summary calculation'!$E$14*(ABA24-AAZ24),0) -> 0 | ABB25: =IF(ABA25-9.81*'Summary calculation'!$E$14*(ABB24-ABA24)>=0,ABA25-9.81*'Summary calculation'!$E$14*(ABB24-ABA24),0) -> 0 | ABC25: =IF(ABB25-9.81*'Summary calculation'!$E$14*(ABC24-ABB24)>=0,ABB25-9.81*'Summary calculation'!$E$14*(ABC24-ABB24),0) -> 0 | ABD25: =IF(ABC25-9.81*'Summary calculation'!$E$14*(ABD24-ABC24)>=0,ABC25-9.81*'Summary calculation'!$E$14*(ABD24-ABC24),0) -> 0 | ABE25: =IF(ABD25-9.81*'Summary calculation'!$E$14*(ABE24-ABD24)>=0,ABD25-9.81*'Summary calculation'!$E$14*(ABE24-ABD24),0) -> 0 | ABF25: =IF(ABE25-9.81*'Summary calculation'!$E$14*(ABF24-ABE24)>=0,ABE25-9.81*'Summary calculation'!$E$14*(ABF24-ABE24),0) -> 0 | ABG25: =IF(ABF25-9.81*'Summary calculation'!$E$14*(ABG24-ABF24)>=0,ABF25-9.81*'Summary calculation'!$E$14*(ABG24-ABF24),0) -> 0 | ABH25: =IF(ABG25-9.81*'Summary calculation'!$E$14*(ABH24-ABG24)>=0,ABG25-9.81*'Summary calculation'!$E$14*(ABH24-ABG24),0) -> 0 | ABI25: =IF(ABH25-9.81*'Summary calculation'!$E$14*(ABI24-ABH24)>=0,ABH25-9.81*'Summary calculation'!$E$14*(ABI24-ABH24),0) -> 0 | ABJ25: =IF(ABI25-9.81*'Summary calculation'!$E$14*(ABJ24-ABI24)>=0,ABI25-9.81*'Summary calculation'!$E$14*(ABJ24-ABI24),0) -> 0 | ABK25: =IF(ABJ25-9.81*'Summary calculation'!$E$14*(ABK24-ABJ24)>=0,ABJ25-9.81*'Summary calculation'!$E$14*(ABK24-ABJ24),0) -> 0 | ABL25: =IF(ABK25-9.81*'Summary calculation'!$E$14*(ABL24-ABK24)>=0,ABK25-9.81*'Summary calculation'!$E$14*(ABL24-ABK24),0) -> 0 | ABM25: =IF(ABL25-9.81*'Summary calculation'!$E$14*(ABM24-ABL24)>=0,ABL25-9.81*'Summary calculation'!$E$14*(ABM24-ABL24),0) -> 0 | ABN25: =IF(ABM25-9.81*'Summary calculation'!$E$14*(ABN24-ABM24)>=0,ABM25-9.81*'Summary calculation'!$E$14*(ABN24-ABM24),0) -> 0 | ABO25: =IF(ABN25-9.81*'Summary calculation'!$E$14*(ABO24-ABN24)>=0,ABN25-9.81*'Summary calculation'!$E$14*(ABO24-ABN24),0) -> 0 | ABP25: =IF(ABO25-9.81*'Summary calculation'!$E$14*(ABP24-ABO24)>=0,ABO25-9.81*'Summary calculation'!$E$14*(ABP24-ABO24),0) -> 0 | ABQ25: =IF(ABP25-9.81*'Summary calculation'!$E$14*(ABQ24-ABP24)>=0,ABP25-9.81*'Summary calculation'!$E$14*(ABQ24-ABP24),0) -> 0 | ABR25: =IF(ABQ25-9.81*'Summary calculation'!$E$14*(ABR24-ABQ24)>=0,ABQ25-9.81*'Summary calculation'!$E$14*(ABR24-ABQ24),0) -> 0 | ABS25: =IF(ABR25-9.81*'Summary calculation'!$E$14*(ABS24-ABR24)>=0,ABR25-9.81*'Summary calculation'!$E$14*(ABS24-ABR24),0) -> 0 | ABT25: =IF(ABS25-9.81*'Summary calculation'!$E$14*(ABT24-ABS24)>=0,ABS25-9.81*'Summary calculation'!$E$14*(ABT24-ABS24),0) -> 0 | ABU25: =IF(ABT25-9.81*'Summary calculation'!$E$14*(ABU24-ABT24)>=0,ABT25-9.81*'Summary calculation'!$E$14*(ABU24-ABT24),0) -> 0 | ABV25: =IF(ABU25-9.81*'Summary calculation'!$E$14*(ABV24-ABU24)>=0,ABU25-9.81*'Summary calculation'!$E$14*(ABV24-ABU24),0) -> 0 | ABW25: =IF(ABV25-9.81*'Summary calculation'!$E$14*(ABW24-ABV24)>=0,ABV25-9.81*'Summary calculation'!$E$14*(ABW24-ABV24),0) -> 0 | ABX25: =IF(ABW25-9.81*'Summary calculation'!$E$14*(ABX24-ABW24)>=0,ABW25-9.81*'Summary calculation'!$E$14*(ABX24-ABW24),0) -> 0 | ABY25: =IF(ABX25-9.81*'Summary calculation'!$E$14*(ABY24-ABX24)>=0,ABX25-9.81*'Summary calculation'!$E$14*(ABY24-ABX24),0) -> 0 | ABZ25: =IF(ABY25-9.81*'Summary calculation'!$E$14*(ABZ24-ABY24)>=0,ABY25-9.81*'Summary calculation'!$E$14*(ABZ24-ABY24),0) -> 0 | ACA25: =IF(ABZ25-9.81*'Summary calculation'!$E$14*(ACA24-ABZ24)>=0,ABZ25-9.81*'Summary calculation'!$E$14*(ACA24-ABZ24),0) -> 0 | ACB25: =IF(ACA25-9.81*'Summary calculation'!$E$14*(ACB24-ACA24)>=0,ACA25-9.81*'Summary calculation'!$E$14*(ACB24-ACA24),0) -> 0 | ACC25: =IF(ACB25-9.81*'Summary calculation'!$E$14*(ACC24-ACB24)>=0,ACB25-9.81*'Summary calculation'!$E$14*(ACC24-ACB24),0) -> 0 | ACD25: =IF(ACC25-9.81*'Summary calculation'!$E$14*(ACD24-ACC24)>=0,ACC25-9.81*'Summary calculation'!$E$14*(ACD24-ACC24),0) -> 0 | ACE25: =IF(ACD25-9.81*'Summary calculation'!$E$14*(ACE24-ACD24)>=0,ACD25-9.81*'Summary calculation'!$E$14*(ACE24-ACD24),0) -> 0 | ACF25: =IF(ACE25-9.81*'Summary calculation'!$E$14*(ACF24-ACE24)>=0,ACE25-9.81*'Summary calculation'!$E$14*(ACF24-ACE24),0) -> 0 | ACG25: =IF(ACF25-9.81*'Summary calculation'!$E$14*(ACG24-ACF24)>=0,ACF25-9.81*'Summary calculation'!$E$14*(ACG24-ACF24),0) -> 0 | ACH25: =IF(ACG25-9.81*'Summary calculation'!$E$14*(ACH24-ACG24)>=0,ACG25-9.81*'Summary calculation'!$E$14*(ACH24-ACG24),0) -> 0 | ACI25: =IF(ACH25-9.81*'Summary calculation'!$E$14*(ACI24-ACH24)>=0,ACH25-9.81*'Summary calculation'!$E$14*(ACI24-ACH24),0) -> 0 | ACJ25: =IF(ACI25-9.81*'Summary calculation'!$E$14*(ACJ24-ACI24)>=0,ACI25-9.81*'Summary calculation'!$E$14*(ACJ24-ACI24),0) -> 0 | ACK25: =IF(ACJ25-9.81*'Summary calculation'!$E$14*(ACK24-ACJ24)>=0,ACJ25-9.81*'Summary calculation'!$E$14*(ACK24-ACJ24),0) -> 0 | ACL25: =IF(ACK25-9.81*'Summary calculation'!$E$14*(ACL24-ACK24)>=0,ACK25-9.81*'Summary calculation'!$E$14*(ACL24-ACK24),0) -> 0 | ACM25: =IF(ACL25-9.81*'Summary calculation'!$E$14*(ACM24-ACL24)>=0,ACL25-9.81*'Summary calculation'!$E$14*(ACM24-ACL24),0) -> 0 | ACN25: =IF(ACM25-9.81*'Summary calculation'!$E$14*(ACN24-ACM24)>=0,ACM25-9.81*'Summary calculation'!$E$14*(ACN24-ACM24),0) -> 0 | ACO25: =IF(ACN25-9.81*'Summary calculation'!$E$14*(ACO24-ACN24)>=0,ACN25-9.81*'Summary calculation'!$E$14*(ACO24-ACN24),0) -> 0 | ACP25: =IF(ACO25-9.81*'Summary calculation'!$E$14*(ACP24-ACO24)>=0,ACO25-9.81*'Summary calculation'!$E$14*(ACP24-ACO24),0) -> 0 | ACQ25: =IF(ACP25-9.81*'Summary calculation'!$E$14*(ACQ24-ACP24)>=0,ACP25-9.81*'Summary calculation'!$E$14*(ACQ24-ACP24),0) -> 0 | ACR25: =IF(ACQ25-9.81*'Summary calculation'!$E$14*(ACR24-ACQ24)>=0,ACQ25-9.81*'Summary calculation'!$E$14*(ACR24-ACQ24),0) -> 0 | ACS25: =IF(ACR25-9.81*'Summary calculation'!$E$14*(ACS24-ACR24)>=0,ACR25-9.81*'Summary calculation'!$E$14*(ACS24-ACR24),0) -> 0 | ACT25: =IF(ACS25-9.81*'Summary calculation'!$E$14*(ACT24-ACS24)>=0,ACS25-9.81*'Summary calculation'!$E$14*(ACT24-ACS24),0) -> 0 | ACU25: =IF(ACT25-9.81*'Summary calculation'!$E$14*(ACU24-ACT24)>=0,ACT25-9.81*'Summary calculation'!$E$14*(ACU24-ACT24),0) -> 0 | ACV25: =IF(ACU25-9.81*'Summary calculation'!$E$14*(ACV24-ACU24)>=0,ACU25-9.81*'Summary calculation'!$E$14*(ACV24-ACU24),0) -> 0 | ACW25: =IF(ACV25-9.81*'Summary calculation'!$E$14*(ACW24-ACV24)>=0,ACV25-9.81*'Summary calculation'!$E$14*(ACW24-ACV24),0) -> 0 | ACX25: =IF(ACW25-9.81*'Summary calculation'!$E$14*(ACX24-ACW24)>=0,ACW25-9.81*'Summary calculation'!$E$14*(ACX24-ACW24),0) -> 0 | ACY25: =IF(ACX25-9.81*'Summary calculation'!$E$14*(ACY24-ACX24)>=0,ACX25-9.81*'Summary calculation'!$E$14*(ACY24-ACX24),0) -> 0 | ACZ25: =IF(ACY25-9.81*'Summary calculation'!$E$14*(ACZ24-ACY24)>=0,ACY25-9.81*'Summary calculation'!$E$14*(ACZ24-ACY24),0) -> 0 | ADA25: =IF(ACZ25-9.81*'Summary calculation'!$E$14*(ADA24-ACZ24)>=0,ACZ25-9.81*'Summary calculation'!$E$14*(ADA24-ACZ24),0) -> 0 | ADB25: =IF(ADA25-9.81*'Summary calculation'!$E$14*(ADB24-ADA24)>=0,ADA25-9.81*'Summary calculation'!$E$14*(ADB24-ADA24),0) -> 0 | ADC25: =IF(ADB25-9.81*'Summary calculation'!$E$14*(ADC24-ADB24)>=0,ADB25-9.81*'Summary calculation'!$E$14*(ADC24-ADB24),0) -> 0 | ADD25: =IF(ADC25-9.81*'Summary calculation'!$E$14*(ADD24-ADC24)>=0,ADC25-9.81*'Summary calculation'!$E$14*(ADD24-ADC24),0) -> 0 | ADE25: =IF(ADD25-9.81*'Summary calculation'!$E$14*(ADE24-ADD24)>=0,ADD25-9.81*'Summary calculation'!$E$14*(ADE24-ADD24),0) -> 0 | ADF25: =IF(ADE25-9.81*'Summary calculation'!$E$14*(ADF24-ADE24)>=0,ADE25-9.81*'Summary calculation'!$E$14*(ADF24-ADE24),0) -> 0 | ADG25: =IF(ADF25-9.81*'Summary calculation'!$E$14*(ADG24-ADF24)>=0,ADF25-9.81*'Summary calculation'!$E$14*(ADG24-ADF24),0) -> 0 | ADH25: =IF(ADG25-9.81*'Summary calculation'!$E$14*(ADH24-ADG24)>=0,ADG25-9.81*'Summary calculation'!$E$14*(ADH24-ADG24),0) -> 0 | ADI25: =IF(ADH25-9.81*'Summary calculation'!$E$14*(ADI24-ADH24)>=0,ADH25-9.81*'Summary calculation'!$E$14*(ADI24-ADH24),0) -> 0 | ADJ25: =IF(ADI25-9.81*'Summary calculation'!$E$14*(ADJ24-ADI24)>=0,ADI25-9.81*'Summary calculation'!$E$14*(ADJ24-ADI24),0) -> 0 | ADK25: =IF(ADJ25-9.81*'Summary calculation'!$E$14*(ADK24-ADJ24)>=0,ADJ25-9.81*'Summary calculation'!$E$14*(ADK24-ADJ24),0) -> 0 | ADL25: =IF(ADK25-9.81*'Summary calculation'!$E$14*(ADL24-ADK24)>=0,ADK25-9.81*'Summary calculation'!$E$14*(ADL24-ADK24),0) -> 0 | ADM25: =IF(ADL25-9.81*'Summary calculation'!$E$14*(ADM24-ADL24)>=0,ADL25-9.81*'Summary calculation'!$E$14*(ADM24-ADL24),0) -> 0 | ADN25: =IF(ADM25-9.81*'Summary calculation'!$E$14*(ADN24-ADM24)>=0,ADM25-9.81*'Summary calculation'!$E$14*(ADN24-ADM24),0) -> 0 | ADO25: =IF(ADN25-9.81*'Summary calculation'!$E$14*(ADO24-ADN24)>=0,ADN25-9.81*'Summary calculation'!$E$14*(ADO24-ADN24),0) -> 0 | ADP25: =IF(ADO25-9.81*'Summary calculation'!$E$14*(ADP24-ADO24)>=0,ADO25-9.81*'Summary calculation'!$E$14*(ADP24-ADO24),0) -> 0 | ADQ25: =IF(ADP25-9.81*'Summary calculation'!$E$14*(ADQ24-ADP24)>=0,ADP25-9.81*'Summary calculation'!$E$14*(ADQ24-ADP24),0) -> 0 | ADR25: =IF(ADQ25-9.81*'Summary calculation'!$E$14*(ADR24-ADQ24)>=0,ADQ25-9.81*'Summary calculation'!$E$14*(ADR24-ADQ24),0) -> 0 | ADS25: =IF(ADR25-9.81*'Summary calculation'!$E$14*(ADS24-ADR24)>=0,ADR25-9.81*'Summary calculation'!$E$14*(ADS24-ADR24),0) -> 0 | ADT25: =IF(ADS25-9.81*'Summary calculation'!$E$14*(ADT24-ADS24)>=0,ADS25-9.81*'Summary calculation'!$E$14*(ADT24-ADS24),0) -> 0 | ADU25: =IF(ADT25-9.81*'Summary calculation'!$E$14*(ADU24-ADT24)>=0,ADT25-9.81*'Summary calculation'!$E$14*(ADU24-ADT24),0) -> 0 | ADV25: =IF(ADU25-9.81*'Summary calculation'!$E$14*(ADV24-ADU24)>=0,ADU25-9.81*'Summary calculation'!$E$14*(ADV24-ADU24),0) -> 0 | ADW25: =IF(ADV25-9.81*'Summary calculation'!$E$14*(ADW24-ADV24)>=0,ADV25-9.81*'Summary calculation'!$E$14*(ADW24-ADV24),0) -> 0 | ADX25: =IF(ADW25-9.81*'Summary calculation'!$E$14*(ADX24-ADW24)>=0,ADW25-9.81*'Summary calculation'!$E$14*(ADX24-ADW24),0) -> 0 | ADY25: =IF(ADX25-9.81*'Summary calculation'!$E$14*(ADY24-ADX24)>=0,ADX25-9.81*'Summary calculation'!$E$14*(ADY24-ADX24),0) -> 0 | ADZ25: =IF(ADY25-9.81*'Summary calculation'!$E$14*(ADZ24-ADY24)>=0,ADY25-9.81*'Summary calculation'!$E$14*(ADZ24-ADY24),0) -> 0 | AEA25: =IF(ADZ25-9.81*'Summary calculation'!$E$14*(AEA24-ADZ24)>=0,ADZ25-9.81*'Summary calculation'!$E$14*(AEA24-ADZ24),0) -> 0 | AEB25: =IF(AEA25-9.81*'Summary calculation'!$E$14*(AEB24-AEA24)>=0,AEA25-9.81*'Summary calculation'!$E$14*(AEB24-AEA24),0) -> 0 | AEC25: =IF(AEB25-9.81*'Summary calculation'!$E$14*(AEC24-AEB24)>=0,AEB25-9.81*'Summary calculation'!$E$14*(AEC24-AEB24),0) -> 0 | AED25: =IF(AEC25-9.81*'Summary calculation'!$E$14*(AED24-AEC24)>=0,AEC25-9.81*'Summary calculation'!$E$14*(AED24-AEC24),0) -> 0 | AEE25: =IF(AED25-9.81*'Summary calculation'!$E$14*(AEE24-AED24)>=0,AED25-9.81*'Summary calculation'!$E$14*(AEE24-AED24),0) -> 0 | AEF25: =IF(AEE25-9.81*'Summary calculation'!$E$14*(AEF24-AEE24)>=0,AEE25-9.81*'Summary calculation'!$E$14*(AEF24-AEE24),0) -> 0 | AEG25: =IF(AEF25-9.81*'Summary calculation'!$E$14*(AEG24-AEF24)>=0,AEF25-9.81*'Summary calculation'!$E$14*(AEG24-AEF24),0) -> 0 | AEH25: =IF(AEG25-9.81*'Summary calculation'!$E$14*(AEH24-AEG24)>=0,AEG25-9.81*'Summary calculation'!$E$14*(AEH24-AEG24),0) -> 0 | AEI25: =IF(AEH25-9.81*'Summary calculation'!$E$14*(AEI24-AEH24)>=0,AEH25-9.81*'Summary calculation'!$E$14*(AEI24-AEH24),0) -> 0 | AEJ25: =IF(AEI25-9.81*'Summary calculation'!$E$14*(AEJ24-AEI24)>=0,AEI25-9.81*'Summary calculation'!$E$14*(AEJ24-AEI24),0) -> 0 | AEK25: =IF(AEJ25-9.81*'Summary calculation'!$E$14*(AEK24-AEJ24)>=0,AEJ25-9.81*'Summary calculation'!$E$14*(AEK24-AEJ24),0) -> 0 | AEL25: =IF(AEK25-9.81*'Summary calculation'!$E$14*(AEL24-AEK24)>=0,AEK25-9.81*'Summary calculation'!$E$14*(AEL24-AEK24),0) -> 0 | AEM25: =IF(AEL25-9.81*'Summary calculation'!$E$14*(AEM24-AEL24)>=0,AEL25-9.81*'Summary calculation'!$E$14*(AEM24-AEL24),0) -> 0 | AEN25: =IF(AEM25-9.81*'Summary calculation'!$E$14*(AEN24-AEM24)>=0,AEM25-9.81*'Summary calculation'!$E$14*(AEN24-AEM24),0) -> 0 | AEO25: =IF(AEN25-9.81*'Summary calculation'!$E$14*(AEO24-AEN24)>=0,AEN25-9.81*'Summary calculation'!$E$14*(AEO24-AEN24),0) -> 0 | AEP25: =IF(AEO25-9.81*'Summary calculation'!$E$14*(AEP24-AEO24)>=0,AEO25-9.81*'Summary calculation'!$E$14*(AEP24-AEO24),0) -> 0 | AEQ25: =IF(AEP25-9.81*'Summary calculation'!$E$14*(AEQ24-AEP24)>=0,AEP25-9.81*'Summary calculation'!$E$14*(AEQ24-AEP24),0) -> 0 | AER25: =IF(AEQ25-9.81*'Summary calculation'!$E$14*(AER24-AEQ24)>=0,AEQ25-9.81*'Summary calculation'!$E$14*(AER24-AEQ24),0) -> 0 | AES25: =IF(AER25-9.81*'Summary calculation'!$E$14*(AES24-AER24)>=0,AER25-9.81*'Summary calculation'!$E$14*(AES24-AER24),0) -> 0 | AET25: =IF(AES25-9.81*'Summary calculation'!$E$14*(AET24-AES24)>=0,AES25-9.81*'Summary calculation'!$E$14*(AET24-AES24),0) -> 0 | AEU25: =IF(AET25-9.81*'Summary calculation'!$E$14*(AEU24-AET24)>=0,AET25-9.81*'Summary calculation'!$E$14*(AEU24-AET24),0) -> 0 | AEV25: =IF(AEU25-9.81*'Summary calculation'!$E$14*(AEV24-AEU24)>=0,AEU25-9.81*'Summary calculation'!$E$14*(AEV24-AEU24),0) -> 0 | AEW25: =IF(AEV25-9.81*'Summary calculation'!$E$14*(AEW24-AEV24)>=0,AEV25-9.81*'Summary calculation'!$E$14*(AEW24-AEV24),0) -> 0 | AEX25: =IF(AEW25-9.81*'Summary calculation'!$E$14*(AEX24-AEW24)>=0,AEW25-9.81*'Summary calculation'!$E$14*(AEX24-AEW24),0) -> 0 | AEY25: =IF(AEX25-9.81*'Summary calculation'!$E$14*(AEY24-AEX24)>=0,AEX25-9.81*'Summary calculation'!$E$14*(AEY24-AEX24),0) -> 0 | AEZ25: =IF(AEY25-9.81*'Summary calculation'!$E$14*(AEZ24-AEY24)>=0,AEY25-9.81*'Summary calculation'!$E$14*(AEZ24-AEY24),0) -> 0 | AFA25: =IF(AEZ25-9.81*'Summary calculation'!$E$14*(AFA24-AEZ24)>=0,AEZ25-9.81*'Summary calculation'!$E$14*(AFA24-AEZ24),0) -> 0 | AFB25: =IF(AFA25-9.81*'Summary calculation'!$E$14*(AFB24-AFA24)>=0,AFA25-9.81*'Summary calculation'!$E$14*(AFB24-AFA24),0) -> 0 | AFC25: =IF(AFB25-9.81*'Summary calculation'!$E$14*(AFC24-AFB24)>=0,AFB25-9.81*'Summary calculation'!$E$14*(AFC24-AFB24),0) -> 0 | AFD25: =IF(AFC25-9.81*'Summary calculation'!$E$14*(AFD24-AFC24)>=0,AFC25-9.81*'Summary calculation'!$E$14*(AFD24-AFC24),0) -> 0 | AFE25: =IF(AFD25-9.81*'Summary calculation'!$E$14*(AFE24-AFD24)>=0,AFD25-9.81*'Summary calculation'!$E$14*(AFE24-AFD24),0) -> 0 | AFF25: =IF(AFE25-9.81*'Summary calculation'!$E$14*(AFF24-AFE24)>=0,AFE25-9.81*'Summary calculation'!$E$14*(AFF24-AFE24),0) -> 0 | AFG25: =IF(AFF25-9.81*'Summary calculation'!$E$14*(AFG24-AFF24)>=0,AFF25-9.81*'Summary calculation'!$E$14*(AFG24-AFF24),0) -> 0 | AFH25: =IF(AFG25-9.81*'Summary calculation'!$E$14*(AFH24-AFG24)>=0,AFG25-9.81*'Summary calculation'!$E$14*(AFH24-AFG24),0) -> 0 | AFI25: =IF(AFH25-9.81*'Summary calculation'!$E$14*(AFI24-AFH24)>=0,AFH25-9.81*'Summary calculation'!$E$14*(AFI24-AFH24),0) -> 0 | AFJ25: =IF(AFI25-9.81*'Summary calculation'!$E$14*(AFJ24-AFI24)>=0,AFI25-9.81*'Summary calculation'!$E$14*(AFJ24-AFI24),0) -> 0 | AFK25: =IF(AFJ25-9.81*'Summary calculation'!$E$14*(AFK24-AFJ24)>=0,AFJ25-9.81*'Summary calculation'!$E$14*(AFK24-AFJ24),0) -> 0 | AFL25: =IF(AFK25-9.81*'Summary calculation'!$E$14*(AFL24-AFK24)>=0,AFK25-9.81*'Summary calculation'!$E$14*(AFL24-AFK24),0) -> 0 | AFM25: =IF(AFL25-9.81*'Summary calculation'!$E$14*(AFM24-AFL24)>=0,AFL25-9.81*'Summary calculation'!$E$14*(AFM24-AFL24),0) -> 0 | AFN25: =IF(AFM25-9.81*'Summary calculation'!$E$14*(AFN24-AFM24)>=0,AFM25-9.81*'Summary calculation'!$E$14*(AFN24-AFM24),0) -> 0 | AFO25: =IF(AFN25-9.81*'Summary calculation'!$E$14*(AFO24-AFN24)>=0,AFN25-9.81*'Summary calculation'!$E$14*(AFO24-AFN24),0) -> 0 | AFP25: =IF(AFO25-9.81*'Summary calculation'!$E$14*(AFP24-AFO24)>=0,AFO25-9.81*'Summary calculation'!$E$14*(AFP24-AFO24),0) -> 0 | AFQ25: =IF(AFP25-9.81*'Summary calculation'!$E$14*(AFQ24-AFP24)>=0,AFP25-9.81*'Summary calculation'!$E$14*(AFQ24-AFP24),0) -> 0 | AFR25: =IF(AFQ25-9.81*'Summary calculation'!$E$14*(AFR24-AFQ24)>=0,AFQ25-9.81*'Summary calculation'!$E$14*(AFR24-AFQ24),0) -> 0 | AFS25: =IF(AFR25-9.81*'Summary calculation'!$E$14*(AFS24-AFR24)>=0,AFR25-9.81*'Summary calculation'!$E$14*(AFS24-AFR24),0) -> 0 | AFT25: =IF(AFS25-9.81*'Summary calculation'!$E$14*(AFT24-AFS24)>=0,AFS25-9.81*'Summary calculation'!$E$14*(AFT24-AFS24),0) -> 0 | AFU25: =IF(AFT25-9.81*'Summary calculation'!$E$14*(AFU24-AFT24)>=0,AFT25-9.81*'Summary calculation'!$E$14*(AFU24-AFT24),0) -> 0 | AFV25: =IF(AFU25-9.81*'Summary calculation'!$E$14*(AFV24-AFU24)>=0,AFU25-9.81*'Summary calculation'!$E$14*(AFV24-AFU24),0) -> 0 | AFW25: =IF(AFV25-9.81*'Summary calculation'!$E$14*(AFW24-AFV24)>=0,AFV25-9.81*'Summary calculation'!$E$14*(AFW24-AFV24),0) -> 0 | AFX25: =IF(AFW25-9.81*'Summary calculation'!$E$14*(AFX24-AFW24)>=0,AFW25-9.81*'Summary calculation'!$E$14*(AFX24-AFW24),0) -> 0 | AFY25: =IF(AFX25-9.81*'Summary calculation'!$E$14*(AFY24-AFX24)>=0,AFX25-9.81*'Summary calculation'!$E$14*(AFY24-AFX24),0) -> 0 | AFZ25: =IF(AFY25-9.81*'Summary calculation'!$E$14*(AFZ24-AFY24)>=0,AFY25-9.81*'Summary calculation'!$E$14*(AFZ24-AFY24),0) -> 0 | AGA25: =IF(AFZ25-9.81*'Summary calculation'!$E$14*(AGA24-AFZ24)>=0,AFZ25-9.81*'Summary calculation'!$E$14*(AGA24-AFZ24),0) -> 0 | AGB25: =IF(AGA25-9.81*'Summary calculation'!$E$14*(AGB24-AGA24)>=0,AGA25-9.81*'Summary calculation'!$E$14*(AGB24-AGA24),0) -> 0 | AGC25: =IF(AGB25-9.81*'Summary calculation'!$E$14*(AGC24-AGB24)>=0,AGB25-9.81*'Summary calculation'!$E$14*(AGC24-AGB24),0) -> 0 | AGD25: =IF(AGC25-9.81*'Summary calculation'!$E$14*(AGD24-AGC24)>=0,AGC25-9.81*'Summary calculation'!$E$14*(AGD24-AGC24),0) -> 0 | AGE25: =IF(AGD25-9.81*'Summary calculation'!$E$14*(AGE24-AGD24)>=0,AGD25-9.81*'Summary calculation'!$E$14*(AGE24-AGD24),0) -> 0 | AGF25: =IF(AGE25-9.81*'Summary calculation'!$E$14*(AGF24-AGE24)>=0,AGE25-9.81*'Summary calculation'!$E$14*(AGF24-AGE24),0) -> 0 | AGG25: =IF(AGF25-9.81*'Summary calculation'!$E$14*(AGG24-AGF24)>=0,AGF25-9.81*'Summary calculation'!$E$14*(AGG24-AGF24),0) -> 0 | AGH25: =IF(AGG25-9.81*'Summary calculation'!$E$14*(AGH24-AGG24)>=0,AGG25-9.81*'Summary calculation'!$E$14*(AGH24-AGG24),0) -> 0 | AGI25: =IF(AGH25-9.81*'Summary calculation'!$E$14*(AGI24-AGH24)>=0,AGH25-9.81*'Summary calculation'!$E$14*(AGI24-AGH24),0) -> 0 | AGJ25: =IF(AGI25-9.81*'Summary calculation'!$E$14*(AGJ24-AGI24)>=0,AGI25-9.81*'Summary calculation'!$E$14*(AGJ24-AGI24),0) -> 0 | AGK25: =IF(AGJ25-9.81*'Summary calculation'!$E$14*(AGK24-AGJ24)>=0,AGJ25-9.81*'Summary calculation'!$E$14*(AGK24-AGJ24),0) -> 0 | AGL25: =IF(AGK25-9.81*'Summary calculation'!$E$14*(AGL24-AGK24)>=0,AGK25-9.81*'Summary calculation'!$E$14*(AGL24-AGK24),0) -> 0 | AGM25: =IF(AGL25-9.81*'Summary calculation'!$E$14*(AGM24-AGL24)>=0,AGL25-9.81*'Summary calculation'!$E$14*(AGM24-AGL24),0) -> 0 | AGN25: =IF(AGM25-9.81*'Summary calculation'!$E$14*(AGN24-AGM24)>=0,AGM25-9.81*'Summary calculation'!$E$14*(AGN24-AGM24),0) -> 0 | AGO25: =IF(AGN25-9.81*'Summary calculation'!$E$14*(AGO24-AGN24)>=0,AGN25-9.81*'Summary calculation'!$E$14*(AGO24-AGN24),0) -> 0 | AGP25: =IF(AGO25-9.81*'Summary calculation'!$E$14*(AGP24-AGO24)>=0,AGO25-9.81*'Summary calculation'!$E$14*(AGP24-AGO24),0) -> 0 | AGQ25: =IF(AGP25-9.81*'Summary calculation'!$E$14*(AGQ24-AGP24)>=0,AGP25-9.81*'Summary calculation'!$E$14*(AGQ24-AGP24),0) -> 0 | AGR25: =IF(AGQ25-9.81*'Summary calculation'!$E$14*(AGR24-AGQ24)>=0,AGQ25-9.81*'Summary calculation'!$E$14*(AGR24-AGQ24),0) -> 0 | AGS25: =IF(AGR25-9.81*'Summary calculation'!$E$14*(AGS24-AGR24)>=0,AGR25-9.81*'Summary calculation'!$E$14*(AGS24-AGR24),0) -> 0 | AGT25: =IF(AGS25-9.81*'Summary calculation'!$E$14*(AGT24-AGS24)>=0,AGS25-9.81*'Summary calculation'!$E$14*(AGT24-AGS24),0) -> 0 | AGU25: =IF(AGT25-9.81*'Summary calculation'!$E$14*(AGU24-AGT24)>=0,AGT25-9.81*'Summary calculation'!$E$14*(AGU24-AGT24),0) -> 0 | AGV25: =IF(AGU25-9.81*'Summary calculation'!$E$14*(AGV24-AGU24)>=0,AGU25-9.81*'Summary calculation'!$E$14*(AGV24-AGU24),0) -> 0 | AGW25: =IF(AGV25-9.81*'Summary calculation'!$E$14*(AGW24-AGV24)>=0,AGV25-9.81*'Summary calculation'!$E$14*(AGW24-AGV24),0) -> 0 | AGX25: =IF(AGW25-9.81*'Summary calculation'!$E$14*(AGX24-AGW24)>=0,AGW25-9.81*'Summary calculation'!$E$14*(AGX24-AGW24),0) -> 0 | AGY25: =IF(AGX25-9.81*'Summary calculation'!$E$14*(AGY24-AGX24)>=0,AGX25-9.81*'Summary calculation'!$E$14*(AGY24-AGX24),0) -> 0 | AGZ25: =IF(AGY25-9.81*'Summary calculation'!$E$14*(AGZ24-AGY24)>=0,AGY25-9.81*'Summary calculation'!$E$14*(AGZ24-AGY24),0) -> 0 | AHA25: =IF(AGZ25-9.81*'Summary calculation'!$E$14*(AHA24-AGZ24)>=0,AGZ25-9.81*'Summary calculation'!$E$14*(AHA24-AGZ24),0) -> 0 | AHB25: =IF(AHA25-9.81*'Summary calculation'!$E$14*(AHB24-AHA24)>=0,AHA25-9.81*'Summary calculation'!$E$14*(AHB24-AHA24),0) -> 0 | AHC25: =IF(AHB25-9.81*'Summary calculation'!$E$14*(AHC24-AHB24)>=0,AHB25-9.81*'Summary calculation'!$E$14*(AHC24-AHB24),0) -> 0 | AHD25: =IF(AHC25-9.81*'Summary calculation'!$E$14*(AHD24-AHC24)>=0,AHC25-9.81*'Summary calculation'!$E$14*(AHD24-AHC24),0) -> 0 | AHE25: =IF(AHD25-9.81*'Summary calculation'!$E$14*(AHE24-AHD24)>=0,AHD25-9.81*'Summary calculation'!$E$14*(AHE24-AHD24),0) -> 0 | AHF25: =IF(AHE25-9.81*'Summary calculation'!$E$14*(AHF24-AHE24)>=0,AHE25-9.81*'Summary calculation'!$E$14*(AHF24-AHE24),0) -> 0 | AHG25: =IF(AHF25-9.81*'Summary calculation'!$E$14*(AHG24-AHF24)>=0,AHF25-9.81*'Summary calculation'!$E$14*(AHG24-AHF24),0) -> 0 | AHH25: =IF(AHG25-9.81*'Summary calculation'!$E$14*(AHH24-AHG24)>=0,AHG25-9.81*'Summary calculation'!$E$14*(AHH24-AHG24),0) -> 0 | AHI25: =IF(AHH25-9.81*'Summary calculation'!$E$14*(AHI24-AHH24)>=0,AHH25-9.81*'Summary calculation'!$E$14*(AHI24-AHH24),0) -> 0 | AHJ25: =IF(AHI25-9.81*'Summary calculation'!$E$14*(AHJ24-AHI24)>=0,AHI25-9.81*'Summary calculation'!$E$14*(AHJ24-AHI24),0) -> 0 | AHK25: =IF(AHJ25-9.81*'Summary calculation'!$E$14*(AHK24-AHJ24)>=0,AHJ25-9.81*'Summary calculation'!$E$14*(AHK24-AHJ24),0) -> 0 | AHL25: =IF(AHK25-9.81*'Summary calculation'!$E$14*(AHL24-AHK24)>=0,AHK25-9.81*'Summary calculation'!$E$14*(AHL24-AHK24),0) -> 0 | AHM25: =IF(AHL25-9.81*'Summary calculation'!$E$14*(AHM24-AHL24)>=0,AHL25-9.81*'Summary calculation'!$E$14*(AHM24-AHL24),0) -> 0 | AHN25: =IF(AHM25-9.81*'Summary calculation'!$E$14*(AHN24-AHM24)>=0,AHM25-9.81*'Summary calculation'!$E$14*(AHN24-AHM24),0) -> 0 | AHO25: =IF(AHN25-9.81*'Summary calculation'!$E$14*(AHO24-AHN24)>=0,AHN25-9.81*'Summary calculation'!$E$14*(AHO24-AHN24),0) -> 0 | AHP25: =IF(AHO25-9.81*'Summary calculation'!$E$14*(AHP24-AHO24)>=0,AHO25-9.81*'Summary calculation'!$E$14*(AHP24-AHO24),0) -> 0 | AHQ25: =IF(AHP25-9.81*'Summary calculation'!$E$14*(AHQ24-AHP24)>=0,AHP25-9.81*'Summary calculation'!$E$14*(AHQ24-AHP24),0) -> 0 | AHR25: =IF(AHQ25-9.81*'Summary calculation'!$E$14*(AHR24-AHQ24)>=0,AHQ25-9.81*'Summary calculation'!$E$14*(AHR24-AHQ24),0) -> 0 | AHS25: =IF(AHR25-9.81*'Summary calculation'!$E$14*(AHS24-AHR24)>=0,AHR25-9.81*'Summary calculation'!$E$14*(AHS24-AHR24),0) -> 0 | AHT25: =IF(AHS25-9.81*'Summary calculation'!$E$14*(AHT24-AHS24)>=0,AHS25-9.81*'Summary calculation'!$E$14*(AHT24-AHS24),0) -> 0 | AHU25: =IF(AHT25-9.81*'Summary calculation'!$E$14*(AHU24-AHT24)>=0,AHT25-9.81*'Summary calculation'!$E$14*(AHU24-AHT24),0) -> 0 | AHV25: =IF(AHU25-9.81*'Summary calculation'!$E$14*(AHV24-AHU24)>=0,AHU25-9.81*'Summary calculation'!$E$14*(AHV24-AHU24),0) -> 0 | AHW25: =IF(AHV25-9.81*'Summary calculation'!$E$14*(AHW24-AHV24)>=0,AHV25-9.81*'Summary calculation'!$E$14*(AHW24-AHV24),0) -> 0 | AHX25: =IF(AHW25-9.81*'Summary calculation'!$E$14*(AHX24-AHW24)>=0,AHW25-9.81*'Summary calculation'!$E$14*(AHX24-AHW24),0) -> 0 | AHY25: =IF(AHX25-9.81*'Summary calculation'!$E$14*(AHY24-AHX24)>=0,AHX25-9.81*'Summary calculation'!$E$14*(AHY24-AHX24),0) -> 0 | AHZ25: =IF(AHY25-9.81*'Summary calculation'!$E$14*(AHZ24-AHY24)>=0,AHY25-9.81*'Summary calculation'!$E$14*(AHZ24-AHY24),0) -> 0 | AIA25: =IF(AHZ25-9.81*'Summary calculation'!$E$14*(AIA24-AHZ24)>=0,AHZ25-9.81*'Summary calculation'!$E$14*(AIA24-AHZ24),0) -> 0 | AIB25: =IF(AIA25-9.81*'Summary calculation'!$E$14*(AIB24-AIA24)>=0,AIA25-9.81*'Summary calculation'!$E$14*(AIB24-AIA24),0) -> 0 | AIC25: =IF(AIB25-9.81*'Summary calculation'!$E$14*(AIC24-AIB24)>=0,AIB25-9.81*'Summary calculation'!$E$14*(AIC24-AIB24),0) -> 0 | AID25: =IF(AIC25-9.81*'Summary calculation'!$E$14*(AID24-AIC24)>=0,AIC25-9.81*'Summary calculation'!$E$14*(AID24-AIC24),0) -> 0 | AIE25: =IF(AID25-9.81*'Summary calculation'!$E$14*(AIE24-AID24)>=0,AID25-9.81*'Summary calculation'!$E$14*(AIE24-AID24),0) -> 0 | AIF25: =IF(AIE25-9.81*'Summary calculation'!$E$14*(AIF24-AIE24)>=0,AIE25-9.81*'Summary calculation'!$E$14*(AIF24-AIE24),0) -> 0 | AIG25: =IF(AIF25-9.81*'Summary calculation'!$E$14*(AIG24-AIF24)>=0,AIF25-9.81*'Summary calculation'!$E$14*(AIG24-AIF24),0) -> 0 | AIH25: =IF(AIG25-9.81*'Summary calculation'!$E$14*(AIH24-AIG24)>=0,AIG25-9.81*'Summary calculation'!$E$14*(AIH24-AIG24),0) -> 0 | AII25: =IF(AIH25-9.81*'Summary calculation'!$E$14*(AII24-AIH24)>=0,AIH25-9.81*'Summary calculation'!$E$14*(AII24-AIH24),0) -> 0 | AIJ25: =IF(AII25-9.81*'Summary calculation'!$E$14*(AIJ24-AII24)>=0,AII25-9.81*'Summary calculation'!$E$14*(AIJ24-AII24),0) -> 0 | AIK25: =IF(AIJ25-9.81*'Summary calculation'!$E$14*(AIK24-AIJ24)>=0,AIJ25-9.81*'Summary calculation'!$E$14*(AIK24-AIJ24),0) -> 0 | AIL25: =IF(AIK25-9.81*'Summary calculation'!$E$14*(AIL24-AIK24)>=0,AIK25-9.81*'Summary calculation'!$E$14*(AIL24-AIK24),0) -> 0 | AIM25: =IF(AIL25-9.81*'Summary calculation'!$E$14*(AIM24-AIL24)>=0,AIL25-9.81*'Summary calculation'!$E$14*(AIM24-AIL24),0) -> 0 | AIN25: =IF(AIM25-9.81*'Summary calculation'!$E$14*(AIN24-AIM24)>=0,AIM25-9.81*'Summary calculation'!$E$14*(AIN24-AIM24),0) -> 0 | AIO25: =IF(AIN25-9.81*'Summary calculation'!$E$14*(AIO24-AIN24)>=0,AIN25-9.81*'Summary calculation'!$E$14*(AIO24-AIN24),0) -> 0 | AIP25: =IF(AIO25-9.81*'Summary calculation'!$E$14*(AIP24-AIO24)>=0,AIO25-9.81*'Summary calculation'!$E$14*(AIP24-AIO24),0) -> 0 | AIQ25: =IF(AIP25-9.81*'Summary calculation'!$E$14*(AIQ24-AIP24)>=0,AIP25-9.81*'Summary calculation'!$E$14*(AIQ24-AIP24),0) -> 0 | AIR25: =IF(AIQ25-9.81*'Summary calculation'!$E$14*(AIR24-AIQ24)>=0,AIQ25-9.81*'Summary calculation'!$E$14*(AIR24-AIQ24),0) -> 0 | AIS25: =IF(AIR25-9.81*'Summary calculation'!$E$14*(AIS24-AIR24)>=0,AIR25-9.81*'Summary calculation'!$E$14*(AIS24-AIR24),0) -> 0 | AIT25: =IF(AIS25-9.81*'Summary calculation'!$E$14*(AIT24-AIS24)>=0,AIS25-9.81*'Summary calculation'!$E$14*(AIT24-AIS24),0) -> 0 | AIU25: =IF(AIT25-9.81*'Summary calculation'!$E$14*(AIU24-AIT24)>=0,AIT25-9.81*'Summary calculation'!$E$14*(AIU24-AIT24),0) -> 0 | AIV25: =IF(AIU25-9.81*'Summary calculation'!$E$14*(AIV24-AIU24)>=0,AIU25-9.81*'Summary calculation'!$E$14*(AIV24-AIU24),0) -> 0 | AIW25: =IF(AIV25-9.81*'Summary calculation'!$E$14*(AIW24-AIV24)>=0,AIV25-9.81*'Summary calculation'!$E$14*(AIW24-AIV24),0) -> 0 | AIX25: =IF(AIW25-9.81*'Summary calculation'!$E$14*(AIX24-AIW24)>=0,AIW25-9.81*'Summary calculation'!$E$14*(AIX24-AIW24),0) -> 0 | AIY25: =IF(AIX25-9.81*'Summary calculation'!$E$14*(AIY24-AIX24)>=0,AIX25-9.81*'Summary calculation'!$E$14*(AIY24-AIX24),0) -> 0 | AIZ25: =IF(AIY25-9.81*'Summary calculation'!$E$14*(AIZ24-AIY24)>=0,AIY25-9.81*'Summary calculation'!$E$14*(AIZ24-AIY24),0) -> 0 | AJA25: =IF(AIZ25-9.81*'Summary calculation'!$E$14*(AJA24-AIZ24)>=0,AIZ25-9.81*'Summary calculation'!$E$14*(AJA24-AIZ24),0) -> 0 | AJB25: =IF(AJA25-9.81*'Summary calculation'!$E$14*(AJB24-AJA24)>=0,AJA25-9.81*'Summary calculation'!$E$14*(AJB24-AJA24),0) -> 0 | AJC25: =IF(AJB25-9.81*'Summary calculation'!$E$14*(AJC24-AJB24)>=0,AJB25-9.81*'Summary calculation'!$E$14*(AJC24-AJB24),0) -> 0 | AJD25: =IF(AJC25-9.81*'Summary calculation'!$E$14*(AJD24-AJC24)>=0,AJC25-9.81*'Summary calculation'!$E$14*(AJD24-AJC24),0) -> 0 | AJE25: =IF(AJD25-9.81*'Summary calculation'!$E$14*(AJE24-AJD24)>=0,AJD25-9.81*'Summary calculation'!$E$14*(AJE24-AJD24),0) -> 0 | AJF25: =IF(AJE25-9.81*'Summary calculation'!$E$14*(AJF24-AJE24)>=0,AJE25-9.81*'Summary calculation'!$E$14*(AJF24-AJE24),0) -> 0 | AJG25: =IF(AJF25-9.81*'Summary calculation'!$E$14*(AJG24-AJF24)>=0,AJF25-9.81*'Summary calculation'!$E$14*(AJG24-AJF24),0) -> 0 | AJH25: =IF(AJG25-9.81*'Summary calculation'!$E$14*(AJH24-AJG24)>=0,AJG25-9.81*'Summary calculation'!$E$14*(AJH24-AJG24),0) -> 0 | AJI25: =IF(AJH25-9.81*'Summary calculation'!$E$14*(AJI24-AJH24)>=0,AJH25-9.81*'Summary calculation'!$E$14*(AJI24-AJH24),0) -> 0 | AJJ25: =IF(AJI25-9.81*'Summary calculation'!$E$14*(AJJ24-AJI24)>=0,AJI25-9.81*'Summary calculation'!$E$14*(AJJ24-AJI24),0) -> 0 | AJK25: =IF(AJJ25-9.81*'Summary calculation'!$E$14*(AJK24-AJJ24)>=0,AJJ25-9.81*'Summary calculation'!$E$14*(AJK24-AJJ24),0) -> 0 | AJL25: =IF(AJK25-9.81*'Summary calculation'!$E$14*(AJL24-AJK24)>=0,AJK25-9.81*'Summary calculation'!$E$14*(AJL24-AJK24),0) -> 0 | AJM25: =IF(AJL25-9.81*'Summary calculation'!$E$14*(AJM24-AJL24)>=0,AJL25-9.81*'Summary calculation'!$E$14*(AJM24-AJL24),0) -> 0 | AJN25: =IF(AJM25-9.81*'Summary calculation'!$E$14*(AJN24-AJM24)>=0,AJM25-9.81*'Summary calculation'!$E$14*(AJN24-AJM24),0) -> 0 | AJO25: =IF(AJN25-9.81*'Summary calculation'!$E$14*(AJO24-AJN24)>=0,AJN25-9.81*'Summary calculation'!$E$14*(AJO24-AJN24),0) -> 0 | AJP25: =IF(AJO25-9.81*'Summary calculation'!$E$14*(AJP24-AJO24)>=0,AJO25-9.81*'Summary calculation'!$E$14*(AJP24-AJO24),0) -> 0 | AJQ25: =IF(AJP25-9.81*'Summary calculation'!$E$14*(AJQ24-AJP24)>=0,AJP25-9.81*'Summary calculation'!$E$14*(AJQ24-AJP24),0) -> 0 | AJR25: =IF(AJQ25-9.81*'Summary calculation'!$E$14*(AJR24-AJQ24)>=0,AJQ25-9.81*'Summary calculation'!$E$14*(AJR24-AJQ24),0) -> 0 | AJS25: =IF(AJR25-9.81*'Summary calculation'!$E$14*(AJS24-AJR24)>=0,AJR25-9.81*'Summary calculation'!$E$14*(AJS24-AJR24),0) -> 0 | AJT25: =IF(AJS25-9.81*'Summary calculation'!$E$14*(AJT24-AJS24)>=0,AJS25-9.81*'Summary calculation'!$E$14*(AJT24-AJS24),0) -> 0 | AJU25: =IF(AJT25-9.81*'Summary calculation'!$E$14*(AJU24-AJT24)>=0,AJT25-9.81*'Summary calculation'!$E$14*(AJU24-AJT24),0) -> 0 | AJV25: =IF(AJU25-9.81*'Summary calculation'!$E$14*(AJV24-AJU24)>=0,AJU25-9.81*'Summary calculation'!$E$14*(AJV24-AJU24),0) -> 0 | AJW25: =IF(AJV25-9.81*'Summary calculation'!$E$14*(AJW24-AJV24)>=0,AJV25-9.81*'Summary calculation'!$E$14*(AJW24-AJV24),0) -> 0 | AJX25: =IF(AJW25-9.81*'Summary calculation'!$E$14*(AJX24-AJW24)>=0,AJW25-9.81*'Summary calculation'!$E$14*(AJX24-AJW24),0) -> 0 | AJY25: =IF(AJX25-9.81*'Summary calculation'!$E$14*(AJY24-AJX24)>=0,AJX25-9.81*'Summary calculation'!$E$14*(AJY24-AJX24),0) -> 0 | AJZ25: =IF(AJY25-9.81*'Summary calculation'!$E$14*(AJZ24-AJY24)>=0,AJY25-9.81*'Summary calculation'!$E$14*(AJZ24-AJY24),0) -> 0 | AKA25: =IF(AJZ25-9.81*'Summary calculation'!$E$14*(AKA24-AJZ24)>=0,AJZ25-9.81*'Summary calculation'!$E$14*(AKA24-AJZ24),0) -> 0 | AKB25: =IF(AKA25-9.81*'Summary calculation'!$E$14*(AKB24-AKA24)>=0,AKA25-9.81*'Summary calculation'!$E$14*(AKB24-AKA24),0) -> 0 | AKC25: =IF(AKB25-9.81*'Summary calculation'!$E$14*(AKC24-AKB24)>=0,AKB25-9.81*'Summary calculation'!$E$14*(AKC24-AKB24),0) -> 0 | AKD25: =IF(AKC25-9.81*'Summary calculation'!$E$14*(AKD24-AKC24)>=0,AKC25-9.81*'Summary calculation'!$E$14*(AKD24-AKC24),0) -> 0 | AKE25: =IF(AKD25-9.81*'Summary calculation'!$E$14*(AKE24-AKD24)>=0,AKD25-9.81*'Summary calculation'!$E$14*(AKE24-AKD24),0) -> 0 | AKF25: =IF(AKE25-9.81*'Summary calculation'!$E$14*(AKF24-AKE24)>=0,AKE25-9.81*'Summary calculation'!$E$14*(AKF24-AKE24),0) -> 0 | AKG25: =IF(AKF25-9.81*'Summary calculation'!$E$14*(AKG24-AKF24)>=0,AKF25-9.81*'Summary calculation'!$E$14*(AKG24-AKF24),0) -> 0 | AKH25: =IF(AKG25-9.81*'Summary calculation'!$E$14*(AKH24-AKG24)>=0,AKG25-9.81*'Summary calculation'!$E$14*(AKH24-AKG24),0) -> 0 | AKI25: =IF(AKH25-9.81*'Summary calculation'!$E$14*(AKI24-AKH24)>=0,AKH25-9.81*'Summary calculation'!$E$14*(AKI24-AKH24),0) -> 0 | AKJ25: =IF(AKI25-9.81*'Summary calculation'!$E$14*(AKJ24-AKI24)>=0,AKI25-9.81*'Summary calculation'!$E$14*(AKJ24-AKI24),0) -> 0 | AKK25: =IF(AKJ25-9.81*'Summary calculation'!$E$14*(AKK24-AKJ24)>=0,AKJ25-9.81*'Summary calculation'!$E$14*(AKK24-AKJ24),0) -> 0 | AKL25: =IF(AKK25-9.81*'Summary calculation'!$E$14*(AKL24-AKK24)>=0,AKK25-9.81*'Summary calculation'!$E$14*(AKL24-AKK24),0) -> 0 | AKM25: =IF(AKL25-9.81*'Summary calculation'!$E$14*(AKM24-AKL24)>=0,AKL25-9.81*'Summary calculation'!$E$14*(AKM24-AKL24),0) -> 0 | AKN25: =IF(AKM25-9.81*'Summary calculation'!$E$14*(AKN24-AKM24)>=0,AKM25-9.81*'Summary calculation'!$E$14*(AKN24-AKM24),0) -> 0 | AKO25: =IF(AKN25-9.81*'Summary calculation'!$E$14*(AKO24-AKN24)>=0,AKN25-9.81*'Summary calculation'!$E$14*(AKO24-AKN24),0) -> 0 | AKP25: =IF(AKO25-9.81*'Summary calculation'!$E$14*(AKP24-AKO24)>=0,AKO25-9.81*'Summary calculation'!$E$14*(AKP24-AKO24),0) -> 0 | AKQ25: =IF(AKP25-9.81*'Summary calculation'!$E$14*(AKQ24-AKP24)>=0,AKP25-9.81*'Summary calculation'!$E$14*(AKQ24-AKP24),0) -> 0 | AKR25: =IF(AKQ25-9.81*'Summary calculation'!$E$14*(AKR24-AKQ24)>=0,AKQ25-9.81*'Summary calculation'!$E$14*(AKR24-AKQ24),0) -> 0 | AKS25: =IF(AKR25-9.81*'Summary calculation'!$E$14*(AKS24-AKR24)>=0,AKR25-9.81*'Summary calculation'!$E$14*(AKS24-AKR24),0) -> 0 | AKT25: =IF(AKS25-9.81*'Summary calculation'!$E$14*(AKT24-AKS24)>=0,AKS25-9.81*'Summary calculation'!$E$14*(AKT24-AKS24),0) -> 0 | AKU25: =IF(AKT25-9.81*'Summary calculation'!$E$14*(AKU24-AKT24)>=0,AKT25-9.81*'Summary calculation'!$E$14*(AKU24-AKT24),0) -> 0 | AKV25: =IF(AKU25-9.81*'Summary calculation'!$E$14*(AKV24-AKU24)>=0,AKU25-9.81*'Summary calculation'!$E$14*(AKV24-AKU24),0) -> 0 | AKW25: =IF(AKV25-9.81*'Summary calculation'!$E$14*(AKW24-AKV24)>=0,AKV25-9.81*'Summary calculation'!$E$14*(AKW24-AKV24),0) -> 0 | AKX25: =IF(AKW25-9.81*'Summary calculation'!$E$14*(AKX24-AKW24)>=0,AKW25-9.81*'Summary calculation'!$E$14*(AKX24-AKW24),0) -> 0 | AKY25: =IF(AKX25-9.81*'Summary calculation'!$E$14*(AKY24-AKX24)>=0,AKX25-9.81*'Summary calculation'!$E$14*(AKY24-AKX24),0) -> 0 | AKZ25: =IF(AKY25-9.81*'Summary calculation'!$E$14*(AKZ24-AKY24)>=0,AKY25-9.81*'Summary calculation'!$E$14*(AKZ24-AKY24),0) -> 0 | ALA25: =IF(AKZ25-9.81*'Summary calculation'!$E$14*(ALA24-AKZ24)>=0,AKZ25-9.81*'Summary calculation'!$E$14*(ALA24-AKZ24),0) -> 0 | ALB25: =IF(ALA25-9.81*'Summary calculation'!$E$14*(ALB24-ALA24)>=0,ALA25-9.81*'Summary calculation'!$E$14*(ALB24-ALA24),0) -> 0 | ALC25: =IF(ALB25-9.81*'Summary calculation'!$E$14*(ALC24-ALB24)>=0,ALB25-9.81*'Summary calculation'!$E$14*(ALC24-ALB24),0) -> 0 | ALD25: =IF(ALC25-9.81*'Summary calculation'!$E$14*(ALD24-ALC24)>=0,ALC25-9.81*'Summary calculation'!$E$14*(ALD24-ALC24),0) -> 0 | ALE25: =IF(ALD25-9.81*'Summary calculation'!$E$14*(ALE24-ALD24)>=0,ALD25-9.81*'Summary calculation'!$E$14*(ALE24-ALD24),0) -> 0 | ALF25: =IF(ALE25-9.81*'Summary calculation'!$E$14*(ALF24-ALE24)>=0,ALE25-9.81*'Summary calculation'!$E$14*(ALF24-ALE24),0) -> 0 | ALG25: =IF(ALF25-9.81*'Summary calculation'!$E$14*(ALG24-ALF24)>=0,ALF25-9.81*'Summary calculation'!$E$14*(ALG24-ALF24),0) -> 0 | ALH25: =IF(ALG25-9.81*'Summary calculation'!$E$14*(ALH24-ALG24)>=0,ALG25-9.81*'Summary calculation'!$E$14*(ALH24-ALG24),0) -> 0 | ALI25: =IF(ALH25-9.81*'Summary calculation'!$E$14*(ALI24-ALH24)>=0,ALH25-9.81*'Summary calculation'!$E$14*(ALI24-ALH24),0) -> 0 | ALJ25: =IF(ALI25-9.81*'Summary calculation'!$E$14*(ALJ24-ALI24)>=0,ALI25-9.81*'Summary calculation'!$E$14*(ALJ24-ALI24),0) -> 0 | ALK25: =IF(ALJ25-9.81*'Summary calculation'!$E$14*(ALK24-ALJ24)>=0,ALJ25-9.81*'Summary calculation'!$E$14*(ALK24-ALJ24),0) -> 0 | ALL25: =IF(ALK25-9.81*'Summary calculation'!$E$14*(ALL24-ALK24)>=0,ALK25-9.81*'Summary calculation'!$E$14*(ALL24-ALK24),0) -> 0 | ALM25: =IF(ALL25-9.81*'Summary calculation'!$E$14*(ALM24-ALL24)>=0,ALL25-9.81*'Summary calculation'!$E$14*(ALM24-ALL24),0) -> 0 | ALN25: =IF(ALM25-9.81*'Summary calculation'!$E$14*(ALN24-ALM24)>=0,ALM25-9.81*'Summary calculation'!$E$14*(ALN24-ALM24),0) -> 0 | ALO25: =IF(ALN25-9.81*'Summary calculation'!$E$14*(ALO24-ALN24)>=0,ALN25-9.81*'Summary calculation'!$E$14*(ALO24-ALN24),0) -> 0 | ALP25: =IF(ALO25-9.81*'Summary calculation'!$E$14*(ALP24-ALO24)>=0,ALO25-9.81*'Summary calculation'!$E$14*(ALP24-ALO24),0) -> 0 | ALQ25: =IF(ALP25-9.81*'Summary calculation'!$E$14*(ALQ24-ALP24)>=0,ALP25-9.81*'Summary calculation'!$E$14*(ALQ24-ALP24),0) -> 0 | ALR25: =IF(ALQ25-9.81*'Summary calculation'!$E$14*(ALR24-ALQ24)>=0,ALQ25-9.81*'Summary calculation'!$E$14*(ALR24-ALQ24),0) -> 0 | ALS25: =IF(ALR25-9.81*'Summary calculation'!$E$14*(ALS24-ALR24)>=0,ALR25-9.81*'Summary calculation'!$E$14*(ALS24-ALR24),0) -> 0 | ALT25: =IF(ALS25-9.81*'Summary calculation'!$E$14*(ALT24-ALS24)>=0,ALS25-9.81*'Summary calculation'!$E$14*(ALT24-ALS24),0) -> 0 | ALU25: =IF(ALT25-9.81*'Summary calculation'!$E$14*(ALU24-ALT24)>=0,ALT25-9.81*'Summary calculation'!$E$14*(ALU24-ALT24),0) -> 0 | ALV25: =IF(ALU25-9.81*'Summary calculation'!$E$14*(ALV24-ALU24)>=0,ALU25-9.81*'Summary calculation'!$E$14*(ALV24-ALU24),0) -> 0 | ALW25: =IF(ALV25-9.81*'Summary calculation'!$E$14*(ALW24-ALV24)>=0,ALV25-9.81*'Summary calculation'!$E$14*(ALW24-ALV24),0) -> 0 | ALX25: =IF(ALW25-9.81*'Summary calculation'!$E$14*(ALX24-ALW24)>=0,ALW25-9.81*'Summary calculation'!$E$14*(ALX24-ALW24),0) -> 0 | ALY25: =IF(ALX25-9.81*'Summary calculation'!$E$14*(ALY24-ALX24)>=0,ALX25-9.81*'Summary calculation'!$E$14*(ALY24-ALX24),0) -> 0 | ALZ25: =IF(ALY25-9.81*'Summary calculation'!$E$14*(ALZ24-ALY24)>=0,ALY25-9.81*'Summary calculation'!$E$14*(ALZ24-ALY24),0) -> 0 | AMA25: =IF(ALZ25-9.81*'Summary calculation'!$E$14*(AMA24-ALZ24)>=0,ALZ25-9.81*'Summary calculation'!$E$14*(AMA24-ALZ24),0) -> 0 | AMB25: =IF(AMA25-9.81*'Summary calculation'!$E$14*(AMB24-AMA24)>=0,AMA25-9.81*'Summary calculation'!$E$14*(AMB24-AMA24),0) -> 0 | AMC25: =IF(AMB25-9.81*'Summary calculation'!$E$14*(AMC24-AMB24)>=0,AMB25-9.81*'Summary calculation'!$E$14*(AMC24-AMB24),0) -> 0 | AMD25: =IF(AMC25-9.81*'Summary calculation'!$E$14*(AMD24-AMC24)>=0,AMC25-9.81*'Summary calculation'!$E$14*(AMD24-AMC24),0) -> 0 | AME25: =IF(AMD25-9.81*'Summary calculation'!$E$14*(AME24-AMD24)>=0,AMD25-9.81*'Summary calculation'!$E$14*(AME24-AMD24),0) -> 0 | AMF25: =IF(AME25-9.81*'Summary calculation'!$E$14*(AMF24-AME24)>=0,AME25-9.81*'Summary calculation'!$E$14*(AMF24-AME24),0) -> 0 | AMG25: =IF(AMF25-9.81*'Summary calculation'!$E$14*(AMG24-AMF24)>=0,AMF25-9.81*'Summary calculation'!$E$14*(AMG24-AMF24),0) -> 0 | AMH25: =IF(AMG25-9.81*'Summary calculation'!$E$14*(AMH24-AMG24)>=0,AMG25-9.81*'Summary calculation'!$E$14*(AMH24-AMG24),0) -> 0 | AMI25: =IF(AMH25-9.81*'Summary calculation'!$E$14*(AMI24-AMH24)>=0,AMH25-9.81*'Summary calculation'!$E$14*(AMI24-AMH24),0) -> 0 | AMJ25: =IF(AMI25-9.81*'Summary calculation'!$E$14*(AMJ24-AMI24)>=0,AMI25-9.81*'Summary calculation'!$E$14*(AMJ24-AMI24),0) -> 0 | AMK25: =IF(AMJ25-9.81*'Summary calculation'!$E$14*(AMK24-AMJ24)>=0,AMJ25-9.81*'Summary calculation'!$E$14*(AMK24-AMJ24),0) -> 0 | AML25: =IF(AMK25-9.81*'Summary calculation'!$E$14*(AML24-AMK24)>=0,AMK25-9.81*'Summary calculation'!$E$14*(AML24-AMK24),0) -> 0 | AMM25: =IF(AML25-9.81*'Summary calculation'!$E$14*(AMM24-AML24)>=0,AML25-9.81*'Summary calculation'!$E$14*(AMM24-AML24),0) -> 0 | AMN25: =IF(AMM25-9.81*'Summary calculation'!$E$14*(AMN24-AMM24)>=0,AMM25-9.81*'Summary calculation'!$E$14*(AMN24-AMM24),0) -> 0 | AMO25: =IF(AMN25-9.81*'Summary calculation'!$E$14*(AMO24-AMN24)>=0,AMN25-9.81*'Summary calculation'!$E$14*(AMO24-AMN24),0) -> 0 | AMP25: =IF(AMO25-9.81*'Summary calculation'!$E$14*(AMP24-AMO24)>=0,AMO25-9.81*'Summary calculation'!$E$14*(AMP24-AMO24),0) -> 0 | AMQ25: =IF(AMP25-9.81*'Summary calculation'!$E$14*(AMQ24-AMP24)>=0,AMP25-9.81*'Summary calculation'!$E$14*(AMQ24-AMP24),0) -> 0 | AMR25: =IF(AMQ25-9.81*'Summary calculation'!$E$14*(AMR24-AMQ24)>=0,AMQ25-9.81*'Summary calculation'!$E$14*(AMR24-AMQ24),0) -> 0 | AMS25: =IF(AMR25-9.81*'Summary calculation'!$E$14*(AMS24-AMR24)>=0,AMR25-9.81*'Summary calculation'!$E$14*(AMS24-AMR24),0) -> 0 | AMT25: =IF(AMS25-9.81*'Summary calculation'!$E$14*(AMT24-AMS24)>=0,AMS25-9.81*'Summary calculation'!$E$14*(AMT24-AMS24),0) -> 0 | AMU25: =IF(AMT25-9.81*'Summary calculation'!$E$14*(AMU24-AMT24)>=0,AMT25-9.81*'Summary calculation'!$E$14*(AMU24-AMT24),0) -> 0 | AMV25: =IF(AMU25-9.81*'Summary calculation'!$E$14*(AMV24-AMU24)>=0,AMU25-9.81*'Summary calculation'!$E$14*(AMV24-AMU24),0) -> 0 | AMW25: =IF(AMV25-9.81*'Summary calculation'!$E$14*(AMW24-AMV24)>=0,AMV25-9.81*'Summary calculation'!$E$14*(AMW24-AMV24),0) -> 0 | AMX25: =IF(AMW25-9.81*'Summary calculation'!$E$14*(AMX24-AMW24)>=0,AMW25-9.81*'Summary calculation'!$E$14*(AMX24-AMW24),0) -> 0 | AMY25: =IF(AMX25-9.81*'Summary calculation'!$E$14*(AMY24-AMX24)>=0,AMX25-9.81*'Summary calculation'!$E$14*(AMY24-AMX24),0) -> 0 | AMZ25: =IF(AMY25-9.81*'Summary calculation'!$E$14*(AMZ24-AMY24)>=0,AMY25-9.81*'Summary calculation'!$E$14*(AMZ24-AMY24),0) -> 0 | ANA25: =IF(AMZ25-9.81*'Summary calculation'!$E$14*(ANA24-AMZ24)>=0,AMZ25-9.81*'Summary calculation'!$E$14*(ANA24-AMZ24),0) -> 0 | ANB25: =IF(ANA25-9.81*'Summary calculation'!$E$14*(ANB24-ANA24)>=0,ANA25-9.81*'Summary calculation'!$E$14*(ANB24-ANA24),0) -> 0 | ANC25: =IF(ANB25-9.81*'Summary calculation'!$E$14*(ANC24-ANB24)>=0,ANB25-9.81*'Summary calculation'!$E$14*(ANC24-ANB24),0) -> 0 | AND25: =IF(ANC25-9.81*'Summary calculation'!$E$14*(AND24-ANC24)>=0,ANC25-9.81*'Summary calculation'!$E$14*(AND24-ANC24),0) -> 0 | ANE25: =IF(AND25-9.81*'Summary calculation'!$E$14*(ANE24-AND24)>=0,AND25-9.81*'Summary calculation'!$E$14*(ANE24-AND24),0) -> 0 | ANF25: =IF(ANE25-9.81*'Summary calculation'!$E$14*(ANF24-ANE24)>=0,ANE25-9.81*'Summary calculation'!$E$14*(ANF24-ANE24),0) -> 0 | ANG25: =IF(ANF25-9.81*'Summary calculation'!$E$14*(ANG24-ANF24)>=0,ANF25-9.81*'Summary calculation'!$E$14*(ANG24-ANF24),0) -> 0 | ANH25: =IF(ANG25-9.81*'Summary calculation'!$E$14*(ANH24-ANG24)>=0,ANG25-9.81*'Summary calculation'!$E$14*(ANH24-ANG24),0) -> 0 | ANI25: =IF(ANH25-9.81*'Summary calculation'!$E$14*(ANI24-ANH24)>=0,ANH25-9.81*'Summary calculation'!$E$14*(ANI24-ANH24),0) -> 0 | ANJ25: =IF(ANI25-9.81*'Summary calculation'!$E$14*(ANJ24-ANI24)>=0,ANI25-9.81*'Summary calculation'!$E$14*(ANJ24-ANI24),0) -> 0 | ANK25: =IF(ANJ25-9.81*'Summary calculation'!$E$14*(ANK24-ANJ24)>=0,ANJ25-9.81*'Summary calculation'!$E$14*(ANK24-ANJ24),0) -> 0 | ANL25: =IF(ANK25-9.81*'Summary calculation'!$E$14*(ANL24-ANK24)>=0,ANK25-9.81*'Summary calculation'!$E$14*(ANL24-ANK24),0) -> 0 | ANM25: =IF(ANL25-9.81*'Summary calculation'!$E$14*(ANM24-ANL24)>=0,ANL25-9.81*'Summary calculation'!$E$14*(ANM24-ANL24),0) -> 0 | ANN25: =IF(ANM25-9.81*'Summary calculation'!$E$14*(ANN24-ANM24)>=0,ANM25-9.81*'Summary calculation'!$E$14*(ANN24-ANM24),0) -> 0 | ANO25: =IF(ANN25-9.81*'Summary calculation'!$E$14*(ANO24-ANN24)>=0,ANN25-9.81*'Summary calculation'!$E$14*(ANO24-ANN24),0) -> 0 | ANP25: =IF(ANO25-9.81*'Summary calculation'!$E$14*(ANP24-ANO24)>=0,ANO25-9.81*'Summary calculation'!$E$14*(ANP24-ANO24),0) -> 0 | ANQ25: =IF(ANP25-9.81*'Summary calculation'!$E$14*(ANQ24-ANP24)>=0,ANP25-9.81*'Summary calculation'!$E$14*(ANQ24-ANP24),0) -> 0 | ANR25: =IF(ANQ25-9.81*'Summary calculation'!$E$14*(ANR24-ANQ24)>=0,ANQ25-9.81*'Summary calculation'!$E$14*(ANR24-ANQ24),0) -> 0 | ANS25: =IF(ANR25-9.81*'Summary calculation'!$E$14*(ANS24-ANR24)>=0,ANR25-9.81*'Summary calculation'!$E$14*(ANS24-ANR24),0) -> 0 | ANT25: =IF(ANS25-9.81*'Summary calculation'!$E$14*(ANT24-ANS24)>=0,ANS25-9.81*'Summary calculation'!$E$14*(ANT24-ANS24),0) -> 0 | ANU25: =IF(ANT25-9.81*'Summary calculation'!$E$14*(ANU24-ANT24)>=0,ANT25-9.81*'Summary calculation'!$E$14*(ANU24-ANT24),0) -> 0 | ANV25: =IF(ANU25-9.81*'Summary calculation'!$E$14*(ANV24-ANU24)>=0,ANU25-9.81*'Summary calculation'!$E$14*(ANV24-ANU24),0) -> 0 | ANW25: =IF(ANV25-9.81*'Summary calculation'!$E$14*(ANW24-ANV24)>=0,ANV25-9.81*'Summary calculation'!$E$14*(ANW24-ANV24),0) -> 0 | ANX25: =IF(ANW25-9.81*'Summary calculation'!$E$14*(ANX24-ANW24)>=0,ANW25-9.81*'Summary calculation'!$E$14*(ANX24-ANW24),0) -> 0 | ANY25: =IF(ANX25-9.81*'Summary calculation'!$E$14*(ANY24-ANX24)>=0,ANX25-9.81*'Summary calculation'!$E$14*(ANY24-ANX24),0) -> 0 | ANZ25: =IF(ANY25-9.81*'Summary calculation'!$E$14*(ANZ24-ANY24)>=0,ANY25-9.81*'Summary calculation'!$E$14*(ANZ24-ANY24),0) -> 0 | AOA25: =IF(ANZ25-9.81*'Summary calculation'!$E$14*(AOA24-ANZ24)>=0,ANZ25-9.81*'Summary calculation'!$E$14*(AOA24-ANZ24),0) -> 0 | AOB25: =IF(AOA25-9.81*'Summary calculation'!$E$14*(AOB24-AOA24)>=0,AOA25-9.81*'Summary calculation'!$E$14*(AOB24-AOA24),0) -> 0 | AOC25: =IF(AOB25-9.81*'Summary calculation'!$E$14*(AOC24-AOB24)>=0,AOB25-9.81*'Summary calculation'!$E$14*(AOC24-AOB24),0) -> 0 | AOD25: =IF(AOC25-9.81*'Summary calculation'!$E$14*(AOD24-AOC24)>=0,AOC25-9.81*'Summary calculation'!$E$14*(AOD24-AOC24),0) -> 0 | AOE25: =IF(AOD25-9.81*'Summary calculation'!$E$14*(AOE24-AOD24)>=0,AOD25-9.81*'Summary calculation'!$E$14*(AOE24-AOD24),0) -> 0 | AOF25: =IF(AOE25-9.81*'Summary calculation'!$E$14*(AOF24-AOE24)>=0,AOE25-9.81*'Summary calculation'!$E$14*(AOF24-AOE24),0) -> 0 | AOG25: =IF(AOF25-9.81*'Summary calculation'!$E$14*(AOG24-AOF24)>=0,AOF25-9.81*'Summary calculation'!$E$14*(AOG24-AOF24),0) -> 0 | AOH25: =IF(AOG25-9.81*'Summary calculation'!$E$14*(AOH24-AOG24)>=0,AOG25-9.81*'Summary calculation'!$E$14*(AOH24-AOG24),0) -> 0 | AOI25: =IF(AOH25-9.81*'Summary calculation'!$E$14*(AOI24-AOH24)>=0,AOH25-9.81*'Summary calculation'!$E$14*(AOI24-AOH24),0) -> 0 | AOJ25: =IF(AOI25-9.81*'Summary calculation'!$E$14*(AOJ24-AOI24)>=0,AOI25-9.81*'Summary calculation'!$E$14*(AOJ24-AOI24),0) -> 0 | AOK25: =IF(AOJ25-9.81*'Summary calculation'!$E$14*(AOK24-AOJ24)>=0,AOJ25-9.81*'Summary calculation'!$E$14*(AOK24-AOJ24),0) -> 0 | AOL25: =IF(AOK25-9.81*'Summary calculation'!$E$14*(AOL24-AOK24)>=0,AOK25-9.81*'Summary calculation'!$E$14*(AOL24-AOK24),0) -> 0 | AOM25: =IF(AOL25-9.81*'Summary calculation'!$E$14*(AOM24-AOL24)>=0,AOL25-9.81*'Summary calculation'!$E$14*(AOM24-AOL24),0) -> 0 | AON25: =IF(AOM25-9.81*'Summary calculation'!$E$14*(AON24-AOM24)>=0,AOM25-9.81*'Summary calculation'!$E$14*(AON24-AOM24),0) -> 0 | AOO25: =IF(AON25-9.81*'Summary calculation'!$E$14*(AOO24-AON24)>=0,AON25-9.81*'Summary calculation'!$E$14*(AOO24-AON24),0) -> 0 | AOP25: =IF(AOO25-9.81*'Summary calculation'!$E$14*(AOP24-AOO24)>=0,AOO25-9.81*'Summary calculation'!$E$14*(AOP24-AOO24),0) -> 0 | AOQ25: =IF(AOP25-9.81*'Summary calculation'!$E$14*(AOQ24-AOP24)>=0,AOP25-9.81*'Summary calculation'!$E$14*(AOQ24-AOP24),0) -> 0 | AOR25: =IF(AOQ25-9.81*'Summary calculation'!$E$14*(AOR24-AOQ24)>=0,AOQ25-9.81*'Summary calculation'!$E$14*(AOR24-AOQ24),0) -> 0 | AOS25: =IF(AOR25-9.81*'Summary calculation'!$E$14*(AOS24-AOR24)>=0,AOR25-9.81*'Summary calculation'!$E$14*(AOS24-AOR24),0) -> 0 | AOT25: =IF(AOS25-9.81*'Summary calculation'!$E$14*(AOT24-AOS24)>=0,AOS25-9.81*'Summary calculation'!$E$14*(AOT24-AOS24),0) -> 0 | AOU25: =IF(AOT25-9.81*'Summary calculation'!$E$14*(AOU24-AOT24)>=0,AOT25-9.81*'Summary calculation'!$E$14*(AOU24-AOT24),0) -> 0 | AOV25: =IF(AOU25-9.81*'Summary calculation'!$E$14*(AOV24-AOU24)>=0,AOU25-9.81*'Summary calculation'!$E$14*(AOV24-AOU24),0) -> 0 | AOW25: =IF(AOV25-9.81*'Summary calculation'!$E$14*(AOW24-AOV24)>=0,AOV25-9.81*'Summary calculation'!$E$14*(AOW24-AOV24),0) -> 0 | AOX25: =IF(AOW25-9.81*'Summary calculation'!$E$14*(AOX24-AOW24)>=0,AOW25-9.81*'Summary calculation'!$E$14*(AOX24-AOW24),0) -> 0 | AOY25: =IF(AOX25-9.81*'Summary calculation'!$E$14*(AOY24-AOX24)>=0,AOX25-9.81*'Summary calculation'!$E$14*(AOY24-AOX24),0) -> 0 | AOZ25: =IF(AOY25-9.81*'Summary calculation'!$E$14*(AOZ24-AOY24)>=0,AOY25-9.81*'Summary calculation'!$E$14*(AOZ24-AOY24),0) -> 0 | APA25: =IF(AOZ25-9.81*'Summary calculation'!$E$14*(APA24-AOZ24)>=0,AOZ25-9.81*'Summary calculation'!$E$14*(APA24-AOZ24),0) -> 0 | APB25: =IF(APA25-9.81*'Summary calculation'!$E$14*(APB24-APA24)>=0,APA25-9.81*'Summary calculation'!$E$14*(APB24-APA24),0) -> 0 | APC25: =IF(APB25-9.81*'Summary calculation'!$E$14*(APC24-APB24)>=0,APB25-9.81*'Summary calculation'!$E$14*(APC24-APB24),0) -> 0 | APD25: =IF(APC25-9.81*'Summary calculation'!$E$14*(APD24-APC24)>=0,APC25-9.81*'Summary calculation'!$E$14*(APD24-APC24),0) -> 0 | APE25: =IF(APD25-9.81*'Summary calculation'!$E$14*(APE24-APD24)>=0,APD25-9.81*'Summary calculation'!$E$14*(APE24-APD24),0) -> 0 | APF25: =IF(APE25-9.81*'Summary calculation'!$E$14*(APF24-APE24)>=0,APE25-9.81*'Summary calculation'!$E$14*(APF24-APE24),0) -> 0 | APG25: =IF(APF25-9.81*'Summary calculation'!$E$14*(APG24-APF24)>=0,APF25-9.81*'Summary calculation'!$E$14*(APG24-APF24),0) -> 0 | APH25: =IF(APG25-9.81*'Summary calculation'!$E$14*(APH24-APG24)>=0,APG25-9.81*'Summary calculation'!$E$14*(APH24-APG24),0) -> 0 | API25: =IF(APH25-9.81*'Summary calculation'!$E$14*(API24-APH24)>=0,APH25-9.81*'Summary calculation'!$E$14*(API24-APH24),0) -> 0 | APJ25: =IF(API25-9.81*'Summary calculation'!$E$14*(APJ24-API24)>=0,API25-9.81*'Summary calculation'!$E$14*(APJ24-API24),0) -> 0 | APK25: =IF(APJ25-9.81*'Summary calculation'!$E$14*(APK24-APJ24)>=0,APJ25-9.81*'Summary calculation'!$E$14*(APK24-APJ24),0) -> 0 | APL25: =IF(APK25-9.81*'Summary calculation'!$E$14*(APL24-APK24)>=0,APK25-9.81*'Summary calculation'!$E$14*(APL24-APK24),0) -> 0 | APM25: =IF(APL25-9.81*'Summary calculation'!$E$14*(APM24-APL24)>=0,APL25-9.81*'Summary calculation'!$E$14*(APM24-APL24),0) -> 0 | APN25: =IF(APM25-9.81*'Summary calculation'!$E$14*(APN24-APM24)>=0,APM25-9.81*'Summary calculation'!$E$14*(APN24-APM24),0) -> 0 | APO25: =IF(APN25-9.81*'Summary calculation'!$E$14*(APO24-APN24)>=0,APN25-9.81*'Summary calculation'!$E$14*(APO24-APN24),0) -> 0 | APP25: =IF(APO25-9.81*'Summary calculation'!$E$14*(APP24-APO24)>=0,APO25-9.81*'Summary calculation'!$E$14*(APP24-APO24),0) -> 0 | APQ25: =IF(APP25-9.81*'Summary calculation'!$E$14*(APQ24-APP24)>=0,APP25-9.81*'Summary calculation'!$E$14*(APQ24-APP24),0) -> 0 | APR25: =IF(APQ25-9.81*'Summary calculation'!$E$14*(APR24-APQ24)>=0,APQ25-9.81*'Summary calculation'!$E$14*(APR24-APQ24),0) -> 0 | APS25: =IF(APR25-9.81*'Summary calculation'!$E$14*(APS24-APR24)>=0,APR25-9.81*'Summary calculation'!$E$14*(APS24-APR24),0) -> 0 | APT25: =IF(APS25-9.81*'Summary calculation'!$E$14*(APT24-APS24)>=0,APS25-9.81*'Summary calculation'!$E$14*(APT24-APS24),0) -> 0 | APU25: =IF(APT25-9.81*'Summary calculation'!$E$14*(APU24-APT24)>=0,APT25-9.81*'Summary calculation'!$E$14*(APU24-APT24),0) -> 0 | APV25: =IF(APU25-9.81*'Summary calculation'!$E$14*(APV24-APU24)>=0,APU25-9.81*'Summary calculation'!$E$14*(APV24-APU24),0) -> 0 | APW25: =IF(APV25-9.81*'Summary calculation'!$E$14*(APW24-APV24)>=0,APV25-9.81*'Summary calculation'!$E$14*(APW24-APV24),0) -> 0 | APX25: =IF(APW25-9.81*'Summary calculation'!$E$14*(APX24-APW24)>=0,APW25-9.81*'Summary calculation'!$E$14*(APX24-APW24),0) -> 0 | APY25: =IF(APX25-9.81*'Summary calculation'!$E$14*(APY24-APX24)>=0,APX25-9.81*'Summary calculation'!$E$14*(APY24-APX24),0) -> 0 | APZ25: =IF(APY25-9.81*'Summary calculation'!$E$14*(APZ24-APY24)>=0,APY25-9.81*'Summary calculation'!$E$14*(APZ24-APY24),0) -> 0 | AQA25: =IF(APZ25-9.81*'Summary calculation'!$E$14*(AQA24-APZ24)>=0,APZ25-9.81*'Summary calculation'!$E$14*(AQA24-APZ24),0) -> 0 | AQB25: =IF(AQA25-9.81*'Summary calculation'!$E$14*(AQB24-AQA24)>=0,AQA25-9.81*'Summary calculation'!$E$14*(AQB24-AQA24),0) -> 0 | AQC25: =IF(AQB25-9.81*'Summary calculation'!$E$14*(AQC24-AQB24)>=0,AQB25-9.81*'Summary calculation'!$E$14*(AQC24-AQB24),0) -> 0 | AQD25: =IF(AQC25-9.81*'Summary calculation'!$E$14*(AQD24-AQC24)>=0,AQC25-9.81*'Summary calculation'!$E$14*(AQD24-AQC24),0) -> 0
B26: V_avg (m/s) (average speed between previous point and current point. Used for slide distance calculation) | E26: =(D25+E25)/2 -> 15.81217625 | F26: =(E25+F25)/2 -> 15.71652875 | G26: =(F25+G25)/2 -> 15.62088125 | H26: 15.52523375 | I26: 15.42958625 | J26: 15.33393875 | K26: 15.23829125 | L26: =(J25+L25)/2 -> 15.23829125 | M26: =(L25+M25)/2 -> 15.14264375 | N26: 15.04699625 | O26: 14.95134875 | P26: 14.85570125 | Q26: 14.76005375 | R26: 14.66440625 | S26: 14.56875875 | T26: 14.47311125 | U26: 14.37746375 | V26: 14.28181625 | W26: 14.18616875 | X26: 14.09052125 | Y26: 13.99487375 | Z26: 13.89922625 | AA26: 13.80357875 | AB26: 13.70793125 | AC26: 13.61228375 | AD26: 13.51663625 | AE26: 13.42098875 | AF26: 13.32534125 | AG26: 13.22969375 | AH26: 13.13404625 | AI26: 13.03839875 | AJ26: 12.94275125 | AK26: 12.84710375 | AL26: 12.75145625 | AM26: 12.65580875 | AN26: 12.56016125 | AO26: 12.46451375 | AP26: 12.36886625 | AQ26: 12.27321875 | AR26: 12.17757125 | AS26: 12.08192375 | AT26: 11.98627625 | AU26: 11.89062875 | AV26: 11.79498125 | AW26: 11.69933375 | AX26: 11.60368625 | AY26: 11.50803875 | AZ26: 11.41239125 | BA26: 11.31674375 | BB26: 11.22109625 | BC26: 11.12544875 | BD26: 11.02980125 | BE26: 10.93415375 | BF26: 10.83850625 | BG26: 10.74285875 | BH26: 10.64721125 | BI26: 10.55156375 | BJ26: 10.45591625 | BK26: 10.36026875 | BL26: 10.26462125 | BM26: 10.16897375 | BN26: 10.07332625 | BO26: 9.97767875 | BP26: 9.88203125 | BQ26: 9.78638375 | BR26: 9.69073625 | BS26: 9.59508875 | BT26: 9.49944125 | BU26: =(BT25+BU25)/2 -> 9.40379375 | BV26: 9.30814625 | BW26: 9.21249875 | BX26: 9.11685125 | BY26: 9.02120375 | BZ26: 8.92555625 | CA26: 8.82990875 | CB26: 8.73426125 | CC26: 8.63861375 | CD26: 8.54296625 | CE26: 8.44731875 | CF26: 8.35167125 | CG26: 8.25602375 | CH26: 8.16037625 | CI26: 8.06472875 | CJ26: 7.96908125 | CK26: 7.87343375 | CL26: 7.77778625 | CM26: 7.68213875 | CN26: 7.58649125 | CO26: 7.49084375 | CP26: 7.39519625 | CQ26: 7.29954875 | CR26: 7.20390125 | CS26: 7.10825375 | CT26: 7.01260625 | CU26: 6.91695875 | CV26: 6.82131125 | CW26: 6.72566375 | CX26: 6.63001625 | CY26: 6.53436875 | CZ26: 6.43872125 | DA26: 6.34307375 | DB26: 6.24742625 | DC26: 6.15177875 | DD26: 6.05613125 | DE26: 5.96048375 | DF26: 5.86483625 | DG26: 5.76918875 | DH26: 5.67354125 | DI26: 5.57789375 | DJ26: 5.48224625 | DK26: 5.38659875 | DL26: 5.29095125 | DM26: 5.19530375 | DN26: 5.09965625 | DO26: 5.00400875 | DP26: 4.90836125 | DQ26: 4.81271375 | DR26: 4.71706625 | DS26: 4.62141875 | DT26: 4.52577125 | DU26: 4.43012375 | DV26: 4.33447625 | DW26: 4.23882875 | DX26: 4.14318125 | DY26: 4.04753375 | DZ26: 3.95188625 | EA26: 3.85623875 | EB26: 3.76059125 | EC26: 3.66494375 | ED26: 3.56929625 | EE26: 3.47364875 | EF26: 3.37800125 | EG26: =(EF25+EG25)/2 -> 3.28235375 | EH26: 3.18670625 | EI26: 3.09105875 | EJ26: 2.99541125 | EK26: 2.89976375 | EL26: 2.80411625 | EM26: 2.70846875 | EN26: 2.61282125 | EO26: 2.51717375 | EP26: 2.42152625 | EQ26: 2.32587875 | ER26: 2.23023125 | ES26: 2.13458375 | ET26: 2.03893625 | EU26: 1.94328875 | EV26: 1.84764125 | EW26: 1.75199375 | EX26: 1.65634625 | EY26: 1.56069875 | EZ26: 1.46505125 | FA26: 1.36940375 | FB26: 1.27375625 | FC26: 1.17810875 | FD26: 1.08246125 | FE26: 0.98681375 | FF26: 0.89116625 | FG26: 0.79551875 | FH26: 0.69987125 | FI26: 0.60422375 | FJ26: 0.50857625 | FK26: 0.41292875 | FL26: 0.31728125 | FM26: 0.22163375 | FN26: 0.12598625 | FO26: 0.03908125 | FP26: 0 | FQ26: 0 | FR26: 0 | FS26: 0 | FT26: 0 | FU26: 0 | FV26: 0 | FW26: 0 | FX26: 0 | FY26: 0 | FZ26: 0 | GA26: 0 | GB26: 0 | GC26: 0 | GD26: 0 | GE26: 0 | GF26: 0 | GG26: 0 | GH26: 0 | GI26: 0 | GJ26: 0 | GK26: 0 | GL26: 0 | GM26: 0 | GN26: 0 | GO26: 0 | GP26: 0 | GQ26: 0 | GR26: 0 | GS26: =(GR25+GS25)/2 -> 0 | GT26: 0 | GU26: 0 | GV26: 0 | GW26: 0 | GX26: 0 | GY26: 0 | GZ26: 0 | HA26: 0 | HB26: 0 | HC26: 0 | HD26: 0 | HE26: 0 | HF26: 0 | HG26: 0 | HH26: 0 | HI26: 0 | HJ26: 0 | HK26: 0 | HL26: 0 | HM26: 0 | HN26: 0 | HO26: 0 | HP26: 0 | HQ26: 0 | HR26: 0 | HS26: 0 | HT26: 0 | HU26: 0 | HV26: 0 | HW26: 0 | HX26: 0 | HY26: 0 | HZ26: 0 | IA26: 0 | IB26: 0 | IC26: 0 | ID26: 0 | IE26: 0 | IF26: 0 | IG26: 0 | IH26: 0 | II26: 0 | IJ26: 0 | IK26: 0 | IL26: 0 | IM26: 0 | IN26: 0 | IO26: 0 | IP26: 0 | IQ26: 0 | IR26: 0 | IS26: 0 | IT26: 0 | IU26: 0 | IV26: 0 | IW26: 0 | IX26: 0 | IY26: 0 | IZ26: 0 | JA26: 0 | JB26: 0 | JC26: 0 | JD26: 0 | JE26: =(JD25+JE25)/2 -> 0 | JF26: 0 | JG26: 0 | JH26: 0 | JI26: 0 | JJ26: 0 | JK26: 0 | JL26: 0 | JM26: 0 | JN26: 0 | JO26: 0 | JP26: 0 | JQ26: 0 | JR26: 0 | JS26: 0 | JT26: 0 | JU26: =(JT25+JU25)/2 -> 0 | JV26: =(JU25+JV25)/2 -> 0 | JW26: =(JV25+JW25)/2 -> 0 | JX26: =(JW25+JX25)/2 -> 0 | JY26: =(JX25+JY25)/2 -> 0 | JZ26: =(JY25+JZ25)/2 -> 0 | KA26: =(JZ25+KA25)/2 -> 0 | KB26: =(KA25+KB25)/2 -> 0 | KC26: =(KB25+KC25)/2 -> 0 | KD26: =(KC25+KD25)/2 -> 0 | KE26: =(KD25+KE25)/2 -> 0 | KF26: =(KE25+KF25)/2 -> 0 | KG26: =(KF25+KG25)/2 -> 0 | KH26: =(KG25+KH25)/2 -> 0 | KI26: =(KH25+KI25)/2 -> 0 | KJ26: =(KI25+KJ25)/2 -> 0 | KK26: =(KJ25+KK25)/2 -> 0 | KL26: =(KK25+KL25)/2 -> 0 | KM26: =(KL25+KM25)/2 -> 0 | KN26: =(KM25+KN25)/2 -> 0 | KO26: =(KN25+KO25)/2 -> 0 | KP26: =(KO25+KP25)/2 -> 0 | KQ26: =(KP25+KQ25)/2 -> 0 | KR26: =(KQ25+KR25)/2 -> 0 | KS26: =(KR25+KS25)/2 -> 0 | KT26: =(KS25+KT25)/2 -> 0 | KU26: =(KT25+KU25)/2 -> 0 | KV26: =(KU25+KV25)/2 -> 0 | KW26: =(KV25+KW25)/2 -> 0 | KX26: =(KW25+KX25)/2 -> 0 | KY26: =(KX25+KY25)/2 -> 0 | KZ26: =(KY25+KZ25)/2 -> 0 | LA26: =(KZ25+LA25)/2 -> 0 | LB26: =(LA25+LB25)/2 -> 0 | LC26: =(LB25+LC25)/2 -> 0 | LD26: =(LC25+LD25)/2 -> 0 | LE26: =(LD25+LE25)/2 -> 0 | LF26: =(LE25+LF25)/2 -> 0 | LG26: =(LF25+LG25)/2 -> 0 | LH26: =(LG25+LH25)/2 -> 0 | LI26: =(LH25+LI25)/2 -> 0 | LJ26: =(LI25+LJ25)/2 -> 0 | LK26: =(LJ25+LK25)/2 -> 0 | LL26: =(LK25+LL25)/2 -> 0 | LM26: =(LL25+LM25)/2 -> 0 | LN26: =(LM25+LN25)/2 -> 0 | LO26: =(LN25+LO25)/2 -> 0 | LP26: =(LO25+LP25)/2 -> 0 | LQ26: =(LP25+LQ25)/2 -> 0 | LR26: =(LQ25+LR25)/2 -> 0 | LS26: =(LR25+LS25)/2 -> 0 | LT26: =(LS25+LT25)/2 -> 0 | LU26: =(LT25+LU25)/2 -> 0 | LV26: =(LU25+LV25)/2 -> 0 | LW26: =(LV25+LW25)/2 -> 0 | LX26: =(LW25+LX25)/2 -> 0 | LY26: =(LX25+LY25)/2 -> 0 | LZ26: =(LY25+LZ25)/2 -> 0 | MA26: =(LZ25+MA25)/2 -> 0 | MB26: =(MA25+MB25)/2 -> 0 | MC26: =(MB25+MC25)/2 -> 0 | MD26: =(MC25+MD25)/2 -> 0 | ME26: =(MD25+ME25)/2 -> 0 | MF26: =(ME25+MF25)/2 -> 0 | MG26: =(MF25+MG25)/2 -> 0 | MH26: =(MG25+MH25)/2 -> 0 | MI26: =(MH25+MI25)/2 -> 0 | MJ26: =(MI25+MJ25)/2 -> 0 | MK26: =(MJ25+MK25)/2 -> 0 | ML26: =(MK25+ML25)/2 -> 0 | MM26: =(ML25+MM25)/2 -> 0 | MN26: =(MM25+MN25)/2 -> 0 | MO26: =(MN25+MO25)/2 -> 0 | MP26: =(MO25+MP25)/2 -> 0 | MQ26: =(MP25+MQ25)/2 -> 0 | MR26: =(MQ25+MR25)/2 -> 0 | MS26: =(MR25+MS25)/2 -> 0 | MT26: =(MS25+MT25)/2 -> 0 | MU26: =(MT25+MU25)/2 -> 0 | MV26: =(MU25+MV25)/2 -> 0 | MW26: =(MV25+MW25)/2 -> 0 | MX26: =(MW25+MX25)/2 -> 0 | MY26: =(MX25+MY25)/2 -> 0 | MZ26: =(MY25+MZ25)/2 -> 0 | NA26: =(MZ25+NA25)/2 -> 0 | NB26: =(NA25+NB25)/2 -> 0 | NC26: =(NB25+NC25)/2 -> 0 | ND26: =(NC25+ND25)/2 -> 0 | NE26: =(ND25+NE25)/2 -> 0 | NF26: =(NE25+NF25)/2 -> 0 | NG26: =(NF25+NG25)/2 -> 0 | NH26: =(NG25+NH25)/2 -> 0 | NI26: =(NH25+NI25)/2 -> 0 | NJ26: =(NI25+NJ25)/2 -> 0 | NK26: =(NJ25+NK25)/2 -> 0 | NL26: =(NK25+NL25)/2 -> 0 | NM26: =(NL25+NM25)/2 -> 0 | NN26: =(NM25+NN25)/2 -> 0 | NO26: =(NN25+NO25)/2 -> 0 | NP26: =(NO25+NP25)/2 -> 0 | NQ26: =(NP25+NQ25)/2 -> 0 | NR26: =(NQ25+NR25)/2 -> 0 | NS26: =(NR25+NS25)/2 -> 0 | NT26: =(NS25+NT25)/2 -> 0 | NU26: =(NT25+NU25)/2 -> 0 | NV26: =(NU25+NV25)/2 -> 0 | NW26: =(NV25+NW25)/2 -> 0 | NX26: =(NW25+NX25)/2 -> 0 | NY26: =(NX25+NY25)/2 -> 0 | NZ26: =(NY25+NZ25)/2 -> 0 | OA26: =(NZ25+OA25)/2 -> 0 | OB26: =(OA25+OB25)/2 -> 0 | OC26: =(OB25+OC25)/2 -> 0 | OD26: =(OC25+OD25)/2 -> 0 | OE26: =(OD25+OE25)/2 -> 0 | OF26: =(OE25+OF25)/2 -> 0 | OG26: =(OF25+OG25)/2 -> 0 | OH26: =(OG25+OH25)/2 -> 0 | OI26: =(OH25+OI25)/2 -> 0 | OJ26: =(OI25+OJ25)/2 -> 0 | OK26: =(OJ25+OK25)/2 -> 0 | OL26: =(OK25+OL25)/2 -> 0 | OM26: =(OL25+OM25)/2 -> 0 | ON26: =(OM25+ON25)/2 -> 0 | OO26: =(ON25+OO25)/2 -> 0 | OP26: =(OO25+OP25)/2 -> 0 | OQ26: =(OP25+OQ25)/2 -> 0 | OR26: =(OQ25+OR25)/2 -> 0 | OS26: =(OR25+OS25)/2 -> 0 | OT26: =(OS25+OT25)/2 -> 0 | OU26: =(OT25+OU25)/2 -> 0 | OV26: =(OU25+OV25)/2 -> 0 | OW26: =(OV25+OW25)/2 -> 0 | OX26: =(OW25+OX25)/2 -> 0 | OY26: =(OX25+OY25)/2 -> 0 | OZ26: =(OY25+OZ25)/2 -> 0 | PA26: =(OZ25+PA25)/2 -> 0 | PB26: =(PA25+PB25)/2 -> 0 | PC26: =(PB25+PC25)/2 -> 0 | PD26: =(PC25+PD25)/2 -> 0 | PE26: =(PD25+PE25)/2 -> 0 | PF26: =(PE25+PF25)/2 -> 0 | PG26: =(PF25+PG25)/2 -> 0 | PH26: =(PG25+PH25)/2 -> 0 | PI26: =(PH25+PI25)/2 -> 0 | PJ26: =(PI25+PJ25)/2 -> 0 | PK26: =(PJ25+PK25)/2 -> 0 | PL26: =(PK25+PL25)/2 -> 0 | PM26: =(PL25+PM25)/2 -> 0 | PN26: =(PM25+PN25)/2 -> 0 | PO26: =(PN25+PO25)/2 -> 0 | PP26: =(PO25+PP25)/2 -> 0 | PQ26: =(PP25+PQ25)/2 -> 0 | PR26: =(PQ25+PR25)/2 -> 0 | PS26: =(PR25+PS25)/2 -> 0 | PT26: =(PS25+PT25)/2 -> 0 | PU26: =(PT25+PU25)/2 -> 0 | PV26: =(PU25+PV25)/2 -> 0 | PW26: =(PV25+PW25)/2 -> 0 | PX26: =(PW25+PX25)/2 -> 0 | PY26: =(PX25+PY25)/2 -> 0 | PZ26: =(PY25+PZ25)/2 -> 0 | QA26: =(PZ25+QA25)/2 -> 0 | QB26: =(QA25+QB25)/2 -> 0 | QC26: =(QB25+QC25)/2 -> 0 | QD26: =(QC25+QD25)/2 -> 0 | QE26: =(QD25+QE25)/2 -> 0 | QF26: =(QE25+QF25)/2 -> 0 | QG26: =(QF25+QG25)/2 -> 0 | QH26: =(QG25+QH25)/2 -> 0 | QI26: =(QH25+QI25)/2 -> 0 | QJ26: =(QI25+QJ25)/2 -> 0 | QK26: =(QJ25+QK25)/2 -> 0 | QL26: =(QK25+QL25)/2 -> 0 | QM26: =(QL25+QM25)/2 -> 0 | QN26: =(QM25+QN25)/2 -> 0 | QO26: =(QN25+QO25)/2 -> 0 | QP26: =(QO25+QP25)/2 -> 0 | QQ26: =(QP25+QQ25)/2 -> 0 | QR26: =(QQ25+QR25)/2 -> 0 | QS26: =(QR25+QS25)/2 -> 0 | QT26: =(QS25+QT25)/2 -> 0 | QU26: =(QT25+QU25)/2 -> 0 | QV26: =(QU25+QV25)/2 -> 0 | QW26: =(QV25+QW25)/2 -> 0 | QX26: =(QW25+QX25)/2 -> 0 | QY26: =(QX25+QY25)/2 -> 0 | QZ26: =(QY25+QZ25)/2 -> 0 | RA26: =(QZ25+RA25)/2 -> 0 | RB26: =(RA25+RB25)/2 -> 0 | RC26: =(RB25+RC25)/2 -> 0 | RD26: =(RC25+RD25)/2 -> 0 | RE26: =(RD25+RE25)/2 -> 0 | RF26: =(RE25+RF25)/2 -> 0 | RG26: =(RF25+RG25)/2 -> 0 | RH26: =(RG25+RH25)/2 -> 0 | RI26: =(RH25+RI25)/2 -> 0 | RJ26: =(RI25+RJ25)/2 -> 0 | RK26: =(RJ25+RK25)/2 -> 0 | RL26: =(RK25+RL25)/2 -> 0 | RM26: =(RL25+RM25)/2 -> 0 | RN26: =(RM25+RN25)/2 -> 0 | RO26: =(RN25+RO25)/2 -> 0 | RP26: =(RO25+RP25)/2 -> 0 | RQ26: =(RP25+RQ25)/2 -> 0 | RR26: =(RQ25+RR25)/2 -> 0 | RS26: =(RR25+RS25)/2 -> 0 | RT26: =(RS25+RT25)/2 -> 0 | RU26: =(RT25+RU25)/2 -> 0 | RV26: =(RU25+RV25)/2 -> 0 | RW26: =(RV25+RW25)/2 -> 0 | RX26: =(RW25+RX25)/2 -> 0 | RY26: =(RX25+RY25)/2 -> 0 | RZ26: =(RY25+RZ25)/2 -> 0 | SA26: =(RZ25+SA25)/2 -> 0 | SB26: =(SA25+SB25)/2 -> 0 | SC26: =(SB25+SC25)/2 -> 0 | SD26: =(SC25+SD25)/2 -> 0 | SE26: =(SD25+SE25)/2 -> 0 | SF26: =(SE25+SF25)/2 -> 0 | SG26: =(SF25+SG25)/2 -> 0 | SH26: =(SG25+SH25)/2 -> 0 | SI26: =(SH25+SI25)/2 -> 0 | SJ26: =(SI25+SJ25)/2 -> 0 | SK26: =(SJ25+SK25)/2 -> 0 | SL26: =(SK25+SL25)/2 -> 0 | SM26: =(SL25+SM25)/2 -> 0 | SN26: =(SM25+SN25)/2 -> 0 | SO26: =(SN25+SO25)/2 -> 0 | SP26: =(SO25+SP25)/2 -> 0 | SQ26: =(SP25+SQ25)/2 -> 0 | SR26: =(SQ25+SR25)/2 -> 0 | SS26: =(SR25+SS25)/2 -> 0 | ST26: =(SS25+ST25)/2 -> 0 | SU26: =(ST25+SU25)/2 -> 0 | SV26: =(SU25+SV25)/2 -> 0 | SW26: =(SV25+SW25)/2 -> 0 | SX26: =(SW25+SX25)/2 -> 0 | SY26: =(SX25+SY25)/2 -> 0 | SZ26: =(SY25+SZ25)/2 -> 0 | TA26: =(SZ25+TA25)/2 -> 0 | TB26: =(TA25+TB25)/2 -> 0 | TC26: =(TB25+TC25)/2 -> 0 | TD26: =(TC25+TD25)/2 -> 0 | TE26: =(TD25+TE25)/2 -> 0 | TF26: =(TE25+TF25)/2 -> 0 | TG26: =(TF25+TG25)/2 -> 0 | TH26: =(TG25+TH25)/2 -> 0 | TI26: =(TH25+TI25)/2 -> 0 | TJ26: =(TI25+TJ25)/2 -> 0 | TK26: =(TJ25+TK25)/2 -> 0 | TL26: =(TK25+TL25)/2 -> 0 | TM26: =(TL25+TM25)/2 -> 0 | TN26: =(TM25+TN25)/2 -> 0 | TO26: =(TN25+TO25)/2 -> 0 | TP26: =(TO25+TP25)/2 -> 0 | TQ26: =(TP25+TQ25)/2 -> 0 | TR26: =(TQ25+TR25)/2 -> 0 | TS26: =(TR25+TS25)/2 -> 0 | TT26: =(TS25+TT25)/2 -> 0 | TU26: =(TT25+TU25)/2 -> 0 | TV26: =(TU25+TV25)/2 -> 0 | TW26: =(TV25+TW25)/2 -> 0 | TX26: =(TW25+TX25)/2 -> 0 | TY26: =(TX25+TY25)/2 -> 0 | TZ26: =(TY25+TZ25)/2 -> 0 | UA26: =(TZ25+UA25)/2 -> 0 | UB26: =(UA25+UB25)/2 -> 0 | UC26: =(UB25+UC25)/2 -> 0 | UD26: =(UC25+UD25)/2 -> 0 | UE26: =(UD25+UE25)/2 -> 0 | UF26: =(UE25+UF25)/2 -> 0 | UG26: =(UF25+UG25)/2 -> 0 | UH26: =(UG25+UH25)/2 -> 0 | UI26: =(UH25+UI25)/2 -> 0 | UJ26: =(UI25+UJ25)/2 -> 0 | UK26: =(UJ25+UK25)/2 -> 0 | UL26: =(UK25+UL25)/2 -> 0 | UM26: =(UL25+UM25)/2 -> 0 | UN26: =(UM25+UN25)/2 -> 0 | UO26: =(UN25+UO25)/2 -> 0 | UP26: =(UO25+UP25)/2 -> 0 | UQ26: =(UP25+UQ25)/2 -> 0 | UR26: =(UQ25+UR25)/2 -> 0 | US26: =(UR25+US25)/2 -> 0 | UT26: =(US25+UT25)/2 -> 0 | UU26: =(UT25+UU25)/2 -> 0 | UV26: =(UU25+UV25)/2 -> 0 | UW26: =(UV25+UW25)/2 -> 0 | UX26: =(UW25+UX25)/2 -> 0 | UY26: =(UX25+UY25)/2 -> 0 | UZ26: =(UY25+UZ25)/2 -> 0 | VA26: =(UZ25+VA25)/2 -> 0 | VB26: =(VA25+VB25)/2 -> 0 | VC26: =(VB25+VC25)/2 -> 0 | VD26: =(VC25+VD25)/2 -> 0 | VE26: =(VD25+VE25)/2 -> 0 | VF26: =(VE25+VF25)/2 -> 0 | VG26: =(VF25+VG25)/2 -> 0 | VH26: =(VG25+VH25)/2 -> 0 | VI26: =(VH25+VI25)/2 -> 0 | VJ26: =(VI25+VJ25)/2 -> 0 | VK26: =(VJ25+VK25)/2 -> 0 | VL26: =(VK25+VL25)/2 -> 0 | VM26: =(VL25+VM25)/2 -> 0 | VN26: =(VM25+VN25)/2 -> 0 | VO26: =(VN25+VO25)/2 -> 0 | VP26: =(VO25+VP25)/2 -> 0 | VQ26: =(VP25+VQ25)/2 -> 0 | VR26: =(VQ25+VR25)/2 -> 0 | VS26: =(VR25+VS25)/2 -> 0 | VT26: =(VS25+VT25)/2 -> 0 | VU26: =(VT25+VU25)/2 -> 0 | VV26: =(VU25+VV25)/2 -> 0 | VW26: =(VV25+VW25)/2 -> 0 | VX26: =(VW25+VX25)/2 -> 0 | VY26: =(VX25+VY25)/2 -> 0 | VZ26: =(VY25+VZ25)/2 -> 0 | WA26: =(VZ25+WA25)/2 -> 0 | WB26: =(WA25+WB25)/2 -> 0 | WC26: =(WB25+WC25)/2 -> 0 | WD26: =(WC25+WD25)/2 -> 0 | WE26: =(WD25+WE25)/2 -> 0 | WF26: =(WE25+WF25)/2 -> 0 | WG26: =(WF25+WG25)/2 -> 0 | WH26: =(WG25+WH25)/2 -> 0 | WI26: =(WH25+WI25)/2 -> 0 | WJ26: =(WI25+WJ25)/2 -> 0 | WK26: =(WJ25+WK25)/2 -> 0 | WL26: =(WK25+WL25)/2 -> 0 | WM26: =(WL25+WM25)/2 -> 0 | WN26: =(WM25+WN25)/2 -> 0 | WO26: =(WN25+WO25)/2 -> 0 | WP26: =(WO25+WP25)/2 -> 0 | WQ26: =(WP25+WQ25)/2 -> 0 | WR26: =(WQ25+WR25)/2 -> 0 | WS26: =(WR25+WS25)/2 -> 0 | WT26: =(WS25+WT25)/2 -> 0 | WU26: =(WT25+WU25)/2 -> 0 | WV26: =(WU25+WV25)/2 -> 0 | WW26: =(WV25+WW25)/2 -> 0 | WX26: =(WW25+WX25)/2 -> 0 | WY26: =(WX25+WY25)/2 -> 0 | WZ26: =(WY25+WZ25)/2 -> 0 | XA26: =(WZ25+XA25)/2 -> 0 | XB26: =(XA25+XB25)/2 -> 0 | XC26: =(XB25+XC25)/2 -> 0 | XD26: =(XC25+XD25)/2 -> 0 | XE26: =(XD25+XE25)/2 -> 0 | XF26: =(XE25+XF25)/2 -> 0 | XG26: =(XF25+XG25)/2 -> 0 | XH26: =(XG25+XH25)/2 -> 0 | XI26: =(XH25+XI25)/2 -> 0 | XJ26: =(XI25+XJ25)/2 -> 0 | XK26: =(XJ25+XK25)/2 -> 0 | XL26: =(XK25+XL25)/2 -> 0 | XM26: =(XL25+XM25)/2 -> 0 | XN26: =(XM25+XN25)/2 -> 0 | XO26: =(XN25+XO25)/2 -> 0 | XP26: =(XO25+XP25)/2 -> 0 | XQ26: =(XP25+XQ25)/2 -> 0 | XR26: =(XQ25+XR25)/2 -> 0 | XS26: =(XR25+XS25)/2 -> 0 | XT26: =(XS25+XT25)/2 -> 0 | XU26: =(XT25+XU25)/2 -> 0 | XV26: =(XU25+XV25)/2 -> 0 | XW26: =(XV25+XW25)/2 -> 0 | XX26: =(XW25+XX25)/2 -> 0 | XY26: =(XX25+XY25)/2 -> 0 | XZ26: =(XY25+XZ25)/2 -> 0 | YA26: =(XZ25+YA25)/2 -> 0 | YB26: =(YA25+YB25)/2 -> 0 | YC26: =(YB25+YC25)/2 -> 0 | YD26: =(YC25+YD25)/2 -> 0 | YE26: =(YD25+YE25)/2 -> 0 | YF26: =(YE25+YF25)/2 -> 0 | YG26: =(YF25+YG25)/2 -> 0 | YH26: =(YG25+YH25)/2 -> 0 | YI26: =(YH25+YI25)/2 -> 0 | YJ26: =(YI25+YJ25)/2 -> 0 | YK26: =(YJ25+YK25)/2 -> 0 | YL26: =(YK25+YL25)/2 -> 0 | YM26: =(YL25+YM25)/2 -> 0 | YN26: =(YM25+YN25)/2 -> 0 | YO26: =(YN25+YO25)/2 -> 0 | YP26: =(YO25+YP25)/2 -> 0 | YQ26: =(YP25+YQ25)/2 -> 0 | YR26: =(YQ25+YR25)/2 -> 0 | YS26: =(YR25+YS25)/2 -> 0 | YT26: =(YS25+YT25)/2 -> 0 | YU26: =(YT25+YU25)/2 -> 0 | YV26: =(YU25+YV25)/2 -> 0 | YW26: =(YV25+YW25)/2 -> 0 | YX26: =(YW25+YX25)/2 -> 0 | YY26: =(YX25+YY25)/2 -> 0 | YZ26: =(YY25+YZ25)/2 -> 0 | ZA26: =(YZ25+ZA25)/2 -> 0 | ZB26: =(ZA25+ZB25)/2 -> 0 | ZC26: =(ZB25+ZC25)/2 -> 0 | ZD26: =(ZC25+ZD25)/2 -> 0 | ZE26: =(ZD25+ZE25)/2 -> 0 | ZF26: =(ZE25+ZF25)/2 -> 0 | ZG26: =(ZF25+ZG25)/2 -> 0 | ZH26: =(ZG25+ZH25)/2 -> 0 | ZI26: =(ZH25+ZI25)/2 -> 0 | ZJ26: =(ZI25+ZJ25)/2 -> 0 | ZK26: =(ZJ25+ZK25)/2 -> 0 | ZL26: =(ZK25+ZL25)/2 -> 0 | ZM26: =(ZL25+ZM25)/2 -> 0 | ZN26: =(ZM25+ZN25)/2 -> 0 | ZO26: =(ZN25+ZO25)/2 -> 0 | ZP26: =(ZO25+ZP25)/2 -> 0 | ZQ26: =(ZP25+ZQ25)/2 -> 0 | ZR26: =(ZQ25+ZR25)/2 -> 0 | ZS26: =(ZR25+ZS25)/2 -> 0 | ZT26: =(ZS25+ZT25)/2 -> 0 | ZU26: =(ZT25+ZU25)/2 -> 0 | ZV26: =(ZU25+ZV25)/2 -> 0 | ZW26: =(ZV25+ZW25)/2 -> 0 | ZX26: =(ZW25+ZX25)/2 -> 0 | ZY26: =(ZX25+ZY25)/2 -> 0 | ZZ26: =(ZY25+ZZ25)/2 -> 0 | AAA26: =(ZZ25+AAA25)/2 -> 0 | AAB26: =(AAA25+AAB25)/2 -> 0 | AAC26: =(AAB25+AAC25)/2 -> 0 | AAD26: =(AAC25+AAD25)/2 -> 0 | AAE26: =(AAD25+AAE25)/2 -> 0 | AAF26: =(AAE25+AAF25)/2 -> 0 | AAG26: =(AAF25+AAG25)/2 -> 0 | AAH26: =(AAG25+AAH25)/2 -> 0 | AAI26: =(AAH25+AAI25)/2 -> 0 | AAJ26: =(AAI25+AAJ25)/2 -> 0 | AAK26: =(AAJ25+AAK25)/2 -> 0 | AAL26: =(AAK25+AAL25)/2 -> 0 | AAM26: =(AAL25+AAM25)/2 -> 0 | AAN26: =(AAM25+AAN25)/2 -> 0 | AAO26: =(AAN25+AAO25)/2 -> 0 | AAP26: =(AAO25+AAP25)/2 -> 0 | AAQ26: =(AAP25+AAQ25)/2 -> 0 | AAR26: =(AAQ25+AAR25)/2 -> 0 | AAS26: =(AAR25+AAS25)/2 -> 0 | AAT26: =(AAS25+AAT25)/2 -> 0 | AAU26: =(AAT25+AAU25)/2 -> 0 | AAV26: =(AAU25+AAV25)/2 -> 0 | AAW26: =(AAV25+AAW25)/2 -> 0 | AAX26: =(AAW25+AAX25)/2 -> 0 | AAY26: =(AAX25+AAY25)/2 -> 0 | AAZ26: =(AAY25+AAZ25)/2 -> 0 | ABA26: =(AAZ25+ABA25)/2 -> 0 | ABB26: =(ABA25+ABB25)/2 -> 0 | ABC26: =(ABB25+ABC25)/2 -> 0 | ABD26: =(ABC25+ABD25)/2 -> 0 | ABE26: =(ABD25+ABE25)/2 -> 0 | ABF26: =(ABE25+ABF25)/2 -> 0 | ABG26: =(ABF25+ABG25)/2 -> 0 | ABH26: =(ABG25+ABH25)/2 -> 0 | ABI26: =(ABH25+ABI25)/2 -> 0 | ABJ26: =(ABI25+ABJ25)/2 -> 0 | ABK26: =(ABJ25+ABK25)/2 -> 0 | ABL26: =(ABK25+ABL25)/2 -> 0 | ABM26: =(ABL25+ABM25)/2 -> 0 | ABN26: =(ABM25+ABN25)/2 -> 0 | ABO26: =(ABN25+ABO25)/2 -> 0 | ABP26: =(ABO25+ABP25)/2 -> 0 | ABQ26: =(ABP25+ABQ25)/2 -> 0 | ABR26: =(ABQ25+ABR25)/2 -> 0 | ABS26: =(ABR25+ABS25)/2 -> 0 | ABT26: =(ABS25+ABT25)/2 -> 0 | ABU26: =(ABT25+ABU25)/2 -> 0 | ABV26: =(ABU25+ABV25)/2 -> 0 | ABW26: =(ABV25+ABW25)/2 -> 0 | ABX26: =(ABW25+ABX25)/2 -> 0 | ABY26: =(ABX25+ABY25)/2 -> 0 | ABZ26: =(ABY25+ABZ25)/2 -> 0 | ACA26: =(ABZ25+ACA25)/2 -> 0 | ACB26: =(ACA25+ACB25)/2 -> 0 | ACC26: =(ACB25+ACC25)/2 -> 0 | ACD26: =(ACC25+ACD25)/2 -> 0 | ACE26: =(ACD25+ACE25)/2 -> 0 | ACF26: =(ACE25+ACF25)/2 -> 0 | ACG26: =(ACF25+ACG25)/2 -> 0 | ACH26: =(ACG25+ACH25)/2 -> 0 | ACI26: =(ACH25+ACI25)/2 -> 0 | ACJ26: =(ACI25+ACJ25)/2 -> 0 | ACK26: =(ACJ25+ACK25)/2 -> 0 | ACL26: =(ACK25+ACL25)/2 -> 0 | ACM26: =(ACL25+ACM25)/2 -> 0 | ACN26: =(ACM25+ACN25)/2 -> 0 | ACO26: =(ACN25+ACO25)/2 -> 0 | ACP26: =(ACO25+ACP25)/2 -> 0 | ACQ26: =(ACP25+ACQ25)/2 -> 0 | ACR26: =(ACQ25+ACR25)/2 -> 0 | ACS26: =(ACR25+ACS25)/2 -> 0 | ACT26: =(ACS25+ACT25)/2 -> 0 | ACU26: =(ACT25+ACU25)/2 -> 0 | ACV26: =(ACU25+ACV25)/2 -> 0 | ACW26: =(ACV25+ACW25)/2 -> 0 | ACX26: =(ACW25+ACX25)/2 -> 0 | ACY26: =(ACX25+ACY25)/2 -> 0 | ACZ26: =(ACY25+ACZ25)/2 -> 0 | ADA26: =(ACZ25+ADA25)/2 -> 0 | ADB26: =(ADA25+ADB25)/2 -> 0 | ADC26: =(ADB25+ADC25)/2 -> 0 | ADD26: =(ADC25+ADD25)/2 -> 0 | ADE26: =(ADD25+ADE25)/2 -> 0 | ADF26: =(ADE25+ADF25)/2 -> 0 | ADG26: =(ADF25+ADG25)/2 -> 0 | ADH26: =(ADG25+ADH25)/2 -> 0 | ADI26: =(ADH25+ADI25)/2 -> 0 | ADJ26: =(ADI25+ADJ25)/2 -> 0 | ADK26: =(ADJ25+ADK25)/2 -> 0 | ADL26: =(ADK25+ADL25)/2 -> 0 | ADM26: =(ADL25+ADM25)/2 -> 0 | ADN26: =(ADM25+ADN25)/2 -> 0 | ADO26: =(ADN25+ADO25)/2 -> 0 | ADP26: =(ADO25+ADP25)/2 -> 0 | ADQ26: =(ADP25+ADQ25)/2 -> 0 | ADR26: =(ADQ25+ADR25)/2 -> 0 | ADS26: =(ADR25+ADS25)/2 -> 0 | ADT26: =(ADS25+ADT25)/2 -> 0 | ADU26: =(ADT25+ADU25)/2 -> 0 | ADV26: =(ADU25+ADV25)/2 -> 0 | ADW26: =(ADV25+ADW25)/2 -> 0 | ADX26: =(ADW25+ADX25)/2 -> 0 | ADY26: =(ADX25+ADY25)/2 -> 0 | ADZ26: =(ADY25+ADZ25)/2 -> 0 | AEA26: =(ADZ25+AEA25)/2 -> 0 | AEB26: =(AEA25+AEB25)/2 -> 0 | AEC26: =(AEB25+AEC25)/2 -> 0 | AED26: =(AEC25+AED25)/2 -> 0 | AEE26: =(AED25+AEE25)/2 -> 0 | AEF26: =(AEE25+AEF25)/2 -> 0 | AEG26: =(AEF25+AEG25)/2 -> 0 | AEH26: =(AEG25+AEH25)/2 -> 0 | AEI26: =(AEH25+AEI25)/2 -> 0 | AEJ26: =(AEI25+AEJ25)/2 -> 0 | AEK26: =(AEJ25+AEK25)/2 -> 0 | AEL26: =(AEK25+AEL25)/2 -> 0 | AEM26: =(AEL25+AEM25)/2 -> 0 | AEN26: =(AEM25+AEN25)/2 -> 0 | AEO26: =(AEN25+AEO25)/2 -> 0 | AEP26: =(AEO25+AEP25)/2 -> 0 | AEQ26: =(AEP25+AEQ25)/2 -> 0 | AER26: =(AEQ25+AER25)/2 -> 0 | AES26: =(AER25+AES25)/2 -> 0 | AET26: =(AES25+AET25)/2 -> 0 | AEU26: =(AET25+AEU25)/2 -> 0 | AEV26: =(AEU25+AEV25)/2 -> 0 | AEW26: =(AEV25+AEW25)/2 -> 0 | AEX26: =(AEW25+AEX25)/2 -> 0 | AEY26: =(AEX25+AEY25)/2 -> 0 | AEZ26: =(AEY25+AEZ25)/2 -> 0 | AFA26: =(AEZ25+AFA25)/2 -> 0 | AFB26: =(AFA25+AFB25)/2 -> 0 | AFC26: =(AFB25+AFC25)/2 -> 0 | AFD26: =(AFC25+AFD25)/2 -> 0 | AFE26: =(AFD25+AFE25)/2 -> 0 | AFF26: =(AFE25+AFF25)/2 -> 0 | AFG26: =(AFF25+AFG25)/2 -> 0 | AFH26: =(AFG25+AFH25)/2 -> 0 | AFI26: =(AFH25+AFI25)/2 -> 0 | AFJ26: =(AFI25+AFJ25)/2 -> 0 | AFK26: =(AFJ25+AFK25)/2 -> 0 | AFL26: =(AFK25+AFL25)/2 -> 0 | AFM26: =(AFL25+AFM25)/2 -> 0 | AFN26: =(AFM25+AFN25)/2 -> 0 | AFO26: =(AFN25+AFO25)/2 -> 0 | AFP26: =(AFO25+AFP25)/2 -> 0 | AFQ26: =(AFP25+AFQ25)/2 -> 0 | AFR26: =(AFQ25+AFR25)/2 -> 0 | AFS26: =(AFR25+AFS25)/2 -> 0 | AFT26: =(AFS25+AFT25)/2 -> 0 | AFU26: =(AFT25+AFU25)/2 -> 0 | AFV26: =(AFU25+AFV25)/2 -> 0 | AFW26: =(AFV25+AFW25)/2 -> 0 | AFX26: =(AFW25+AFX25)/2 -> 0 | AFY26: =(AFX25+AFY25)/2 -> 0 | AFZ26: =(AFY25+AFZ25)/2 -> 0 | AGA26: =(AFZ25+AGA25)/2 -> 0 | AGB26: =(AGA25+AGB25)/2 -> 0 | AGC26: =(AGB25+AGC25)/2 -> 0 | AGD26: =(AGC25+AGD25)/2 -> 0 | AGE26: =(AGD25+AGE25)/2 -> 0 | AGF26: =(AGE25+AGF25)/2 -> 0 | AGG26: =(AGF25+AGG25)/2 -> 0 | AGH26: =(AGG25+AGH25)/2 -> 0 | AGI26: =(AGH25+AGI25)/2 -> 0 | AGJ26: =(AGI25+AGJ25)/2 -> 0 | AGK26: =(AGJ25+AGK25)/2 -> 0 | AGL26: =(AGK25+AGL25)/2 -> 0 | AGM26: =(AGL25+AGM25)/2 -> 0 | AGN26: =(AGM25+AGN25)/2 -> 0 | AGO26: =(AGN25+AGO25)/2 -> 0 | AGP26: =(AGO25+AGP25)/2 -> 0 | AGQ26: =(AGP25+AGQ25)/2 -> 0 | AGR26: =(AGQ25+AGR25)/2 -> 0 | AGS26: =(AGR25+AGS25)/2 -> 0 | AGT26: =(AGS25+AGT25)/2 -> 0 | AGU26: =(AGT25+AGU25)/2 -> 0 | AGV26: =(AGU25+AGV25)/2 -> 0 | AGW26: =(AGV25+AGW25)/2 -> 0 | AGX26: =(AGW25+AGX25)/2 -> 0 | AGY26: =(AGX25+AGY25)/2 -> 0 | AGZ26: =(AGY25+AGZ25)/2 -> 0 | AHA26: =(AGZ25+AHA25)/2 -> 0 | AHB26: =(AHA25+AHB25)/2 -> 0 | AHC26: =(AHB25+AHC25)/2 -> 0 | AHD26: =(AHC25+AHD25)/2 -> 0 | AHE26: =(AHD25+AHE25)/2 -> 0 | AHF26: =(AHE25+AHF25)/2 -> 0 | AHG26: =(AHF25+AHG25)/2 -> 0 | AHH26: =(AHG25+AHH25)/2 -> 0 | AHI26: =(AHH25+AHI25)/2 -> 0 | AHJ26: =(AHI25+AHJ25)/2 -> 0 | AHK26: =(AHJ25+AHK25)/2 -> 0 | AHL26: =(AHK25+AHL25)/2 -> 0 | AHM26: =(AHL25+AHM25)/2 -> 0 | AHN26: =(AHM25+AHN25)/2 -> 0 | AHO26: =(AHN25+AHO25)/2 -> 0 | AHP26: =(AHO25+AHP25)/2 -> 0 | AHQ26: =(AHP25+AHQ25)/2 -> 0 | AHR26: =(AHQ25+AHR25)/2 -> 0 | AHS26: =(AHR25+AHS25)/2 -> 0 | AHT26: =(AHS25+AHT25)/2 -> 0 | AHU26: =(AHT25+AHU25)/2 -> 0 | AHV26: =(AHU25+AHV25)/2 -> 0 | AHW26: =(AHV25+AHW25)/2 -> 0 | AHX26: =(AHW25+AHX25)/2 -> 0 | AHY26: =(AHX25+AHY25)/2 -> 0 | AHZ26: =(AHY25+AHZ25)/2 -> 0 | AIA26: =(AHZ25+AIA25)/2 -> 0 | AIB26: =(AIA25+AIB25)/2 -> 0 | AIC26: =(AIB25+AIC25)/2 -> 0 | AID26: =(AIC25+AID25)/2 -> 0 | AIE26: =(AID25+AIE25)/2 -> 0 | AIF26: =(AIE25+AIF25)/2 -> 0 | AIG26: =(AIF25+AIG25)/2 -> 0 | AIH26: =(AIG25+AIH25)/2 -> 0 | AII26: =(AIH25+AII25)/2 -> 0 | AIJ26: =(AII25+AIJ25)/2 -> 0 | AIK26: =(AIJ25+AIK25)/2 -> 0 | AIL26: =(AIK25+AIL25)/2 -> 0 | AIM26: =(AIL25+AIM25)/2 -> 0 | AIN26: =(AIM25+AIN25)/2 -> 0 | AIO26: =(AIN25+AIO25)/2 -> 0 | AIP26: =(AIO25+AIP25)/2 -> 0 | AIQ26: =(AIP25+AIQ25)/2 -> 0 | AIR26: =(AIQ25+AIR25)/2 -> 0 | AIS26: =(AIR25+AIS25)/2 -> 0 | AIT26: =(AIS25+AIT25)/2 -> 0 | AIU26: =(AIT25+AIU25)/2 -> 0 | AIV26: =(AIU25+AIV25)/2 -> 0 | AIW26: =(AIV25+AIW25)/2 -> 0 | AIX26: =(AIW25+AIX25)/2 -> 0 | AIY26: =(AIX25+AIY25)/2 -> 0 | AIZ26: =(AIY25+AIZ25)/2 -> 0 | AJA26: =(AIZ25+AJA25)/2 -> 0 | AJB26: =(AJA25+AJB25)/2 -> 0 | AJC26: =(AJB25+AJC25)/2 -> 0 | AJD26: =(AJC25+AJD25)/2 -> 0 | AJE26: =(AJD25+AJE25)/2 -> 0 | AJF26: =(AJE25+AJF25)/2 -> 0 | AJG26: =(AJF25+AJG25)/2 -> 0 | AJH26: =(AJG25+AJH25)/2 -> 0 | AJI26: =(AJH25+AJI25)/2 -> 0 | AJJ26: =(AJI25+AJJ25)/2 -> 0 | AJK26: =(AJJ25+AJK25)/2 -> 0 | AJL26: =(AJK25+AJL25)/2 -> 0 | AJM26: =(AJL25+AJM25)/2 -> 0 | AJN26: =(AJM25+AJN25)/2 -> 0 | AJO26: =(AJN25+AJO25)/2 -> 0 | AJP26: =(AJO25+AJP25)/2 -> 0 | AJQ26: =(AJP25+AJQ25)/2 -> 0 | AJR26: =(AJQ25+AJR25)/2 -> 0 | AJS26: =(AJR25+AJS25)/2 -> 0 | AJT26: =(AJS25+AJT25)/2 -> 0 | AJU26: =(AJT25+AJU25)/2 -> 0 | AJV26: =(AJU25+AJV25)/2 -> 0 | AJW26: 0 | AJX26: =(AJW25+AJX25)/2 -> 0 | AJY26: =(AJX25+AJY25)/2 -> 0 | AJZ26: =(AJY25+AJZ25)/2 -> 0 | AKA26: =(AJZ25+AKA25)/2 -> 0 | AKB26: =(AKA25+AKB25)/2 -> 0 | AKC26: =(AKB25+AKC25)/2 -> 0 | AKD26: =(AKC25+AKD25)/2 -> 0 | AKE26: =(AKD25+AKE25)/2 -> 0 | AKF26: =(AKE25+AKF25)/2 -> 0 | AKG26: =(AKF25+AKG25)/2 -> 0 | AKH26: =(AKG25+AKH25)/2 -> 0 | AKI26: =(AKH25+AKI25)/2 -> 0 | AKJ26: =(AKI25+AKJ25)/2 -> 0 | AKK26: =(AKJ25+AKK25)/2 -> 0 | AKL26: =(AKK25+AKL25)/2 -> 0 | AKM26: =(AKL25+AKM25)/2 -> 0 | AKN26: =(AKM25+AKN25)/2 -> 0 | AKO26: =(AKN25+AKO25)/2 -> 0 | AKP26: =(AKO25+AKP25)/2 -> 0 | AKQ26: =(AKP25+AKQ25)/2 -> 0 | AKR26: =(AKQ25+AKR25)/2 -> 0 | AKS26: =(AKR25+AKS25)/2 -> 0 | AKT26: =(AKS25+AKT25)/2 -> 0 | AKU26: =(AKT25+AKU25)/2 -> 0 | AKV26: =(AKU25+AKV25)/2 -> 0 | AKW26: =(AKV25+AKW25)/2 -> 0 | AKX26: =(AKW25+AKX25)/2 -> 0 | AKY26: =(AKX25+AKY25)/2 -> 0 | AKZ26: =(AKY25+AKZ25)/2 -> 0 | ALA26: =(AKZ25+ALA25)/2 -> 0 | ALB26: =(ALA25+ALB25)/2 -> 0 | ALC26: =(ALB25+ALC25)/2 -> 0 | ALD26: =(ALC25+ALD25)/2 -> 0 | ALE26: =(ALD25+ALE25)/2 -> 0 | ALF26: =(ALE25+ALF25)/2 -> 0 | ALG26: =(ALF25+ALG25)/2 -> 0 | ALH26: =(ALG25+ALH25)/2 -> 0 | ALI26: =(ALH25+ALI25)/2 -> 0 | ALJ26: =(ALI25+ALJ25)/2 -> 0 | ALK26: =(ALJ25+ALK25)/2 -> 0 | ALL26: =(ALK25+ALL25)/2 -> 0 | ALM26: =(ALL25+ALM25)/2 -> 0 | ALN26: =(ALM25+ALN25)/2 -> 0 | ALO26: =(ALN25+ALO25)/2 -> 0 | ALP26: =(ALO25+ALP25)/2 -> 0 | ALQ26: =(ALP25+ALQ25)/2 -> 0 | ALR26: =(ALQ25+ALR25)/2 -> 0 | ALS26: =(ALR25+ALS25)/2 -> 0 | ALT26: =(ALS25+ALT25)/2 -> 0 | ALU26: =(ALT25+ALU25)/2 -> 0 | ALV26: =(ALU25+ALV25)/2 -> 0 | ALW26: =(ALV25+ALW25)/2 -> 0 | ALX26: =(ALW25+ALX25)/2 -> 0 | ALY26: =(ALX25+ALY25)/2 -> 0 | ALZ26: =(ALY25+ALZ25)/2 -> 0 | AMA26: =(ALZ25+AMA25)/2 -> 0 | AMB26: =(AMA25+AMB25)/2 -> 0 | AMC26: =(AMB25+AMC25)/2 -> 0 | AMD26: =(AMC25+AMD25)/2 -> 0 | AME26: =(AMD25+AME25)/2 -> 0 | AMF26: =(AME25+AMF25)/2 -> 0 | AMG26: =(AMF25+AMG25)/2 -> 0 | AMH26: =(AMG25+AMH25)/2 -> 0 | AMI26: =(AMH25+AMI25)/2 -> 0 | AMJ26: =(AMI25+AMJ25)/2 -> 0 | AMK26: =(AMJ25+AMK25)/2 -> 0 | AML26: =(AMK25+AML25)/2 -> 0 | AMM26: =(AML25+AMM25)/2 -> 0 | AMN26: =(AMM25+AMN25)/2 -> 0 | AMO26: =(AMN25+AMO25)/2 -> 0 | AMP26: =(AMO25+AMP25)/2 -> 0 | AMQ26: =(AMP25+AMQ25)/2 -> 0 | AMR26: =(AMQ25+AMR25)/2 -> 0 | AMS26: =(AMR25+AMS25)/2 -> 0 | AMT26: =(AMS25+AMT25)/2 -> 0 | AMU26: =(AMT25+AMU25)/2 -> 0 | AMV26: =(AMU25+AMV25)/2 -> 0 | AMW26: =(AMV25+AMW25)/2 -> 0 | AMX26: =(AMW25+AMX25)/2 -> 0 | AMY26: =(AMX25+AMY25)/2 -> 0 | AMZ26: =(AMY25+AMZ25)/2 -> 0 | ANA26: =(AMZ25+ANA25)/2 -> 0 | ANB26: =(ANA25+ANB25)/2 -> 0 | ANC26: =(ANB25+ANC25)/2 -> 0 | AND26: =(ANC25+AND25)/2 -> 0 | ANE26: =(AND25+ANE25)/2 -> 0 | ANF26: =(ANE25+ANF25)/2 -> 0 | ANG26: =(ANF25+ANG25)/2 -> 0 | ANH26: =(ANG25+ANH25)/2 -> 0 | ANI26: =(ANH25+ANI25)/2 -> 0 | ANJ26: =(ANI25+ANJ25)/2 -> 0 | ANK26: =(ANJ25+ANK25)/2 -> 0 | ANL26: =(ANK25+ANL25)/2 -> 0 | ANM26: =(ANL25+ANM25)/2 -> 0 | ANN26: =(ANM25+ANN25)/2 -> 0 | ANO26: =(ANN25+ANO25)/2 -> 0 | ANP26: =(ANO25+ANP25)/2 -> 0 | ANQ26: =(ANP25+ANQ25)/2 -> 0 | ANR26: =(ANQ25+ANR25)/2 -> 0 | ANS26: =(ANR25+ANS25)/2 -> 0 | ANT26: =(ANS25+ANT25)/2 -> 0 | ANU26: =(ANT25+ANU25)/2 -> 0 | ANV26: =(ANU25+ANV25)/2 -> 0 | ANW26: =(ANV25+ANW25)/2 -> 0 | ANX26: =(ANW25+ANX25)/2 -> 0 | ANY26: =(ANX25+ANY25)/2 -> 0 | ANZ26: =(ANY25+ANZ25)/2 -> 0 | AOA26: =(ANZ25+AOA25)/2 -> 0 | AOB26: =(AOA25+AOB25)/2 -> 0 | AOC26: =(AOB25+AOC25)/2 -> 0 | AOD26: =(AOC25+AOD25)/2 -> 0 | AOE26: =(AOD25+AOE25)/2 -> 0 | AOF26: =(AOE25+AOF25)/2 -> 0 | AOG26: =(AOF25+AOG25)/2 -> 0 | AOH26: =(AOG25+AOH25)/2 -> 0 | AOI26: =(AOH25+AOI25)/2 -> 0 | AOJ26: =(AOI25+AOJ25)/2 -> 0 | AOK26: =(AOJ25+AOK25)/2 -> 0 | AOL26: =(AOK25+AOL25)/2 -> 0 | AOM26: =(AOL25+AOM25)/2 -> 0 | AON26: =(AOM25+AON25)/2 -> 0 | AOO26: =(AON25+AOO25)/2 -> 0 | AOP26: =(AOO25+AOP25)/2 -> 0 | AOQ26: =(AOP25+AOQ25)/2 -> 0 | AOR26: =(AOQ25+AOR25)/2 -> 0 | AOS26: =(AOR25+AOS25)/2 -> 0 | AOT26: =(AOS25+AOT25)/2 -> 0 | AOU26: =(AOT25+AOU25)/2 -> 0 | AOV26: =(AOU25+AOV25)/2 -> 0 | AOW26: =(AOV25+AOW25)/2 -> 0 | AOX26: =(AOW25+AOX25)/2 -> 0 | AOY26: =(AOX25+AOY25)/2 -> 0 | AOZ26: =(AOY25+AOZ25)/2 -> 0 | APA26: =(AOZ25+APA25)/2 -> 0 | APB26: =(APA25+APB25)/2 -> 0 | APC26: =(APB25+APC25)/2 -> 0 | APD26: =(APC25+APD25)/2 -> 0 | APE26: =(APD25+APE25)/2 -> 0 | APF26: =(APE25+APF25)/2 -> 0 | APG26: =(APF25+APG25)/2 -> 0 | APH26: =(APG25+APH25)/2 -> 0 | API26: =(APH25+API25)/2 -> 0 | APJ26: =(API25+APJ25)/2 -> 0 | APK26: =(APJ25+APK25)/2 -> 0 | APL26: =(APK25+APL25)/2 -> 0 | APM26: =(APL25+APM25)/2 -> 0 | APN26: =(APM25+APN25)/2 -> 0 | APO26: =(APN25+APO25)/2 -> 0 | APP26: =(APO25+APP25)/2 -> 0 | APQ26: =(APP25+APQ25)/2 -> 0 | APR26: =(APQ25+APR25)/2 -> 0 | APS26: =(APR25+APS25)/2 -> 0 | APT26: =(APS25+APT25)/2 -> 0 | APU26: =(APT25+APU25)/2 -> 0 | APV26: =(APU25+APV25)/2 -> 0 | APW26: =(APV25+APW25)/2 -> 0 | APX26: =(APW25+APX25)/2 -> 0 | APY26: =(APX25+APY25)/2 -> 0 | APZ26: =(APY25+APZ25)/2 -> 0 | AQA26: =(APZ25+AQA25)/2 -> 0 | AQB26: =(AQA25+AQB25)/2 -> 0 | AQC26: =(AQB25+AQC25)/2 -> 0 | AQD26: =(AQC25+AQD25)/2 -> 0
B27: ∆X_lethal (m) Slide distance between the previous point and current point where KE is lethal. | E27: =E26*(E24-D24)*E30 -> 0.2371826438 | F27: =F26*(F24-E24)*F30 -> 0.2357479313 | G27: =G26*(G24-F24)*G30 -> 0.2343132188 | H27: 0.2328785063 | I27: 0.2314437938 | J27: 0.2300090813 | K27: 0.2285743688 | L27: =L26*(L24-J24)*L30 -> 0.4571487375 | M27: =M26*(M24-L24)*M30 -> 0.2271396563 | N27: 0.2257049438 | O27: 0.2242702313 | P27: 0.2228355188 | Q27: 0.2214008063 | R27: 0.2199660938 | S27: 0.2185313813 | T27: 0.2170966688 | U27: 0.2156619563 | V27: 0.2142272438 | W27: 0.2127925313 | X27: 0.2113578188 | Y27: 0.2099231063 | Z27: 0.2084883938 | AA27: 0.2070536813 | AB27: 0.2056189688 | AC27: 0.2041842563 | AD27: 0.2027495438 | AE27: 0.2013148313 | AF27: 0.1998801188 | AG27: 0.1984454063 | AH27: 0.1970106938 | AI27: 0.1955759813 | AJ27: 0.1941412688 | AK27: 0.1927065563 | AL27: 0.1912718438 | AM27: 0.1898371313 | AN27: 0.1884024188 | AO27: 0.1869677063 | AP27: 0.1855329938 | AQ27: 0.1840982813 | AR27: 0.1826635688 | AS27: 0.1812288563 | AT27: 0.1797941438 | AU27: 0.1783594313 | AV27: 0.1769247188 | AW27: 0.1754900063 | AX27: 0.1740552938 | AY27: 0.1726205813 | AZ27: 0.1711858688 | BA27: 0.1697511563 | BB27: 0.1683164438 | BC27: 0.1668817313 | BD27: 0.1654470188 | BE27: 0.1640123063 | BF27: 0.1625775938 | BG27: 0.1611428813 | BH27: 0.1597081688 | BI27: 0.1582734563 | BJ27: 0.1568387438 | BK27: 0.1554040313 | BL27: 0.1539693188 | BM27: 0.1525346063 | BN27: 0.1510998938 | BO27: 0.1496651813 | BP27: 0.1482304688 | BQ27: 0.1467957563 | BR27: 0.1453610438 | BS27: 0.1439263313 | BT27: 0.1424916187 | BU27: =BU26*(BU24-BT24)*BU30 -> 0.1410569062 | BV27: 0.1396221937 | BW27: 0.1381874812 | BX27: 0.1367527687 | BY27: 0.1353180562 | BZ27: 0.1338833437 | CA27: 0.1324486312 | CB27: 0.1310139187 | CC27: 0.1295792062 | CD27: 0.1281444937 | CE27: 0.1267097812 | CF27: 0.1252750687 | CG27: 0.1238403562 | CH27: 0.1224056437 | CI27: 0.1209709312 | CJ27: 0.1195362187 | CK27: 0.1181015062 | CL27: 0.1166667937 | CM27: 0.1152320812 | CN27: 0.1137973687 | CO27: 0.1123626562 | CP27: 0.1109279437 | CQ27: 0.1094932312 | CR27: 0.1080585187 | CS27: 0.1066238062 | CT27: 0.1051890937 | CU27: 0.1037543812 | CV27: 0.1023196687 | CW27: 0.1008849562 | CX27: 0.09945024375 | CY27: 0.09801553125 | CZ27: 0.09658081875 | DA27: 0.09514610625 | DB27: 0.09371139375 | DC27: 0.09227668125 | DD27: 0.09084196875 | DE27: 0.08940725625 | DF27: 0.08797254375 | DG27: 0.08653783125 | DH27: 0.08510311875 | DI27: 0.08366840625 | DJ27: 0.08223369375 | DK27: 0.08079898125 | DL27: 0.07936426875 | DM27: 0.07792955625 | DN27: 0.07649484375 | DO27: 0.07506013125 | DP27: 0.07362541875 | DQ27: 0.07219070625 | DR27: 0.07075599375 | DS27: 0.06932128125 | DT27: 0.06788656875 | DU27: 0.06645185625 | DV27: 0.06501714375 | DW27: 0.06358243125 | DX27: 0.06214771875 | DY27: 0.06071300625 | DZ27: 0.05927829375 | EA27: 0.05784358125 | EB27: 0.05640886875 | EC27: 0.05497415625 | ED27: 0.05353944375 | EE27: 0.05210473125 | EF27: 0.05067001875 | EG27: =EG26*(EG24-EF24)*EG30 -> 0.04923530625 | EH27: 0.04780059375 | EI27: 0.04636588125 | EJ27: 0.04493116875 | EK27: 0.04349645625 | EL27: 0.04206174375 | EM27: 0.04062703125 | EN27: 0.03919231875 | EO27: 0.03775760625 | EP27: 0.03632289375 | EQ27: 0.03488818125 | ER27: 0.03345346875 | ES27: 0.03201875625 | ET27: 0.03058404375 | EU27: 0.02914933125 | EV27: 0.02771461875 | EW27: 0.02627990625 | EX27: 0 | EY27: 0 | EZ27: 0 | FA27: 0 | FB27: 0 | FC27: 0 | FD27: 0 | FE27: 0 | FF27: 0 | FG27: 0 | FH27: 0 | FI27: 0 | FJ27: 0 | FK27: 0 | FL27: 0 | FM27: 0 | FN27: 0 | FO27: 0 | FP27: 0 | FQ27: 0 | FR27: 0 | FS27: 0 | FT27: 0 | FU27: 0 | FV27: 0 | FW27: 0 | FX27: 0 | FY27: 0 | FZ27: 0 | GA27: 0 | GB27: 0 | GC27: 0 | GD27: 0 | GE27: 0 | GF27: 0 | GG27: 0 | GH27: 0 | GI27: 0 | GJ27: 0 | GK27: 0 | GL27: 0 | GM27: 0 | GN27: 0 | GO27: 0 | GP27: 0 | GQ27: 0 | GR27: 0 | GS27: =GS26*(GS24-GR24)*GS30 -> 0 | GT27: 0 | GU27: 0 | GV27: 0 | GW27: 0 | GX27: 0 | GY27: 0 | GZ27: 0 | HA27: 0 | HB27: 0 | HC27: 0 | HD27: 0 | HE27: 0 | HF27: 0 | HG27: 0 | HH27: 0 | HI27: 0 | HJ27: 0 | HK27: 0 | HL27: 0 | HM27: 0 | HN27: 0 | HO27: 0 | HP27: 0 | HQ27: 0 | HR27: 0 | HS27: 0 | HT27: 0 | HU27: 0 | HV27: 0 | HW27: 0 | HX27: 0 | HY27: 0 | HZ27: 0 | IA27: 0 | IB27: 0 | IC27: 0 | ID27: 0 | IE27: 0 | IF27: 0 | IG27: 0 | IH27: 0 | II27: 0 | IJ27: 0 | IK27: 0 | IL27: 0 | IM27: 0 | IN27: 0 | IO27: 0 | IP27: 0 | IQ27: 0 | IR27: 0 | IS27: 0 | IT27: 0 | IU27: 0 | IV27: 0 | IW27: 0 | IX27: 0 | IY27: 0 | IZ27: 0 | JA27: 0 | JB27: 0 | JC27: 0 | JD27: 0 | JE27: =JE26*(JE24-JD24)*JE30 -> 0 | JF27: 0 | JG27: 0 | JH27: 0 | JI27: 0 | JJ27: 0 | JK27: 0 | JL27: 0 | JM27: 0 | JN27: 0 | JO27: 0 | JP27: 0 | JQ27: 0 | JR27: 0 | JS27: 0 | JT27: 0 | JU27: =JU26*(JU24-JT24)*JU30 -> 0 | JV27: =JV26*(JV24-JU24)*JV30 -> 0 | JW27: =JW26*(JW24-JV24)*JW30 -> 0 | JX27: =JX26*(JX24-JW24)*JX30 -> 0 | JY27: =JY26*(JY24-JX24)*JY30 -> 0 | JZ27: =JZ26*(JZ24-JY24)*JZ30 -> 0 | KA27: =KA26*(KA24-JZ24)*KA30 -> 0 | KB27: =KB26*(KB24-KA24)*KB30 -> 0 | KC27: =KC26*(KC24-KB24)*KC30 -> 0 | KD27: =KD26*(KD24-KC24)*KD30 -> 0 | KE27: =KE26*(KE24-KD24)*KE30 -> 0 | KF27: =KF26*(KF24-KE24)*KF30 -> 0 | KG27: =KG26*(KG24-KF24)*KG30 -> 0 | KH27: =KH26*(KH24-KG24)*KH30 -> 0 | KI27: =KI26*(KI24-KH24)*KI30 -> 0 | KJ27: =KJ26*(KJ24-KI24)*KJ30 -> 0 | KK27: =KK26*(KK24-KJ24)*KK30 -> 0 | KL27: =KL26*(KL24-KK24)*KL30 -> 0 | KM27: =KM26*(KM24-KL24)*KM30 -> 0 | KN27: =KN26*(KN24-KM24)*KN30 -> 0 | KO27: =KO26*(KO24-KN24)*KO30 -> 0 | KP27: =KP26*(KP24-KO24)*KP30 -> 0 | KQ27: =KQ26*(KQ24-KP24)*KQ30 -> 0 | KR27: =KR26*(KR24-KQ24)*KR30 -> 0 | KS27: =KS26*(KS24-KR24)*KS30 -> 0 | KT27: =KT26*(KT24-KS24)*KT30 -> 0 | KU27: =KU26*(KU24-KT24)*KU30 -> 0 | KV27: =KV26*(KV24-KU24)*KV30 -> 0 | KW27: =KW26*(KW24-KV24)*KW30 -> 0 | KX27: =KX26*(KX24-KW24)*KX30 -> 0 | KY27: =KY26*(KY24-KX24)*KY30 -> 0 | KZ27: =KZ26*(KZ24-KY24)*KZ30 -> 0 | LA27: =LA26*(LA24-KZ24)*LA30 -> 0 | LB27: =LB26*(LB24-LA24)*LB30 -> 0 | LC27: =LC26*(LC24-LB24)*LC30 -> 0 | LD27: =LD26*(LD24-LC24)*LD30 -> 0 | LE27: =LE26*(LE24-LD24)*LE30 -> 0 | LF27: =LF26*(LF24-LE24)*LF30 -> 0 | LG27: =LG26*(LG24-LF24)*LG30 -> 0 | LH27: =LH26*(LH24-LG24)*LH30 -> 0 | LI27: =LI26*(LI24-LH24)*LI30 -> 0 | LJ27: =LJ26*(LJ24-LI24)*LJ30 -> 0 | LK27: =LK26*(LK24-LJ24)*LK30 -> 0 | LL27: =LL26*(LL24-LK24)*LL30 -> 0 | LM27: =LM26*(LM24-LL24)*LM30 -> 0 | LN27: =LN26*(LN24-LM24)*LN30 -> 0 | LO27: =LO26*(LO24-LN24)*LO30 -> 0 | LP27: =LP26*(LP24-LO24)*LP30 -> 0 | LQ27: =LQ26*(LQ24-LP24)*LQ30 -> 0 | LR27: =LR26*(LR24-LQ24)*LR30 -> 0 | LS27: =LS26*(LS24-LR24)*LS30 -> 0 | LT27: =LT26*(LT24-LS24)*LT30 -> 0 | LU27: =LU26*(LU24-LT24)*LU30 -> 0 | LV27: =LV26*(LV24-LU24)*LV30 -> 0 | LW27: =LW26*(LW24-LV24)*LW30 -> 0 | LX27: =LX26*(LX24-LW24)*LX30 -> 0 | LY27: =LY26*(LY24-LX24)*LY30 -> 0 | LZ27: =LZ26*(LZ24-LY24)*LZ30 -> 0 | MA27: =MA26*(MA24-LZ24)*MA30 -> 0 | MB27: =MB26*(MB24-MA24)*MB30 -> 0 | MC27: =MC26*(MC24-MB24)*MC30 -> 0 | MD27: =MD26*(MD24-MC24)*MD30 -> 0 | ME27: =ME26*(ME24-MD24)*ME30 -> 0 | MF27: =MF26*(MF24-ME24)*MF30 -> 0 | MG27: =MG26*(MG24-MF24)*MG30 -> 0 | MH27: =MH26*(MH24-MG24)*MH30 -> 0 | MI27: =MI26*(MI24-MH24)*MI30 -> 0 | MJ27: =MJ26*(MJ24-MI24)*MJ30 -> 0 | MK27: =MK26*(MK24-MJ24)*MK30 -> 0 | ML27: =ML26*(ML24-MK24)*ML30 -> 0 | MM27: =MM26*(MM24-ML24)*MM30 -> 0 | MN27: =MN26*(MN24-MM24)*MN30 -> 0 | MO27: =MO26*(MO24-MN24)*MO30 -> 0 | MP27: =MP26*(MP24-MO24)*MP30 -> 0 | MQ27: =MQ26*(MQ24-MP24)*MQ30 -> 0 | MR27: =MR26*(MR24-MQ24)*MR30 -> 0 | MS27: =MS26*(MS24-MR24)*MS30 -> 0 | MT27: =MT26*(MT24-MS24)*MT30 -> 0 | MU27: =MU26*(MU24-MT24)*MU30 -> 0 | MV27: =MV26*(MV24-MU24)*MV30 -> 0 | MW27: =MW26*(MW24-MV24)*MW30 -> 0 | MX27: =MX26*(MX24-MW24)*MX30 -> 0 | MY27: =MY26*(MY24-MX24)*MY30 -> 0 | MZ27: =MZ26*(MZ24-MY24)*MZ30 -> 0 | NA27: =NA26*(NA24-MZ24)*NA30 -> 0 | NB27: =NB26*(NB24-NA24)*NB30 -> 0 | NC27: =NC26*(NC24-NB24)*NC30 -> 0 | ND27: =ND26*(ND24-NC24)*ND30 -> 0 | NE27: =NE26*(NE24-ND24)*NE30 -> 0 | NF27: =NF26*(NF24-NE24)*NF30 -> 0 | NG27: =NG26*(NG24-NF24)*NG30 -> 0 | NH27: =NH26*(NH24-NG24)*NH30 -> 0 | NI27: =NI26*(NI24-NH24)*NI30 -> 0 | NJ27: =NJ26*(NJ24-NI24)*NJ30 -> 0 | NK27: =NK26*(NK24-NJ24)*NK30 -> 0 | NL27: =NL26*(NL24-NK24)*NL30 -> 0 | NM27: =NM26*(NM24-NL24)*NM30 -> 0 | NN27: =NN26*(NN24-NM24)*NN30 -> 0 | NO27: =NO26*(NO24-NN24)*NO30 -> 0 | NP27: =NP26*(NP24-NO24)*NP30 -> 0 | NQ27: =NQ26*(NQ24-NP24)*NQ30 -> 0 | NR27: =NR26*(NR24-NQ24)*NR30 -> 0 | NS27: =NS26*(NS24-NR24)*NS30 -> 0 | NT27: =NT26*(NT24-NS24)*NT30 -> 0 | NU27: =NU26*(NU24-NT24)*NU30 -> 0 | NV27: =NV26*(NV24-NU24)*NV30 -> 0 | NW27: =NW26*(NW24-NV24)*NW30 -> 0 | NX27: =NX26*(NX24-NW24)*NX30 -> 0 | NY27: =NY26*(NY24-NX24)*NY30 -> 0 | NZ27: =NZ26*(NZ24-NY24)*NZ30 -> 0 | OA27: =OA26*(OA24-NZ24)*OA30 -> 0 | OB27: =OB26*(OB24-OA24)*OB30 -> 0 | OC27: =OC26*(OC24-OB24)*OC30 -> 0 | OD27: =OD26*(OD24-OC24)*OD30 -> 0 | OE27: =OE26*(OE24-OD24)*OE30 -> 0 | OF27: =OF26*(OF24-OE24)*OF30 -> 0 | OG27: =OG26*(OG24-OF24)*OG30 -> 0 | OH27: =OH26*(OH24-OG24)*OH30 -> 0 | OI27: =OI26*(OI24-OH24)*OI30 -> 0 | OJ27: =OJ26*(OJ24-OI24)*OJ30 -> 0 | OK27: =OK26*(OK24-OJ24)*OK30 -> 0 | OL27: =OL26*(OL24-OK24)*OL30 -> 0 | OM27: =OM26*(OM24-OL24)*OM30 -> 0 | ON27: =ON26*(ON24-OM24)*ON30 -> 0 | OO27: =OO26*(OO24-ON24)*OO30 -> 0 | OP27: =OP26*(OP24-OO24)*OP30 -> 0 | OQ27: =OQ26*(OQ24-OP24)*OQ30 -> 0 | OR27: =OR26*(OR24-OQ24)*OR30 -> 0 | OS27: =OS26*(OS24-OR24)*OS30 -> 0 | OT27: =OT26*(OT24-OS24)*OT30 -> 0 | OU27: =OU26*(OU24-OT24)*OU30 -> 0 | OV27: =OV26*(OV24-OU24)*OV30 -> 0 | OW27: =OW26*(OW24-OV24)*OW30 -> 0 | OX27: =OX26*(OX24-OW24)*OX30 -> 0 | OY27: =OY26*(OY24-OX24)*OY30 -> 0 | OZ27: =OZ26*(OZ24-OY24)*OZ30 -> 0 | PA27: =PA26*(PA24-OZ24)*PA30 -> 0 | PB27: =PB26*(PB24-PA24)*PB30 -> 0 | PC27: =PC26*(PC24-PB24)*PC30 -> 0 | PD27: =PD26*(PD24-PC24)*PD30 -> 0 | PE27: =PE26*(PE24-PD24)*PE30 -> 0 | PF27: =PF26*(PF24-PE24)*PF30 -> 0 | PG27: =PG26*(PG24-PF24)*PG30 -> 0 | PH27: =PH26*(PH24-PG24)*PH30 -> 0 | PI27: =PI26*(PI24-PH24)*PI30 -> 0 | PJ27: =PJ26*(PJ24-PI24)*PJ30 -> 0 | PK27: =PK26*(PK24-PJ24)*PK30 -> 0 | PL27: =PL26*(PL24-PK24)*PL30 -> 0 | PM27: =PM26*(PM24-PL24)*PM30 -> 0 | PN27: =PN26*(PN24-PM24)*PN30 -> 0 | PO27: =PO26*(PO24-PN24)*PO30 -> 0 | PP27: =PP26*(PP24-PO24)*PP30 -> 0 | PQ27: =PQ26*(PQ24-PP24)*PQ30 -> 0 | PR27: =PR26*(PR24-PQ24)*PR30 -> 0 | PS27: =PS26*(PS24-PR24)*PS30 -> 0 | PT27: =PT26*(PT24-PS24)*PT30 -> 0 | PU27: =PU26*(PU24-PT24)*PU30 -> 0 | PV27: =PV26*(PV24-PU24)*PV30 -> 0 | PW27: =PW26*(PW24-PV24)*PW30 -> 0 | PX27: =PX26*(PX24-PW24)*PX30 -> 0 | PY27: =PY26*(PY24-PX24)*PY30 -> 0 | PZ27: =PZ26*(PZ24-PY24)*PZ30 -> 0 | QA27: =QA26*(QA24-PZ24)*QA30 -> 0 | QB27: =QB26*(QB24-QA24)*QB30 -> 0 | QC27: =QC26*(QC24-QB24)*QC30 -> 0 | QD27: =QD26*(QD24-QC24)*QD30 -> 0 | QE27: =QE26*(QE24-QD24)*QE30 -> 0 | QF27: =QF26*(QF24-QE24)*QF30 -> 0 | QG27: =QG26*(QG24-QF24)*QG30 -> 0 | QH27: =QH26*(QH24-QG24)*QH30 -> 0 | QI27: =QI26*(QI24-QH24)*QI30 -> 0 | QJ27: =QJ26*(QJ24-QI24)*QJ30 -> 0 | QK27: =QK26*(QK24-QJ24)*QK30 -> 0 | QL27: =QL26*(QL24-QK24)*QL30 -> 0 | QM27: =QM26*(QM24-QL24)*QM30 -> 0 | QN27: =QN26*(QN24-QM24)*QN30 -> 0 | QO27: =QO26*(QO24-QN24)*QO30 -> 0 | QP27: =QP26*(QP24-QO24)*QP30 -> 0 | QQ27: =QQ26*(QQ24-QP24)*QQ30 -> 0 | QR27: =QR26*(QR24-QQ24)*QR30 -> 0 | QS27: =QS26*(QS24-QR24)*QS30 -> 0 | QT27: =QT26*(QT24-QS24)*QT30 -> 0 | QU27: =QU26*(QU24-QT24)*QU30 -> 0 | QV27: =QV26*(QV24-QU24)*QV30 -> 0 | QW27: =QW26*(QW24-QV24)*QW30 -> 0 | QX27: =QX26*(QX24-QW24)*QX30 -> 0 | QY27: =QY26*(QY24-QX24)*QY30 -> 0 | QZ27: =QZ26*(QZ24-QY24)*QZ30 -> 0 | RA27: =RA26*(RA24-QZ24)*RA30 -> 0 | RB27: =RB26*(RB24-RA24)*RB30 -> 0 | RC27: =RC26*(RC24-RB24)*RC30 -> 0 | RD27: =RD26*(RD24-RC24)*RD30 -> 0 | RE27: =RE26*(RE24-RD24)*RE30 -> 0 | RF27: =RF26*(RF24-RE24)*RF30 -> 0 | RG27: =RG26*(RG24-RF24)*RG30 -> 0 | RH27: =RH26*(RH24-RG24)*RH30 -> 0 | RI27: =RI26*(RI24-RH24)*RI30 -> 0 | RJ27: =RJ26*(RJ24-RI24)*RJ30 -> 0 | RK27: =RK26*(RK24-RJ24)*RK30 -> 0 | RL27: =RL26*(RL24-RK24)*RL30 -> 0 | RM27: =RM26*(RM24-RL24)*RM30 -> 0 | RN27: =RN26*(RN24-RM24)*RN30 -> 0 | RO27: =RO26*(RO24-RN24)*RO30 -> 0 | RP27: =RP26*(RP24-RO24)*RP30 -> 0 | RQ27: =RQ26*(RQ24-RP24)*RQ30 -> 0 | RR27: =RR26*(RR24-RQ24)*RR30 -> 0 | RS27: =RS26*(RS24-RR24)*RS30 -> 0 | RT27: =RT26*(RT24-RS24)*RT30 -> 0 | RU27: =RU26*(RU24-RT24)*RU30 -> 0 | RV27: =RV26*(RV24-RU24)*RV30 -> 0 | RW27: =RW26*(RW24-RV24)*RW30 -> 0 | RX27: =RX26*(RX24-RW24)*RX30 -> 0 | RY27: =RY26*(RY24-RX24)*RY30 -> 0 | RZ27: =RZ26*(RZ24-RY24)*RZ30 -> 0 | SA27: =SA26*(SA24-RZ24)*SA30 -> 0 | SB27: =SB26*(SB24-SA24)*SB30 -> 0 | SC27: =SC26*(SC24-SB24)*SC30 -> 0 | SD27: =SD26*(SD24-SC24)*SD30 -> 0 | SE27: =SE26*(SE24-SD24)*SE30 -> 0 | SF27: =SF26*(SF24-SE24)*SF30 -> 0 | SG27: =SG26*(SG24-SF24)*SG30 -> 0 | SH27: =SH26*(SH24-SG24)*SH30 -> 0 | SI27: =SI26*(SI24-SH24)*SI30 -> 0 | SJ27: =SJ26*(SJ24-SI24)*SJ30 -> 0 | SK27: =SK26*(SK24-SJ24)*SK30 -> 0 | SL27: =SL26*(SL24-SK24)*SL30 -> 0 | SM27: =SM26*(SM24-SL24)*SM30 -> 0 | SN27: =SN26*(SN24-SM24)*SN30 -> 0 | SO27: =SO26*(SO24-SN24)*SO30 -> 0 | SP27: =SP26*(SP24-SO24)*SP30 -> 0 | SQ27: =SQ26*(SQ24-SP24)*SQ30 -> 0 | SR27: =SR26*(SR24-SQ24)*SR30 -> 0 | SS27: =SS26*(SS24-SR24)*SS30 -> 0 | ST27: =ST26*(ST24-SS24)*ST30 -> 0 | SU27: =SU26*(SU24-ST24)*SU30 -> 0 | SV27: =SV26*(SV24-SU24)*SV30 -> 0 | SW27: =SW26*(SW24-SV24)*SW30 -> 0 | SX27: =SX26*(SX24-SW24)*SX30 -> 0 | SY27: =SY26*(SY24-SX24)*SY30 -> 0 | SZ27: =SZ26*(SZ24-SY24)*SZ30 -> 0 | TA27: =TA26*(TA24-SZ24)*TA30 -> 0 | TB27: =TB26*(TB24-TA24)*TB30 -> 0 | TC27: =TC26*(TC24-TB24)*TC30 -> 0 | TD27: =TD26*(TD24-TC24)*TD30 -> 0 | TE27: =TE26*(TE24-TD24)*TE30 -> 0 | TF27: =TF26*(TF24-TE24)*TF30 -> 0 | TG27: =TG26*(TG24-TF24)*TG30 -> 0 | TH27: =TH26*(TH24-TG24)*TH30 -> 0 | TI27: =TI26*(TI24-TH24)*TI30 -> 0 | TJ27: =TJ26*(TJ24-TI24)*TJ30 -> 0 | TK27: =TK26*(TK24-TJ24)*TK30 -> 0 | TL27: =TL26*(TL24-TK24)*TL30 -> 0 | TM27: =TM26*(TM24-TL24)*TM30 -> 0 | TN27: =TN26*(TN24-TM24)*TN30 -> 0 | TO27: =TO26*(TO24-TN24)*TO30 -> 0 | TP27: =TP26*(TP24-TO24)*TP30 -> 0 | TQ27: =TQ26*(TQ24-TP24)*TQ30 -> 0 | TR27: =TR26*(TR24-TQ24)*TR30 -> 0 | TS27: =TS26*(TS24-TR24)*TS30 -> 0 | TT27: =TT26*(TT24-TS24)*TT30 -> 0 | TU27: =TU26*(TU24-TT24)*TU30 -> 0 | TV27: =TV26*(TV24-TU24)*TV30 -> 0 | TW27: =TW26*(TW24-TV24)*TW30 -> 0 | TX27: =TX26*(TX24-TW24)*TX30 -> 0 | TY27: =TY26*(TY24-TX24)*TY30 -> 0 | TZ27: =TZ26*(TZ24-TY24)*TZ30 -> 0 | UA27: =UA26*(UA24-TZ24)*UA30 -> 0 | UB27: =UB26*(UB24-UA24)*UB30 -> 0 | UC27: =UC26*(UC24-UB24)*UC30 -> 0 | UD27: =UD26*(UD24-UC24)*UD30 -> 0 | UE27: =UE26*(UE24-UD24)*UE30 -> 0 | UF27: =UF26*(UF24-UE24)*UF30 -> 0 | UG27: =UG26*(UG24-UF24)*UG30 -> 0 | UH27: =UH26*(UH24-UG24)*UH30 -> 0 | UI27: =UI26*(UI24-UH24)*UI30 -> 0 | UJ27: =UJ26*(UJ24-UI24)*UJ30 -> 0 | UK27: =UK26*(UK24-UJ24)*UK30 -> 0 | UL27: =UL26*(UL24-UK24)*UL30 -> 0 | UM27: =UM26*(UM24-UL24)*UM30 -> 0 | UN27: =UN26*(UN24-UM24)*UN30 -> 0 | UO27: =UO26*(UO24-UN24)*UO30 -> 0 | UP27: =UP26*(UP24-UO24)*UP30 -> 0 | UQ27: =UQ26*(UQ24-UP24)*UQ30 -> 0 | UR27: =UR26*(UR24-UQ24)*UR30 -> 0 | US27: =US26*(US24-UR24)*US30 -> 0 | UT27: =UT26*(UT24-US24)*UT30 -> 0 | UU27: =UU26*(UU24-UT24)*UU30 -> 0 | UV27: =UV26*(UV24-UU24)*UV30 -> 0 | UW27: =UW26*(UW24-UV24)*UW30 -> 0 | UX27: =UX26*(UX24-UW24)*UX30 -> 0 | UY27: =UY26*(UY24-UX24)*UY30 -> 0 | UZ27: =UZ26*(UZ24-UY24)*UZ30 -> 0 | VA27: =VA26*(VA24-UZ24)*VA30 -> 0 | VB27: =VB26*(VB24-VA24)*VB30 -> 0 | VC27: =VC26*(VC24-VB24)*VC30 -> 0 | VD27: =VD26*(VD24-VC24)*VD30 -> 0 | VE27: =VE26*(VE24-VD24)*VE30 -> 0 | VF27: =VF26*(VF24-VE24)*VF30 -> 0 | VG27: =VG26*(VG24-VF24)*VG30 -> 0 | VH27: =VH26*(VH24-VG24)*VH30 -> 0 | VI27: =VI26*(VI24-VH24)*VI30 -> 0 | VJ27: =VJ26*(VJ24-VI24)*VJ30 -> 0 | VK27: =VK26*(VK24-VJ24)*VK30 -> 0 | VL27: =VL26*(VL24-VK24)*VL30 -> 0 | VM27: =VM26*(VM24-VL24)*VM30 -> 0 | VN27: =VN26*(VN24-VM24)*VN30 -> 0 | VO27: =VO26*(VO24-VN24)*VO30 -> 0 | VP27: =VP26*(VP24-VO24)*VP30 -> 0 | VQ27: =VQ26*(VQ24-VP24)*VQ30 -> 0 | VR27: =VR26*(VR24-VQ24)*VR30 -> 0 | VS27: =VS26*(VS24-VR24)*VS30 -> 0 | VT27: =VT26*(VT24-VS24)*VT30 -> 0 | VU27: =VU26*(VU24-VT24)*VU30 -> 0 | VV27: =VV26*(VV24-VU24)*VV30 -> 0 | VW27: =VW26*(VW24-VV24)*VW30 -> 0 | VX27: =VX26*(VX24-VW24)*VX30 -> 0 | VY27: =VY26*(VY24-VX24)*VY30 -> 0 | VZ27: =VZ26*(VZ24-VY24)*VZ30 -> 0 | WA27: =WA26*(WA24-VZ24)*WA30 -> 0 | WB27: =WB26*(WB24-WA24)*WB30 -> 0 | WC27: =WC26*(WC24-WB24)*WC30 -> 0 | WD27: =WD26*(WD24-WC24)*WD30 -> 0 | WE27: =WE26*(WE24-WD24)*WE30 -> 0 | WF27: =WF26*(WF24-WE24)*WF30 -> 0 | WG27: =WG26*(WG24-WF24)*WG30 -> 0 | WH27: =WH26*(WH24-WG24)*WH30 -> 0 | WI27: =WI26*(WI24-WH24)*WI30 -> 0 | WJ27: =WJ26*(WJ24-WI24)*WJ30 -> 0 | WK27: =WK26*(WK24-WJ24)*WK30 -> 0 | WL27: =WL26*(WL24-WK24)*WL30 -> 0 | WM27: =WM26*(WM24-WL24)*WM30 -> 0 | WN27: =WN26*(WN24-WM24)*WN30 -> 0 | WO27: =WO26*(WO24-WN24)*WO30 -> 0 | WP27: =WP26*(WP24-WO24)*WP30 -> 0 | WQ27: =WQ26*(WQ24-WP24)*WQ30 -> 0 | WR27: =WR26*(WR24-WQ24)*WR30 -> 0 | WS27: =WS26*(WS24-WR24)*WS30 -> 0 | WT27: =WT26*(WT24-WS24)*WT30 -> 0 | WU27: =WU26*(WU24-WT24)*WU30 -> 0 | WV27: =WV26*(WV24-WU24)*WV30 -> 0 | WW27: =WW26*(WW24-WV24)*WW30 -> 0 | WX27: =WX26*(WX24-WW24)*WX30 -> 0 | WY27: =WY26*(WY24-WX24)*WY30 -> 0 | WZ27: =WZ26*(WZ24-WY24)*WZ30 -> 0 | XA27: =XA26*(XA24-WZ24)*XA30 -> 0 | XB27: =XB26*(XB24-XA24)*XB30 -> 0 | XC27: =XC26*(XC24-XB24)*XC30 -> 0 | XD27: =XD26*(XD24-XC24)*XD30 -> 0 | XE27: =XE26*(XE24-XD24)*XE30 -> 0 | XF27: =XF26*(XF24-XE24)*XF30 -> 0 | XG27: =XG26*(XG24-XF24)*XG30 -> 0 | XH27: =XH26*(XH24-XG24)*XH30 -> 0 | XI27: =XI26*(XI24-XH24)*XI30 -> 0 | XJ27: =XJ26*(XJ24-XI24)*XJ30 -> 0 | XK27: =XK26*(XK24-XJ24)*XK30 -> 0 | XL27: =XL26*(XL24-XK24)*XL30 -> 0 | XM27: =XM26*(XM24-XL24)*XM30 -> 0 | XN27: =XN26*(XN24-XM24)*XN30 -> 0 | XO27: =XO26*(XO24-XN24)*XO30 -> 0 | XP27: =XP26*(XP24-XO24)*XP30 -> 0 | XQ27: =XQ26*(XQ24-XP24)*XQ30 -> 0 | XR27: =XR26*(XR24-XQ24)*XR30 -> 0 | XS27: =XS26*(XS24-XR24)*XS30 -> 0 | XT27: =XT26*(XT24-XS24)*XT30 -> 0 | XU27: =XU26*(XU24-XT24)*XU30 -> 0 | XV27: =XV26*(XV24-XU24)*XV30 -> 0 | XW27: =XW26*(XW24-XV24)*XW30 -> 0 | XX27: =XX26*(XX24-XW24)*XX30 -> 0 | XY27: =XY26*(XY24-XX24)*XY30 -> 0 | XZ27: =XZ26*(XZ24-XY24)*XZ30 -> 0 | YA27: =YA26*(YA24-XZ24)*YA30 -> 0 | YB27: =YB26*(YB24-YA24)*YB30 -> 0 | YC27: =YC26*(YC24-YB24)*YC30 -> 0 | YD27: =YD26*(YD24-YC24)*YD30 -> 0 | YE27: =YE26*(YE24-YD24)*YE30 -> 0 | YF27: =YF26*(YF24-YE24)*YF30 -> 0 | YG27: =YG26*(YG24-YF24)*YG30 -> 0 | YH27: =YH26*(YH24-YG24)*YH30 -> 0 | YI27: =YI26*(YI24-YH24)*YI30 -> 0 | YJ27: =YJ26*(YJ24-YI24)*YJ30 -> 0 | YK27: =YK26*(YK24-YJ24)*YK30 -> 0 | YL27: =YL26*(YL24-YK24)*YL30 -> 0 | YM27: =YM26*(YM24-YL24)*YM30 -> 0 | YN27: =YN26*(YN24-YM24)*YN30 -> 0 | YO27: =YO26*(YO24-YN24)*YO30 -> 0 | YP27: =YP26*(YP24-YO24)*YP30 -> 0 | YQ27: =YQ26*(YQ24-YP24)*YQ30 -> 0 | YR27: =YR26*(YR24-YQ24)*YR30 -> 0 | YS27: =YS26*(YS24-YR24)*YS30 -> 0 | YT27: =YT26*(YT24-YS24)*YT30 -> 0 | YU27: =YU26*(YU24-YT24)*YU30 -> 0 | YV27: =YV26*(YV24-YU24)*YV30 -> 0 | YW27: =YW26*(YW24-YV24)*YW30 -> 0 | YX27: =YX26*(YX24-YW24)*YX30 -> 0 | YY27: =YY26*(YY24-YX24)*YY30 -> 0 | YZ27: =YZ26*(YZ24-YY24)*YZ30 -> 0 | ZA27: =ZA26*(ZA24-YZ24)*ZA30 -> 0 | ZB27: =ZB26*(ZB24-ZA24)*ZB30 -> 0 | ZC27: =ZC26*(ZC24-ZB24)*ZC30 -> 0 | ZD27: =ZD26*(ZD24-ZC24)*ZD30 -> 0 | ZE27: =ZE26*(ZE24-ZD24)*ZE30 -> 0 | ZF27: =ZF26*(ZF24-ZE24)*ZF30 -> 0 | ZG27: =ZG26*(ZG24-ZF24)*ZG30 -> 0 | ZH27: =ZH26*(ZH24-ZG24)*ZH30 -> 0 | ZI27: =ZI26*(ZI24-ZH24)*ZI30 -> 0 | ZJ27: =ZJ26*(ZJ24-ZI24)*ZJ30 -> 0 | ZK27: =ZK26*(ZK24-ZJ24)*ZK30 -> 0 | ZL27: =ZL26*(ZL24-ZK24)*ZL30 -> 0 | ZM27: =ZM26*(ZM24-ZL24)*ZM30 -> 0 | ZN27: =ZN26*(ZN24-ZM24)*ZN30 -> 0 | ZO27: =ZO26*(ZO24-ZN24)*ZO30 -> 0 | ZP27: =ZP26*(ZP24-ZO24)*ZP30 -> 0 | ZQ27: =ZQ26*(ZQ24-ZP24)*ZQ30 -> 0 | ZR27: =ZR26*(ZR24-ZQ24)*ZR30 -> 0 | ZS27: =ZS26*(ZS24-ZR24)*ZS30 -> 0 | ZT27: =ZT26*(ZT24-ZS24)*ZT30 -> 0 | ZU27: =ZU26*(ZU24-ZT24)*ZU30 -> 0 | ZV27: =ZV26*(ZV24-ZU24)*ZV30 -> 0 | ZW27: =ZW26*(ZW24-ZV24)*ZW30 -> 0 | ZX27: =ZX26*(ZX24-ZW24)*ZX30 -> 0 | ZY27: =ZY26*(ZY24-ZX24)*ZY30 -> 0 | ZZ27: =ZZ26*(ZZ24-ZY24)*ZZ30 -> 0 | AAA27: =AAA26*(AAA24-ZZ24)*AAA30 -> 0 | AAB27: =AAB26*(AAB24-AAA24)*AAB30 -> 0 | AAC27: =AAC26*(AAC24-AAB24)*AAC30 -> 0 | AAD27: =AAD26*(AAD24-AAC24)*AAD30 -> 0 | AAE27: =AAE26*(AAE24-AAD24)*AAE30 -> 0 | AAF27: =AAF26*(AAF24-AAE24)*AAF30 -> 0 | AAG27: =AAG26*(AAG24-AAF24)*AAG30 -> 0 | AAH27: =AAH26*(AAH24-AAG24)*AAH30 -> 0 | AAI27: =AAI26*(AAI24-AAH24)*AAI30 -> 0 | AAJ27: =AAJ26*(AAJ24-AAI24)*AAJ30 -> 0 | AAK27: =AAK26*(AAK24-AAJ24)*AAK30 -> 0 | AAL27: =AAL26*(AAL24-AAK24)*AAL30 -> 0 | AAM27: =AAM26*(AAM24-AAL24)*AAM30 -> 0 | AAN27: =AAN26*(AAN24-AAM24)*AAN30 -> 0 | AAO27: =AAO26*(AAO24-AAN24)*AAO30 -> 0 | AAP27: =AAP26*(AAP24-AAO24)*AAP30 -> 0 | AAQ27: =AAQ26*(AAQ24-AAP24)*AAQ30 -> 0 | AAR27: =AAR26*(AAR24-AAQ24)*AAR30 -> 0 | AAS27: =AAS26*(AAS24-AAR24)*AAS30 -> 0 | AAT27: =AAT26*(AAT24-AAS24)*AAT30 -> 0 | AAU27: =AAU26*(AAU24-AAT24)*AAU30 -> 0 | AAV27: =AAV26*(AAV24-AAU24)*AAV30 -> 0 | AAW27: =AAW26*(AAW24-AAV24)*AAW30 -> 0 | AAX27: =AAX26*(AAX24-AAW24)*AAX30 -> 0 | AAY27: =AAY26*(AAY24-AAX24)*AAY30 -> 0 | AAZ27: =AAZ26*(AAZ24-AAY24)*AAZ30 -> 0 | ABA27: =ABA26*(ABA24-AAZ24)*ABA30 -> 0 | ABB27: =ABB26*(ABB24-ABA24)*ABB30 -> 0 | ABC27: =ABC26*(ABC24-ABB24)*ABC30 -> 0 | ABD27: =ABD26*(ABD24-ABC24)*ABD30 -> 0 | ABE27: =ABE26*(ABE24-ABD24)*ABE30 -> 0 | ABF27: =ABF26*(ABF24-ABE24)*ABF30 -> 0 | ABG27: =ABG26*(ABG24-ABF24)*ABG30 -> 0 | ABH27: =ABH26*(ABH24-ABG24)*ABH30 -> 0 | ABI27: =ABI26*(ABI24-ABH24)*ABI30 -> 0 | ABJ27: =ABJ26*(ABJ24-ABI24)*ABJ30 -> 0 | ABK27: =ABK26*(ABK24-ABJ24)*ABK30 -> 0 | ABL27: =ABL26*(ABL24-ABK24)*ABL30 -> 0 | ABM27: =ABM26*(ABM24-ABL24)*ABM30 -> 0 | ABN27: =ABN26*(ABN24-ABM24)*ABN30 -> 0 | ABO27: =ABO26*(ABO24-ABN24)*ABO30 -> 0 | ABP27: =ABP26*(ABP24-ABO24)*ABP30 -> 0 | ABQ27: =ABQ26*(ABQ24-ABP24)*ABQ30 -> 0 | ABR27: =ABR26*(ABR24-ABQ24)*ABR30 -> 0 | ABS27: =ABS26*(ABS24-ABR24)*ABS30 -> 0 | ABT27: =ABT26*(ABT24-ABS24)*ABT30 -> 0 | ABU27: =ABU26*(ABU24-ABT24)*ABU30 -> 0 | ABV27: =ABV26*(ABV24-ABU24)*ABV30 -> 0 | ABW27: =ABW26*(ABW24-ABV24)*ABW30 -> 0 | ABX27: =ABX26*(ABX24-ABW24)*ABX30 -> 0 | ABY27: =ABY26*(ABY24-ABX24)*ABY30 -> 0 | ABZ27: =ABZ26*(ABZ24-ABY24)*ABZ30 -> 0 | ACA27: =ACA26*(ACA24-ABZ24)*ACA30 -> 0 | ACB27: =ACB26*(ACB24-ACA24)*ACB30 -> 0 | ACC27: =ACC26*(ACC24-ACB24)*ACC30 -> 0 | ACD27: =ACD26*(ACD24-ACC24)*ACD30 -> 0 | ACE27: =ACE26*(ACE24-ACD24)*ACE30 -> 0 | ACF27: =ACF26*(ACF24-ACE24)*ACF30 -> 0 | ACG27: =ACG26*(ACG24-ACF24)*ACG30 -> 0 | ACH27: =ACH26*(ACH24-ACG24)*ACH30 -> 0 | ACI27: =ACI26*(ACI24-ACH24)*ACI30 -> 0 | ACJ27: =ACJ26*(ACJ24-ACI24)*ACJ30 -> 0 | ACK27: =ACK26*(ACK24-ACJ24)*ACK30 -> 0 | ACL27: =ACL26*(ACL24-ACK24)*ACL30 -> 0 | ACM27: =ACM26*(ACM24-ACL24)*ACM30 -> 0 | ACN27: =ACN26*(ACN24-ACM24)*ACN30 -> 0 | ACO27: =ACO26*(ACO24-ACN24)*ACO30 -> 0 | ACP27: =ACP26*(ACP24-ACO24)*ACP30 -> 0 | ACQ27: =ACQ26*(ACQ24-ACP24)*ACQ30 -> 0 | ACR27: =ACR26*(ACR24-ACQ24)*ACR30 -> 0 | ACS27: =ACS26*(ACS24-ACR24)*ACS30 -> 0 | ACT27: =ACT26*(ACT24-ACS24)*ACT30 -> 0 | ACU27: =ACU26*(ACU24-ACT24)*ACU30 -> 0 | ACV27: =ACV26*(ACV24-ACU24)*ACV30 -> 0 | ACW27: =ACW26*(ACW24-ACV24)*ACW30 -> 0 | ACX27: =ACX26*(ACX24-ACW24)*ACX30 -> 0 | ACY27: =ACY26*(ACY24-ACX24)*ACY30 -> 0 | ACZ27: =ACZ26*(ACZ24-ACY24)*ACZ30 -> 0 | ADA27: =ADA26*(ADA24-ACZ24)*ADA30 -> 0 | ADB27: =ADB26*(ADB24-ADA24)*ADB30 -> 0 | ADC27: =ADC26*(ADC24-ADB24)*ADC30 -> 0 | ADD27: =ADD26*(ADD24-ADC24)*ADD30 -> 0 | ADE27: =ADE26*(ADE24-ADD24)*ADE30 -> 0 | ADF27: =ADF26*(ADF24-ADE24)*ADF30 -> 0 | ADG27: =ADG26*(ADG24-ADF24)*ADG30 -> 0 | ADH27: =ADH26*(ADH24-ADG24)*ADH30 -> 0 | ADI27: =ADI26*(ADI24-ADH24)*ADI30 -> 0 | ADJ27: =ADJ26*(ADJ24-ADI24)*ADJ30 -> 0 | ADK27: =ADK26*(ADK24-ADJ24)*ADK30 -> 0 | ADL27: =ADL26*(ADL24-ADK24)*ADL30 -> 0 | ADM27: =ADM26*(ADM24-ADL24)*ADM30 -> 0 | ADN27: =ADN26*(ADN24-ADM24)*ADN30 -> 0 | ADO27: =ADO26*(ADO24-ADN24)*ADO30 -> 0 | ADP27: =ADP26*(ADP24-ADO24)*ADP30 -> 0 | ADQ27: =ADQ26*(ADQ24-ADP24)*ADQ30 -> 0 | ADR27: =ADR26*(ADR24-ADQ24)*ADR30 -> 0 | ADS27: =ADS26*(ADS24-ADR24)*ADS30 -> 0 | ADT27: =ADT26*(ADT24-ADS24)*ADT30 -> 0 | ADU27: =ADU26*(ADU24-ADT24)*ADU30 -> 0 | ADV27: =ADV26*(ADV24-ADU24)*ADV30 -> 0 | ADW27: =ADW26*(ADW24-ADV24)*ADW30 -> 0 | ADX27: =ADX26*(ADX24-ADW24)*ADX30 -> 0 | ADY27: =ADY26*(ADY24-ADX24)*ADY30 -> 0 | ADZ27: =ADZ26*(ADZ24-ADY24)*ADZ30 -> 0 | AEA27: =AEA26*(AEA24-ADZ24)*AEA30 -> 0 | AEB27: =AEB26*(AEB24-AEA24)*AEB30 -> 0 | AEC27: =AEC26*(AEC24-AEB24)*AEC30 -> 0 | AED27: =AED26*(AED24-AEC24)*AED30 -> 0 | AEE27: =AEE26*(AEE24-AED24)*AEE30 -> 0 | AEF27: =AEF26*(AEF24-AEE24)*AEF30 -> 0 | AEG27: =AEG26*(AEG24-AEF24)*AEG30 -> 0 | AEH27: =AEH26*(AEH24-AEG24)*AEH30 -> 0 | AEI27: =AEI26*(AEI24-AEH24)*AEI30 -> 0 | AEJ27: =AEJ26*(AEJ24-AEI24)*AEJ30 -> 0 | AEK27: =AEK26*(AEK24-AEJ24)*AEK30 -> 0 | AEL27: =AEL26*(AEL24-AEK24)*AEL30 -> 0 | AEM27: =AEM26*(AEM24-AEL24)*AEM30 -> 0 | AEN27: =AEN26*(AEN24-AEM24)*AEN30 -> 0 | AEO27: =AEO26*(AEO24-AEN24)*AEO30 -> 0 | AEP27: =AEP26*(AEP24-AEO24)*AEP30 -> 0 | AEQ27: =AEQ26*(AEQ24-AEP24)*AEQ30 -> 0 | AER27: =AER26*(AER24-AEQ24)*AER30 -> 0 | AES27: =AES26*(AES24-AER24)*AES30 -> 0 | AET27: =AET26*(AET24-AES24)*AET30 -> 0 | AEU27: =AEU26*(AEU24-AET24)*AEU30 -> 0 | AEV27: =AEV26*(AEV24-AEU24)*AEV30 -> 0 | AEW27: =AEW26*(AEW24-AEV24)*AEW30 -> 0 | AEX27: =AEX26*(AEX24-AEW24)*AEX30 -> 0 | AEY27: =AEY26*(AEY24-AEX24)*AEY30 -> 0 | AEZ27: =AEZ26*(AEZ24-AEY24)*AEZ30 -> 0 | AFA27: =AFA26*(AFA24-AEZ24)*AFA30 -> 0 | AFB27: =AFB26*(AFB24-AFA24)*AFB30 -> 0 | AFC27: =AFC26*(AFC24-AFB24)*AFC30 -> 0 | AFD27: =AFD26*(AFD24-AFC24)*AFD30 -> 0 | AFE27: =AFE26*(AFE24-AFD24)*AFE30 -> 0 | AFF27: =AFF26*(AFF24-AFE24)*AFF30 -> 0 | AFG27: =AFG26*(AFG24-AFF24)*AFG30 -> 0 | AFH27: =AFH26*(AFH24-AFG24)*AFH30 -> 0 | AFI27: =AFI26*(AFI24-AFH24)*AFI30 -> 0 | AFJ27: =AFJ26*(AFJ24-AFI24)*AFJ30 -> 0 | AFK27: =AFK26*(AFK24-AFJ24)*AFK30 -> 0 | AFL27: =AFL26*(AFL24-AFK24)*AFL30 -> 0 | AFM27: =AFM26*(AFM24-AFL24)*AFM30 -> 0 | AFN27: =AFN26*(AFN24-AFM24)*AFN30 -> 0 | AFO27: =AFO26*(AFO24-AFN24)*AFO30 -> 0 | AFP27: =AFP26*(AFP24-AFO24)*AFP30 -> 0 | AFQ27: =AFQ26*(AFQ24-AFP24)*AFQ30 -> 0 | AFR27: =AFR26*(AFR24-AFQ24)*AFR30 -> 0 | AFS27: =AFS26*(AFS24-AFR24)*AFS30 -> 0 | AFT27: =AFT26*(AFT24-AFS24)*AFT30 -> 0 | AFU27: =AFU26*(AFU24-AFT24)*AFU30 -> 0 | AFV27: =AFV26*(AFV24-AFU24)*AFV30 -> 0 | AFW27: =AFW26*(AFW24-AFV24)*AFW30 -> 0 | AFX27: =AFX26*(AFX24-AFW24)*AFX30 -> 0 | AFY27: =AFY26*(AFY24-AFX24)*AFY30 -> 0 | AFZ27: =AFZ26*(AFZ24-AFY24)*AFZ30 -> 0 | AGA27: =AGA26*(AGA24-AFZ24)*AGA30 -> 0 | AGB27: =AGB26*(AGB24-AGA24)*AGB30 -> 0 | AGC27: =AGC26*(AGC24-AGB24)*AGC30 -> 0 | AGD27: =AGD26*(AGD24-AGC24)*AGD30 -> 0 | AGE27: =AGE26*(AGE24-AGD24)*AGE30 -> 0 | AGF27: =AGF26*(AGF24-AGE24)*AGF30 -> 0 | AGG27: =AGG26*(AGG24-AGF24)*AGG30 -> 0 | AGH27: =AGH26*(AGH24-AGG24)*AGH30 -> 0 | AGI27: =AGI26*(AGI24-AGH24)*AGI30 -> 0 | AGJ27: =AGJ26*(AGJ24-AGI24)*AGJ30 -> 0 | AGK27: =AGK26*(AGK24-AGJ24)*AGK30 -> 0 | AGL27: =AGL26*(AGL24-AGK24)*AGL30 -> 0 | AGM27: =AGM26*(AGM24-AGL24)*AGM30 -> 0 | AGN27: =AGN26*(AGN24-AGM24)*AGN30 -> 0 | AGO27: =AGO26*(AGO24-AGN24)*AGO30 -> 0 | AGP27: =AGP26*(AGP24-AGO24)*AGP30 -> 0 | AGQ27: =AGQ26*(AGQ24-AGP24)*AGQ30 -> 0 | AGR27: =AGR26*(AGR24-AGQ24)*AGR30 -> 0 | AGS27: =AGS26*(AGS24-AGR24)*AGS30 -> 0 | AGT27: =AGT26*(AGT24-AGS24)*AGT30 -> 0 | AGU27: =AGU26*(AGU24-AGT24)*AGU30 -> 0 | AGV27: =AGV26*(AGV24-AGU24)*AGV30 -> 0 | AGW27: =AGW26*(AGW24-AGV24)*AGW30 -> 0 | AGX27: =AGX26*(AGX24-AGW24)*AGX30 -> 0 | AGY27: =AGY26*(AGY24-AGX24)*AGY30 -> 0 | AGZ27: =AGZ26*(AGZ24-AGY24)*AGZ30 -> 0 | AHA27: =AHA26*(AHA24-AGZ24)*AHA30 -> 0 | AHB27: =AHB26*(AHB24-AHA24)*AHB30 -> 0 | AHC27: =AHC26*(AHC24-AHB24)*AHC30 -> 0 | AHD27: =AHD26*(AHD24-AHC24)*AHD30 -> 0 | AHE27: =AHE26*(AHE24-AHD24)*AHE30 -> 0 | AHF27: =AHF26*(AHF24-AHE24)*AHF30 -> 0 | AHG27: =AHG26*(AHG24-AHF24)*AHG30 -> 0 | AHH27: =AHH26*(AHH24-AHG24)*AHH30 -> 0 | AHI27: =AHI26*(AHI24-AHH24)*AHI30 -> 0 | AHJ27: =AHJ26*(AHJ24-AHI24)*AHJ30 -> 0 | AHK27: =AHK26*(AHK24-AHJ24)*AHK30 -> 0 | AHL27: =AHL26*(AHL24-AHK24)*AHL30 -> 0 | AHM27: =AHM26*(AHM24-AHL24)*AHM30 -> 0 | AHN27: =AHN26*(AHN24-AHM24)*AHN30 -> 0 | AHO27: =AHO26*(AHO24-AHN24)*AHO30 -> 0 | AHP27: =AHP26*(AHP24-AHO24)*AHP30 -> 0 | AHQ27: =AHQ26*(AHQ24-AHP24)*AHQ30 -> 0 | AHR27: =AHR26*(AHR24-AHQ24)*AHR30 -> 0 | AHS27: =AHS26*(AHS24-AHR24)*AHS30 -> 0 | AHT27: =AHT26*(AHT24-AHS24)*AHT30 -> 0 | AHU27: =AHU26*(AHU24-AHT24)*AHU30 -> 0 | AHV27: =AHV26*(AHV24-AHU24)*AHV30 -> 0 | AHW27: =AHW26*(AHW24-AHV24)*AHW30 -> 0 | AHX27: =AHX26*(AHX24-AHW24)*AHX30 -> 0 | AHY27: =AHY26*(AHY24-AHX24)*AHY30 -> 0 | AHZ27: =AHZ26*(AHZ24-AHY24)*AHZ30 -> 0 | AIA27: =AIA26*(AIA24-AHZ24)*AIA30 -> 0 | AIB27: =AIB26*(AIB24-AIA24)*AIB30 -> 0 | AIC27: =AIC26*(AIC24-AIB24)*AIC30 -> 0 | AID27: =AID26*(AID24-AIC24)*AID30 -> 0 | AIE27: =AIE26*(AIE24-AID24)*AIE30 -> 0 | AIF27: =AIF26*(AIF24-AIE24)*AIF30 -> 0 | AIG27: =AIG26*(AIG24-AIF24)*AIG30 -> 0 | AIH27: =AIH26*(AIH24-AIG24)*AIH30 -> 0 | AII27: =AII26*(AII24-AIH24)*AII30 -> 0 | AIJ27: =AIJ26*(AIJ24-AII24)*AIJ30 -> 0 | AIK27: =AIK26*(AIK24-AIJ24)*AIK30 -> 0 | AIL27: =AIL26*(AIL24-AIK24)*AIL30 -> 0 | AIM27: =AIM26*(AIM24-AIL24)*AIM30 -> 0 | AIN27: =AIN26*(AIN24-AIM24)*AIN30 -> 0 | AIO27: =AIO26*(AIO24-AIN24)*AIO30 -> 0 | AIP27: =AIP26*(AIP24-AIO24)*AIP30 -> 0 | AIQ27: =AIQ26*(AIQ24-AIP24)*AIQ30 -> 0 | AIR27: =AIR26*(AIR24-AIQ24)*AIR30 -> 0 | AIS27: =AIS26*(AIS24-AIR24)*AIS30 -> 0 | AIT27: =AIT26*(AIT24-AIS24)*AIT30 -> 0 | AIU27: =AIU26*(AIU24-AIT24)*AIU30 -> 0 | AIV27: =AIV26*(AIV24-AIU24)*AIV30 -> 0 | AIW27: =AIW26*(AIW24-AIV24)*AIW30 -> 0 | AIX27: =AIX26*(AIX24-AIW24)*AIX30 -> 0 | AIY27: =AIY26*(AIY24-AIX24)*AIY30 -> 0 | AIZ27: =AIZ26*(AIZ24-AIY24)*AIZ30 -> 0 | AJA27: =AJA26*(AJA24-AIZ24)*AJA30 -> 0 | AJB27: =AJB26*(AJB24-AJA24)*AJB30 -> 0 | AJC27: =AJC26*(AJC24-AJB24)*AJC30 -> 0 | AJD27: =AJD26*(AJD24-AJC24)*AJD30 -> 0 | AJE27: =AJE26*(AJE24-AJD24)*AJE30 -> 0 | AJF27: =AJF26*(AJF24-AJE24)*AJF30 -> 0 | AJG27: =AJG26*(AJG24-AJF24)*AJG30 -> 0 | AJH27: =AJH26*(AJH24-AJG24)*AJH30 -> 0 | AJI27: =AJI26*(AJI24-AJH24)*AJI30 -> 0 | AJJ27: =AJJ26*(AJJ24-AJI24)*AJJ30 -> 0 | AJK27: =AJK26*(AJK24-AJJ24)*AJK30 -> 0 | AJL27: =AJL26*(AJL24-AJK24)*AJL30 -> 0 | AJM27: =AJM26*(AJM24-AJL24)*AJM30 -> 0 | AJN27: =AJN26*(AJN24-AJM24)*AJN30 -> 0 | AJO27: =AJO26*(AJO24-AJN24)*AJO30 -> 0 | AJP27: =AJP26*(AJP24-AJO24)*AJP30 -> 0 | AJQ27: =AJQ26*(AJQ24-AJP24)*AJQ30 -> 0 | AJR27: =AJR26*(AJR24-AJQ24)*AJR30 -> 0 | AJS27: =AJS26*(AJS24-AJR24)*AJS30 -> 0 | AJT27: =AJT26*(AJT24-AJS24)*AJT30 -> 0 | AJU27: =AJU26*(AJU24-AJT24)*AJU30 -> 0 | AJV27: =AJV26*(AJV24-AJU24)*AJV30 -> 0 | AJW27: 0 | AJX27: =AJX26*(AJX24-AJW24)*AJX30 -> 0 | AJY27: =AJY26*(AJY24-AJX24)*AJY30 -> 0 | AJZ27: =AJZ26*(AJZ24-AJY24)*AJZ30 -> 0 | AKA27: =AKA26*(AKA24-AJZ24)*AKA30 -> 0 | AKB27: =AKB26*(AKB24-AKA24)*AKB30 -> 0 | AKC27: =AKC26*(AKC24-AKB24)*AKC30 -> 0 | AKD27: =AKD26*(AKD24-AKC24)*AKD30 -> 0 | AKE27: =AKE26*(AKE24-AKD24)*AKE30 -> 0 | AKF27: =AKF26*(AKF24-AKE24)*AKF30 -> 0 | AKG27: =AKG26*(AKG24-AKF24)*AKG30 -> 0 | AKH27: =AKH26*(AKH24-AKG24)*AKH30 -> 0 | AKI27: =AKI26*(AKI24-AKH24)*AKI30 -> 0 | AKJ27: =AKJ26*(AKJ24-AKI24)*AKJ30 -> 0 | AKK27: =AKK26*(AKK24-AKJ24)*AKK30 -> 0 | AKL27: =AKL26*(AKL24-AKK24)*AKL30 -> 0 | AKM27: =AKM26*(AKM24-AKL24)*AKM30 -> 0 | AKN27: =AKN26*(AKN24-AKM24)*AKN30 -> 0 | AKO27: =AKO26*(AKO24-AKN24)*AKO30 -> 0 | AKP27: =AKP26*(AKP24-AKO24)*AKP30 -> 0 | AKQ27: =AKQ26*(AKQ24-AKP24)*AKQ30 -> 0 | AKR27: =AKR26*(AKR24-AKQ24)*AKR30 -> 0 | AKS27: =AKS26*(AKS24-AKR24)*AKS30 -> 0 | AKT27: =AKT26*(AKT24-AKS24)*AKT30 -> 0 | AKU27: =AKU26*(AKU24-AKT24)*AKU30 -> 0 | AKV27: =AKV26*(AKV24-AKU24)*AKV30 -> 0 | AKW27: =AKW26*(AKW24-AKV24)*AKW30 -> 0 | AKX27: =AKX26*(AKX24-AKW24)*AKX30 -> 0 | AKY27: =AKY26*(AKY24-AKX24)*AKY30 -> 0 | AKZ27: =AKZ26*(AKZ24-AKY24)*AKZ30 -> 0 | ALA27: =ALA26*(ALA24-AKZ24)*ALA30 -> 0 | ALB27: =ALB26*(ALB24-ALA24)*ALB30 -> 0 | ALC27: =ALC26*(ALC24-ALB24)*ALC30 -> 0 | ALD27: =ALD26*(ALD24-ALC24)*ALD30 -> 0 | ALE27: =ALE26*(ALE24-ALD24)*ALE30 -> 0 | ALF27: =ALF26*(ALF24-ALE24)*ALF30 -> 0 | ALG27: =ALG26*(ALG24-ALF24)*ALG30 -> 0 | ALH27: =ALH26*(ALH24-ALG24)*ALH30 -> 0 | ALI27: =ALI26*(ALI24-ALH24)*ALI30 -> 0 | ALJ27: =ALJ26*(ALJ24-ALI24)*ALJ30 -> 0 | ALK27: =ALK26*(ALK24-ALJ24)*ALK30 -> 0 | ALL27: =ALL26*(ALL24-ALK24)*ALL30 -> 0 | ALM27: =ALM26*(ALM24-ALL24)*ALM30 -> 0 | ALN27: =ALN26*(ALN24-ALM24)*ALN30 -> 0 | ALO27: =ALO26*(ALO24-ALN24)*ALO30 -> 0 | ALP27: =ALP26*(ALP24-ALO24)*ALP30 -> 0 | ALQ27: =ALQ26*(ALQ24-ALP24)*ALQ30 -> 0 | ALR27: =ALR26*(ALR24-ALQ24)*ALR30 -> 0 | ALS27: =ALS26*(ALS24-ALR24)*ALS30 -> 0 | ALT27: =ALT26*(ALT24-ALS24)*ALT30 -> 0 | ALU27: =ALU26*(ALU24-ALT24)*ALU30 -> 0 | ALV27: =ALV26*(ALV24-ALU24)*ALV30 -> 0 | ALW27: =ALW26*(ALW24-ALV24)*ALW30 -> 0 | ALX27: =ALX26*(ALX24-ALW24)*ALX30 -> 0 | ALY27: =ALY26*(ALY24-ALX24)*ALY30 -> 0 | ALZ27: =ALZ26*(ALZ24-ALY24)*ALZ30 -> 0 | AMA27: =AMA26*(AMA24-ALZ24)*AMA30 -> 0 | AMB27: =AMB26*(AMB24-AMA24)*AMB30 -> 0 | AMC27: =AMC26*(AMC24-AMB24)*AMC30 -> 0 | AMD27: =AMD26*(AMD24-AMC24)*AMD30 -> 0 | AME27: =AME26*(AME24-AMD24)*AME30 -> 0 | AMF27: =AMF26*(AMF24-AME24)*AMF30 -> 0 | AMG27: =AMG26*(AMG24-AMF24)*AMG30 -> 0 | AMH27: =AMH26*(AMH24-AMG24)*AMH30 -> 0 | AMI27: =AMI26*(AMI24-AMH24)*AMI30 -> 0 | AMJ27: =AMJ26*(AMJ24-AMI24)*AMJ30 -> 0 | AMK27: =AMK26*(AMK24-AMJ24)*AMK30 -> 0 | AML27: =AML26*(AML24-AMK24)*AML30 -> 0 | AMM27: =AMM26*(AMM24-AML24)*AMM30 -> 0 | AMN27: =AMN26*(AMN24-AMM24)*AMN30 -> 0 | AMO27: =AMO26*(AMO24-AMN24)*AMO30 -> 0 | AMP27: =AMP26*(AMP24-AMO24)*AMP30 -> 0 | AMQ27: =AMQ26*(AMQ24-AMP24)*AMQ30 -> 0 | AMR27: =AMR26*(AMR24-AMQ24)*AMR30 -> 0 | AMS27: =AMS26*(AMS24-AMR24)*AMS30 -> 0 | AMT27: =AMT26*(AMT24-AMS24)*AMT30 -> 0 | AMU27: =AMU26*(AMU24-AMT24)*AMU30 -> 0 | AMV27: =AMV26*(AMV24-AMU24)*AMV30 -> 0 | AMW27: =AMW26*(AMW24-AMV24)*AMW30 -> 0 | AMX27: =AMX26*(AMX24-AMW24)*AMX30 -> 0 | AMY27: =AMY26*(AMY24-AMX24)*AMY30 -> 0 | AMZ27: =AMZ26*(AMZ24-AMY24)*AMZ30 -> 0 | ANA27: =ANA26*(ANA24-AMZ24)*ANA30 -> 0 | ANB27: =ANB26*(ANB24-ANA24)*ANB30 -> 0 | ANC27: =ANC26*(ANC24-ANB24)*ANC30 -> 0 | AND27: =AND26*(AND24-ANC24)*AND30 -> 0 | ANE27: =ANE26*(ANE24-AND24)*ANE30 -> 0 | ANF27: =ANF26*(ANF24-ANE24)*ANF30 -> 0 | ANG27: =ANG26*(ANG24-ANF24)*ANG30 -> 0 | ANH27: =ANH26*(ANH24-ANG24)*ANH30 -> 0 | ANI27: =ANI26*(ANI24-ANH24)*ANI30 -> 0 | ANJ27: =ANJ26*(ANJ24-ANI24)*ANJ30 -> 0 | ANK27: =ANK26*(ANK24-ANJ24)*ANK30 -> 0 | ANL27: =ANL26*(ANL24-ANK24)*ANL30 -> 0 | ANM27: =ANM26*(ANM24-ANL24)*ANM30 -> 0 | ANN27: =ANN26*(ANN24-ANM24)*ANN30 -> 0 | ANO27: =ANO26*(ANO24-ANN24)*ANO30 -> 0 | ANP27: =ANP26*(ANP24-ANO24)*ANP30 -> 0 | ANQ27: =ANQ26*(ANQ24-ANP24)*ANQ30 -> 0 | ANR27: =ANR26*(ANR24-ANQ24)*ANR30 -> 0 | ANS27: =ANS26*(ANS24-ANR24)*ANS30 -> 0 | ANT27: =ANT26*(ANT24-ANS24)*ANT30 -> 0 | ANU27: =ANU26*(ANU24-ANT24)*ANU30 -> 0 | ANV27: =ANV26*(ANV24-ANU24)*ANV30 -> 0 | ANW27: =ANW26*(ANW24-ANV24)*ANW30 -> 0 | ANX27: =ANX26*(ANX24-ANW24)*ANX30 -> 0 | ANY27: =ANY26*(ANY24-ANX24)*ANY30 -> 0 | ANZ27: =ANZ26*(ANZ24-ANY24)*ANZ30 -> 0 | AOA27: =AOA26*(AOA24-ANZ24)*AOA30 -> 0 | AOB27: =AOB26*(AOB24-AOA24)*AOB30 -> 0 | AOC27: =AOC26*(AOC24-AOB24)*AOC30 -> 0 | AOD27: =AOD26*(AOD24-AOC24)*AOD30 -> 0 | AOE27: =AOE26*(AOE24-AOD24)*AOE30 -> 0 | AOF27: =AOF26*(AOF24-AOE24)*AOF30 -> 0 | AOG27: =AOG26*(AOG24-AOF24)*AOG30 -> 0 | AOH27: =AOH26*(AOH24-AOG24)*AOH30 -> 0 | AOI27: =AOI26*(AOI24-AOH24)*AOI30 -> 0 | AOJ27: =AOJ26*(AOJ24-AOI24)*AOJ30 -> 0 | AOK27: =AOK26*(AOK24-AOJ24)*AOK30 -> 0 | AOL27: =AOL26*(AOL24-AOK24)*AOL30 -> 0 | AOM27: =AOM26*(AOM24-AOL24)*AOM30 -> 0 | AON27: =AON26*(AON24-AOM24)*AON30 -> 0 | AOO27: =AOO26*(AOO24-AON24)*AOO30 -> 0 | AOP27: =AOP26*(AOP24-AOO24)*AOP30 -> 0 | AOQ27: =AOQ26*(AOQ24-AOP24)*AOQ30 -> 0 | AOR27: =AOR26*(AOR24-AOQ24)*AOR30 -> 0 | AOS27: =AOS26*(AOS24-AOR24)*AOS30 -> 0 | AOT27: =AOT26*(AOT24-AOS24)*AOT30 -> 0 | AOU27: =AOU26*(AOU24-AOT24)*AOU30 -> 0 | AOV27: =AOV26*(AOV24-AOU24)*AOV30 -> 0 | AOW27: =AOW26*(AOW24-AOV24)*AOW30 -> 0 | AOX27: =AOX26*(AOX24-AOW24)*AOX30 -> 0 | AOY27: =AOY26*(AOY24-AOX24)*AOY30 -> 0 | AOZ27: =AOZ26*(AOZ24-AOY24)*AOZ30 -> 0 | APA27: =APA26*(APA24-AOZ24)*APA30 -> 0 | APB27: =APB26*(APB24-APA24)*APB30 -> 0 | APC27: =APC26*(APC24-APB24)*APC30 -> 0 | APD27: =APD26*(APD24-APC24)*APD30 -> 0 | APE27: =APE26*(APE24-APD24)*APE30 -> 0 | APF27: =APF26*(APF24-APE24)*APF30 -> 0 | APG27: =APG26*(APG24-APF24)*APG30 -> 0 | APH27: =APH26*(APH24-APG24)*APH30 -> 0 | API27: =API26*(API24-APH24)*API30 -> 0 | APJ27: =APJ26*(APJ24-API24)*APJ30 -> 0 | APK27: =APK26*(APK24-APJ24)*APK30 -> 0 | APL27: =APL26*(APL24-APK24)*APL30 -> 0 | APM27: =APM26*(APM24-APL24)*APM30 -> 0 | APN27: =APN26*(APN24-APM24)*APN30 -> 0 | APO27: =APO26*(APO24-APN24)*APO30 -> 0 | APP27: =APP26*(APP24-APO24)*APP30 -> 0 | APQ27: =APQ26*(APQ24-APP24)*APQ30 -> 0 | APR27: =APR26*(APR24-APQ24)*APR30 -> 0 | APS27: =APS26*(APS24-APR24)*APS30 -> 0 | APT27: =APT26*(APT24-APS24)*APT30 -> 0 | APU27: =APU26*(APU24-APT24)*APU30 -> 0 | APV27: =APV26*(APV24-APU24)*APV30 -> 0 | APW27: =APW26*(APW24-APV24)*APW30 -> 0 | APX27: =APX26*(APX24-APW24)*APX30 -> 0 | APY27: =APY26*(APY24-APX24)*APY30 -> 0 | APZ27: =APZ26*(APZ24-APY24)*APZ30 -> 0 | AQA27: =AQA26*(AQA24-APZ24)*AQA30 -> 0 | AQB27: =AQB26*(AQB24-AQA24)*AQB30 -> 0 | AQC27: =AQC26*(AQC24-AQB24)*AQC30 -> 0 | AQD27: =AQD26*(AQD24-AQC24)*AQD30 -> 0
